Workbook

Sheet Web Pages_Input
E4: Business Projection Model | AA4: Key Performance Indicators (after 24 months) | AF4: Two-Year Sales Funnel | AT4: Four-Year Sales Funnel | BR4: Four-Year Sales Funnel
A5: https://www.EandSsolutions.com
A6: Existing Business | B6: Per Mth | C6: Annual | AA6: Business Projection at 24 months | AB6: Per Mth | AC6: Annual | AD6: Change
CC7: Now | CD7: +24 Mths | CE7: +48 Mths
A8: Current Customer (# Avg. from last 3 months) | AA8: Projected Customers (# Mth 24) | AB8: =IF(SUM(B19:B37)=0,'Rev Model'!Y6,'Rev Model'!Y6+'Rev Model'!Y33) -> 0 | AD8: =IF(AB8=B8,0,IF(B8=0,0,IF(AB8>B8,(AB8-B8)/B8,(AB8-B8)/B8))) -> 0 | AR8: =IF(SUM(B19:B37)=0,'Rev Model'!AW6,'Rev Model'!AW6+'Rev Model'!AW33) -> 0 | CB8: Sales per Mth. | CC8: =B10 -> 0 | CD8: =+AB10 -> 0 | CE8: =+AR10 -> 0
BD9: 4-Year Revenue & Customer Goal | BJ9: Printers. | CB9: # of Customers | CC9: =B8 -> 0 | CD9: =+'Rev Model'!Y6+'Rev Model'!Y33 -> 0 | CE9: ='Rev Model'!AW6+'Rev Model'!AW33 -> 0
A10: Base Business Sales (per mth) | C10: =B10*12 -> 0 | AA10: Projected Sales (Mth 24) | AB10: ='Rev Model'!Y20 -> 0 | AC10: =AB10*12 -> 0 | AD10: =IF(AB10=B10,0,IF(AB10>B10,(AB10-B10)/B10,(AB10-B10)/B10)) -> 0 | AR10: ='Rev Model'!AW20 -> 0 | BD10: New Biz Rev Plan Mth 48 | BF10: ='Sales Funnel'!AX20 -> 0 | BH10: New Customer Mix | BI10: # | BJ10: Total | BK10: Avg. | CB10: Avg. Sales per Cust. Per Yr. | CC10: ='Rev Model'!B164 ->  | CD10: ='Rev Model'!Y164 ->  | CE10: ='Rev Model'!AW164 -> 
BD11: Avg. Sales Per Cust/Mth. | BF11: ='Sales Funnel'!AX21 -> 0 | BH11: Large ~200 Employees | BI11: ='Sales Funnel'!AX41 -> 0 | BJ11: ='Sales Funnel'!AX46 -> 0 | BK11: =IF(BJ11=0,0,BJ11/BI11) -> 0 | CB11: Annual Churn % | CC11: ='LG Calculator'!G26 -> 0 | CD11: ='Rev Model'!Y160 ->  | CE11: =+'Rev Model'!AW160 -> 
A12: Average Number of Orders (per mth) | AA12: Projected Avg Number of Orders (Mth 24) | AB12: =IF(B12=0,0,IF(AB10=0,0,ROUND(('Rev Model'!Y8/'Rev Model'!Y10)+('Rev Model'!Y14/'Rev Model'!Y16),0))) -> 0 | AD12: =IF(AB12=B12,0,IF(AB12>B12,(AB12-B12)/B12,(AB12-B12)/B12)) -> 0 | BD12: % New Biz - Ink & Toner | BF12: ='Sales Funnel'!AX31 -> 0 | BH12: Medium ~50 Employees | BI12: ='Sales Funnel'!AX42 -> 0 | BJ12: ='Sales Funnel'!AX47 -> 0 | BK12: =IF(BJ12=0,0,BJ12/BI12) -> 0 | CB12: Annual Acquisition % | CC12: ='LG Calculator'!G28 ->  | CD12: ='Rev Model'!Y161 ->  | CE12: ='Rev Model'!AW161 -> 
BD13: Avg. Cartridge SP | BF13: ='Sales Funnel'!AX33 -> 60 | BH13: Small ~10 Employees | BI13: ='Sales Funnel'!AX43 -> 0 | BJ13: ='Sales Funnel'!AX48 -> 0 | BK13: =IF(BJ13=0,0,BJ13/BI13) -> 0 | CB13: Life-Time Value (LTV) | CC13: ='Rev Model'!B162 ->  | CD13: ='Rev Model'!X162 ->  | CE13: ='Rev Model'!AW162 -> 
A14: Average Order Size ($) | B14: =IF(OR(B10=0,B12=0),0,B10/B12) -> 0 | AA14: Projected Avg Order Size ($) - Mth 24 | AB14: =IF(OR(AB10=0,AB12=0),0,AB10/AB12) -> 0 | AD14: =IF(AB14=B14,0,IF(AB14>B14,(AB14-B14)/B14,(AB14-B14)/B14)) -> 0 | BD14: # of Units/Mth per Cust | BF14: ='Sales Funnel'!AX34 -> 0 | BH14: Totals | BI14: =SUM(BI11:BI13) -> 0 | BJ14: =SUM(BJ11:BJ13) -> 0 | BK14: =IF(BJ14=0,0,BJ14/BI14) -> 0 | CB14: Cost of Acquisition | CC14: ='Rev Model'!B163 ->  | CD14: ='Rev Model'!X163 ->  | CE14: ='Rev Model'!AW163 -> 
CB15: Web Traffic per Mth. | CC15: ='Rev Model'!B29 -> 0 | CD15: ='Rev Model'!Y29 -> 0 | CE15: ='Rev Model'!AW29 -> 0
A16: Ecommerce Business Development | AA16: Ecommerce Business Development | CB16: Email Contacts | CC16: ='Rev Model'!B53 -> 0 | CD16: ='Rev Model'!Y53 -> 0 | CE16: ='Rev Model'!AW53 -> 0
CB17: Social Audience | CC17: ='Rev Model'!B87 -> 0 | CD17: ='Rev Model'!Y87 -> 0 | CE17: ='Rev Model'!AW87 -> 0
A18: Social Reach | AA18: Social Reach | CB18: Blog Subscribers | CC18: ='Rev Model'!B52 -> 0 | CD18: ='Rev Model'!Y52 -> 0 | CE18: ='Rev Model'!AW52 -> 0
A19: Facebook Company Followers | AA19: Projected Facebook Followers | AB19: ='Rev Model'!Y82 -> 0 | AD19: =IF(AB19=B19,0,IF(B19=0,0,IF(AB19>B19,(AB19-B19)/B19,(AB19-B19)/B19))) -> 0 | AR19: ='Rev Model'!AW82 -> 0
A20: Twitter Company Followers | AA20: Projected Twitter Followers | AB20: ='Rev Model'!Y83 -> 0 | AD20: =IF(AB20=B20,0,IF(AND(B20=0,AB20>0),"N/M",IF(B20=0,"",IF(AB20>B20,(AB20-B20)/B20,(AB20-B20)/B20)))) -> 0 | AR20: ='Rev Model'!AW83 -> 0
A21: Linkedin Company Followers | AA21: Projected Linkedin Company Followers | AB21: ='Rev Model'!Y84 -> 0 | AD21: =IF(AB21=B21,0,IF(AND(B21=0,AB21>0),"N/M",IF(B21=0,"",IF(AB21>B21,(AB21-B21)/B21,(AB21-B21)/B21)))) -> 0 | AR21: ='Rev Model'!AW84 -> 0
A22: Google+ Company Followers | AA22: Projected Google+ Company Followers | AB22: ='Rev Model'!Y85 -> 0 | AD22: =IF(AB22=B22,0,IF(AND(B22=0,AB22>0),"N/M",IF(B22=0,"",IF(AB22>B22,(AB22-B22)/B22,(AB22-B22)/B22)))) -> 0 | AR22: ='Rev Model'!AW85 -> 0
A23: LinkedIn Personal Contacts (Snr. Management) | AA23: Projected LinkedIn Management Group Contacts | AB23: ='Rev Model'!Y86 -> 0 | AD23: =IF(AB23=B23,0,IF(B23=0,"",IF(AB23>B23,(AB23-B23)/B23,(AB23-B23)/B23))) -> 0 | AR23: ='Rev Model'!AW86 -> 0 | CC23: =SUM('Rev Model'!B54:AW54) -> 0 | CD23: =CC23*CE23 -> 0 | CE23: 0.25
A24: Current Blog Subscribers | AA24: Projected Blog Subscribers | AB24: ='Rev Model'!Y52 -> 0 | AD24: =IF(AB24=B24,0,IF(B24=0,"N/M",IF(AB24>B24,(AB24-B24)/B24,(AB24-B24)/B24))) -> 0 | AR24: ='Rev Model'!AW52 -> 0 | CC24: =SUM('Rev Model'!B25:AW25) -> 0 | CD24: =CD23*CE24 -> 0 | CE24: 0.1940652017
A25: Total Social Shares | AA25: Projected Social Shares | AB25: ='Rev Model'!Y45 -> 0 | AD25: =IF(AB25=B25,0,IF(B25=0,"",IF(AB25>B25,(AB25-B25)/B25,(AB25-B25)/B25))) -> 0 | AR25: ='Rev Model'!AW45 -> 0 | CC25: =CC24/CC23 -> 
A27: Relevant Email Contacts (opted-in) | AA27: Projected number of opted-in Email contacts | AB27: ='Rev Model'!Y53 -> 0 | AD27: =IF(AB27=B27,0,IF(B27=0,"",IF(AB27>B27,(AB27-B27)/B27,(AB27-B27)/B27))) -> 0 | AR27: ='Rev Model'!AW53 -> 0
A28: Current Web Traffic (Unique Daily Visitors) | C28: =ROUND('Rev Model'!B24/'Rev Model'!B1,0) -> 0 | AA28: Projected Web Traffic (Unique Daily Visitors) | AB28: ='Rev Model'!Y29/'Rev Model'!Y1 -> 0 | AC28: =ROUND(AB28*365,0) -> 0 | AD28: =IF(AB28=B28,0,IF(B28=0,"",IF(AB28>C28,(AB28-C28)/C28,(AB28-C28)/C28))) -> 0 | AR28: ='Rev Model'!AW29/'Rev Model'!AW1 -> 0
A29: Published Blogs per Month | AA29: Projected Blogs per Month | AB29: ='Rev Model'!Y60 -> 0 | AD29: =IF(AB29=B29,0,IF(AND(AB29>0,B29=0),"N/M",IF(AB29>B29,(AB29-B29)/B29,(AB29-B29)/B29))) -> 0 | AR29: ='Rev Model'!AW60 -> 0
A30: Current Digital Advertising Budget | C30: =B30*12 -> 0 | AA30: Monthly Paid Search Budget (Mth 24) | AB30: ='Rev Model'!Y62 -> 0 | AC30: =AB30*12 -> 0 | AD30: =IF(AB30=B30,0,IF(AND(AB30>0,B30=0),"N/M",IF(AB30>B30,(AB30-B30)/B30,(AB30-B30)/B30))) -> 0 | AR30: ='Rev Model'!AW62 -> 0
A33: Your Company Name:
A34: Your Email Address:
A35: Your Phone Number:

Sheet LG Calculator
B1: Scenario 1 | C1: Calculator | D1: Model Settings | G1: Period (Years) | H1: Churn | Q1: Base Yr 1 | R1: Year 2 | S1: Year 3 | T1: Year 4
A2: Current Revenue | B2: ='P&L'!$D$5 -> 0 | C2: =B2 -> 0 | D2: =C2 -> 0 | J2: =D3 -> 0 | K2: D3 | L2: minus | O2: =(D3-D2+3*D6*D2-3*D6^2*D2+D6^3*D2) -> 0 | P2: Year 1 | Q2: 321000
A3: 4 Year Goal | B3: ='P&L'!$BG$5 -> 0 | C3: =B3 -> 0 | D3: =C3 -> 0 | J3: =D2 -> 0 | K3: D2 | O3: =(3-3*D6+D6^2) -> 3 | P3: Year 2 | Q3: =(Q2)*(D$6) -> 0
A4: Revenue Growth | B4: =B3-B2 -> 0 | C4: =C3-C2 -> 0 | D4: =D3-D2 -> 0 | F4: =D5/B5 ->  | J4: =J2-J3 -> 0 | L4: = | O4: =O2/O3 -> 0 | P4: Year 3 | Q4: =(Q2-Q3)*(D$6) -> 0 | T4: 1581167
A5: Average Client Size (Revenue per Year) | B5: =B2/B12 ->  | C5: =D5 ->  | D5: =D7/'Sales Funnel'!AX18 ->  | E5: =IF('Rev Model'!$B$20=0,0,'Rev Model'!$AW$20*12/('Rev Model'!$AW$33+'Rev Model'!$AW$6)) -> 0 | F5: 1538736.701 | O5: =O4*3 -> 0 | P5: Year 4 | Q5: =Q4*(1-D$6) -> 0
A6: Churn 1 | B6: 0.1 | C6: 0.2 | D6: =G26 -> 0 | G6: 4 | H6: =D6 -> 0 | J6: =(G$6*H$6*D$2) -> 0 | L6: plus | M6: 3 x D6 x D2 | Q6: =Q2-Q5 -> 321000
A7: New revenue needed 2 | B7: =(B3-B2+4*B6*B2-4*B6^3*B2+B6^4*B2)/(4-4*B6+B6^3)*4 -> 0 | C7: =(C3-C2+4*C6*C2-4*C6^3*C2+C6^4*C2)/(4-4*C6+C6^3)*4 -> 0 | D7: =(D3-D2+4*D6*D2-4*D6^3*D2+D6^4*D2)/(4-4*D6+D6^3)*4 -> 0 | J7: =J4+J6 -> 0
A8: Closing Rate 7 | B8: ='Sales Funnel'!AX18/'Sales Funnel'!AX14 ->  | D8: =INDEX('Social Table'!$A$39:$D$48,MATCH('Rev Model'!$B47,'Social Table'!$A$39:$A$48,1),4) -> 0.5101404056 | G8: 4 | H8: =H6 -> 0 | I8: 3 | J8: =-G$8*H$8^I8*J3 -> 0 | L8: minus | M8: 3 x D6 ^ 2
A9: Proposals / Opportunities 6 | B9: ='Sales Funnel'!AX14/'Sales Funnel'!AX12 ->  | D9: ='Sales Funnel'!AX14/'Sales Funnel'!AX12 ->  | J9: =J7+J8 -> 0
A10: Sales Qualified Leads (Fit Rate) 5 | B10: ='Sales Funnel'!AX12/'Sales Funnel'!AX10 ->  | D10: ='Sales Funnel'!AX12/'Sales Funnel'!AX10 ->  | H10: =H8 -> 0 | I10: 4 | J10: =H10^I10*J3 -> 0 | L10: plus | M10: D6 ^ 3 x D2
A11: Conversion Rate (Lead -> MQL) 4 | B11: ='Sales Funnel'!AX10/'Sales Funnel'!AX8 ->  | D11: ='Sales Funnel'!AX10/'Sales Funnel'!AX8 ->  | J11: =J9+J10 -> 0
A12: # of Current Clients 3 | B12: ='Web Pages_Input'!$B$8 -> 0 | C12: ='Web Pages_Input'!$B$8 -> 0 | D12: ='Web Pages_Input'!$B$8 -> 0
A13: New Clients Needed | B13: =B14*B8 ->  | C13: =IF(C7=0,0,ROUND(C7/C5,0)) -> 0 | D13: =IF(D7=0,0,ROUND(D7/D5,0)) -> 0 | E13: ='Rev Model'!AW33 -> 0 | F13: =D13 -> 0
A14: Proposals (Opportunities) Needed | B14: =B15*B9 ->  | C14: =IF(C8=0,0,C13/C8) -> 0 | D14: =ROUND(D15*D9,0) ->  | E14: =E13/D8 -> 0 | F14: =F13/D8 -> 0 | G14: 4 | H14: 4 | I14: 3 | J14: =G14-H14*D6+D6^I14 -> 4 | L14: divided
A15: Qualified Prospects (SQL) | B15: =B16*B10 ->  | C15: =IF(C9=0,0,C14/C9) -> 0 | D15: =ROUND(D16*D10,0) ->  | E15: =E14/D9 ->  | F15: =F14/D9 ->  | J15: =J11/J14 -> 0
A16: Qualified Prospects (MQL) | B16: =B17*B11 ->  | C16: =IF(C10=0,0,C15/C10) -> 0 | D16: =ROUND(D17*D11,0) ->  | E16: =E15/D10 ->  | F16: =F15/D10 ->  | G16: 4 | J16: =J15*G16 -> 0
A17: Leads Needed / Created | B17: =B20*B19 ->  | C17: =IF(C11=0,0,C16/C11) -> 0 | D17: ='Sales Funnel'!$AX$8 -> 0 | E17: =E16/D11 ->  | F17: =F16/D11 -> 
A18: Overall Conversion Rate | B18: =IF(B13=0,0,B13/B17) ->  | C18: =IF(C17=0,"",C13/C17) ->  | D18: =IF(D17=0,0,D13/D17) -> 0 | F18: =F17/0.1 -> 
A19: Traffic -> Lead Conversion Rate | B19: ='Sales Funnel'!AX8/'Sales Funnel'!AX5 ->  | D19: =IF(D17=0,0,D17/D20) -> 0 | F19: =F13/F17 -> 
A20: Cumulative Web Traffic | B20: ='Sales Funnel'!$AX$5 -> 0 | C20: =IF(C19=0,0,ROUND(C17/C19,0)) -> 0 | D20: ='Sales Funnel'!$AX$5 -> 0 | E20: =E17/D19 ->  | I20: Customer Acquisition
I21: 0 | J21: 0.05
A22: Average new rev per year | B22: =B7/4 -> 0 | C22: =C7/4 -> 0 | D22: =D7/4 -> 0 | I22: =J21 -> 0.05 | J22: =I22+5% -> 0.1 | K22: =IF(G28<J21,"Low",IF(AND(G28>I22,G28<J22),"Medium","High")) -> 
A23: Average Clients/Year | B23: =ROUND(B13/4,0) ->  | C23: 0 | D23: 0 | F23: Existing Customers | G23: ='Web Pages_Input'!B8 -> 0 | I23: =J22 -> 0.1
A24: Average Proposals/Year | C24: 0 | F24: New Customers TTM | I24: Customer Churn
A25: Average Qualified/Year | B25: =ROUND(B16/4,0) ->  | C25: 0 | F25: Customer Count start TTM | I25: 0 | J25: 0.05
A26: Average Leads/Year | C26: 0 | D26: 0 | F26: Churn | G26: =IF(G23=0,0,IF(G23=0,0,1-(G23-G24)/G25)) -> 0 | I26: =J25 -> 0.05 | J26: =I26+5% -> 0.1 | K26: =IF(G26<J25,"Low",IF(AND(G26>I26,G26<J26),"Medium","High")) -> Low
F27: Monthly Churn | G27: =IF(G26=0,0,G26/12) -> 0 | I27: =J26 -> 0.1
F28: New Customer Acquistion | G28: =((G23+G24)/G23)-1 -> 
A30: 1 Churn represents the amount of revenue you turnover each year. For products oriented companies where customers buy once, and don't buy again for a period of years (if ever), churn rate would be very high (near 100%). For companies in recurring revenue businesses (a la professional services) you can figure out your churn by determining your retention rate and subtracting that from 100.
A31: 2 Closing rate is based upon the number of proposals that are made to the number of proposals that are accepted and funded. So if you make 2 proposals on average for every "closed deal" your closing rate would be 50%.
A32: 3 Proposals (or opportunity) rate is based on the number of
A33: 4 Fit rate is based upon the number of first sales meetings (sales qualified leads) that get to the proposal stage. So if you need to meet with four prospects to get one proposal your fit rate would be 25%.
A34: 5 New revenue needed is determined by the difference between your current revenue and you goal revenue, and then accounting for your churn rate.
A35: 6 Conversion rate is based upon the number of leads that are received to the number that are accepted as sales qualified leads (SQL)
A36: 7 # of current clients is determined by dividing your current revenue by your average client size

Sheet CW Model (hidden)
B1: Start | C1: ='Rev Model'!B2 -> Sep | D1: ='Rev Model'!C2 -> Oct | E1: ='Rev Model'!D2 -> Nov | F1: ='Rev Model'!E2 -> Dec | G1: ='Rev Model'!F2 -> Jan | H1: ='Rev Model'!G2 -> Feb | I1: ='Rev Model'!H2 -> Mar | J1: ='Rev Model'!I2 -> Apr | K1: ='Rev Model'!J2 -> May | L1: ='Rev Model'!K2 -> Jun | M1: ='Rev Model'!L2 -> Jul | N1: ='Rev Model'!M2 -> Aug | O1: ='Rev Model'!N2 -> Sep | P1: ='Rev Model'!O2 -> Oct | Q1: ='Rev Model'!P2 -> Nov | R1: ='Rev Model'!Q2 -> Dec | S1: ='Rev Model'!R2 -> Jan | T1: ='Rev Model'!S2 -> Feb | U1: ='Rev Model'!T2 -> Mar | V1: ='Rev Model'!U2 -> Apr | W1: ='Rev Model'!V2 -> May | X1: ='Rev Model'!W2 -> Jun | Y1: ='Rev Model'!X2 -> Jul | Z1: ='Rev Model'!Y2 -> Aug
A2: # of locations | B2: 400 | C2: =ROUND((($Z$2-B2)/24)+B2,0) -> 404 | D2: =ROUND((($Z$2-C2)/24)+C2,0) -> 408 | E2: 412 | F2: 416 | G2: 420 | H2: 423 | I2: 426 | J2: 429 | K2: 432 | L2: 435 | M2: 438 | N2: 441 | O2: 443 | P2: 445 | Q2: 447 | R2: 449 | S2: 451 | T2: 453 | U2: 455 | V2: 457 | W2: 459 | X2: 461 | Y2: 463 | Z2: 500
A3: Avg. # of customers per location | B3: ='Web Pages_Input'!B8 -> 0 | C3: ='Rev Model'!B6+'Rev Model'!B33 -> 0 | D3: ='Rev Model'!C6+'Rev Model'!C33 -> 0 | E3: ='Rev Model'!D6+'Rev Model'!D33 -> 0 | F3: ='Rev Model'!E6+'Rev Model'!E33 -> 0 | G3: ='Rev Model'!F6+'Rev Model'!F33 -> 0 | H3: ='Rev Model'!G6+'Rev Model'!G33 -> 0 | I3: ='Rev Model'!H6+'Rev Model'!H33 -> 0 | J3: ='Rev Model'!I6+'Rev Model'!I33 -> 0 | K3: ='Rev Model'!J6+'Rev Model'!J33 -> 0 | L3: ='Rev Model'!K6+'Rev Model'!K33 -> 0 | M3: ='Rev Model'!L6+'Rev Model'!L33 -> 0 | N3: ='Rev Model'!M6+'Rev Model'!M33 -> 0 | O3: ='Rev Model'!N6+'Rev Model'!N33 -> 0 | P3: ='Rev Model'!O6+'Rev Model'!O33 -> 0 | Q3: ='Rev Model'!P6+'Rev Model'!P33 -> 0 | R3: ='Rev Model'!Q6+'Rev Model'!Q33 -> 0 | S3: ='Rev Model'!R6+'Rev Model'!R33 -> 0 | T3: ='Rev Model'!S6+'Rev Model'!S33 -> 0 | U3: ='Rev Model'!T6+'Rev Model'!T33 -> 0 | V3: ='Rev Model'!U6+'Rev Model'!U33 -> 0 | W3: ='Rev Model'!V6+'Rev Model'!V33 -> 0 | X3: ='Rev Model'!W6+'Rev Model'!W33 -> 0 | Y3: ='Rev Model'!X6+'Rev Model'!X33 -> 0 | Z3: ='Rev Model'!Y6+'Rev Model'!Y33 -> 0
A5: Current Customer (# Avg. from last 3 months) | B5: ='Web Pages_Input'!B8*$B$2 -> 0 | C5: =C3*C2 -> 0 | D5: =D3*D2 -> 0 | E5: 0 | F5: 0 | G5: 0 | H5: 0 | I5: 0 | J5: 0 | K5: 0 | L5: 0 | M5: 0 | N5: 0 | O5: 0 | P5: 0 | Q5: 0 | R5: 0 | S5: 0 | T5: 0 | U5: 0 | V5: 0 | W5: 0 | X5: 0 | Y5: 0 | Z5: 0
A7: Projected Sales (per mth) | B7: ='Web Pages_Input'!B10*$B$2 -> 0 | C7: =('Rev Model'!B8+'Rev Model'!B14)*C2 -> 0 | D7: =('Rev Model'!C8+'Rev Model'!C14)*D2 -> 0 | E7: =('Rev Model'!D8+'Rev Model'!D14)*E2 -> 0 | F7: =('Rev Model'!E8+'Rev Model'!E14)*F2 -> 0 | G7: =('Rev Model'!F8+'Rev Model'!F14)*G2 -> 0 | H7: =('Rev Model'!G8+'Rev Model'!G14)*H2 -> 0 | I7: =('Rev Model'!H8+'Rev Model'!H14)*I2 -> 0 | J7: =('Rev Model'!I8+'Rev Model'!I14)*J2 -> 0 | K7: =('Rev Model'!J8+'Rev Model'!J14)*K2 -> 0 | L7: =('Rev Model'!K8+'Rev Model'!K14)*L2 -> 0 | M7: =('Rev Model'!L8+'Rev Model'!L14)*M2 -> 0 | N7: =('Rev Model'!M8+'Rev Model'!M14)*N2 -> 0 | O7: =('Rev Model'!N8+'Rev Model'!N14)*O2 -> 0 | P7: =('Rev Model'!O8+'Rev Model'!O14)*P2 -> 0 | Q7: =('Rev Model'!P8+'Rev Model'!P14)*Q2 -> 0 | R7: =('Rev Model'!Q8+'Rev Model'!Q14)*R2 -> 0 | S7: =('Rev Model'!R8+'Rev Model'!R14)*S2 -> 0 | T7: =('Rev Model'!S8+'Rev Model'!S14)*T2 -> 0 | U7: =('Rev Model'!T8+'Rev Model'!T14)*U2 -> 0 | V7: =('Rev Model'!U8+'Rev Model'!U14)*V2 -> 0 | W7: =('Rev Model'!V8+'Rev Model'!V14)*W2 -> 0 | X7: =('Rev Model'!W8+'Rev Model'!W14)*X2 -> 0 | Y7: =('Rev Model'!X8+'Rev Model'!X14)*Y2 -> 0 | Z7: =('Rev Model'!Y8+'Rev Model'!Y14)*Z2 -> 0 | AA7: =Z7*12 -> 0
A9: Average Number of Orders (per mth) | B9: ='Web Pages_Input'!B12*$B$2 -> 0 | C9: =ROUND(('Rev Model'!B8/'Rev Model'!B10)+('Rev Model'!B14/'Rev Model'!B16),0)*C2 ->  | D9: =ROUND(('Rev Model'!C8/'Rev Model'!C10)+('Rev Model'!C14/'Rev Model'!C16),0)*D2 ->  | E9: =ROUND(('Rev Model'!D8/'Rev Model'!D10)+('Rev Model'!D14/'Rev Model'!D16),0)*E2 ->  | F9: =ROUND(('Rev Model'!E8/'Rev Model'!E10)+('Rev Model'!E14/'Rev Model'!E16),0)*F2 ->  | G9: =ROUND(('Rev Model'!F8/'Rev Model'!F10)+('Rev Model'!F14/'Rev Model'!F16),0)*G2 ->  | H9: =ROUND(('Rev Model'!G8/'Rev Model'!G10)+('Rev Model'!G14/'Rev Model'!G16),0)*H2 ->  | I9: =ROUND(('Rev Model'!H8/'Rev Model'!H10)+('Rev Model'!H14/'Rev Model'!H16),0)*I2 ->  | J9: =ROUND(('Rev Model'!I8/'Rev Model'!I10)+('Rev Model'!I14/'Rev Model'!I16),0)*J2 ->  | K9: =ROUND(('Rev Model'!J8/'Rev Model'!J10)+('Rev Model'!J14/'Rev Model'!J16),0)*K2 ->  | L9: =ROUND(('Rev Model'!K8/'Rev Model'!K10)+('Rev Model'!K14/'Rev Model'!K16),0)*L2 ->  | M9: =ROUND(('Rev Model'!L8/'Rev Model'!L10)+('Rev Model'!L14/'Rev Model'!L16),0)*M2 ->  | N9: =ROUND(('Rev Model'!M8/'Rev Model'!M10)+('Rev Model'!M14/'Rev Model'!M16),0)*N2 ->  | O9: =ROUND(('Rev Model'!N8/'Rev Model'!N10)+('Rev Model'!N14/'Rev Model'!N16),0)*O2 ->  | P9: =ROUND(('Rev Model'!O8/'Rev Model'!O10)+('Rev Model'!O14/'Rev Model'!O16),0)*P2 ->  | Q9: =ROUND(('Rev Model'!P8/'Rev Model'!P10)+('Rev Model'!P14/'Rev Model'!P16),0)*Q2 ->  | R9: =ROUND(('Rev Model'!Q8/'Rev Model'!Q10)+('Rev Model'!Q14/'Rev Model'!Q16),0)*R2 ->  | S9: =ROUND(('Rev Model'!R8/'Rev Model'!R10)+('Rev Model'!R14/'Rev Model'!R16),0)*S2 ->  | T9: =ROUND(('Rev Model'!S8/'Rev Model'!S10)+('Rev Model'!S14/'Rev Model'!S16),0)*T2 ->  | U9: =ROUND(('Rev Model'!T8/'Rev Model'!T10)+('Rev Model'!T14/'Rev Model'!T16),0)*U2 ->  | V9: =ROUND(('Rev Model'!U8/'Rev Model'!U10)+('Rev Model'!U14/'Rev Model'!U16),0)*V2 ->  | W9: =ROUND(('Rev Model'!V8/'Rev Model'!V10)+('Rev Model'!V14/'Rev Model'!V16),0)*W2 ->  | X9: =ROUND(('Rev Model'!W8/'Rev Model'!W10)+('Rev Model'!W14/'Rev Model'!W16),0)*X2 ->  | Y9: =ROUND(('Rev Model'!X8/'Rev Model'!X10)+('Rev Model'!X14/'Rev Model'!X16),0)*Y2 ->  | Z9: =ROUND(('Rev Model'!Y8/'Rev Model'!Y10)+('Rev Model'!Y14/'Rev Model'!Y16),0)*Z2 -> 
A11: Average Order Size ($) | B11: =B7/B9 ->  | C11: =C7/C9 -> 
A13: Ecommerce Business Development
A15: Social Reach
A16: Facebook Company Followers | B16: ='Web Pages_Input'!B19*$B$2 -> 0 | C16: =('Rev Model'!B82*C$2) -> 0 | D16: =('Rev Model'!C82*D$2) -> 0 | E16: =('Rev Model'!D82*E$2) -> 0 | F16: =('Rev Model'!E82*F$2) -> 0 | G16: =('Rev Model'!F82*G$2) -> 0 | H16: =('Rev Model'!G82*H$2) -> 0 | I16: =('Rev Model'!H82*I$2) -> 0 | J16: =('Rev Model'!I82*J$2) -> 0 | K16: =('Rev Model'!J82*K$2) -> 0 | L16: =('Rev Model'!K82*L$2) -> 0 | M16: =('Rev Model'!L82*M$2) -> 0 | N16: =('Rev Model'!M82*N$2) -> 0 | O16: =('Rev Model'!N82*O$2) -> 0 | P16: =('Rev Model'!O82*P$2) -> 0 | Q16: =('Rev Model'!P82*Q$2) -> 0 | R16: =('Rev Model'!Q82*R$2) -> 0 | S16: =('Rev Model'!R82*S$2) -> 0 | T16: =('Rev Model'!S82*T$2) -> 0 | U16: =('Rev Model'!T82*U$2) -> 0 | V16: =('Rev Model'!U82*V$2) -> 0 | W16: =('Rev Model'!V82*W$2) -> 0 | X16: =('Rev Model'!W82*X$2) -> 0 | Y16: =('Rev Model'!X82*Y$2) -> 0 | Z16: =('Rev Model'!Y82*Z$2) -> 0
A17: Twitter Company Followers | B17: ='Web Pages_Input'!B20*$B$2 -> 0 | C17: =('Rev Model'!B83*C$2) -> 0 | D17: =('Rev Model'!C83*D$2) -> 0 | E17: =('Rev Model'!D83*E$2) -> 0 | F17: =('Rev Model'!E83*F$2) -> 0 | G17: =('Rev Model'!F83*G$2) -> 0 | H17: =('Rev Model'!G83*H$2) -> 0 | I17: =('Rev Model'!H83*I$2) -> 0 | J17: =('Rev Model'!I83*J$2) -> 0 | K17: =('Rev Model'!J83*K$2) -> 0 | L17: =('Rev Model'!K83*L$2) -> 0 | M17: =('Rev Model'!L83*M$2) -> 0 | N17: =('Rev Model'!M83*N$2) -> 0 | O17: =('Rev Model'!N83*O$2) -> 0 | P17: =('Rev Model'!O83*P$2) -> 0 | Q17: =('Rev Model'!P83*Q$2) -> 0 | R17: =('Rev Model'!Q83*R$2) -> 0 | S17: =('Rev Model'!R83*S$2) -> 0 | T17: =('Rev Model'!S83*T$2) -> 0 | U17: =('Rev Model'!T83*U$2) -> 0 | V17: =('Rev Model'!U83*V$2) -> 0 | W17: =('Rev Model'!V83*W$2) -> 0 | X17: =('Rev Model'!W83*X$2) -> 0 | Y17: =('Rev Model'!X83*Y$2) -> 0 | Z17: =('Rev Model'!Y83*Z$2) -> 0
A18: Linkedin Company Followers | C18: =('Rev Model'!B84*C$2) -> 0 | D18: =('Rev Model'!C84*D$2) -> 0 | E18: =('Rev Model'!D84*E$2) -> 0 | F18: =('Rev Model'!E84*F$2) -> 0 | G18: =('Rev Model'!F84*G$2) -> 0 | H18: =('Rev Model'!G84*H$2) -> 0 | I18: =('Rev Model'!H84*I$2) -> 0 | J18: =('Rev Model'!I84*J$2) -> 0 | K18: =('Rev Model'!J84*K$2) -> 0 | L18: =('Rev Model'!K84*L$2) -> 0 | M18: =('Rev Model'!L84*M$2) -> 0 | N18: =('Rev Model'!M84*N$2) -> 0 | O18: =('Rev Model'!N84*O$2) -> 0 | P18: =('Rev Model'!O84*P$2) -> 0 | Q18: =('Rev Model'!P84*Q$2) -> 0 | R18: =('Rev Model'!Q84*R$2) -> 0 | S18: =('Rev Model'!R84*S$2) -> 0 | T18: =('Rev Model'!S84*T$2) -> 0 | U18: =('Rev Model'!T84*U$2) -> 0 | V18: =('Rev Model'!U84*V$2) -> 0 | W18: =('Rev Model'!V84*W$2) -> 0 | X18: =('Rev Model'!W84*X$2) -> 0 | Y18: =('Rev Model'!X84*Y$2) -> 0 | Z18: =('Rev Model'!Y84*Z$2) -> 0
A19: Google+ Company Followers | B19: ='Web Pages_Input'!B22*$B$2 -> 0 | C19: =('Rev Model'!B85*C$2) -> 0 | D19: =('Rev Model'!C85*D$2) -> 0 | E19: =('Rev Model'!D85*E$2) -> 0 | F19: =('Rev Model'!E85*F$2) -> 0 | G19: =('Rev Model'!F85*G$2) -> 0 | H19: =('Rev Model'!G85*H$2) -> 0 | I19: =('Rev Model'!H85*I$2) -> 0 | J19: =('Rev Model'!I85*J$2) -> 0 | K19: =('Rev Model'!J85*K$2) -> 0 | L19: =('Rev Model'!K85*L$2) -> 0 | M19: =('Rev Model'!L85*M$2) -> 0 | N19: =('Rev Model'!M85*N$2) -> 0 | O19: =('Rev Model'!N85*O$2) -> 0 | P19: =('Rev Model'!O85*P$2) -> 0 | Q19: =('Rev Model'!P85*Q$2) -> 0 | R19: =('Rev Model'!Q85*R$2) -> 0 | S19: =('Rev Model'!R85*S$2) -> 0 | T19: =('Rev Model'!S85*T$2) -> 0 | U19: =('Rev Model'!T85*U$2) -> 0 | V19: =('Rev Model'!U85*V$2) -> 0 | W19: =('Rev Model'!V85*W$2) -> 0 | X19: =('Rev Model'!W85*X$2) -> 0 | Y19: =('Rev Model'!X85*Y$2) -> 0 | Z19: =('Rev Model'!Y85*Z$2) -> 0
A20: LinkedIn Personal Contacts (Snr. Management) | B20: ='Web Pages_Input'!B23*$B$2 -> 0 | C20: =('Rev Model'!B86*C$2) -> 0 | D20: =('Rev Model'!C86*D$2) -> 0 | E20: =('Rev Model'!D86*E$2) -> 0 | F20: =('Rev Model'!E86*F$2) -> 0 | G20: =('Rev Model'!F86*G$2) -> 0 | H20: =('Rev Model'!G86*H$2) -> 0 | I20: =('Rev Model'!H86*I$2) -> 0 | J20: =('Rev Model'!I86*J$2) -> 0 | K20: =('Rev Model'!J86*K$2) -> 0 | L20: =('Rev Model'!K86*L$2) -> 0 | M20: =('Rev Model'!L86*M$2) -> 0 | N20: =('Rev Model'!M86*N$2) -> 0 | O20: =('Rev Model'!N86*O$2) -> 0 | P20: =('Rev Model'!O86*P$2) -> 0 | Q20: =('Rev Model'!P86*Q$2) -> 0 | R20: =('Rev Model'!Q86*R$2) -> 0 | S20: =('Rev Model'!R86*S$2) -> 0 | T20: =('Rev Model'!S86*T$2) -> 0 | U20: =('Rev Model'!T86*U$2) -> 0 | V20: =('Rev Model'!U86*V$2) -> 0 | W20: =('Rev Model'!V86*W$2) -> 0 | X20: =('Rev Model'!W86*X$2) -> 0 | Y20: =('Rev Model'!X86*Y$2) -> 0 | Z20: =('Rev Model'!Y86*Z$2) -> 0
A21: Current Blog Subscribers | B21: ='Web Pages_Input'!B24*$B$2 -> 0 | C21: =('Rev Model'!B52*C$2) -> 0 | D21: =('Rev Model'!C52*D$2) -> 0 | E21: =('Rev Model'!D52*E$2) -> 0 | F21: =('Rev Model'!E52*F$2) -> 0 | G21: =('Rev Model'!F52*G$2) -> 0 | H21: =('Rev Model'!G52*H$2) -> 0 | I21: =('Rev Model'!H52*I$2) -> 0 | J21: =('Rev Model'!I52*J$2) -> 0 | K21: =('Rev Model'!J52*K$2) -> 0 | L21: =('Rev Model'!K52*L$2) -> 0 | M21: =('Rev Model'!L52*M$2) -> 0 | N21: =('Rev Model'!M52*N$2) -> 0 | O21: =('Rev Model'!N52*O$2) -> 0 | P21: =('Rev Model'!O52*P$2) -> 0 | Q21: =('Rev Model'!P52*Q$2) -> 0 | R21: =('Rev Model'!Q52*R$2) -> 0 | S21: =('Rev Model'!R52*S$2) -> 0 | T21: =('Rev Model'!S52*T$2) -> 0 | U21: =('Rev Model'!T52*U$2) -> 0 | V21: =('Rev Model'!U52*V$2) -> 0 | W21: =('Rev Model'!V52*W$2) -> 0 | X21: =('Rev Model'!W52*X$2) -> 0 | Y21: =('Rev Model'!X52*Y$2) -> 0 | Z21: =('Rev Model'!Y52*Z$2) -> 0
A22: Total Social Shares | B22: ='Web Pages_Input'!B25*$B$2 -> 0 | C22: =('Rev Model'!B45*C$2) -> 0 | D22: =('Rev Model'!C45*D$2) -> 0 | E22: =('Rev Model'!D45*E$2) -> 0 | F22: =('Rev Model'!E45*F$2) -> 0 | G22: =('Rev Model'!F45*G$2) -> 0 | H22: =('Rev Model'!G45*H$2) -> 0 | I22: =('Rev Model'!H45*I$2) -> 0 | J22: =('Rev Model'!I45*J$2) -> 0 | K22: =('Rev Model'!J45*K$2) -> 0 | L22: =('Rev Model'!K45*L$2) -> 0 | M22: =('Rev Model'!L45*M$2) -> 0 | N22: =('Rev Model'!M45*N$2) -> 0 | O22: =('Rev Model'!N45*O$2) -> 0 | P22: =('Rev Model'!O45*P$2) -> 0 | Q22: =('Rev Model'!P45*Q$2) -> 0 | R22: =('Rev Model'!Q45*R$2) -> 0 | S22: =('Rev Model'!R45*S$2) -> 0 | T22: =('Rev Model'!S45*T$2) -> 0 | U22: =('Rev Model'!T45*U$2) -> 0 | V22: =('Rev Model'!U45*V$2) -> 0 | W22: =('Rev Model'!V45*W$2) -> 0 | X22: =('Rev Model'!W45*X$2) -> 0 | Y22: =('Rev Model'!X45*Y$2) -> 0 | Z22: =('Rev Model'!Y45*Z$2) -> 0
A24: Relevant Email Contacts (opted-in) | B24: ='Web Pages_Input'!B27*$B$2 -> 0 | C24: ='Rev Model'!B53*C2 -> 0 | D24: ='Rev Model'!C53*D2 -> 0 | E24: ='Rev Model'!D53*E2 -> 0 | F24: ='Rev Model'!E53*F2 -> 0 | G24: ='Rev Model'!F53*G2 -> 0 | H24: ='Rev Model'!G53*H2 -> 0 | I24: ='Rev Model'!H53*I2 -> 0 | J24: ='Rev Model'!I53*J2 -> 0 | K24: ='Rev Model'!J53*K2 -> 0 | L24: ='Rev Model'!K53*L2 -> 0 | M24: ='Rev Model'!L53*M2 -> 0 | N24: ='Rev Model'!M53*N2 -> 0 | O24: ='Rev Model'!N53*O2 -> 0 | P24: ='Rev Model'!O53*P2 -> 0 | Q24: ='Rev Model'!P53*Q2 -> 0 | R24: ='Rev Model'!Q53*R2 -> 0 | S24: ='Rev Model'!R53*S2 -> 0 | T24: ='Rev Model'!S53*T2 -> 0 | U24: ='Rev Model'!T53*U2 -> 0 | V24: ='Rev Model'!U53*V2 -> 0 | W24: ='Rev Model'!V53*W2 -> 0 | X24: ='Rev Model'!W53*X2 -> 0 | Y24: ='Rev Model'!X53*Y2 -> 0 | Z24: ='Rev Model'!Y53*Z2 -> 0
A25: Web Traffic (Unique Daily Visitors) | B25: ='Web Pages_Input'!B28*$B$2 -> 0 | C25: ='Rev Model'!B29*C2/'Rev Model'!B1 -> 0 | D25: ='Rev Model'!C29*D2/'Rev Model'!C1 -> 0 | E25: ='Rev Model'!D29*E2/'Rev Model'!D1 -> 0 | F25: ='Rev Model'!E29*F2/'Rev Model'!E1 -> 0 | G25: ='Rev Model'!F29*G2/'Rev Model'!F1 -> 0 | H25: ='Rev Model'!G29*H2/'Rev Model'!G1 -> 0 | I25: ='Rev Model'!H29*I2/'Rev Model'!H1 -> 0 | J25: ='Rev Model'!I29*J2/'Rev Model'!I1 -> 0 | K25: ='Rev Model'!J29*K2/'Rev Model'!J1 -> 0 | L25: ='Rev Model'!K29*L2/'Rev Model'!K1 -> 0 | M25: ='Rev Model'!L29*M2/'Rev Model'!L1 -> 0 | N25: ='Rev Model'!M29*N2/'Rev Model'!M1 -> 0 | O25: ='Rev Model'!N29*O2/'Rev Model'!N1 -> 0 | P25: ='Rev Model'!O29*P2/'Rev Model'!O1 -> 0 | Q25: ='Rev Model'!P29*Q2/'Rev Model'!P1 -> 0 | R25: ='Rev Model'!Q29*R2/'Rev Model'!Q1 -> 0 | S25: ='Rev Model'!R29*S2/'Rev Model'!R1 -> 0 | T25: ='Rev Model'!S29*T2/'Rev Model'!S1 -> 0 | U25: ='Rev Model'!T29*U2/'Rev Model'!T1 -> 0 | V25: ='Rev Model'!U29*V2/'Rev Model'!U1 -> 0 | W25: ='Rev Model'!V29*W2/'Rev Model'!V1 -> 0 | X25: ='Rev Model'!W29*X2/'Rev Model'!W1 -> 0 | Y25: ='Rev Model'!X29*Y2/'Rev Model'!X1 -> 0 | Z25: ='Rev Model'!Y29*Z2/'Rev Model'!Y1 -> 0
A26: Web Traffic (Unique Monthly Visitors) | B26: =B25*20 -> 0 | C26: =C25*'Rev Model'!B1 -> 0 | D26: =D25*'Rev Model'!C1 -> 0 | E26: =E25*'Rev Model'!D1 -> 0 | F26: =F25*'Rev Model'!E1 -> 0 | G26: =G25*'Rev Model'!F1 -> 0 | H26: =H25*'Rev Model'!G1 -> 0 | I26: =I25*'Rev Model'!H1 -> 0 | J26: =J25*'Rev Model'!I1 -> 0 | K26: =K25*'Rev Model'!J1 -> 0 | L26: =L25*'Rev Model'!K1 -> 0 | M26: =M25*'Rev Model'!L1 -> 0 | N26: =N25*'Rev Model'!M1 -> 0 | O26: =O25*'Rev Model'!N1 -> 0 | P26: =P25*'Rev Model'!O1 -> 0 | Q26: =Q25*'Rev Model'!P1 -> 0 | R26: =R25*'Rev Model'!Q1 -> 0 | S26: =S25*'Rev Model'!R1 -> 0 | T26: =T25*'Rev Model'!S1 -> 0 | U26: =U25*'Rev Model'!T1 -> 0 | V26: =V25*'Rev Model'!U1 -> 0 | W26: =W25*'Rev Model'!V1 -> 0 | X26: =X25*'Rev Model'!W1 -> 0 | Y26: =Y25*'Rev Model'!X1 -> 0 | Z26: =Z25*'Rev Model'!Y1 -> 0
A27: Published Blogs per Month | B27: ='Web Pages_Input'!B29 -> 0 | C27: ='Rev Model'!B60 -> 0 | D27: ='Rev Model'!C60 -> 0 | E27: ='Rev Model'!D60 -> 0 | F27: ='Rev Model'!E60 -> 0 | G27: ='Rev Model'!F60 -> 0 | H27: ='Rev Model'!G60 -> 0 | I27: ='Rev Model'!H60 -> 0 | J27: ='Rev Model'!I60 -> 0 | K27: ='Rev Model'!J60 -> 0 | L27: ='Rev Model'!K60 -> 0 | M27: ='Rev Model'!L60 -> 0 | N27: ='Rev Model'!M60 -> 0 | O27: ='Rev Model'!N60 -> 0 | P27: ='Rev Model'!O60 -> 0 | Q27: ='Rev Model'!P60 -> 0 | R27: ='Rev Model'!Q60 -> 0 | S27: ='Rev Model'!R60 -> 0 | T27: ='Rev Model'!S60 -> 0 | U27: ='Rev Model'!T60 -> 0 | V27: ='Rev Model'!U60 -> 0 | W27: ='Rev Model'!V60 -> 0 | X27: ='Rev Model'!W60 -> 0 | Y27: ='Rev Model'!X60 -> 0 | Z27: ='Rev Model'!Y60 -> 0
A28: Current Advertising Budget | B28: ='Web Pages_Input'!B30*$B$2 -> 0 | C28: ='Rev Model'!B62*C2 -> 0 | D28: ='Rev Model'!C62*D2 -> 0 | E28: ='Rev Model'!D62*E2 -> 0 | F28: ='Rev Model'!E62*F2 -> 0 | G28: ='Rev Model'!F62*G2 -> 0 | H28: ='Rev Model'!G62*H2 -> 0 | I28: ='Rev Model'!H62*I2 -> 0 | J28: ='Rev Model'!I62*J2 -> 0 | K28: ='Rev Model'!J62*K2 -> 0 | L28: ='Rev Model'!K62*L2 -> 0 | M28: ='Rev Model'!L62*M2 -> 0 | N28: ='Rev Model'!M62*N2 -> 0 | O28: ='Rev Model'!N62*O2 -> 0 | P28: ='Rev Model'!O62*P2 -> 0 | Q28: ='Rev Model'!P62*Q2 -> 0 | R28: ='Rev Model'!Q62*R2 -> 0 | S28: ='Rev Model'!R62*S2 -> 0 | T28: ='Rev Model'!S62*T2 -> 0 | U28: ='Rev Model'!T62*U2 -> 0 | V28: ='Rev Model'!U62*V2 -> 0 | W28: ='Rev Model'!V62*W2 -> 0 | X28: ='Rev Model'!W62*X2 -> 0 | Y28: ='Rev Model'!X62*Y2 -> 0 | Z28: ='Rev Model'!Y62*Z2 -> 0

Sheet Model (hidden)
A1: Work Days in Month | B1: =VLOOKUP(B2,$AC$4:$AD$15,2,FALSE) -> 20 | C1: =VLOOKUP(C2,$AC$4:$AD$15,2,FALSE) -> 21 | D1: =VLOOKUP(D2,$AC$4:$AD$15,2,FALSE) -> 18 | E1: 20 | F1: 21 | G1: 18 | H1: 21 | I1: 20 | J1: 21 | K1: 20 | L1: 21 | M1: 21 | N1: 20 | O1: 21 | P1: 18 | Q1: 20 | R1: 21 | S1: 18 | T1: 21 | U1: 20 | V1: 21 | W1: 20 | X1: 21 | Y1: 21 | AA1: 21
A2: =TODAY() -> 2016-09-29 | B2: =TEXT(B3*28,"mmm") -> Sep | C2: Oct | D2: Nov | E2: Dec | F2: Jan | G2: Feb | H2: Mar | I2: Apr | J2: May | K2: Jun | L2: Jul | M2: Aug | N2: Sep | O2: Oct | P2: Nov | Q2: Dec | R2: Jan | S2: Feb | T2: Mar | U2: Apr | V2: May | W2: Jun | X2: Jul | Y2: Aug
B3: =MONTH(A2) -> 9 | C3: =IF(B3+1>12,1,B3+1) -> 10 | D3: =IF(C3+1>12,1,C3+1) -> 11 | E3: =IF(D3+1>12,1,D3+1) -> 12 | F3: =IF(E3+1>12,1,E3+1) -> 1 | G3: =IF(F3+1>12,1,F3+1) -> 2 | H3: 3 | I3: 4 | J3: 5 | K3: 6 | L3: 7 | M3: 8 | N3: 9 | O3: 10 | P3: 11 | Q3: 12 | R3: 1 | S3: 2 | T3: 3 | U3: 4 | V3: 5 | W3: 6 | X3: 7 | Y3: 8 | AC3: Month | AD3: Workdays
A4: Leads | B4: ='Web Pages_Input'!B27 -> 0 | G4: =B4*3.09 -> 0 | M4: =B4*9.38 -> 0 | Y4: =B4*45.66 -> 0 | AC4: Jan | AD4: 21
A5: Conversion Rate | AC5: Feb | AD5: 18
A6: UDV's | B6: ='Web Pages_Input'!B28 -> 0 | G6: 500 | M6: =B6*590% -> 0 | AC6: Mar | AD6: 21
AC7: Apr | AD7: 20
A8: Website traffic | B8: =B6 -> 0 | G8: =G6 -> 500 | M8: 1000 | AC8: May | AD8: 21
A9: Lead capturing | B9: =ROUNDUP(B6*0.04,0) -> 0 | G9: =ROUNDUP(G8*0.04,0) -> 20 | M9: =ROUNDUP(M8*0.04,0) -> 40 | AC9: Jun | AD9: 20
A10: Lead Segmentation | AC10: Jul | AD10: 21
A11: Lead Nurturing | AC11: Aug | AD11: 21
A12: Lead Grading | AC12: Sep | AD12: 20
A13: Sales | M13: =M9*70 -> 2800 | AC13: Oct | AD13: 21
M14: =M13*365/12 -> 85166.66667 | AC14: Nov | AD14: 18
AC15: Dec | AD15: 20
A17: Current Customer (#) | B17: ='Web Pages_Input'!B8 -> 0 | C17: =B17 -> 0 | D17: =C17 -> 0 | E17: 0 | F17: 0 | G17: 0 | H17: 0 | I17: 0 | J17: 0 | K17: 0 | L17: 0 | M17: 0 | N17: 0 | O17: 0 | P17: 0 | Q17: 0 | R17: 0 | S17: 0 | T17: 0 | U17: 0 | V17: 0 | W17: 0 | X17: 0 | Y17: 0
A18: Current Customer Retention Rate | B18: 1 | C18: 0.98 | D18: =C18 -> 0.98 | E18: 0.98 | F18: 0.98 | G18: 0.98 | H18: 0.98 | I18: 0.98 | J18: 0.98 | K18: 0.98 | L18: 0.98 | M18: 0.98 | N18: 0.98 | O18: 0.98 | P18: 0.98 | Q18: 0.98 | R18: 0.98 | S18: 0.98 | T18: 0.98 | U18: 0.98 | V18: 0.98 | W18: 0.98 | X18: 0.98 | Y18: 0.98
A19: Net Projected Customers | B19: =B17*B18 -> 0 | C19: =ROUNDUP(B19*C18,0) -> 0 | D19: =ROUNDUP(C19*D18,0) -> 0 | E19: 0 | F19: 0 | G19: 0 | H19: 0 | I19: 0 | J19: 0 | K19: 0 | L19: 0 | M19: 0 | N19: 0 | O19: 0 | P19: 0 | Q19: 0 | R19: 0 | S19: 0 | T19: 0 | U19: 0 | V19: 0 | W19: 0 | X19: 0 | Y19: 0
A21: Base Business Sales (per mth) | B21: ='Web Pages_Input'!B10 -> 0 | C21: =C22*C1*C23 -> 0 | D21: =D22*D1*D23 -> 0 | E21: 0
A22: # of Daily Transactions (5 days per week) | B22: =IF(OR(B21=0,B23=0),0,ROUND(B21/B23/B1,0)) -> 0 | C22: =IF(OR(B21=0,B23=0),0,C19/B19*B22) -> 0 | D22: =IF(OR(C21=0,C23=0),0,D19/C19*C22) -> 0 | E22: =IF(OR(D21=0,D23=0),0,E19/D19*D22) -> 0 | F22: =F19/E19*E22 -> 
A23: Average Order Size (decrease 5% per annum) | B23: =B72 -> 0 | C23: =B23*(1-(C73/12)) -> 0 | D23: 0 | E23: 0 | F23: 0 | G23: 0 | H23: 0 | I23: 0 | J23: 0 | K23: 0 | L23: 0 | M23: 0 | N23: 0 | O23: 0 | P23: 0 | Q23: 0 | R23: 0 | S23: 0 | T23: 0 | U23: 0 | V23: 0 | W23: 0 | X23: 0 | Y23: 0
A24: Avg. Sales per Customer per Month | B24: =IF(B21=0,0,B21/B19) -> 0 | C24: =IF(C21=0,0,C21/C19) -> 0 | D24: 0 | E24: 0
A25: Avg. Daily Customer Spend (Base Business) | B25: =B24/B1 -> 0 | C25: =C24/C1 -> 0 | D25: 0 | E25: 0
A28: Total Customer Spend / Mth | B28: =B107+B21 -> 0 | C28: 0 | D28: 0 | E28: 0
A30: Key Performance Indicators
A31: Website traffic (total)
A32: Organic + Blog | B32: ='Web Pages_Input'!B28 -> 0 | C32: =ROUND(C45*C78,0) -> 0 | D32: =ROUND(D45*D78,0) -> 0 | E32: 0 | F32: 0 | G32: 0 | H32: 0 | I32: 0 | J32: 0 | K32: 0 | L32: 0 | M32: 0 | N32: 0 | O32: 0 | P32: 0 | Q32: 0 | R32: 0 | S32: 0 | T32: 0 | U32: 0 | V32: 0 | W32: 0 | X32: 0 | Y32: 0 | AA32: =AA45*AA78 -> 100
A33: Paid | B33: =ROUNDUP((B55/B83)*B82,0) -> 0 | C33: =ROUNDUP((C55/C83)*C82,0) -> 0 | D33: =ROUNDUP((D55/D83)*D82,0) -> 0 | E33: 0 | F33: 0 | G33: 0 | H33: 0 | I33: 0 | J33: 0 | K33: 0 | L33: 0 | M33: 0 | N33: 0 | O33: 0 | P33: 0 | Q33: 0 | R33: 0 | S33: 0 | T33: 0 | U33: 0 | V33: 0 | W33: 0 | X33: 0 | Y33: 0 | AA33: =ROUNDUP((AA55/AA83)*AA82,0) -> 288
A34: Social | B34: =ROUND(B68*B80,0) -> 0 | C34: =ROUND(C68*C80,0) -> 0 | D34: 0 | E34: 0 | F34: 0 | G34: 0 | H34: 0 | I34: 0 | J34: 0 | K34: 0 | L34: 0 | M34: 0 | N34: 0 | O34: 0 | P34: 0 | Q34: 0 | R34: 0 | S34: 0 | T34: 0 | U34: 0 | V34: 0 | W34: 0 | X34: 0 | Y34: 0 | AA34: =ROUND(AA68*AA80,0) -> 545
A35: Website traffic (total) | B35: =SUM(B32:B34) -> 0 | C35: =SUM(C32:C34) -> 0 | D35: 0 | E35: 0 | F35: 0 | G35: 0 | H35: 0 | I35: 0 | J35: 0 | K35: 0 | L35: 0 | M35: 0 | N35: 0 | O35: 0 | P35: 0 | Q35: 0 | R35: 0 | S35: 0 | T35: 0 | U35: 0 | V35: 0 | W35: 0 | X35: 0 | Y35: 0 | AA35: =SUM(AA32:AA34) -> 933
A37: New Customer Acquisition by Month | B37: =ROUNDUP(B41*B50,0) -> 0 | C37: =ROUNDUP(C41*C50,0) -> 0 | D37: =ROUNDUP(D41*D50,0) -> 0 | E37: 0 | F37: 0 | G37: 0 | H37: 0 | I37: 0 | J37: 0 | K37: 0 | L37: 0 | M37: 0 | N37: 0 | O37: 0 | P37: 0 | Q37: 0 | R37: 0 | S37: 0 | T37: 0 | U37: 0 | V37: 0 | W37: 0 | X37: 0 | Y37: 0
A38: Total Customers (Cumulative Net of Base Retention Rate) | B38: =SUM($B37:B37) -> 0 | C38: =SUM($B37:C37) -> 0 | D38: =SUM($B37:D37) -> 0 | E38: =SUM($B37:E37) -> 0 | F38: =SUM($B37:F37) -> 0 | G38: =SUM($B37:G37) -> 0 | H38: =SUM($B37:H37) -> 0 | I38: =SUM($B37:I37) -> 0 | J38: =SUM($B37:J37) -> 0 | K38: =SUM($B37:K37) -> 0 | L38: =SUM($B37:L37) -> 0 | M38: =SUM($B37:M37) -> 0 | N38: =SUM($B37:N37) -> 0 | O38: =SUM($B37:O37) -> 0 | P38: =SUM($B37:P37) -> 0 | Q38: =SUM($B37:Q37) -> 0 | R38: =SUM($B37:R37) -> 0 | S38: =SUM($B37:S37) -> 0 | T38: =SUM($B37:T37) -> 0 | U38: =SUM($B37:U37) -> 0 | V38: =SUM($B37:V37) -> 0 | W38: =SUM($B37:W37) -> 0 | X38: =SUM($B37:X37) -> 0 | Y38: =SUM($B37:Y37) -> 0
A40: Leads (base) | B40: ='Web Pages_Input'!B27 -> 0 | C40: =B40 -> 0 | D40: =C40 -> 0 | E40: 0 | F40: 0 | G40: 0 | H40: 0 | I40: 0 | J40: 0 | K40: 0 | L40: 0 | M40: 0 | N40: 0 | O40: 0 | P40: 0 | Q40: 0 | R40: 0 | S40: 0 | T40: 0 | U40: 0 | V40: 0 | W40: 0 | X40: 0 | Y40: 0
A41: Leads (new) from site | B41: =ROUNDUP(B31*B46,0) -> 0 | C41: =ROUNDUP(C31*C46,0) -> 0 | D41: =ROUNDUP(D31*D46,0) -> 0 | E41: =ROUNDUP(E31*E46,0) -> 0 | F41: 0 | G41: 0 | H41: 0 | I41: 0 | J41: 0 | K41: 0 | L41: 0 | M41: 0 | N41: 0 | O41: 0 | P41: 0 | Q41: 0 | R41: 0 | S41: 0 | T41: 0 | U41: 0 | V41: 0 | W41: 0 | X41: 0 | Y41: 0
A42: Total Cumulative Leads | B42: =B41+B40 -> 0 | C42: =SUM($B41:C41)+C40 -> 0 | D42: =SUM($B41:D41)+D40 -> 0 | E42: =SUM($B41:E41)+E40 -> 0 | F42: =SUM($B41:F41)+F40 -> 0 | G42: =SUM($B41:G41)+G40 -> 0 | H42: =SUM($B41:H41)+H40 -> 0 | I42: =SUM($B41:I41)+I40 -> 0 | J42: =SUM($B41:J41)+J40 -> 0 | K42: =SUM($B41:K41)+K40 -> 0 | L42: =SUM($B41:L41)+L40 -> 0 | M42: =SUM($B41:M41)+M40 -> 0 | N42: =SUM($B41:N41)+N40 -> 0 | O42: =SUM($B41:O41)+O40 -> 0 | P42: =SUM($B41:P41)+P40 -> 0 | Q42: =SUM($B41:Q41)+Q40 -> 0 | R42: =SUM($B41:R41)+R40 -> 0 | S42: =SUM($B41:S41)+S40 -> 0 | T42: =SUM($B41:T41)+T40 -> 0 | U42: =SUM($B41:U41)+U40 -> 0 | V42: =SUM($B41:V41)+V40 -> 0 | W42: =SUM($B41:W41)+W40 -> 0 | X42: =SUM($B41:X41)+X40 -> 0 | Y42: =SUM($B41:Y41)+Y40 -> 0
A44: Content download | B44: =ROUNDUP(B51*B86+B52*B87,0) -> 0 | C44: =ROUNDUP(C51*C86+C52*C87,0) -> 0 | D44: 0 | E44: 0 | F44: 0 | G44: 0 | H44: 0 | I44: 0 | J44: 0 | K44: 0 | L44: 0 | M44: 0 | N44: 0 | O44: 0 | P44: 0 | Q44: 0 | R44: 0 | S44: 0 | T44: 0 | U44: 0 | V44: 0 | W44: 0 | X44: 0 | Y44: 0
A45: Blog Views | B45: =B54*ROUNDUP(B51*B89+B52*B90+B31*B91,0) -> 0 | C45: =C54*ROUNDUP(C51*C89+C52*C90,0) -> 0 | D45: =D54*ROUNDUP(D51*D89+D52*D90,0) -> 0 | E45: =E54*ROUNDUP(E51*E89+E52*E90,0) -> 0 | F45: =F54*ROUNDUP(F51*F89+F52*F90,0) -> 0 | G45: =G54*ROUNDUP(G51*G89+G52*G90,0) -> 0 | H45: 0 | I45: 0 | J45: 0 | K45: 0 | L45: 0 | M45: 0 | N45: 0 | O45: 0 | P45: 0 | Q45: 0 | R45: 0 | S45: 0 | T45: 0 | U45: 0 | V45: 0 | W45: 0 | X45: 0 | Y45: 0 | AA45: 1000
A46: Landing Page Conversion Rate | B46: =B93 -> 0.02 | C46: =C93 -> 0.0225 | D46: 0.025 | E46: 0.0275 | F46: 0.03 | G46: 0.0325 | H46: 0.035 | I46: 0.0375 | J46: 0.04 | K46: 0.0425 | L46: 0.045 | M46: 0.0475 | N46: 0.05 | O46: 0.05 | P46: 0.05 | Q46: 0.05 | R46: 0.05 | S46: 0.05 | T46: 0.05 | U46: 0.05 | V46: 0.05 | W46: 0.05 | X46: 0.05 | Y46: 0.05
A47: Cost per Lead (Paid Search Only) | B47: =IF(B33=0,0,B55/(B33*B79)) -> 0 | C47: =IF(C33=0,0,C55/(C33*C79)) -> 0 | D47: =IF(D33=0,0,D55/(D33*D79)) -> 0 | E47: =IF(E33=0,0,E55/(E33*E79)) -> 0 | F47: =IF(F33=0,0,F55/(F33*F79)) -> 0 | G47: 0 | H47: 0 | I47: 0 | J47: 0 | K47: 0 | L47: 0 | M47: 0 | N47: 0 | O47: 0 | P47: 0 | Q47: 0 | R47: 0 | S47: 0 | T47: 0 | U47: 0 | V47: 0 | W47: 0 | X47: 0 | Y47: 0
A48: Social Media Engagement / Reach (Social Shares) | B48: =ROUNDUP(B68*B95,0) -> 0 | C48: =ROUNDUP(C68*C95,0) -> 0 | D48: 0 | E48: 0 | F48: 0 | G48: 0 | H48: 0 | I48: 0 | J48: 0 | K48: 0 | L48: 0 | M48: 0 | N48: 0 | O48: 0 | P48: 0 | Q48: 0 | R48: 0 | S48: 0 | T48: 0 | U48: 0 | V48: 0 | W48: 0 | X48: 0 | Y48: 0
A49: New (ecommerce) Customer Retention | B49: 0.96 | C49: =B49*1.001 -> 0.96096 | D49: =C49*1.001 -> 0.96192096 | E49: 0.962882881 | F49: 0.9638457638 | G49: 0.9648096096 | H49: 0.9657744192 | I49: 0.9667401936 | J49: 0.9677069338 | K49: 0.9686746408 | L49: 0.9696433154 | M49: 0.9706129587 | N49: 0.9715835717 | O49: 0.9725551552 | P49: 0.9735277104 | Q49: 0.9745012381 | R49: 0.9754757394 | S49: 0.9764512151 | T49: 0.9774276663 | U49: 0.978405094 | V49: 0.9793834991 | W49: 0.9803628826 | X49: 0.9813432454 | Y49: 0.9823245887
A50: Lead to Customer Closing Rate | B50: 0.05 | C50: =IF(B50+0.005>0.075,0.075,B50+0.005) -> 0.055 | D50: =IF(C50+0.005>0.075,0.075,C50+0.005) -> 0.06 | E50: 0.065 | F50: 0.07 | G50: 0.075 | H50: 0.075 | I50: 0.075 | J50: 0.075 | K50: 0.075 | L50: 0.075 | M50: 0.075 | N50: 0.075 | O50: 0.075 | P50: 0.075 | Q50: 0.075 | R50: 0.075 | S50: 0.075 | T50: 0.075 | U50: 0.075 | V50: 0.075 | W50: 0.075 | X50: 0.075 | Y50: 0.075
A51: Email/Blog Subscribers | B51: =B54*ROUND(B52*B97,0) -> 0 | C51: =C54*ROUND(C52*C97,0) -> 0 | D51: 0 | E51: 0 | F51: 0 | G51: 0 | H51: 0 | I51: 0 | J51: 0 | K51: 0 | L51: 0 | M51: 0 | N51: 0 | O51: 0 | P51: 0 | Q51: 0 | R51: 0 | S51: 0 | T51: 0 | U51: 0 | V51: 0 | W51: 0 | X51: 0 | Y51: 0
A52: Email Audience (total emails sent/mth 2 per week) | B52: =(B101+B19)*8 -> 0 | C52: =(C42+C19)*8 -> 0 | D52: 0 | E52: 0 | F52: 0 | G52: 0 | H52: 0 | I52: 0 | J52: 0 | K52: 0 | L52: 0 | M52: 0 | N52: 0 | O52: 0 | P52: 0 | Q52: 0 | R52: 0 | S52: 0 | T52: 0 | U52: 0 | V52: 0 | W52: 0 | X52: 0 | Y52: 0 | AA52: =AA101*8 -> 0
A54: Published Blogs (one per week) | B54: ='Web Pages_Input'!B29 -> 0 | C54: =B54 -> 0 | D54: =C54 -> 0 | E54: 0 | F54: 0 | G54: 0 | H54: 0 | I54: 0 | J54: 0 | K54: 0 | L54: 0 | M54: 0 | N54: 0 | O54: 0 | P54: 0 | Q54: 0 | R54: 0 | S54: 0 | T54: 0 | U54: 0 | V54: 0 | W54: 0 | X54: 0 | Y54: 0 | AA54: 4
A55: Google Key Word Spend | B55: 0 | C55: 0 | D55: 0 | E55: ='Web Pages_Input'!B30 -> 0 | F55: =E55 -> 0 | G55: =F55 -> 0 | H55: =IF(E55=0,0,G55+250) -> 0 | I55: =H55 -> 0 | J55: =I55 -> 0 | K55: 0 | L55: 0 | M55: 0 | N55: 0 | O55: 0 | P55: 0 | Q55: 0 | R55: 0 | S55: 0 | T55: 0 | U55: 0 | V55: 0 | W55: 0 | X55: 0 | Y55: 0 | AA55: 600
A57: Average Current Transaction Value
A58: Average Ecommerce Transaction | B58: =B74 -> 0 | C58: =C74 -> 0 | D58: 0 | E58: 0 | F58: 0 | G58: 0 | H58: 0 | I58: 0 | J58: 0 | K58: 0 | L58: 0 | M58: 0 | N58: 0 | O58: 0 | P58: 0 | Q58: 0 | R58: 0 | S58: 0 | T58: 0 | U58: 0 | V58: 0 | W58: 0 | X58: 0 | Y58: 0
A59: % of Total Customers transacting on-line | B59: =IF(B19=0,0,(B105-B19)/B105) -> 0 | C59: =IF(C19=0,0,(C38-C19)/C38) -> 0 | D59: 0 | E59: 0 | F59: 0 | G59: 0 | H59: 0 | I59: 0 | J59: 0 | K59: 0 | L59: 0 | M59: 0 | N59: 0 | O59: 0 | P59: 0 | Q59: 0 | R59: 0 | S59: 0 | T59: 0 | U59: 0 | V59: 0 | W59: 0 | X59: 0 | Y59: 0
A60: % of Online Customers Shopping Vs. Educational Visits
A62: Appointments set??
A63: Mobile Data (Traffic, Leads, Conversions)
A65: Facebook Friends | B65: ='Web Pages_Input'!B19 -> 0 | C65: =IF($B68=0,0,B65+15) -> 0 | D65: =IF($B68=0,0,C65+15) -> 0 | E65: 0 | F65: 0 | G65: 0 | H65: 0 | I65: 0 | J65: 0 | K65: 0 | L65: 0 | M65: 0 | N65: 0 | O65: 0 | P65: 0 | Q65: 0 | R65: 0 | S65: 0 | T65: 0 | U65: 0 | V65: 0 | W65: 0 | X65: 0 | Y65: 0 | AA65: 420
A66: Twitter Followers | B66: ='Web Pages_Input'!B20 -> 0 | C66: =IF($B68=0,0,B66+250) -> 0 | D66: =IF($B68=0,0,C66+250) -> 0 | E66: 0 | F66: 0 | G66: 0 | H66: 0 | I66: 0 | J66: 0 | K66: 0 | L66: 0 | M66: 0 | N66: 0 | O66: 0 | P66: 0 | Q66: 0 | R66: 0 | S66: 0 | T66: 0 | U66: 0 | V66: 0 | W66: 0 | X66: 0 | Y66: 0 | AA66: 5900
A67: LinkedIn Contacts | B67: ='Web Pages_Input'!B23 -> 0 | C67: =IF($B68=0,0,B67+25) -> 0 | D67: =IF($B68=0,0,C67+25) -> 0 | E67: 0 | F67: 0 | G67: 0 | H67: 0 | I67: 0 | J67: 0 | K67: 0 | L67: 0 | M67: 0 | N67: 0 | O67: 0 | P67: 0 | Q67: 0 | R67: 0 | S67: 0 | T67: 0 | U67: 0 | V67: 0 | W67: 0 | X67: 0 | Y67: 0 | AA67: 950
A68: Total Social Contacts | B68: =SUM(B65:B67) -> 0 | C68: =SUM(C65:C67) -> 0 | D68: 0 | E68: 0 | F68: 0 | G68: 0 | H68: 0 | I68: 0 | J68: 0 | K68: 0 | L68: 0 | M68: 0 | N68: 0 | O68: 0 | P68: 0 | Q68: 0 | R68: 0 | S68: 0 | T68: 0 | U68: 0 | V68: 0 | W68: 0 | X68: 0 | Y68: 0 | AA68: =SUM(AA65:AA67) -> 7270
A71: Variables
A72: Average Order Size (Existing Business) | B72: =IF(OR('Web Pages_Input'!B10=0,'Web Pages_Input'!B12=0),0,'Web Pages_Input'!B10/'Web Pages_Input'!B12) -> 0
A73: Market Size Change / Price Change Per Annum | C73: 0.05 | D73: =C73 -> 0.05 | E73: =D73 -> 0.05 | F73: 0.05 | G73: 0.05 | H73: 0.05 | I73: 0.05 | J73: 0.05 | K73: 0.05 | L73: 0.05 | M73: 0.05 | N73: 0.05 | O73: 0.05 | P73: 0.05 | Q73: 0.05 | R73: 0.05 | S73: 0.05 | T73: 0.05 | U73: 0.05 | V73: 0.05 | W73: 0.05 | X73: 0.05 | Y73: 0.05
A74: Average Order Size (New Customers) | B74: =B72*0.5 -> 0 | C74: =ROUND(B74*(1+C75),2) -> 0 | D74: =ROUND(C74*(1+D75),2) -> 0 | E74: 0 | F74: 0 | G74: 0 | H74: 0 | I74: 0 | J74: 0 | K74: 0 | L74: 0 | M74: 0 | N74: 0 | O74: 0 | P74: 0 | Q74: 0 | R74: 0 | S74: 0 | T74: 0 | U74: 0 | V74: 0 | W74: 0 | X74: 0 | Y74: 0
A75: Average Order Size Growth (new customers) | C75: 0.02 | D75: =C75 -> 0.02 | E75: =D75 -> 0.02 | F75: 0.02 | G75: 0.02 | H75: 0.02 | I75: 0.02 | J75: 0.02 | K75: 0.02 | L75: 0.02 | M75: 0.02 | N75: 0.02 | O75: 0.02 | P75: 0.02 | Q75: 0.02 | R75: 0.02 | S75: 0.02 | T75: 0.02 | U75: 0.02 | V75: 0.02 | W75: 0.02 | X75: 0.02 | Y75: 0.02
A77: Web Traffic
A78: Organic Monthly Conversion From Blog | C78: 0.05 | D78: =IF(C78+0.01>0.1,0.1,C78+0.01) -> 0.06 | E78: =IF(D78+0.01>0.1,0.1,D78+0.01) -> 0.07 | F78: 0.08 | G78: 0.09 | H78: 0.1 | I78: 0.1 | J78: 0.1 | K78: 0.1 | L78: 0.1 | M78: 0.1 | N78: 0.1 | O78: 0.1 | P78: 0.1 | Q78: 0.1 | R78: 0.1 | S78: 0.1 | T78: 0.1 | U78: 0.1 | V78: 0.1 | W78: 0.1 | X78: 0.1 | Y78: 0.1 | AA78: 0.1
A79: Paid | B79: 0.05 | C79: =IF(B79+0.005>0.075,0.075,B79+0.005) -> 0.055 | D79: 0.06 | E79: 0.065 | F79: 0.07 | G79: 0.075 | H79: 0.075 | I79: 0.075 | J79: 0.075 | K79: 0.075 | L79: 0.075 | M79: 0.075 | N79: 0.075 | O79: 0.075 | P79: 0.075 | Q79: 0.075 | R79: 0.075 | S79: 0.075 | T79: 0.075 | U79: 0.075 | V79: 0.075 | W79: 0.075 | X79: 0.075 | Y79: 0.075
A80: Social | B80: 0.05 | C80: =IF(B80+0.005>0.075,0.075,B80+0.005) -> 0.055 | D80: =IF(C80+0.005>0.075,0.075,C80+0.005) -> 0.06 | E80: 0.065 | F80: 0.07 | G80: 0.075 | H80: 0.075 | I80: 0.075 | J80: 0.075 | K80: 0.075 | L80: 0.075 | M80: 0.075 | N80: 0.075 | O80: 0.075 | P80: 0.075 | Q80: 0.075 | R80: 0.075 | S80: 0.075 | T80: 0.075 | U80: 0.075 | V80: 0.075 | W80: 0.075 | X80: 0.075 | Y80: 0.075 | AA80: 0.075
A82: Key Word Spend Effectiveness | B82: 0 | C82: =IF(C55=0,0,IF(B82+0.075>0.6,0.6,B82+0.075)) -> 0 | D82: =IF(D55=0,0,IF(C82+0.075>0.6,0.6,C82+0.075)) -> 0 | E82: =IF(E55=0,0,IF(D82+0.075>0.6,0.6,D82+0.075)) -> 0 | F82: =IF(F55=0,0,IF(E82+0.075>0.6,0.6,E82+0.075)) -> 0 | G82: 0 | H82: 0 | I82: 0 | J82: 0 | K82: 0 | L82: 0 | M82: 0 | N82: 0 | O82: 0 | P82: 0 | Q82: 0 | R82: 0 | S82: 0 | T82: 0 | U82: 0 | V82: 0 | W82: 0 | X82: 0 | Y82: 0 | AA82: 0.6
A83: Cost per Keyword search to generate a site visit at 100% | B83: 1.25 | C83: =B83 -> 1.25 | D83: =C83 -> 1.25 | E83: 1.25 | F83: 1.25 | G83: 1.25 | H83: 1.25 | I83: 1.25 | J83: 1.25 | K83: 1.25 | L83: 1.25 | M83: 1.25 | N83: 1.25 | O83: 1.25 | P83: 1.25 | Q83: 1.25 | R83: 1.25 | S83: 1.25 | T83: 1.25 | U83: 1.25 | V83: 1.25 | W83: 1.25 | X83: 1.25 | Y83: 1.25 | AA83: 1.25
A85: Content Download
A86: Blog Subscribers | B86: 0.1 | C86: =IF(B86+0.01>0.2,0.2,B86+0.01) -> 0.11 | D86: =IF(C86+0.01>0.2,0.2,C86+0.01) -> 0.12 | E86: 0.13 | F86: 0.14 | G86: 0.15 | H86: 0.16 | I86: 0.17 | J86: 0.18 | K86: 0.19 | L86: 0.2 | M86: 0.2 | N86: 0.2 | O86: 0.2 | P86: 0.2 | Q86: 0.2 | R86: 0.2 | S86: 0.2 | T86: 0.2 | U86: 0.2 | V86: 0.2 | W86: 0.2 | X86: 0.2 | Y86: 0.2
A87: Email Subscribers | B87: 0.025 | C87: =IF(B87+0.005>0.075,0.075,B87+0.005) -> 0.03 | D87: =IF(C87+0.005>0.075,0.075,C87+0.005) -> 0.035 | E87: 0.04 | F87: 0.045 | G87: 0.05 | H87: 0.055 | I87: 0.06 | J87: 0.065 | K87: 0.07 | L87: 0.075 | M87: 0.075 | N87: 0.075 | O87: 0.075 | P87: 0.075 | Q87: 0.075 | R87: 0.075 | S87: 0.075 | T87: 0.075 | U87: 0.075 | V87: 0.075 | W87: 0.075 | X87: 0.075 | Y87: 0.075
A88: Blog Views
A89: Subscribers | B89: 0.7 | C89: =IF(B89+0.01>0.85,0.85,B89+0.01) -> 0.71 | D89: =IF(C89+0.01>0.85,0.85,C89+0.01) -> 0.72 | E89: 0.73 | F89: 0.74 | G89: 0.75 | H89: 0.76 | I89: 0.77 | J89: 0.78 | K89: 0.79 | L89: 0.8 | M89: 0.81 | N89: 0.82 | O89: 0.83 | P89: 0.84 | Q89: 0.85 | R89: 0.85 | S89: 0.85 | T89: 0.85 | U89: 0.85 | V89: 0.85 | W89: 0.85 | X89: 0.85 | Y89: 0.85
A90: Email Blasts | B90: 0.015 | C90: =IF(B90+0.0025>0.04,0.04,B90+0.0025) -> 0.0175 | D90: =IF(C90+0.0025>0.04,0.04,C90+0.0025) -> 0.02 | E90: 0.0225 | F90: 0.025 | G90: 0.0275 | H90: 0.03 | I90: 0.0325 | J90: 0.035 | K90: 0.0375 | L90: 0.04 | M90: 0.04 | N90: 0.04 | O90: 0.04 | P90: 0.04 | Q90: 0.04 | R90: 0.04 | S90: 0.04 | T90: 0.04 | U90: 0.04 | V90: 0.04 | W90: 0.04 | X90: 0.04 | Y90: 0.04
A91: Site Visitors | B91: 0.01 | C91: =IF(B91+0.0025>0.04,0.04,B91+0.0025) -> 0.0125 | D91: =IF(C91+0.0025>0.04,0.04,C91+0.0025) -> 0.015 | E91: 0.0175 | F91: 0.02 | G91: 0.0225 | H91: 0.025 | I91: 0.0275 | J91: 0.03 | K91: 0.0325 | L91: 0.035 | M91: 0.0375 | N91: 0.04 | O91: 0.04 | P91: 0.04 | Q91: 0.04 | R91: 0.04 | S91: 0.04 | T91: 0.04 | U91: 0.04 | V91: 0.04 | W91: 0.04 | X91: 0.04 | Y91: 0.04
A93: Landing Page Conversion Rate | B93: 0.02 | C93: =IF(B93+0.0025>0.05,0.05,B93+0.0025) -> 0.0225 | D93: =IF(C93+0.0025>0.05,0.05,C93+0.0025) -> 0.025 | E93: 0.0275 | F93: 0.03 | G93: 0.0325 | H93: 0.035 | I93: 0.0375 | J93: 0.04 | K93: 0.0425 | L93: 0.045 | M93: 0.0475 | N93: 0.05 | O93: 0.05 | P93: 0.05 | Q93: 0.05 | R93: 0.05 | S93: 0.05 | T93: 0.05 | U93: 0.05 | V93: 0.05 | W93: 0.05 | X93: 0.05 | Y93: 0.05
A95: Social Shares (Percentage of Total Social Contacts) | B95: 0.02 | C95: =IF(B95+0.0025>0.04,0.04,B95+0.0025) -> 0.0225 | D95: =IF(C95+0.0025>0.04,0.04,C95+0.0025) -> 0.025 | E95: 0.0275 | F95: 0.03 | G95: 0.0325 | H95: 0.035 | I95: 0.0375 | J95: 0.04 | K95: 0.04 | L95: 0.04 | M95: 0.04 | N95: 0.04 | O95: 0.04 | P95: 0.04 | Q95: 0.04 | R95: 0.04 | S95: 0.04 | T95: 0.04 | U95: 0.04 | V95: 0.04 | W95: 0.04 | X95: 0.04 | Y95: 0.04
A97: Blog Sign-up Rate from email blasts | B97: 0.005 | C97: =IF(B97+0.005>0.08,0.08,B97+0.005) -> 0.01 | D97: =IF(C97+0.005>0.08,0.08,C97+0.005) -> 0.015 | E97: 0.02 | F97: 0.025 | G97: 0.03 | H97: 0.035 | I97: 0.04 | J97: 0.045 | K97: 0.05 | L97: 0.055 | M97: 0.06 | N97: 0.065 | O97: 0.07 | P97: 0.075 | Q97: 0.08 | R97: 0.08 | S97: 0.08 | T97: 0.08 | U97: 0.08 | V97: 0.08 | W97: 0.08 | X97: 0.08 | Y97: 0.08
A99: Leads (base) | B99: 0 | C99: 0 | D99: ='Web Pages_Input'!B27 -> 0 | E99: =D99 -> 0 | F99: 0 | G99: 0 | H99: 0 | I99: 0 | J99: 0 | K99: 0 | L99: 0 | M99: 0 | N99: 0 | O99: 0 | P99: 0 | Q99: 0 | R99: 0 | S99: 0 | T99: 0 | U99: 0 | V99: 0 | W99: 0 | X99: 0 | Y99: 0 | AA99: =Y99 -> 0
A100: Leads (new) from site | B100: =ROUNDUP(B35*B46,0) -> 0 | C100: =ROUNDUP(C35*C46,0) -> 0 | D100: 0 | E100: 0 | F100: 0 | G100: 0 | H100: 0 | I100: 0 | J100: 0 | K100: 0 | L100: 0 | M100: 0 | N100: 0 | O100: 0 | P100: 0 | Q100: 0 | R100: 0 | S100: 0 | T100: 0 | U100: 0 | V100: 0 | W100: 0 | X100: 0 | Y100: 0
A101: Total Cumulative Leads | B101: =B100+B99 -> 0 | C101: =C99+SUM($B$100:C100) -> 0 | D101: =D99+SUM($B$100:D100) -> 0 | E101: =E99+SUM($B$100:E100) -> 0 | F101: =F99+SUM($B$100:F100) -> 0 | G101: =G99+SUM($B$100:G100) -> 0 | H101: =H99+SUM($B$100:H100) -> 0 | I101: =I99+SUM($B$100:I100) -> 0 | J101: =J99+SUM($B$100:J100) -> 0 | K101: =K99+SUM($B$100:K100) -> 0 | L101: =L99+SUM($B$100:L100) -> 0 | M101: =M99+SUM($B$100:M100) -> 0 | N101: =N99+SUM($B$100:N100) -> 0 | O101: =O99+SUM($B$100:O100) -> 0 | P101: =P99+SUM($B$100:P100) -> 0 | Q101: =Q99+SUM($B$100:Q100) -> 0 | R101: =R99+SUM($B$100:R100) -> 0 | S101: =S99+SUM($B$100:S100) -> 0 | T101: =T99+SUM($B$100:T100) -> 0 | U101: =U99+SUM($B$100:U100) -> 0 | V101: =V99+SUM($B$100:V100) -> 0 | W101: =W99+SUM($B$100:W100) -> 0 | X101: =X99+SUM($B$100:X100) -> 0 | Y101: =Y99+SUM($B$100:Y100) -> 0
A102: Cumulative New Customer Acquisition | B102: =ROUND(B101*B50,0) -> 0 | C102: =ROUND(C101*C50,0) -> 0 | D102: 0 | E102: 0 | F102: 0 | G102: 0 | H102: 0 | I102: 0 | J102: 0 | K102: 0 | L102: 0 | M102: 0 | N102: 0 | O102: 0 | P102: 0 | Q102: 0 | R102: 0 | S102: 0 | T102: 0 | U102: 0 | V102: 0 | W102: 0 | X102: 0 | Y102: 0
A104: New Customer Acquisition by Month | B104: =ROUND(B100*B50,0) -> 0 | C104: =ROUND(C100*C50,0) -> 0 | D104: 0 | E104: 0 | F104: 0 | G104: 0 | H104: 0 | I104: 0 | J104: 0 | K104: 0 | L104: 0 | M104: 0 | N104: 0 | O104: 0 | P104: 0 | Q104: 0 | R104: 0 | S104: 0 | T104: 0 | U104: 0 | V104: 0 | W104: 0 | X104: 0 | Y104: 0
A105: Total Customers (Cumulative Net of Base Retention Rate) | B105: =SUM($B104:B104) -> 0 | C105: =SUM($B104:C104) -> 0 | D105: =SUM($B104:D104) -> 0 | E105: =SUM($B104:E104) -> 0 | F105: =SUM($B104:F104) -> 0 | G105: =SUM($B104:G104) -> 0 | H105: =SUM($B104:H104) -> 0 | I105: =SUM($B104:I104) -> 0 | J105: =SUM($B104:J104) -> 0 | K105: =SUM($B104:K104) -> 0 | L105: =SUM($B104:L104) -> 0 | M105: =SUM($B104:M104) -> 0 | N105: =SUM($B104:N104) -> 0 | O105: =SUM($B104:O104) -> 0 | P105: =SUM($B104:P104) -> 0 | Q105: =SUM($B104:Q104) -> 0 | R105: =SUM($B104:R104) -> 0 | S105: =SUM($B104:S104) -> 0 | T105: =SUM($B104:T104) -> 0 | U105: =SUM($B104:U104) -> 0 | V105: =SUM($B104:V104) -> 0 | W105: =SUM($B104:W104) -> 0 | X105: =SUM($B104:X104) -> 0 | Y105: =SUM($B104:Y104) -> 0
A107: New Business Sales (per month) | B107: =B108*52*5/12*B109 -> 0 | C107: =C108*52*5/12*C109 -> 0 | D107: =D108*52*5/12*D109 -> 0 | E107: =E108*52*5/12*E109 -> 0 | F107: 0 | G107: 0 | H107: 0 | I107: 0 | J107: 0 | K107: 0 | L107: 0 | M107: 0 | N107: 0 | O107: 0 | P107: 0 | Q107: 0 | R107: 0 | S107: 0 | T107: 0 | U107: 0 | V107: 0 | W107: 0 | X107: 0 | Y107: 0
A108: New Business Daily # of Transactions (5 days per week) | B108: =IF(B104=0,0,ROUND((B22/B19)*SUM($B104:B104),0)) -> 0 | C108: =IF(C104=0,0,ROUND((C22/C19)*SUM($B104:C104),0)) -> 0 | D108: =IF(D104=0,0,ROUND((D22/D19)*SUM($B104:D104),0)) -> 0 | E108: =IF(E104=0,0,ROUND((E22/E19)*SUM($B104:E104),0)) -> 0 | F108: =IF(F104=0,0,ROUND((F22/F19)*SUM($B104:F104),0)) -> 0 | G108: =IF(G104=0,0,ROUND((G22/G19)*SUM($B104:G104),0)) -> 0 | H108: =IF(H104=0,0,ROUND((H22/H19)*SUM($B104:H104),0)) -> 0 | I108: =IF(I104=0,0,ROUND((I22/I19)*SUM($B104:I104),0)) -> 0 | J108: =IF(J104=0,0,ROUND((J22/J19)*SUM($B104:J104),0)) -> 0 | K108: =IF(K104=0,0,ROUND((K22/K19)*SUM($B104:K104),0)) -> 0 | L108: =IF(L104=0,0,ROUND((L22/L19)*SUM($B104:L104),0)) -> 0 | M108: =IF(M104=0,0,ROUND((M22/M19)*SUM($B104:M104),0)) -> 0 | N108: =IF(N104=0,0,ROUND((N22/N19)*SUM($B104:N104),0)) -> 0 | O108: =IF(O104=0,0,ROUND((O22/O19)*SUM($B104:O104),0)) -> 0 | P108: =IF(P104=0,0,ROUND((P22/P19)*SUM($B104:P104),0)) -> 0 | Q108: =IF(Q104=0,0,ROUND((Q22/Q19)*SUM($B104:Q104),0)) -> 0 | R108: =IF(R104=0,0,ROUND((R22/R19)*SUM($B104:R104),0)) -> 0 | S108: =IF(S104=0,0,ROUND((S22/S19)*SUM($B104:S104),0)) -> 0 | T108: =IF(T104=0,0,ROUND((T22/T19)*SUM($B104:T104),0)) -> 0 | U108: =IF(U104=0,0,ROUND((U22/U19)*SUM($B104:U104),0)) -> 0 | V108: =IF(V104=0,0,ROUND((V22/V19)*SUM($B104:V104),0)) -> 0 | W108: =IF(W104=0,0,ROUND((W22/W19)*SUM($B104:W104),0)) -> 0 | X108: =IF(X104=0,0,ROUND((X22/X19)*SUM($B104:X104),0)) -> 0 | Y108: =IF(Y104=0,0,ROUND((Y22/Y19)*SUM($B104:Y104),0)) -> 0
A109: Avg. Order Size (new business) | B109: =B74 -> 0 | C109: 0 | D109: 0 | E109: 0 | F109: 0 | G109: 0 | H109: 0 | I109: 0 | J109: 0 | K109: 0 | L109: 0 | M109: 0 | N109: 0 | O109: 0 | P109: 0 | Q109: 0 | R109: 0 | S109: 0 | T109: 0 | U109: 0 | V109: 0 | W109: 0 | X109: 0 | Y109: 0
A110: Avg. Sales per Customer per Month (new business) | B110: =IF(B107=0,0,B107/SUM($B104:B104)) -> 0 | C110: =IF(C107=0,0,C107/SUM($B104:C104)) -> 0 | D110: =IF(D107=0,0,D107/SUM($B104:D104)) -> 0 | E110: =IF(E107=0,0,E107/SUM($B104:E104)) -> 0 | F110: =IF(F107=0,0,F107/SUM($B104:F104)) -> 0 | G110: =IF(G107=0,0,G107/SUM($B104:G104)) -> 0 | H110: =IF(H107=0,0,H107/SUM($B104:H104)) -> 0 | I110: =IF(I107=0,0,I107/SUM($B104:I104)) -> 0 | J110: =IF(J107=0,0,J107/SUM($B104:J104)) -> 0 | K110: =IF(K107=0,0,K107/SUM($B104:K104)) -> 0 | L110: =IF(L107=0,0,L107/SUM($B104:L104)) -> 0 | M110: =IF(M107=0,0,M107/SUM($B104:M104)) -> 0 | N110: =IF(N107=0,0,N107/SUM($B104:N104)) -> 0 | O110: =IF(O107=0,0,O107/SUM($B104:O104)) -> 0 | P110: =IF(P107=0,0,P107/SUM($B104:P104)) -> 0 | Q110: =IF(Q107=0,0,Q107/SUM($B104:Q104)) -> 0 | R110: =IF(R107=0,0,R107/SUM($B104:R104)) -> 0 | S110: =IF(S107=0,0,S107/SUM($B104:S104)) -> 0 | T110: =IF(T107=0,0,T107/SUM($B104:T104)) -> 0 | U110: =IF(U107=0,0,U107/SUM($B104:U104)) -> 0 | V110: =IF(V107=0,0,V107/SUM($B104:V104)) -> 0 | W110: =IF(W107=0,0,W107/SUM($B104:W104)) -> 0 | X110: =IF(X107=0,0,X107/SUM($B104:X104)) -> 0 | Y110: =IF(Y107=0,0,Y107/SUM($B104:Y104)) -> 0
A111: Avg. Daily Customer Spend (New Business) | B111: =B110*12/52/5 -> 0 | C111: =C110*12/52/5 -> 0 | D111: =D110*12/52/5 -> 0 | E111: =E110*12/52/5 -> 0 | F111: 0 | G111: 0 | H111: 0 | I111: 0 | J111: 0 | K111: 0 | L111: 0 | M111: 0 | N111: 0 | O111: 0 | P111: 0 | Q111: 0 | R111: 0 | S111: 0 | T111: 0 | U111: 0 | V111: 0 | W111: 0 | X111: 0 | Y111: 0
A113: Total Customers | B113: =B114+B115 -> 0 | C113: =C114+C115 -> 0 | D113: 0 | E113: 0 | F113: 0 | G113: 0 | H113: 0 | I113: 0 | J113: 0 | K113: 0 | L113: 0 | M113: 0 | N113: 0 | O113: 0 | P113: 0 | Q113: 0 | R113: 0 | S113: 0 | T113: 0 | U113: 0 | V113: 0 | W113: 0 | X113: 0 | Y113: 0
A114: Base | B114: =B19 -> 0 | C114: =C19 -> 0 | D114: 0 | E114: 0 | F114: 0 | G114: 0 | H114: 0 | I114: 0 | J114: 0 | K114: 0 | L114: 0 | M114: 0 | N114: 0 | O114: 0 | P114: 0 | Q114: 0 | R114: 0 | S114: 0 | T114: 0 | U114: 0 | V114: 0 | W114: 0 | X114: 0 | Y114: 0
A115: New | B115: =B102 -> 0 | C115: =C102 -> 0 | D115: 0 | E115: 0 | F115: 0 | G115: 0 | H115: 0 | I115: 0 | J115: 0 | K115: 0 | L115: 0 | M115: 0 | N115: 0 | O115: 0 | P115: 0 | Q115: 0 | R115: 0 | S115: 0 | T115: 0 | U115: 0 | V115: 0 | W115: 0 | X115: 0 | Y115: 0

Sheet Rev Model
A1: Work Days in Month | B1: =VLOOKUP(B2,$BA$4:$BB$15,2,FALSE) -> 20 | C1: 21 | D1: 18 | E1: 20 | F1: 21 | G1: 18 | H1: 21 | I1: 20 | J1: 21 | K1: 20 | L1: 21 | M1: 21 | N1: 20 | O1: 21 | P1: 18 | Q1: 20 | R1: 21 | S1: 18 | T1: 21 | U1: 20 | V1: 21 | W1: 20 | X1: 21 | Y1: 21 | Z1: 20 | AA1: 21 | AB1: 18 | AC1: 20 | AD1: 21 | AE1: 18 | AF1: 21 | AG1: 20 | AH1: 21 | AI1: 20 | AJ1: 21 | AK1: 21 | AL1: 20 | AM1: 21 | AN1: 18 | AO1: 20 | AP1: 21 | AQ1: 18 | AR1: 21 | AS1: 20 | AT1: 21 | AU1: 20 | AV1: 21 | AW1: 21
A2: =TODAY() -> 2016-09-29 | B2: =TEXT(B3*28,"mmm") -> Sep | C2: Oct | D2: Nov | E2: Dec | F2: Jan | G2: Feb | H2: Mar | I2: Apr | J2: May | K2: Jun | L2: Jul | M2: Aug | N2: Sep | O2: Oct | P2: Nov | Q2: Dec | R2: Jan | S2: Feb | T2: Mar | U2: Apr | V2: May | W2: Jun | X2: Jul | Y2: Aug | Z2: Sep | AA2: Oct | AB2: Nov | AC2: Dec | AD2: Jan | AE2: Feb | AF2: Mar | AG2: Apr | AH2: May | AI2: Jun | AJ2: Jul | AK2: Aug | AL2: Sep | AM2: Oct | AN2: Nov | AO2: Dec | AP2: Jan | AQ2: Feb | AR2: Mar | AS2: Apr | AT2: May | AU2: Jun | AV2: Jul | AW2: Aug
B3: =MONTH(A2) -> 9 | C3: =IF(B3+1>12,1,B3+1) -> 10 | D3: 11 | E3: 12 | F3: 1 | G3: 2 | H3: 3 | I3: 4 | J3: 5 | K3: 6 | L3: 7 | M3: 8 | N3: 9 | O3: 10 | P3: 11 | Q3: 12 | R3: 1 | S3: 2 | T3: 3 | U3: 4 | V3: 5 | W3: 6 | X3: 7 | Y3: 8 | Z3: 9 | AA3: 10 | AB3: 11 | AC3: 12 | AD3: 1 | AE3: 2 | AF3: 3 | AG3: 4 | AH3: 5 | AI3: 6 | AJ3: 7 | AK3: 8 | AL3: 9 | AM3: 10 | AN3: 11 | AO3: 12 | AP3: 1 | AQ3: 2 | AR3: 3 | AS3: 4 | AT3: 5 | AU3: 6 | AV3: 7 | AW3: 8 | AX3: Year 3 | AY3: Year 4 | BA3: Month | BB3: Workdays
A4: Current Customer (#) | B4: ='Web Pages_Input'!B8 -> 0 | C4: =B4 -> 0 | D4: =C4 -> 0 | E4: 0 | F4: 0 | G4: 0 | H4: 0 | I4: 0 | J4: 0 | K4: 0 | L4: 0 | M4: 0 | N4: 0 | O4: 0 | P4: 0 | Q4: 0 | R4: 0 | S4: 0 | T4: 0 | U4: 0 | V4: 0 | W4: 0 | X4: 0 | Y4: 0 | Z4: =Y4 -> 0 | AA4: 0 | AB4: 0 | AC4: 0 | AD4: 0 | AE4: 0 | AF4: 0 | AG4: 0 | AH4: 0 | AI4: 0 | AJ4: 0 | AK4: 0 | AL4: 0 | AM4: 0 | AN4: 0 | AO4: 0 | AP4: 0 | AQ4: 0 | AR4: 0 | AS4: 0 | AT4: 0 | AU4: 0 | AV4: 0 | AW4: 0 | BA4: Jan | BB4: 21
A5: Current Customer Retention Rate | B5: 1 | C5: =B5-'LG Calculator'!$G$27 -> 1 | D5: =C5-'LG Calculator'!$G$27 -> 1 | E5: =D5-'LG Calculator'!$G$27 -> 1 | F5: =E5-'LG Calculator'!$G$27 -> 1 | G5: =F5-'LG Calculator'!$G$27 -> 1 | H5: =G5-'LG Calculator'!$G$27 -> 1 | I5: =H5-'LG Calculator'!$G$27 -> 1 | J5: =I5-'LG Calculator'!$G$27 -> 1 | K5: =J5-'LG Calculator'!$G$27 -> 1 | L5: =K5-'LG Calculator'!$G$27 -> 1 | M5: =L5-'LG Calculator'!$G$27 -> 1 | N5: =M5-'LG Calculator'!$G$27 -> 1 | O5: =N5-'LG Calculator'!$G$27 -> 1 | P5: =O5-'LG Calculator'!$G$27 -> 1 | Q5: =P5-'LG Calculator'!$G$27 -> 1 | R5: =Q5-'LG Calculator'!$G$27 -> 1 | S5: =R5-'LG Calculator'!$G$27 -> 1 | T5: =S5-'LG Calculator'!$G$27 -> 1 | U5: =T5-'LG Calculator'!$G$27 -> 1 | V5: =U5-'LG Calculator'!$G$27 -> 1 | W5: =V5-'LG Calculator'!$G$27 -> 1 | X5: =W5-'LG Calculator'!$G$27 -> 1 | Y5: =X5-'LG Calculator'!$G$27 -> 1 | Z5: =Y5-'LG Calculator'!$G$27 -> 1 | AA5: =Z5-'LG Calculator'!$G$27 -> 1 | AB5: =AA5-'LG Calculator'!$G$27 -> 1 | AC5: =AB5-'LG Calculator'!$G$27 -> 1 | AD5: =AC5-'LG Calculator'!$G$27 -> 1 | AE5: =AD5-'LG Calculator'!$G$27 -> 1 | AF5: =AE5-'LG Calculator'!$G$27 -> 1 | AG5: =AF5-'LG Calculator'!$G$27 -> 1 | AH5: =AG5-'LG Calculator'!$G$27 -> 1 | AI5: =AH5-'LG Calculator'!$G$27 -> 1 | AJ5: =AI5-'LG Calculator'!$G$27 -> 1 | AK5: =AJ5-'LG Calculator'!$G$27 -> 1 | AL5: =AK5-'LG Calculator'!$G$27 -> 1 | AM5: =AL5-'LG Calculator'!$G$27 -> 1 | AN5: =AM5-'LG Calculator'!$G$27 -> 1 | AO5: =AN5-'LG Calculator'!$G$27 -> 1 | AP5: =AO5-'LG Calculator'!$G$27 -> 1 | AQ5: =AP5-'LG Calculator'!$G$27 -> 1 | AR5: =AQ5-'LG Calculator'!$G$27 -> 1 | AS5: =AR5-'LG Calculator'!$G$27 -> 1 | AT5: =AS5-'LG Calculator'!$G$27 -> 1 | AU5: =AT5-'LG Calculator'!$G$27 -> 1 | AV5: =AU5-'LG Calculator'!$G$27 -> 1 | AW5: =AV5-'LG Calculator'!$G$27 -> 1 | AX5: =(B6-M6)/B6 ->  | AY5: =((AW6-B6)/B6)/4 ->  | BA5: Feb | BB5: 18
A6: Net Projected Customers | B6: =B4*B5 -> 0 | C6: =ROUND(C4*C5,0) -> 0 | D6: =ROUND(D4*D5,0) -> 0 | E6: 0 | F6: 0 | G6: 0 | H6: 0 | I6: 0 | J6: 0 | K6: 0 | L6: 0 | M6: 0 | N6: 0 | O6: 0 | P6: 0 | Q6: 0 | R6: 0 | S6: 0 | T6: 0 | U6: 0 | V6: 0 | W6: 0 | X6: 0 | Y6: 0 | Z6: 0 | AA6: 0 | AB6: 0 | AC6: 0 | AD6: 0 | AE6: 0 | AF6: 0 | AG6: 0 | AH6: 0 | AI6: 0 | AJ6: 0 | AK6: 0 | AL6: 0 | AM6: 0 | AN6: 0 | AO6: 0 | AP6: 0 | AQ6: 0 | AR6: 0 | AS6: 0 | AT6: 0 | AU6: 0 | AV6: 0 | AW6: 0 | AX6: =Y6-B6 -> 0 | AZ6: =AW6 -> 0 | BA6: Mar | BB6: 21
AX7: =(M8-B8)/B8 ->  | AY7: =(Y8-N8)/N8 ->  | BA7: Apr | BB7: 20
A8: Base Business Sales (per mth) | B8: ='Web Pages_Input'!B10 -> 0 | C8: =IF(C10=0,0,C1*C9*C10) -> 0 | D8: 0 | E8: 0 | F8: 0 | G8: 0 | H8: 0 | I8: 0 | J8: 0 | K8: 0 | L8: 0 | M8: 0 | N8: 0 | O8: 0 | P8: 0 | Q8: 0 | R8: 0 | S8: 0 | T8: 0 | U8: 0 | V8: 0 | W8: 0 | X8: 0 | Y8: 0 | Z8: 0 | AA8: 0 | AB8: 0 | AC8: 0 | AD8: 0 | AE8: 0 | AF8: 0 | AG8: 0 | AH8: 0 | AI8: 0 | AJ8: 0 | AK8: 0 | AL8: 0 | AM8: 0 | AN8: 0 | AO8: 0 | AP8: 0 | AQ8: 0 | AR8: 0 | AS8: 0 | AT8: 0 | AU8: 0 | AV8: 0 | AW8: 0 | AX8: =SUM(N8:Y8)+SUM(N8:Y8)*AX7 ->  | AY8: =SUM(AX8)+SUM(AX8)*AX7 ->  | AZ8: =SUM(B8:AW8)/4 -> 0 | BA8: May | BB8: 21
A9: # of Daily Transactions (5 days per week) | B9: =IF(B8=0,0,B8/B10/B1) -> 0 | C9: =IF(C6=0,0,C6/B6*B9) -> 0 | D9: 0 | E9: 0 | F9: 0 | G9: 0 | H9: 0 | I9: 0 | J9: 0 | K9: 0 | L9: 0 | M9: 0 | N9: 0 | O9: 0 | P9: 0 | Q9: 0 | R9: 0 | S9: 0 | T9: 0 | U9: 0 | V9: 0 | W9: 0 | X9: 0 | Y9: 0 | Z9: 0 | AA9: 0 | AB9: 0 | AC9: 0 | AD9: 0 | AE9: 0 | AF9: 0 | AG9: 0 | AH9: 0 | AI9: 0 | AJ9: 0 | AK9: 0 | AL9: 0 | AM9: 0 | AN9: 0 | AO9: 0 | AP9: 0 | AQ9: 0 | AR9: 0 | AS9: 0 | AT9: 0 | AU9: 0 | AV9: 0 | AW9: 0 | BA9: Jun | BB9: 20
A10: Average Order Size (decrease 5% per annum) | B10: =B91 -> 0 | C10: =IF(B10="",0,B10*(1-C92/12)) -> 0 | D10: =C10*(1-D92/12) -> 0 | E10: 0 | F10: 0 | G10: 0 | H10: 0 | I10: 0 | J10: 0 | K10: 0 | L10: 0 | M10: 0 | N10: 0 | O10: 0 | P10: 0 | Q10: 0 | R10: 0 | S10: 0 | T10: 0 | U10: 0 | V10: 0 | W10: 0 | X10: 0 | Y10: 0 | Z10: =Y10*(1-Z92/12) -> 0 | AA10: 0 | AB10: 0 | AC10: 0 | AD10: 0 | AE10: 0 | AF10: 0 | AG10: 0 | AH10: 0 | AI10: 0 | AJ10: 0 | AK10: 0 | AL10: 0 | AM10: 0 | AN10: 0 | AO10: 0 | AP10: 0 | AQ10: 0 | AR10: 0 | AS10: 0 | AT10: 0 | AU10: 0 | AV10: 0 | AW10: 0 | AX10: =(Y10-B10)/B10 ->  | BA10: Jul | BB10: 21
A11: Avg. Sales per Customer per Month | B11: =IF(B8=0,0,B8/B6) -> 0 | C11: 0 | D11: 0 | E11: 0 | F11: 0 | G11: 0 | H11: 0 | I11: 0 | J11: 0 | K11: 0 | L11: 0 | M11: 0 | N11: 0 | O11: 0 | P11: 0 | Q11: 0 | R11: 0 | S11: 0 | T11: 0 | U11: 0 | V11: 0 | W11: 0 | X11: 0 | Y11: 0 | Z11: 0 | AA11: 0 | AB11: 0 | AC11: 0 | AD11: 0 | AE11: 0 | AF11: 0 | AG11: 0 | AH11: 0 | AI11: 0 | AJ11: 0 | AK11: 0 | AL11: 0 | AM11: 0 | AN11: 0 | AO11: 0 | AP11: 0 | AQ11: 0 | AR11: 0 | AS11: 0 | AT11: 0 | AU11: 0 | AV11: 0 | AW11: 0 | AX11: =(Y11-B11)/B11 ->  | BA11: Aug | BB11: 21
A12: Avg. Daily Customer Spend (Base Business) | B12: =B11/B1 -> 0 | C12: 0 | D12: 0 | E12: 0 | F12: 0 | G12: 0 | H12: 0 | I12: 0 | J12: 0 | K12: 0 | L12: 0 | M12: 0 | N12: 0 | O12: 0 | P12: 0 | Q12: 0 | R12: 0 | S12: 0 | T12: 0 | U12: 0 | V12: 0 | W12: 0 | X12: 0 | Y12: 0 | Z12: 0 | AA12: 0 | AB12: 0 | AC12: 0 | AD12: 0 | AE12: 0 | AF12: 0 | AG12: 0 | AH12: 0 | AI12: 0 | AJ12: 0 | AK12: 0 | AL12: 0 | AM12: 0 | AN12: 0 | AO12: 0 | AP12: 0 | AQ12: 0 | AR12: 0 | AS12: 0 | AT12: 0 | AU12: 0 | AV12: 0 | AW12: 0 | BA12: Sep | BB12: 20
BA13: Oct | BB13: 21
A14: New Business Sales (per month) | B14: ='Sales Funnel'!C53 -> 0 | C14: ='Sales Funnel'!D53 -> 0 | D14: ='Sales Funnel'!E53 -> 0 | E14: ='Sales Funnel'!F53 -> 0 | F14: ='Sales Funnel'!G53 -> 0 | G14: ='Sales Funnel'!H53 -> 0 | H14: ='Sales Funnel'!I53 -> 0 | I14: ='Sales Funnel'!J53 -> 0 | J14: ='Sales Funnel'!K53 -> 0 | K14: ='Sales Funnel'!L53 -> 0 | L14: ='Sales Funnel'!M53 -> 0 | M14: ='Sales Funnel'!N53 -> 0 | N14: ='Sales Funnel'!O53 -> 0 | O14: ='Sales Funnel'!P53 -> 0 | P14: ='Sales Funnel'!Q53 -> 0 | Q14: ='Sales Funnel'!R53 -> 0 | R14: ='Sales Funnel'!S53 -> 0 | S14: ='Sales Funnel'!T53 -> 0 | T14: ='Sales Funnel'!U53 -> 0 | U14: ='Sales Funnel'!V53 -> 0 | V14: ='Sales Funnel'!W53 -> 0 | W14: ='Sales Funnel'!X53 -> 0 | X14: ='Sales Funnel'!Y53 -> 0 | Y14: ='Sales Funnel'!Z53 -> 0 | Z14: ='Sales Funnel'!AA53 -> 0 | AA14: ='Sales Funnel'!AB53 -> 0 | AB14: ='Sales Funnel'!AC53 -> 0 | AC14: ='Sales Funnel'!AD53 -> 0 | AD14: ='Sales Funnel'!AE53 -> 0 | AE14: ='Sales Funnel'!AF53 -> 0 | AF14: ='Sales Funnel'!AG53 -> 0 | AG14: ='Sales Funnel'!AH53 -> 0 | AH14: ='Sales Funnel'!AI53 -> 0 | AI14: ='Sales Funnel'!AJ53 -> 0 | AJ14: ='Sales Funnel'!AK53 -> 0 | AK14: ='Sales Funnel'!AL53 -> 0 | AL14: ='Sales Funnel'!AM53 -> 0 | AM14: ='Sales Funnel'!AN53 -> 0 | AN14: ='Sales Funnel'!AO53 -> 0 | AO14: ='Sales Funnel'!AP53 -> 0 | AP14: ='Sales Funnel'!AQ53 -> 0 | AQ14: ='Sales Funnel'!AR53 -> 0 | AR14: ='Sales Funnel'!AS53 -> 0 | AS14: ='Sales Funnel'!AT53 -> 0 | AT14: ='Sales Funnel'!AU53 -> 0 | AU14: ='Sales Funnel'!AV53 -> 0 | AV14: ='Sales Funnel'!AW53 -> 0 | AW14: ='Sales Funnel'!AX53 -> 0 | AX14: =AX20-AX8 ->  | AY14: =AY20-AY8 ->  | AZ14: =SUM(B14:AW14)/4 -> 0 | BA14: Nov | BB14: 18
A15: New Business Daily # of Transactions (5 days per week) | B15: =IF(B33=0,0,B9/B6*B33) -> 0 | C15: 0 | D15: 0 | E15: 0 | F15: 0 | G15: 0 | H15: 0 | I15: 0 | J15: 0 | K15: 0 | L15: 0 | M15: 0 | N15: 0 | O15: 0 | P15: 0 | Q15: 0 | R15: 0 | S15: 0 | T15: 0 | U15: 0 | V15: 0 | W15: 0 | X15: 0 | Y15: 0 | Z15: 0 | AA15: 0 | AB15: 0 | AC15: 0 | AD15: 0 | AE15: 0 | AF15: 0 | AG15: 0 | AH15: 0 | AI15: 0 | AJ15: 0 | AK15: 0 | AL15: 0 | AM15: 0 | AN15: 0 | AO15: 0 | AP15: 0 | AQ15: 0 | AR15: 0 | AS15: 0 | AT15: 0 | AU15: 0 | AV15: 0 | AW15: 0 | AZ15: =AVERAGE(B15:AW15)*12 -> 0 | BA15: Dec | BB15: 20
A16: Avg. Order Size (new business) | B16: =B93 -> 0 | C16: =C93 -> 0 | D16: 0 | E16: 0 | F16: 0 | G16: 0 | H16: 0 | I16: 0 | J16: 0 | K16: 0 | L16: 0 | M16: 0 | N16: 0 | O16: 0 | P16: 0 | Q16: 0 | R16: 0 | S16: 0 | T16: 0 | U16: 0 | V16: 0 | W16: 0 | X16: 0 | Y16: 0 | Z16: =Z93 -> 0 | AA16: 0 | AB16: 0 | AC16: 0 | AD16: 0 | AE16: 0 | AF16: 0 | AG16: 0 | AH16: 0 | AI16: 0 | AJ16: 0 | AK16: 0 | AL16: 0 | AM16: 0 | AN16: 0 | AO16: 0 | AP16: 0 | AQ16: 0 | AR16: 0 | AS16: 0 | AT16: 0 | AU16: 0 | AV16: 0 | AW16: 0
A17: Avg. Sales per Customer per Month (new business) | B17: =IF(B14=0,0,B14/B33) -> 0 | C17: 0 | D17: 0 | E17: 0 | F17: 0 | G17: 0 | H17: 0 | I17: 0 | J17: 0 | K17: 0 | L17: 0 | M17: 0 | N17: 0 | O17: 0 | P17: 0 | Q17: 0 | R17: 0 | S17: 0 | T17: 0 | U17: 0 | V17: 0 | W17: 0 | X17: 0 | Y17: 0 | Z17: 0 | AA17: 0 | AB17: 0 | AC17: 0 | AD17: 0 | AE17: 0 | AF17: 0 | AG17: 0 | AH17: 0 | AI17: 0 | AJ17: 0 | AK17: 0 | AL17: 0 | AM17: 0 | AN17: 0 | AO17: 0 | AP17: 0 | AQ17: 0 | AR17: 0 | AS17: 0 | AT17: 0 | AU17: 0 | AV17: 0 | AW17: 0
A18: Avg. Daily Customer Spend (New Business) | B18: =IF(B17=0,0,B17/B1) -> 0 | C18: 0 | D18: 0 | E18: 0 | F18: 0 | G18: 0 | H18: 0 | I18: 0 | J18: 0 | K18: 0 | L18: 0 | M18: 0 | N18: 0 | O18: 0 | P18: 0 | Q18: 0 | R18: 0 | S18: 0 | T18: 0 | U18: 0 | V18: 0 | W18: 0 | X18: 0 | Y18: 0 | Z18: 0 | AA18: 0 | AB18: 0 | AC18: 0 | AD18: 0 | AE18: 0 | AF18: 0 | AG18: 0 | AH18: 0 | AI18: 0 | AJ18: 0 | AK18: 0 | AL18: 0 | AM18: 0 | AN18: 0 | AO18: 0 | AP18: 0 | AQ18: 0 | AR18: 0 | AS18: 0 | AT18: 0 | AU18: 0 | AV18: 0 | AW18: 0
A20: Total Customer Spend / Mth | B20: =B14+B8 -> 0 | C20: 0 | D20: 0 | E20: 0 | F20: 0 | G20: 0 | H20: 0 | I20: 0 | J20: 0 | K20: 0 | L20: 0 | M20: 0 | N20: 0 | O20: 0 | P20: 0 | Q20: 0 | R20: 0 | S20: 0 | T20: 0 | U20: 0 | V20: 0 | W20: 0 | X20: 0 | Y20: 0 | Z20: 0 | AA20: 0 | AB20: 0 | AC20: 0 | AD20: 0 | AE20: 0 | AF20: 0 | AG20: 0 | AH20: 0 | AI20: 0 | AJ20: 0 | AK20: 0 | AL20: 0 | AM20: 0 | AN20: 0 | AO20: 0 | AP20: 0 | AQ20: 0 | AR20: 0 | AS20: 0 | AT20: 0 | AU20: 0 | AV20: 0 | AW20: 0 | AX20: =IF(SUM($B$14:$Y$14)=0,AX8,'P&L'!BF7) ->  | AY20: =IF(SUM($B$14:$Y$14)=0,AY8,'P&L'!BG7) ->  | AZ20: =SUM(B20:AW20)/4 -> 0
A22: Key Performance Indicators
A23: Base Website traffic (total) | B23: ='Web Pages_Input'!B28*'Rev Model'!B1 -> 0
A24: Of which relevant traffic | B24: =B23*40% -> 0 | C24: =B24 -> 0 | D24: 0 | E24: 0 | F24: 0 | G24: 0 | H24: 0 | I24: 0 | J24: 0 | K24: 0 | L24: 0 | M24: 0 | N24: 0 | O24: 0 | P24: 0 | Q24: 0 | R24: 0 | S24: 0 | T24: 0 | U24: 0 | V24: 0 | W24: 0 | X24: 0 | Y24: 0 | Z24: 0 | AA24: 0 | AB24: 0 | AC24: 0 | AD24: 0 | AE24: 0 | AF24: 0 | AG24: 0 | AH24: 0 | AI24: 0 | AJ24: 0 | AK24: 0 | AL24: 0 | AM24: 0 | AN24: 0 | AO24: 0 | AP24: 0 | AQ24: 0 | AR24: 0 | AS24: 0 | AT24: 0 | AU24: 0 | AV24: 0 | AW24: 0
A25: Traffic from email blasts | B25: =B54*B57*B58 -> 0 | C25: =C54*C57*C58 -> 0 | D25: 0 | E25: 0 | F25: 0 | G25: 0 | H25: 0 | I25: 0 | J25: 0 | K25: 0 | L25: 0 | M25: 0 | N25: 0 | O25: 0 | P25: 0 | Q25: 0 | R25: 0 | S25: 0 | T25: 0 | U25: 0 | V25: 0 | W25: 0 | X25: 0 | Y25: 0 | Z25: =Z54*Z57*Z58 -> 0 | AA25: 0 | AB25: 0 | AC25: 0 | AD25: 0 | AE25: 0 | AF25: 0 | AG25: 0 | AH25: 0 | AI25: 0 | AJ25: 0 | AK25: 0 | AL25: 0 | AM25: 0 | AN25: 0 | AO25: 0 | AP25: 0 | AQ25: 0 | AR25: 0 | AS25: 0 | AT25: 0 | AU25: 0 | AV25: 0 | AW25: 0
A26: Blog | B26: =ROUND(B40*B97,0) -> 0 | C26: 0 | D26: 0 | E26: 0 | F26: 0 | G26: 0 | H26: 0 | I26: 0 | J26: 0 | K26: 0 | L26: 0 | M26: 0 | N26: 0 | O26: 0 | P26: 0 | Q26: 0 | R26: 0 | S26: 0 | T26: 0 | U26: 0 | V26: 0 | W26: 0 | X26: 0 | Y26: 0 | Z26: =ROUND(Z40*Z97,0) -> 0 | AA26: 0 | AB26: 0 | AC26: 0 | AD26: 0 | AE26: 0 | AF26: 0 | AG26: 0 | AH26: 0 | AI26: 0 | AJ26: 0 | AK26: 0 | AL26: 0 | AM26: 0 | AN26: 0 | AO26: 0 | AP26: 0 | AQ26: 0 | AR26: 0 | AS26: 0 | AT26: 0 | AU26: 0 | AV26: 0 | AW26: 0
A27: Paid | B27: =B73+B74 -> 0 | C27: =C73+C74 -> 0 | D27: =D73+D74 -> 0 | E27: =E73+E74 -> 0 | F27: =F73+F74 -> 0 | G27: 0 | H27: 0 | I27: 0 | J27: 0 | K27: 0 | L27: 0 | M27: 0 | N27: 0 | O27: 0 | P27: 0 | Q27: 0 | R27: 0 | S27: 0 | T27: 0 | U27: 0 | V27: 0 | W27: 0 | X27: 0 | Y27: 0 | Z27: =Z73+Z74 -> 0 | AA27: 0 | AB27: 0 | AC27: 0 | AD27: 0 | AE27: 0 | AF27: 0 | AG27: 0 | AH27: 0 | AI27: 0 | AJ27: 0 | AK27: 0 | AL27: 0 | AM27: 0 | AN27: 0 | AO27: 0 | AP27: 0 | AQ27: 0 | AR27: 0 | AS27: 0 | AT27: 0 | AU27: 0 | AV27: 0 | AW27: 0
A28: Social | B28: =ROUND(B87*B99,0) -> 0 | C28: =ROUND(C87*C99,0) -> 0 | D28: 0 | E28: 0 | F28: 0 | G28: 0 | H28: 0 | I28: 0 | J28: 0 | K28: 0 | L28: 0 | M28: 0 | N28: 0 | O28: 0 | P28: 0 | Q28: 0 | R28: 0 | S28: 0 | T28: 0 | U28: 0 | V28: 0 | W28: 0 | X28: 0 | Y28: 0 | Z28: =ROUND(Z87*Z99,0) -> 0 | AA28: 0 | AB28: 0 | AC28: 0 | AD28: 0 | AE28: 0 | AF28: 0 | AG28: 0 | AH28: 0 | AI28: 0 | AJ28: 0 | AK28: 0 | AL28: 0 | AM28: 0 | AN28: 0 | AO28: 0 | AP28: 0 | AQ28: 0 | AR28: 0 | AS28: 0 | AT28: 0 | AU28: 0 | AV28: 0 | AW28: 0
A29: Qualified Website traffic | B29: =SUM(B24:B28) -> 0 | C29: 0 | D29: 0 | E29: 0 | F29: 0 | G29: 0 | H29: 0 | I29: 0 | J29: 0 | K29: 0 | L29: 0 | M29: 0 | N29: 0 | O29: 0 | P29: 0 | Q29: 0 | R29: 0 | S29: 0 | T29: 0 | U29: 0 | V29: 0 | W29: 0 | X29: 0 | Y29: 0 | Z29: 0 | AA29: 0 | AB29: 0 | AC29: 0 | AD29: 0 | AE29: 0 | AF29: 0 | AG29: 0 | AH29: 0 | AI29: 0 | AJ29: 0 | AK29: 0 | AL29: 0 | AM29: 0 | AN29: 0 | AO29: 0 | AP29: 0 | AQ29: 0 | AR29: 0 | AS29: 0 | AT29: 0 | AU29: 0 | AV29: 0 | AW29: 0
A32: New Customer Acquisition by Month | B32: =ROUND(B36*B50,0) -> 0 | C32: 0 | D32: 0 | E32: 0 | F32: 0 | G32: 0 | H32: 0 | I32: 0 | J32: 0 | K32: 0 | L32: 0 | M32: 0 | N32: 0 | O32: 0 | P32: 0 | Q32: 0 | R32: 0 | S32: 0 | T32: 0 | U32: 0 | V32: 0 | W32: 0 | X32: 0 | Y32: 0 | Z32: 0 | AA32: 0 | AB32: 0 | AC32: 0 | AD32: 0 | AE32: 0 | AF32: 0 | AG32: 0 | AH32: 0 | AI32: 0 | AJ32: 0 | AK32: 0 | AL32: 0 | AM32: 0 | AN32: 0 | AO32: 0 | AP32: 0 | AQ32: 0 | AR32: 0 | AS32: 0 | AT32: 0 | AU32: 0 | AV32: 0 | AW32: 0
A33: Total New Customers (Cumulative) | B33: =B32 -> 0 | C33: =C32+B33 -> 0 | D33: 0 | E33: 0 | F33: 0 | G33: 0 | H33: 0 | I33: 0 | J33: 0 | K33: 0 | L33: 0 | M33: 0 | N33: 0 | O33: 0 | P33: 0 | Q33: 0 | R33: 0 | S33: 0 | T33: 0 | U33: 0 | V33: 0 | W33: 0 | X33: 0 | Y33: 0 | Z33: 0 | AA33: 0 | AB33: 0 | AC33: 0 | AD33: 0 | AE33: 0 | AF33: 0 | AG33: 0 | AH33: 0 | AI33: 0 | AJ33: 0 | AK33: 0 | AL33: 0 | AM33: 0 | AN33: 0 | AO33: 0 | AP33: 0 | AQ33: 0 | AR33: 0 | AS33: 0 | AT33: 0 | AU33: 0 | AV33: 0 | AW33: 0 | AX33: =AX14/AZ33 ->  | AZ33: =AW33 -> 0
A35: Leads (base) | B35: ='Web Pages_Input'!B27 -> 0
A36: Leads (new) from site | B36: =ROUND(B29*B41,0) -> 0 | C36: 0 | D36: 0 | E36: 0 | F36: 0 | G36: 0 | H36: 0 | I36: 0 | J36: 0 | K36: 0 | L36: 0 | M36: 0 | N36: 0 | O36: 0 | P36: 0 | Q36: 0 | R36: 0 | S36: 0 | T36: 0 | U36: 0 | V36: 0 | W36: 0 | X36: 0 | Y36: 0 | Z36: 0 | AA36: 0 | AB36: 0 | AC36: 0 | AD36: 0 | AE36: 0 | AF36: 0 | AG36: 0 | AH36: 0 | AI36: 0 | AJ36: 0 | AK36: 0 | AL36: 0 | AM36: 0 | AN36: 0 | AO36: 0 | AP36: 0 | AQ36: 0 | AR36: 0 | AS36: 0 | AT36: 0 | AU36: 0 | AV36: 0 | AW36: 0
A37: Total Cumulative Leads | B37: =B35+B36 -> 0 | C37: =C36+B37 -> 0 | D37: 0 | E37: 0 | F37: 0 | G37: 0 | H37: 0 | I37: 0 | J37: 0 | K37: 0 | L37: 0 | M37: 0 | N37: 0 | O37: 0 | P37: 0 | Q37: 0 | R37: 0 | S37: 0 | T37: 0 | U37: 0 | V37: 0 | W37: 0 | X37: 0 | Y37: 0 | Z37: 0 | AA37: 0 | AB37: 0 | AC37: 0 | AD37: 0 | AE37: 0 | AF37: 0 | AG37: 0 | AH37: 0 | AI37: 0 | AJ37: 0 | AK37: 0 | AL37: 0 | AM37: 0 | AN37: 0 | AO37: 0 | AP37: 0 | AQ37: 0 | AR37: 0 | AS37: 0 | AT37: 0 | AU37: 0 | AV37: 0 | AW37: 0
A39: Content download
A40: Blog Views | B40: =B60*ROUNDUP(B52*B108+B54*B109,0) -> 0 | C40: 0 | D40: 0 | E40: 0 | F40: 0 | G40: 0 | H40: 0 | I40: 0 | J40: 0 | K40: 0 | L40: 0 | M40: 0 | N40: 0 | O40: 0 | P40: 0 | Q40: 0 | R40: 0 | S40: 0 | T40: 0 | U40: 0 | V40: 0 | W40: 0 | X40: 0 | Y40: 0 | Z40: =Z60*ROUNDUP(Z52*Z108+Z54*Z109,0) -> 0 | AA40: 0 | AB40: 0 | AC40: 0 | AD40: 0 | AE40: 0 | AF40: 0 | AG40: 0 | AH40: 0 | AI40: 0 | AJ40: 0 | AK40: 0 | AL40: 0 | AM40: 0 | AN40: 0 | AO40: 0 | AP40: 0 | AQ40: 0 | AR40: 0 | AS40: 0 | AT40: 0 | AU40: 0 | AV40: 0 | AW40: 0
A41: Landing Page Conversion Rate | B41: ='Sales Funnel'!$C6 -> 0.05 | C41: ='Sales Funnel'!$C6 -> 0.05 | D41: ='Sales Funnel'!$C6 -> 0.05 | E41: ='Sales Funnel'!$C6 -> 0.05 | F41: ='Sales Funnel'!$C6 -> 0.05 | G41: ='Sales Funnel'!$C6 -> 0.05 | H41: ='Sales Funnel'!$C6 -> 0.05 | I41: ='Sales Funnel'!$C6 -> 0.05 | J41: ='Sales Funnel'!$C6 -> 0.05 | K41: ='Sales Funnel'!$C6 -> 0.05 | L41: ='Sales Funnel'!$C6 -> 0.05 | M41: ='Sales Funnel'!$C6 -> 0.05 | N41: ='Sales Funnel'!$C6 -> 0.05 | O41: ='Sales Funnel'!$C6 -> 0.05 | P41: ='Sales Funnel'!$C6 -> 0.05 | Q41: ='Sales Funnel'!$C6 -> 0.05 | R41: ='Sales Funnel'!$C6 -> 0.05 | S41: ='Sales Funnel'!$C6 -> 0.05 | T41: ='Sales Funnel'!$C6 -> 0.05 | U41: ='Sales Funnel'!$C6 -> 0.05 | V41: ='Sales Funnel'!$C6 -> 0.05 | W41: ='Sales Funnel'!$C6 -> 0.05 | X41: ='Sales Funnel'!$C6 -> 0.05 | Y41: ='Sales Funnel'!$C6 -> 0.05 | Z41: ='Sales Funnel'!$C6 -> 0.05 | AA41: ='Sales Funnel'!$C6 -> 0.05 | AB41: ='Sales Funnel'!$C6 -> 0.05 | AC41: ='Sales Funnel'!$C6 -> 0.05 | AD41: ='Sales Funnel'!$C6 -> 0.05 | AE41: ='Sales Funnel'!$C6 -> 0.05 | AF41: ='Sales Funnel'!$C6 -> 0.05 | AG41: ='Sales Funnel'!$C6 -> 0.05 | AH41: ='Sales Funnel'!$C6 -> 0.05 | AI41: ='Sales Funnel'!$C6 -> 0.05 | AJ41: ='Sales Funnel'!$C6 -> 0.05 | AK41: ='Sales Funnel'!$C6 -> 0.05 | AL41: ='Sales Funnel'!$C6 -> 0.05 | AM41: ='Sales Funnel'!$C6 -> 0.05 | AN41: ='Sales Funnel'!$C6 -> 0.05 | AO41: ='Sales Funnel'!$C6 -> 0.05 | AP41: ='Sales Funnel'!$C6 -> 0.05 | AQ41: ='Sales Funnel'!$C6 -> 0.05 | AR41: ='Sales Funnel'!$C6 -> 0.05 | AS41: ='Sales Funnel'!$C6 -> 0.05 | AT41: ='Sales Funnel'!$C6 -> 0.05 | AU41: ='Sales Funnel'!$C6 -> 0.05 | AV41: ='Sales Funnel'!$C6 -> 0.05 | AW41: ='Sales Funnel'!$C6 -> 0.05
A42: Cost per Lead (Paid Search Only) | B42: =IF(B62=0,0,B62/B27) -> 0 | C42: 0 | D42: 0 | E42: 0 | F42: 0 | G42: 0 | H42: 0 | I42: 0 | J42: 0 | K42: 0 | L42: 0 | M42: 0 | N42: 0 | O42: 0 | P42: 0 | Q42: 0 | R42: 0 | S42: 0 | T42: 0 | U42: 0 | V42: 0 | W42: 0 | X42: 0 | Y42: 0 | Z42: =IF(Z62=0,0,Z62/Z27) -> 0 | AA42: 0 | AB42: 0 | AC42: 0 | AD42: 0 | AE42: 0 | AF42: 0 | AG42: 0 | AH42: 0 | AI42: 0 | AJ42: 0 | AK42: 0 | AL42: 0 | AM42: 0 | AN42: 0 | AO42: 0 | AP42: 0 | AQ42: 0 | AR42: 0 | AS42: 0 | AT42: 0 | AU42: 0 | AV42: 0 | AW42: 0
B44: 0 | C44: 1 | D44: 2 | E44: 3 | F44: 4 | G44: 5 | H44: 6 | I44: 7 | J44: 8 | K44: 9 | L44: 10 | M44: 11 | N44: 12 | O44: 13 | P44: 14 | Q44: 15 | R44: 16 | S44: 17 | T44: 18 | U44: 19 | V44: 20 | W44: 21 | X44: 22 | Y44: 23 | Z44: 24 | AA44: 25 | AB44: 26 | AC44: 27 | AD44: 28 | AE44: 29 | AF44: 30 | AG44: 31 | AH44: 32 | AI44: 33 | AJ44: 34 | AK44: 35 | AL44: 36 | AM44: 37 | AN44: 38 | AO44: 39 | AP44: 40 | AQ44: 41 | AR44: 42 | AS44: 43 | AT44: 44 | AU44: 45 | AV44: 46 | AW44: 47
A45: Total Social Shares From Content | B45: ='Web Pages_Input'!B25 -> 0 | C45: =IF(AND(AND(AND(AND($B$82=0,$B$83=0,$B$84=0,$B$85=0,$B$86=0)))),0,B45+HLOOKUP($A45,'Social Table'!$C$12:$J$22,11,FALSE)) -> 0 | D45: =IF(AND(AND(AND(AND($B$82=0,$B$83=0,$B$84=0,$B$85=0,$B$86=0)))),0,C45+HLOOKUP($A45,'Social Table'!$C$12:$J$22,11,FALSE)) -> 0 | E45: =IF(AND(AND(AND(AND($B$82=0,$B$83=0,$B$84=0,$B$85=0,$B$86=0)))),0,D45+HLOOKUP($A45,'Social Table'!$C$12:$J$22,11,FALSE)) -> 0 | F45: =IF(AND(AND(AND(AND($B$82=0,$B$83=0,$B$84=0,$B$85=0,$B$86=0)))),0,E45+HLOOKUP($A45,'Social Table'!$C$12:$J$22,11,FALSE)) -> 0 | G45: =IF(AND(AND(AND(AND($B$82=0,$B$83=0,$B$84=0,$B$85=0,$B$86=0)))),0,F45+HLOOKUP($A45,'Social Table'!$C$12:$J$22,11,FALSE)) -> 0 | H45: =IF(AND(AND(AND(AND($B$82=0,$B$83=0,$B$84=0,$B$85=0,$B$86=0)))),0,G45+HLOOKUP($A45,'Social Table'!$C$12:$J$22,11,FALSE)) -> 0 | I45: =IF(AND(AND(AND(AND($B$82=0,$B$83=0,$B$84=0,$B$85=0,$B$86=0)))),0,H45+HLOOKUP($A45,'Social Table'!$C$12:$J$22,11,FALSE)) -> 0 | J45: =IF(AND(AND(AND(AND($B$82=0,$B$83=0,$B$84=0,$B$85=0,$B$86=0)))),0,I45+HLOOKUP($A45,'Social Table'!$C$12:$J$22,11,FALSE)) -> 0 | K45: =IF(AND(AND(AND(AND($B$82=0,$B$83=0,$B$84=0,$B$85=0,$B$86=0)))),0,J45+HLOOKUP($A45,'Social Table'!$C$12:$J$22,11,FALSE)) -> 0 | L45: =IF(AND(AND(AND(AND($B$82=0,$B$83=0,$B$84=0,$B$85=0,$B$86=0)))),0,K45+HLOOKUP($A45,'Social Table'!$C$12:$J$22,11,FALSE)) -> 0 | M45: =IF(AND(AND(AND(AND($B$82=0,$B$83=0,$B$84=0,$B$85=0,$B$86=0)))),0,L45+HLOOKUP($A45,'Social Table'!$C$12:$J$22,11,FALSE)) -> 0 | N45: =IF(AND(AND(AND(AND($B$82=0,$B$83=0,$B$84=0,$B$85=0,$B$86=0)))),0,M45+HLOOKUP($A45,'Social Table'!$C$12:$J$22,11,FALSE)) -> 0 | O45: =IF(AND(AND(AND(AND($B$82=0,$B$83=0,$B$84=0,$B$85=0,$B$86=0)))),0,N45+HLOOKUP($A45,'Social Table'!$C$12:$J$22,11,FALSE)) -> 0 | P45: =IF(AND(AND(AND(AND($B$82=0,$B$83=0,$B$84=0,$B$85=0,$B$86=0)))),0,O45+HLOOKUP($A45,'Social Table'!$C$12:$J$22,11,FALSE)) -> 0 | Q45: =IF(AND(AND(AND(AND($B$82=0,$B$83=0,$B$84=0,$B$85=0,$B$86=0)))),0,P45+HLOOKUP($A45,'Social Table'!$C$12:$J$22,11,FALSE)) -> 0 | R45: =IF(AND(AND(AND(AND($B$82=0,$B$83=0,$B$84=0,$B$85=0,$B$86=0)))),0,Q45+HLOOKUP($A45,'Social Table'!$C$12:$J$22,11,FALSE)) -> 0 | S45: =IF(AND(AND(AND(AND($B$82=0,$B$83=0,$B$84=0,$B$85=0,$B$86=0)))),0,R45+HLOOKUP($A45,'Social Table'!$C$12:$J$22,11,FALSE)) -> 0 | T45: =IF(AND(AND(AND(AND($B$82=0,$B$83=0,$B$84=0,$B$85=0,$B$86=0)))),0,S45+HLOOKUP($A45,'Social Table'!$C$12:$J$22,11,FALSE)) -> 0 | U45: =IF(AND(AND(AND(AND($B$82=0,$B$83=0,$B$84=0,$B$85=0,$B$86=0)))),0,T45+HLOOKUP($A45,'Social Table'!$C$12:$J$22,11,FALSE)) -> 0 | V45: =IF(AND(AND(AND(AND($B$82=0,$B$83=0,$B$84=0,$B$85=0,$B$86=0)))),0,U45+HLOOKUP($A45,'Social Table'!$C$12:$J$22,11,FALSE)) -> 0 | W45: =IF(AND(AND(AND(AND($B$82=0,$B$83=0,$B$84=0,$B$85=0,$B$86=0)))),0,V45+HLOOKUP($A45,'Social Table'!$C$12:$J$22,11,FALSE)) -> 0 | X45: =IF(AND(AND(AND(AND($B$82=0,$B$83=0,$B$84=0,$B$85=0,$B$86=0)))),0,W45+HLOOKUP($A45,'Social Table'!$C$12:$J$22,11,FALSE)) -> 0 | Y45: =IF(AND(AND(AND(AND($B$82=0,$B$83=0,$B$84=0,$B$85=0,$B$86=0)))),0,X45+HLOOKUP($A45,'Social Table'!$C$12:$J$22,11,FALSE)) -> 0 | Z45: =IF(AND(AND(AND(AND($B$82=0,$B$83=0,$B$84=0,$B$85=0,$B$86=0)))),0,Y45+HLOOKUP($A45,'Social Table'!$C$12:$J$22,11,FALSE)) -> 0 | AA45: =IF(AND(AND(AND(AND($B$82=0,$B$83=0,$B$84=0,$B$85=0,$B$86=0)))),0,Z45+HLOOKUP($A45,'Social Table'!$C$12:$J$22,11,FALSE)) -> 0 | AB45: =IF(AND(AND(AND(AND($B$82=0,$B$83=0,$B$84=0,$B$85=0,$B$86=0)))),0,AA45+HLOOKUP($A45,'Social Table'!$C$12:$J$22,11,FALSE)) -> 0 | AC45: =IF(AND(AND(AND(AND($B$82=0,$B$83=0,$B$84=0,$B$85=0,$B$86=0)))),0,AB45+HLOOKUP($A45,'Social Table'!$C$12:$J$22,11,FALSE)) -> 0 | AD45: =IF(AND(AND(AND(AND($B$82=0,$B$83=0,$B$84=0,$B$85=0,$B$86=0)))),0,AC45+HLOOKUP($A45,'Social Table'!$C$12:$J$22,11,FALSE)) -> 0 | AE45: =IF(AND(AND(AND(AND($B$82=0,$B$83=0,$B$84=0,$B$85=0,$B$86=0)))),0,AD45+HLOOKUP($A45,'Social Table'!$C$12:$J$22,11,FALSE)) -> 0 | AF45: =IF(AND(AND(AND(AND($B$82=0,$B$83=0,$B$84=0,$B$85=0,$B$86=0)))),0,AE45+HLOOKUP($A45,'Social Table'!$C$12:$J$22,11,FALSE)) -> 0 | AG45: =IF(AND(AND(AND(AND($B$82=0,$B$83=0,$B$84=0,$B$85=0,$B$86=0)))),0,AF45+HLOOKUP($A45,'Social Table'!$C$12:$J$22,11,FALSE)) -> 0 | AH45: =IF(AND(AND(AND(AND($B$82=0,$B$83=0,$B$84=0,$B$85=0,$B$86=0)))),0,AG45+HLOOKUP($A45,'Social Table'!$C$12:$J$22,11,FALSE)) -> 0 | AI45: =IF(AND(AND(AND(AND($B$82=0,$B$83=0,$B$84=0,$B$85=0,$B$86=0)))),0,AH45+HLOOKUP($A45,'Social Table'!$C$12:$J$22,11,FALSE)) -> 0 | AJ45: =IF(AND(AND(AND(AND($B$82=0,$B$83=0,$B$84=0,$B$85=0,$B$86=0)))),0,AI45+HLOOKUP($A45,'Social Table'!$C$12:$J$22,11,FALSE)) -> 0 | AK45: =IF(AND(AND(AND(AND($B$82=0,$B$83=0,$B$84=0,$B$85=0,$B$86=0)))),0,AJ45+HLOOKUP($A45,'Social Table'!$C$12:$J$22,11,FALSE)) -> 0 | AL45: =IF(AND(AND(AND(AND($B$82=0,$B$83=0,$B$84=0,$B$85=0,$B$86=0)))),0,AK45+HLOOKUP($A45,'Social Table'!$C$12:$J$22,11,FALSE)) -> 0 | AM45: =IF(AND(AND(AND(AND($B$82=0,$B$83=0,$B$84=0,$B$85=0,$B$86=0)))),0,AL45+HLOOKUP($A45,'Social Table'!$C$12:$J$22,11,FALSE)) -> 0 | AN45: =IF(AND(AND(AND(AND($B$82=0,$B$83=0,$B$84=0,$B$85=0,$B$86=0)))),0,AM45+HLOOKUP($A45,'Social Table'!$C$12:$J$22,11,FALSE)) -> 0 | AO45: =IF(AND(AND(AND(AND($B$82=0,$B$83=0,$B$84=0,$B$85=0,$B$86=0)))),0,AN45+HLOOKUP($A45,'Social Table'!$C$12:$J$22,11,FALSE)) -> 0 | AP45: =IF(AND(AND(AND(AND($B$82=0,$B$83=0,$B$84=0,$B$85=0,$B$86=0)))),0,AO45+HLOOKUP($A45,'Social Table'!$C$12:$J$22,11,FALSE)) -> 0 | AQ45: =IF(AND(AND(AND(AND($B$82=0,$B$83=0,$B$84=0,$B$85=0,$B$86=0)))),0,AP45+HLOOKUP($A45,'Social Table'!$C$12:$J$22,11,FALSE)) -> 0 | AR45: =IF(AND(AND(AND(AND($B$82=0,$B$83=0,$B$84=0,$B$85=0,$B$86=0)))),0,AQ45+HLOOKUP($A45,'Social Table'!$C$12:$J$22,11,FALSE)) -> 0 | AS45: =IF(AND(AND(AND(AND($B$82=0,$B$83=0,$B$84=0,$B$85=0,$B$86=0)))),0,AR45+HLOOKUP($A45,'Social Table'!$C$12:$J$22,11,FALSE)) -> 0 | AT45: =IF(AND(AND(AND(AND($B$82=0,$B$83=0,$B$84=0,$B$85=0,$B$86=0)))),0,AS45+HLOOKUP($A45,'Social Table'!$C$12:$J$22,11,FALSE)) -> 0 | AU45: =IF(AND(AND(AND(AND($B$82=0,$B$83=0,$B$84=0,$B$85=0,$B$86=0)))),0,AT45+HLOOKUP($A45,'Social Table'!$C$12:$J$22,11,FALSE)) -> 0 | AV45: =IF(AND(AND(AND(AND($B$82=0,$B$83=0,$B$84=0,$B$85=0,$B$86=0)))),0,AU45+HLOOKUP($A45,'Social Table'!$C$12:$J$22,11,FALSE)) -> 0 | AW45: =IF(AND(AND(AND(AND($B$82=0,$B$83=0,$B$84=0,$B$85=0,$B$86=0)))),0,AV45+HLOOKUP($A45,'Social Table'!$C$12:$J$22,11,FALSE)) -> 0
A46: Total Social Shares From Product Reviews | B46: 0 | C46: =ROUND(C9+C15*C1*INDEX('Social Table'!$A$27:$C$35,MATCH('Rev Model'!C44,'Social Table'!$A$27:$A$35,1),3),0) -> 0 | D46: =ROUND(D9+D15*D1*INDEX('Social Table'!$A$27:$C$35,MATCH('Rev Model'!D44,'Social Table'!$A$27:$A$35,1),3),0) -> 0 | E46: =ROUND(E9+E15*E1*INDEX('Social Table'!$A$27:$C$35,MATCH('Rev Model'!E44,'Social Table'!$A$27:$A$35,1),3),0) -> 0 | F46: =ROUND(F9+F15*F1*INDEX('Social Table'!$A$27:$C$35,MATCH('Rev Model'!F44,'Social Table'!$A$27:$A$35,1),3),0) -> 0 | G46: =ROUND(G9+G15*G1*INDEX('Social Table'!$A$27:$C$35,MATCH('Rev Model'!G44,'Social Table'!$A$27:$A$35,1),3),0) -> 0 | H46: =ROUND(H9+H15*H1*INDEX('Social Table'!$A$27:$C$35,MATCH('Rev Model'!H44,'Social Table'!$A$27:$A$35,1),3),0) -> 0 | I46: =ROUND(I9+I15*I1*INDEX('Social Table'!$A$27:$C$35,MATCH('Rev Model'!I44,'Social Table'!$A$27:$A$35,1),3),0) -> 0 | J46: =ROUND(J9+J15*J1*INDEX('Social Table'!$A$27:$C$35,MATCH('Rev Model'!J44,'Social Table'!$A$27:$A$35,1),3),0) -> 0 | K46: =ROUND(K9+K15*K1*INDEX('Social Table'!$A$27:$C$35,MATCH('Rev Model'!K44,'Social Table'!$A$27:$A$35,1),3),0) -> 0 | L46: =ROUND(L9+L15*L1*INDEX('Social Table'!$A$27:$C$35,MATCH('Rev Model'!L44,'Social Table'!$A$27:$A$35,1),3),0) -> 0 | M46: =ROUND(M9+M15*M1*INDEX('Social Table'!$A$27:$C$35,MATCH('Rev Model'!M44,'Social Table'!$A$27:$A$35,1),3),0) -> 0 | N46: =ROUND(N9+N15*N1*INDEX('Social Table'!$A$27:$C$35,MATCH('Rev Model'!N44,'Social Table'!$A$27:$A$35,1),3),0) -> 0 | O46: =ROUND(O9+O15*O1*INDEX('Social Table'!$A$27:$C$35,MATCH('Rev Model'!O44,'Social Table'!$A$27:$A$35,1),3),0) -> 0 | P46: =ROUND(P9+P15*P1*INDEX('Social Table'!$A$27:$C$35,MATCH('Rev Model'!P44,'Social Table'!$A$27:$A$35,1),3),0) -> 0 | Q46: =ROUND(Q9+Q15*Q1*INDEX('Social Table'!$A$27:$C$35,MATCH('Rev Model'!Q44,'Social Table'!$A$27:$A$35,1),3),0) -> 0 | R46: =ROUND(R9+R15*R1*INDEX('Social Table'!$A$27:$C$35,MATCH('Rev Model'!R44,'Social Table'!$A$27:$A$35,1),3),0) -> 0 | S46: =ROUND(S9+S15*S1*INDEX('Social Table'!$A$27:$C$35,MATCH('Rev Model'!S44,'Social Table'!$A$27:$A$35,1),3),0) -> 0 | T46: =ROUND(T9+T15*T1*INDEX('Social Table'!$A$27:$C$35,MATCH('Rev Model'!T44,'Social Table'!$A$27:$A$35,1),3),0) -> 0 | U46: =ROUND(U9+U15*U1*INDEX('Social Table'!$A$27:$C$35,MATCH('Rev Model'!U44,'Social Table'!$A$27:$A$35,1),3),0) -> 0 | V46: =ROUND(V9+V15*V1*INDEX('Social Table'!$A$27:$C$35,MATCH('Rev Model'!V44,'Social Table'!$A$27:$A$35,1),3),0) -> 0 | W46: =ROUND(W9+W15*W1*INDEX('Social Table'!$A$27:$C$35,MATCH('Rev Model'!W44,'Social Table'!$A$27:$A$35,1),3),0) -> 0 | X46: =ROUND(X9+X15*X1*INDEX('Social Table'!$A$27:$C$35,MATCH('Rev Model'!X44,'Social Table'!$A$27:$A$35,1),3),0) -> 0 | Y46: =ROUND(Y9+Y15*Y1*INDEX('Social Table'!$A$27:$C$35,MATCH('Rev Model'!Y44,'Social Table'!$A$27:$A$35,1),3),0) -> 0 | Z46: =ROUND(Z9+Z15*Z1*INDEX('Social Table'!$A$27:$C$35,MATCH('Rev Model'!Z44,'Social Table'!$A$27:$A$35,1),3),0) -> 0 | AA46: =ROUND(AA9+AA15*AA1*INDEX('Social Table'!$A$27:$C$35,MATCH('Rev Model'!AA44,'Social Table'!$A$27:$A$35,1),3),0) -> 0 | AB46: =ROUND(AB9+AB15*AB1*INDEX('Social Table'!$A$27:$C$35,MATCH('Rev Model'!AB44,'Social Table'!$A$27:$A$35,1),3),0) -> 0 | AC46: =ROUND(AC9+AC15*AC1*INDEX('Social Table'!$A$27:$C$35,MATCH('Rev Model'!AC44,'Social Table'!$A$27:$A$35,1),3),0) -> 0 | AD46: =ROUND(AD9+AD15*AD1*INDEX('Social Table'!$A$27:$C$35,MATCH('Rev Model'!AD44,'Social Table'!$A$27:$A$35,1),3),0) -> 0 | AE46: =ROUND(AE9+AE15*AE1*INDEX('Social Table'!$A$27:$C$35,MATCH('Rev Model'!AE44,'Social Table'!$A$27:$A$35,1),3),0) -> 0 | AF46: =ROUND(AF9+AF15*AF1*INDEX('Social Table'!$A$27:$C$35,MATCH('Rev Model'!AF44,'Social Table'!$A$27:$A$35,1),3),0) -> 0 | AG46: =ROUND(AG9+AG15*AG1*INDEX('Social Table'!$A$27:$C$35,MATCH('Rev Model'!AG44,'Social Table'!$A$27:$A$35,1),3),0) -> 0 | AH46: =ROUND(AH9+AH15*AH1*INDEX('Social Table'!$A$27:$C$35,MATCH('Rev Model'!AH44,'Social Table'!$A$27:$A$35,1),3),0) -> 0 | AI46: =ROUND(AI9+AI15*AI1*INDEX('Social Table'!$A$27:$C$35,MATCH('Rev Model'!AI44,'Social Table'!$A$27:$A$35,1),3),0) -> 0 | AJ46: =ROUND(AJ9+AJ15*AJ1*INDEX('Social Table'!$A$27:$C$35,MATCH('Rev Model'!AJ44,'Social Table'!$A$27:$A$35,1),3),0) -> 0 | AK46: =ROUND(AK9+AK15*AK1*INDEX('Social Table'!$A$27:$C$35,MATCH('Rev Model'!AK44,'Social Table'!$A$27:$A$35,1),3),0) -> 0 | AL46: =ROUND(AL9+AL15*AL1*INDEX('Social Table'!$A$27:$C$35,MATCH('Rev Model'!AL44,'Social Table'!$A$27:$A$35,1),3),0) -> 0 | AM46: =ROUND(AM9+AM15*AM1*INDEX('Social Table'!$A$27:$C$35,MATCH('Rev Model'!AM44,'Social Table'!$A$27:$A$35,1),3),0) -> 0 | AN46: =ROUND(AN9+AN15*AN1*INDEX('Social Table'!$A$27:$C$35,MATCH('Rev Model'!AN44,'Social Table'!$A$27:$A$35,1),3),0) -> 0 | AO46: =ROUND(AO9+AO15*AO1*INDEX('Social Table'!$A$27:$C$35,MATCH('Rev Model'!AO44,'Social Table'!$A$27:$A$35,1),3),0) -> 0 | AP46: =ROUND(AP9+AP15*AP1*INDEX('Social Table'!$A$27:$C$35,MATCH('Rev Model'!AP44,'Social Table'!$A$27:$A$35,1),3),0) -> 0 | AQ46: =ROUND(AQ9+AQ15*AQ1*INDEX('Social Table'!$A$27:$C$35,MATCH('Rev Model'!AQ44,'Social Table'!$A$27:$A$35,1),3),0) -> 0 | AR46: =ROUND(AR9+AR15*AR1*INDEX('Social Table'!$A$27:$C$35,MATCH('Rev Model'!AR44,'Social Table'!$A$27:$A$35,1),3),0) -> 0 | AS46: =ROUND(AS9+AS15*AS1*INDEX('Social Table'!$A$27:$C$35,MATCH('Rev Model'!AS44,'Social Table'!$A$27:$A$35,1),3),0) -> 0 | AT46: =ROUND(AT9+AT15*AT1*INDEX('Social Table'!$A$27:$C$35,MATCH('Rev Model'!AT44,'Social Table'!$A$27:$A$35,1),3),0) -> 0 | AU46: =ROUND(AU9+AU15*AU1*INDEX('Social Table'!$A$27:$C$35,MATCH('Rev Model'!AU44,'Social Table'!$A$27:$A$35,1),3),0) -> 0 | AV46: =ROUND(AV9+AV15*AV1*INDEX('Social Table'!$A$27:$C$35,MATCH('Rev Model'!AV44,'Social Table'!$A$27:$A$35,1),3),0) -> 0 | AW46: =ROUND(AW9+AW15*AW1*INDEX('Social Table'!$A$27:$C$35,MATCH('Rev Model'!AW44,'Social Table'!$A$27:$A$35,1),3),0) -> 0
A47: Cumulative Social Shares | B47: =B46+B45 -> 0 | C47: =SUM($B46:C46)+C45 -> 0 | D47: =SUM($B46:D46)+D45 -> 0 | E47: =SUM($B46:E46)+E45 -> 0 | F47: =SUM($B46:F46)+F45 -> 0 | G47: =SUM($B46:G46)+G45 -> 0 | H47: =SUM($B46:H46)+H45 -> 0 | I47: =SUM($B46:I46)+I45 -> 0 | J47: =SUM($B46:J46)+J45 -> 0 | K47: =SUM($B46:K46)+K45 -> 0 | L47: =SUM($B46:L46)+L45 -> 0 | M47: =SUM($B46:M46)+M45 -> 0 | N47: =SUM($B46:N46)+N45 -> 0 | O47: =SUM($B46:O46)+O45 -> 0 | P47: =SUM($B46:P46)+P45 -> 0 | Q47: =SUM($B46:Q46)+Q45 -> 0 | R47: =SUM($B46:R46)+R45 -> 0 | S47: =SUM($B46:S46)+S45 -> 0 | T47: =SUM($B46:T46)+T45 -> 0 | U47: =SUM($B46:U46)+U45 -> 0 | V47: =SUM($B46:V46)+V45 -> 0 | W47: =SUM($B46:W46)+W45 -> 0 | X47: =SUM($B46:X46)+X45 -> 0 | Y47: =SUM($B46:Y46)+Y45 -> 0 | Z47: =SUM($B46:Z46)+Z45 -> 0 | AA47: =SUM($B46:AA46)+AA45 -> 0 | AB47: =SUM($B46:AB46)+AB45 -> 0 | AC47: =SUM($B46:AC46)+AC45 -> 0 | AD47: =SUM($B46:AD46)+AD45 -> 0 | AE47: =SUM($B46:AE46)+AE45 -> 0 | AF47: =SUM($B46:AF46)+AF45 -> 0 | AG47: =SUM($B46:AG46)+AG45 -> 0 | AH47: =SUM($B46:AH46)+AH45 -> 0 | AI47: =SUM($B46:AI46)+AI45 -> 0 | AJ47: =SUM($B46:AJ46)+AJ45 -> 0 | AK47: =SUM($B46:AK46)+AK45 -> 0 | AL47: =SUM($B46:AL46)+AL45 -> 0 | AM47: =SUM($B46:AM46)+AM45 -> 0 | AN47: =SUM($B46:AN46)+AN45 -> 0 | AO47: =SUM($B46:AO46)+AO45 -> 0 | AP47: =SUM($B46:AP46)+AP45 -> 0 | AQ47: =SUM($B46:AQ46)+AQ45 -> 0 | AR47: =SUM($B46:AR46)+AR45 -> 0 | AS47: =SUM($B46:AS46)+AS45 -> 0 | AT47: =SUM($B46:AT46)+AT45 -> 0 | AU47: =SUM($B46:AU46)+AU45 -> 0 | AV47: =SUM($B46:AV46)+AV45 -> 0 | AW47: =SUM($B46:AW46)+AW45 -> 0
A48: Web Traffic Boost Thro Social Shares | B48: =INDEX('Social Table'!$A$39:$D$48,MATCH('Rev Model'!B47,'Social Table'!A39:A48,1),3) -> 0.05
A50: Lead to Customer Closing Rate | B50: ='Sales Funnel'!C27 -> 0 | C50: ='Sales Funnel'!D27 -> 0 | D50: ='Sales Funnel'!E27 -> 0 | E50: ='Sales Funnel'!F27 -> 0 | F50: ='Sales Funnel'!G27 -> 0 | G50: ='Sales Funnel'!H27 -> 0 | H50: ='Sales Funnel'!I27 -> 0 | I50: ='Sales Funnel'!J27 -> 0 | J50: ='Sales Funnel'!K27 -> 0 | K50: ='Sales Funnel'!L27 -> 0 | L50: ='Sales Funnel'!M27 -> 0 | M50: ='Sales Funnel'!N27 -> 0 | N50: ='Sales Funnel'!O27 -> 0 | O50: ='Sales Funnel'!P27 -> 0 | P50: ='Sales Funnel'!Q27 -> 0 | Q50: ='Sales Funnel'!R27 -> 0 | R50: ='Sales Funnel'!S27 -> 0 | S50: ='Sales Funnel'!T27 -> 0 | T50: ='Sales Funnel'!U27 -> 0 | U50: ='Sales Funnel'!V27 -> 0 | V50: ='Sales Funnel'!W27 -> 0 | W50: ='Sales Funnel'!X27 -> 0 | X50: ='Sales Funnel'!Y27 -> 0 | Y50: ='Sales Funnel'!Z27 -> 0 | Z50: ='Sales Funnel'!AA27 -> 0 | AA50: ='Sales Funnel'!AB27 -> 0 | AB50: ='Sales Funnel'!AC27 -> 0 | AC50: ='Sales Funnel'!AD27 -> 0 | AD50: ='Sales Funnel'!AE27 -> 0 | AE50: ='Sales Funnel'!AF27 -> 0 | AF50: ='Sales Funnel'!AG27 -> 0 | AG50: ='Sales Funnel'!AH27 -> 0 | AH50: ='Sales Funnel'!AI27 -> 0 | AI50: ='Sales Funnel'!AJ27 -> 0 | AJ50: ='Sales Funnel'!AK27 -> 0 | AK50: ='Sales Funnel'!AL27 -> 0 | AL50: ='Sales Funnel'!AM27 -> 0 | AM50: ='Sales Funnel'!AN27 -> 0 | AN50: ='Sales Funnel'!AO27 -> 0 | AO50: ='Sales Funnel'!AP27 -> 0 | AP50: ='Sales Funnel'!AQ27 -> 0 | AQ50: ='Sales Funnel'!AR27 -> 0 | AR50: ='Sales Funnel'!AS27 -> 0 | AS50: ='Sales Funnel'!AT27 -> 0 | AT50: ='Sales Funnel'!AU27 -> 0 | AU50: ='Sales Funnel'!AV27 -> 0 | AV50: ='Sales Funnel'!AW27 -> 0 | AW50: ='Sales Funnel'!AX27 -> 0
A52: Blog Subscribers | B52: ='Web Pages_Input'!B24 -> 0 | C52: =IF($B$87=0,0,B52+INDEX('Social Table'!$A$13:$J$18,MATCH('Rev Model'!B52,'Social Table'!$A$13:$A$18,1),7)) -> 0 | D52: =IF($B$87=0,0,C52+INDEX('Social Table'!$A$13:$J$18,MATCH('Rev Model'!C52,'Social Table'!$A$13:$A$18,1),7)) -> 0 | E52: =IF($B$87=0,0,D52+INDEX('Social Table'!$A$13:$J$18,MATCH('Rev Model'!D52,'Social Table'!$A$13:$A$18,1),7)) -> 0 | F52: =IF($B$87=0,0,E52+INDEX('Social Table'!$A$13:$J$18,MATCH('Rev Model'!E52,'Social Table'!$A$13:$A$18,1),7)) -> 0 | G52: =IF($B$87=0,0,F52+INDEX('Social Table'!$A$13:$J$18,MATCH('Rev Model'!F52,'Social Table'!$A$13:$A$18,1),7)) -> 0 | H52: =IF($B$87=0,0,G52+INDEX('Social Table'!$A$13:$J$18,MATCH('Rev Model'!G52,'Social Table'!$A$13:$A$18,1),7)) -> 0 | I52: =IF($B$87=0,0,H52+INDEX('Social Table'!$A$13:$J$18,MATCH('Rev Model'!H52,'Social Table'!$A$13:$A$18,1),7)) -> 0 | J52: =IF($B$87=0,0,I52+INDEX('Social Table'!$A$13:$J$18,MATCH('Rev Model'!I52,'Social Table'!$A$13:$A$18,1),7)) -> 0 | K52: =IF($B$87=0,0,J52+INDEX('Social Table'!$A$13:$J$18,MATCH('Rev Model'!J52,'Social Table'!$A$13:$A$18,1),7)) -> 0 | L52: =IF($B$87=0,0,K52+INDEX('Social Table'!$A$13:$J$18,MATCH('Rev Model'!K52,'Social Table'!$A$13:$A$18,1),7)) -> 0 | M52: =IF($B$87=0,0,L52+INDEX('Social Table'!$A$13:$J$18,MATCH('Rev Model'!L52,'Social Table'!$A$13:$A$18,1),7)) -> 0 | N52: =IF($B$87=0,0,M52+INDEX('Social Table'!$A$13:$J$18,MATCH('Rev Model'!M52,'Social Table'!$A$13:$A$18,1),7)) -> 0 | O52: =IF($B$87=0,0,N52+INDEX('Social Table'!$A$13:$J$18,MATCH('Rev Model'!N52,'Social Table'!$A$13:$A$18,1),7)) -> 0 | P52: =IF($B$87=0,0,O52+INDEX('Social Table'!$A$13:$J$18,MATCH('Rev Model'!O52,'Social Table'!$A$13:$A$18,1),7)) -> 0 | Q52: =IF($B$87=0,0,P52+INDEX('Social Table'!$A$13:$J$18,MATCH('Rev Model'!P52,'Social Table'!$A$13:$A$18,1),7)) -> 0 | R52: =IF($B$87=0,0,Q52+INDEX('Social Table'!$A$13:$J$18,MATCH('Rev Model'!Q52,'Social Table'!$A$13:$A$18,1),7)) -> 0 | S52: =IF($B$87=0,0,R52+INDEX('Social Table'!$A$13:$J$18,MATCH('Rev Model'!R52,'Social Table'!$A$13:$A$18,1),7)) -> 0 | T52: =IF($B$87=0,0,S52+INDEX('Social Table'!$A$13:$J$18,MATCH('Rev Model'!S52,'Social Table'!$A$13:$A$18,1),7)) -> 0 | U52: =IF($B$87=0,0,T52+INDEX('Social Table'!$A$13:$J$18,MATCH('Rev Model'!T52,'Social Table'!$A$13:$A$18,1),7)) -> 0 | V52: =IF($B$87=0,0,U52+INDEX('Social Table'!$A$13:$J$18,MATCH('Rev Model'!U52,'Social Table'!$A$13:$A$18,1),7)) -> 0 | W52: =IF($B$87=0,0,V52+INDEX('Social Table'!$A$13:$J$18,MATCH('Rev Model'!V52,'Social Table'!$A$13:$A$18,1),7)) -> 0 | X52: =IF($B$87=0,0,W52+INDEX('Social Table'!$A$13:$J$18,MATCH('Rev Model'!W52,'Social Table'!$A$13:$A$18,1),7)) -> 0 | Y52: =IF($B$87=0,0,X52+INDEX('Social Table'!$A$13:$J$18,MATCH('Rev Model'!X52,'Social Table'!$A$13:$A$18,1),7)) -> 0 | Z52: =IF($B$87=0,0,Y52+INDEX('Social Table'!$A$13:$J$18,MATCH('Rev Model'!Y52,'Social Table'!$A$13:$A$18,1),7)) -> 0 | AA52: =IF($B$87=0,0,Z52+INDEX('Social Table'!$A$13:$J$18,MATCH('Rev Model'!Z52,'Social Table'!$A$13:$A$18,1),7)) -> 0 | AB52: =IF($B$87=0,0,AA52+INDEX('Social Table'!$A$13:$J$18,MATCH('Rev Model'!AA52,'Social Table'!$A$13:$A$18,1),7)) -> 0 | AC52: =IF($B$87=0,0,AB52+INDEX('Social Table'!$A$13:$J$18,MATCH('Rev Model'!AB52,'Social Table'!$A$13:$A$18,1),7)) -> 0 | AD52: =IF($B$87=0,0,AC52+INDEX('Social Table'!$A$13:$J$18,MATCH('Rev Model'!AC52,'Social Table'!$A$13:$A$18,1),7)) -> 0 | AE52: =IF($B$87=0,0,AD52+INDEX('Social Table'!$A$13:$J$18,MATCH('Rev Model'!AD52,'Social Table'!$A$13:$A$18,1),7)) -> 0 | AF52: =IF($B$87=0,0,AE52+INDEX('Social Table'!$A$13:$J$18,MATCH('Rev Model'!AE52,'Social Table'!$A$13:$A$18,1),7)) -> 0 | AG52: =IF($B$87=0,0,AF52+INDEX('Social Table'!$A$13:$J$18,MATCH('Rev Model'!AF52,'Social Table'!$A$13:$A$18,1),7)) -> 0 | AH52: =IF($B$87=0,0,AG52+INDEX('Social Table'!$A$13:$J$18,MATCH('Rev Model'!AG52,'Social Table'!$A$13:$A$18,1),7)) -> 0 | AI52: =IF($B$87=0,0,AH52+INDEX('Social Table'!$A$13:$J$18,MATCH('Rev Model'!AH52,'Social Table'!$A$13:$A$18,1),7)) -> 0 | AJ52: =IF($B$87=0,0,AI52+INDEX('Social Table'!$A$13:$J$18,MATCH('Rev Model'!AI52,'Social Table'!$A$13:$A$18,1),7)) -> 0 | AK52: =IF($B$87=0,0,AJ52+INDEX('Social Table'!$A$13:$J$18,MATCH('Rev Model'!AJ52,'Social Table'!$A$13:$A$18,1),7)) -> 0 | AL52: =IF($B$87=0,0,AK52+INDEX('Social Table'!$A$13:$J$18,MATCH('Rev Model'!AK52,'Social Table'!$A$13:$A$18,1),7)) -> 0 | AM52: =IF($B$87=0,0,AL52+INDEX('Social Table'!$A$13:$J$18,MATCH('Rev Model'!AL52,'Social Table'!$A$13:$A$18,1),7)) -> 0 | AN52: =IF($B$87=0,0,AM52+INDEX('Social Table'!$A$13:$J$18,MATCH('Rev Model'!AM52,'Social Table'!$A$13:$A$18,1),7)) -> 0 | AO52: =IF($B$87=0,0,AN52+INDEX('Social Table'!$A$13:$J$18,MATCH('Rev Model'!AN52,'Social Table'!$A$13:$A$18,1),7)) -> 0 | AP52: =IF($B$87=0,0,AO52+INDEX('Social Table'!$A$13:$J$18,MATCH('Rev Model'!AO52,'Social Table'!$A$13:$A$18,1),7)) -> 0 | AQ52: =IF($B$87=0,0,AP52+INDEX('Social Table'!$A$13:$J$18,MATCH('Rev Model'!AP52,'Social Table'!$A$13:$A$18,1),7)) -> 0 | AR52: =IF($B$87=0,0,AQ52+INDEX('Social Table'!$A$13:$J$18,MATCH('Rev Model'!AQ52,'Social Table'!$A$13:$A$18,1),7)) -> 0 | AS52: =IF($B$87=0,0,AR52+INDEX('Social Table'!$A$13:$J$18,MATCH('Rev Model'!AR52,'Social Table'!$A$13:$A$18,1),7)) -> 0 | AT52: =IF($B$87=0,0,AS52+INDEX('Social Table'!$A$13:$J$18,MATCH('Rev Model'!AS52,'Social Table'!$A$13:$A$18,1),7)) -> 0 | AU52: =IF($B$87=0,0,AT52+INDEX('Social Table'!$A$13:$J$18,MATCH('Rev Model'!AT52,'Social Table'!$A$13:$A$18,1),7)) -> 0 | AV52: =IF($B$87=0,0,AU52+INDEX('Social Table'!$A$13:$J$18,MATCH('Rev Model'!AU52,'Social Table'!$A$13:$A$18,1),7)) -> 0 | AW52: =IF($B$87=0,0,AV52+INDEX('Social Table'!$A$13:$J$18,MATCH('Rev Model'!AV52,'Social Table'!$A$13:$A$18,1),7)) -> 0 | AX52: =SUMPRODUCT(B52:AW52,B60:AW60) -> 0
A53: Email Contacts | B53: ='Web Pages_Input'!B27 -> 0 | C53: =IF($B$87=0,0,B53+INDEX('Social Table'!$A$13:$J$18,MATCH('Rev Model'!B53,'Social Table'!$A$13:$A$18,1),9)) -> 0 | D53: =IF($B$87=0,0,C53+INDEX('Social Table'!$A$13:$J$18,MATCH('Rev Model'!C53,'Social Table'!$A$13:$A$18,1),9)) -> 0 | E53: =IF($B$87=0,0,D53+INDEX('Social Table'!$A$13:$J$18,MATCH('Rev Model'!D53,'Social Table'!$A$13:$A$18,1),9)) -> 0 | F53: =IF($B$87=0,0,E53+INDEX('Social Table'!$A$13:$J$18,MATCH('Rev Model'!E53,'Social Table'!$A$13:$A$18,1),9)) -> 0 | G53: =IF($B$87=0,0,F53+INDEX('Social Table'!$A$13:$J$18,MATCH('Rev Model'!F53,'Social Table'!$A$13:$A$18,1),9)) -> 0 | H53: =IF($B$87=0,0,G53+INDEX('Social Table'!$A$13:$J$18,MATCH('Rev Model'!G53,'Social Table'!$A$13:$A$18,1),9)) -> 0 | I53: =IF($B$87=0,0,H53+INDEX('Social Table'!$A$13:$J$18,MATCH('Rev Model'!H53,'Social Table'!$A$13:$A$18,1),9)) -> 0 | J53: =IF($B$87=0,0,I53+INDEX('Social Table'!$A$13:$J$18,MATCH('Rev Model'!I53,'Social Table'!$A$13:$A$18,1),9)) -> 0 | K53: =IF($B$87=0,0,J53+INDEX('Social Table'!$A$13:$J$18,MATCH('Rev Model'!J53,'Social Table'!$A$13:$A$18,1),9)) -> 0 | L53: =IF($B$87=0,0,K53+INDEX('Social Table'!$A$13:$J$18,MATCH('Rev Model'!K53,'Social Table'!$A$13:$A$18,1),9)) -> 0 | M53: =IF($B$87=0,0,L53+INDEX('Social Table'!$A$13:$J$18,MATCH('Rev Model'!L53,'Social Table'!$A$13:$A$18,1),9)) -> 0 | N53: =IF($B$87=0,0,M53+INDEX('Social Table'!$A$13:$J$18,MATCH('Rev Model'!M53,'Social Table'!$A$13:$A$18,1),9)) -> 0 | O53: =IF($B$87=0,0,N53+INDEX('Social Table'!$A$13:$J$18,MATCH('Rev Model'!N53,'Social Table'!$A$13:$A$18,1),9)) -> 0 | P53: =IF($B$87=0,0,O53+INDEX('Social Table'!$A$13:$J$18,MATCH('Rev Model'!O53,'Social Table'!$A$13:$A$18,1),9)) -> 0 | Q53: =IF($B$87=0,0,P53+INDEX('Social Table'!$A$13:$J$18,MATCH('Rev Model'!P53,'Social Table'!$A$13:$A$18,1),9)) -> 0 | R53: =IF($B$87=0,0,Q53+INDEX('Social Table'!$A$13:$J$18,MATCH('Rev Model'!Q53,'Social Table'!$A$13:$A$18,1),9)) -> 0 | S53: =IF($B$87=0,0,R53+INDEX('Social Table'!$A$13:$J$18,MATCH('Rev Model'!R53,'Social Table'!$A$13:$A$18,1),9)) -> 0 | T53: =IF($B$87=0,0,S53+INDEX('Social Table'!$A$13:$J$18,MATCH('Rev Model'!S53,'Social Table'!$A$13:$A$18,1),9)) -> 0 | U53: =IF($B$87=0,0,T53+INDEX('Social Table'!$A$13:$J$18,MATCH('Rev Model'!T53,'Social Table'!$A$13:$A$18,1),9)) -> 0 | V53: =IF($B$87=0,0,U53+INDEX('Social Table'!$A$13:$J$18,MATCH('Rev Model'!U53,'Social Table'!$A$13:$A$18,1),9)) -> 0 | W53: =IF($B$87=0,0,V53+INDEX('Social Table'!$A$13:$J$18,MATCH('Rev Model'!V53,'Social Table'!$A$13:$A$18,1),9)) -> 0 | X53: =IF($B$87=0,0,W53+INDEX('Social Table'!$A$13:$J$18,MATCH('Rev Model'!W53,'Social Table'!$A$13:$A$18,1),9)) -> 0 | Y53: =IF($B$87=0,0,X53+INDEX('Social Table'!$A$13:$J$18,MATCH('Rev Model'!X53,'Social Table'!$A$13:$A$18,1),9)) -> 0 | Z53: =IF($B$87=0,0,Y53+INDEX('Social Table'!$A$13:$J$18,MATCH('Rev Model'!Y53,'Social Table'!$A$13:$A$18,1),9)) -> 0 | AA53: =IF($B$87=0,0,Z53+INDEX('Social Table'!$A$13:$J$18,MATCH('Rev Model'!Z53,'Social Table'!$A$13:$A$18,1),9)) -> 0 | AB53: =IF($B$87=0,0,AA53+INDEX('Social Table'!$A$13:$J$18,MATCH('Rev Model'!AA53,'Social Table'!$A$13:$A$18,1),9)) -> 0 | AC53: =IF($B$87=0,0,AB53+INDEX('Social Table'!$A$13:$J$18,MATCH('Rev Model'!AB53,'Social Table'!$A$13:$A$18,1),9)) -> 0 | AD53: =IF($B$87=0,0,AC53+INDEX('Social Table'!$A$13:$J$18,MATCH('Rev Model'!AC53,'Social Table'!$A$13:$A$18,1),9)) -> 0 | AE53: =IF($B$87=0,0,AD53+INDEX('Social Table'!$A$13:$J$18,MATCH('Rev Model'!AD53,'Social Table'!$A$13:$A$18,1),9)) -> 0 | AF53: =IF($B$87=0,0,AE53+INDEX('Social Table'!$A$13:$J$18,MATCH('Rev Model'!AE53,'Social Table'!$A$13:$A$18,1),9)) -> 0 | AG53: =IF($B$87=0,0,AF53+INDEX('Social Table'!$A$13:$J$18,MATCH('Rev Model'!AF53,'Social Table'!$A$13:$A$18,1),9)) -> 0 | AH53: =IF($B$87=0,0,AG53+INDEX('Social Table'!$A$13:$J$18,MATCH('Rev Model'!AG53,'Social Table'!$A$13:$A$18,1),9)) -> 0 | AI53: =IF($B$87=0,0,AH53+INDEX('Social Table'!$A$13:$J$18,MATCH('Rev Model'!AH53,'Social Table'!$A$13:$A$18,1),9)) -> 0 | AJ53: =IF($B$87=0,0,AI53+INDEX('Social Table'!$A$13:$J$18,MATCH('Rev Model'!AI53,'Social Table'!$A$13:$A$18,1),9)) -> 0 | AK53: =IF($B$87=0,0,AJ53+INDEX('Social Table'!$A$13:$J$18,MATCH('Rev Model'!AJ53,'Social Table'!$A$13:$A$18,1),9)) -> 0 | AL53: =IF($B$87=0,0,AK53+INDEX('Social Table'!$A$13:$J$18,MATCH('Rev Model'!AK53,'Social Table'!$A$13:$A$18,1),9)) -> 0 | AM53: =IF($B$87=0,0,AL53+INDEX('Social Table'!$A$13:$J$18,MATCH('Rev Model'!AL53,'Social Table'!$A$13:$A$18,1),9)) -> 0 | AN53: =IF($B$87=0,0,AM53+INDEX('Social Table'!$A$13:$J$18,MATCH('Rev Model'!AM53,'Social Table'!$A$13:$A$18,1),9)) -> 0 | AO53: =IF($B$87=0,0,AN53+INDEX('Social Table'!$A$13:$J$18,MATCH('Rev Model'!AN53,'Social Table'!$A$13:$A$18,1),9)) -> 0 | AP53: =IF($B$87=0,0,AO53+INDEX('Social Table'!$A$13:$J$18,MATCH('Rev Model'!AO53,'Social Table'!$A$13:$A$18,1),9)) -> 0 | AQ53: =IF($B$87=0,0,AP53+INDEX('Social Table'!$A$13:$J$18,MATCH('Rev Model'!AP53,'Social Table'!$A$13:$A$18,1),9)) -> 0 | AR53: =IF($B$87=0,0,AQ53+INDEX('Social Table'!$A$13:$J$18,MATCH('Rev Model'!AQ53,'Social Table'!$A$13:$A$18,1),9)) -> 0 | AS53: =IF($B$87=0,0,AR53+INDEX('Social Table'!$A$13:$J$18,MATCH('Rev Model'!AR53,'Social Table'!$A$13:$A$18,1),9)) -> 0 | AT53: =IF($B$87=0,0,AS53+INDEX('Social Table'!$A$13:$J$18,MATCH('Rev Model'!AS53,'Social Table'!$A$13:$A$18,1),9)) -> 0 | AU53: =IF($B$87=0,0,AT53+INDEX('Social Table'!$A$13:$J$18,MATCH('Rev Model'!AT53,'Social Table'!$A$13:$A$18,1),9)) -> 0 | AV53: =IF($B$87=0,0,AU53+INDEX('Social Table'!$A$13:$J$18,MATCH('Rev Model'!AU53,'Social Table'!$A$13:$A$18,1),9)) -> 0 | AW53: =IF($B$87=0,0,AV53+INDEX('Social Table'!$A$13:$J$18,MATCH('Rev Model'!AV53,'Social Table'!$A$13:$A$18,1),9)) -> 0
A54: Email Audience (total emails sent/mth 2 per week) | B54: =B53*8 -> 0 | C54: =C53*8 -> 0 | D54: 0 | E54: 0 | F54: 0 | G54: 0 | H54: 0 | I54: 0 | J54: 0 | K54: 0 | L54: 0 | M54: 0 | N54: 0 | O54: 0 | P54: 0 | Q54: 0 | R54: 0 | S54: 0 | T54: 0 | U54: 0 | V54: 0 | W54: 0 | X54: 0 | Y54: 0 | Z54: =Z53*8 -> 0 | AA54: 0 | AB54: 0 | AC54: 0 | AD54: 0 | AE54: 0 | AF54: 0 | AG54: 0 | AH54: 0 | AI54: 0 | AJ54: 0 | AK54: 0 | AL54: 0 | AM54: 0 | AN54: 0 | AO54: 0 | AP54: 0 | AQ54: 0 | AR54: 0 | AS54: 0 | AT54: 0 | AU54: 0 | AV54: 0 | AW54: 0
A57: Email Open Rate | B57: =B98*4 -> 0 | C57: =C98*4 -> 0.01 | D57: 0.02 | E57: 0.03 | F57: 0.04 | G57: 0.05 | H57: 0.06 | I57: 0.07 | J57: 0.08 | K57: 0.09 | L57: 0.1 | M57: 0.11 | N57: 0.12 | O57: 0.13 | P57: 0.14 | Q57: 0.15 | R57: 0.16 | S57: 0.17 | T57: 0.18 | U57: 0.19 | V57: 0.2 | W57: 0.2 | X57: 0.2 | Y57: 0.2 | Z57: =Z98*4 -> 0.2 | AA57: 0.2 | AB57: 0.2 | AC57: 0.2 | AD57: 0.2 | AE57: 0.2 | AF57: 0.2 | AG57: 0.2 | AH57: 0.2 | AI57: 0.2 | AJ57: 0.2 | AK57: 0.2 | AL57: 0.2 | AM57: 0.2 | AN57: 0.2 | AO57: 0.2 | AP57: 0.2 | AQ57: 0.2 | AR57: 0.2 | AS57: 0.2 | AT57: 0.2 | AU57: 0.2 | AV57: 0.2 | AW57: 0.2
A58: Email Click Through Rate | B58: 0.25 | C58: =B58 -> 0.25 | D58: =C58 -> 0.25 | E58: 0.25 | F58: 0.25 | G58: 0.25 | H58: 0.25 | I58: 0.25 | J58: 0.25 | K58: 0.25 | L58: 0.25 | M58: 0.25 | N58: 0.25 | O58: 0.25 | P58: 0.25 | Q58: 0.25 | R58: 0.25 | S58: 0.25 | T58: 0.25 | U58: 0.25 | V58: 0.25 | W58: 0.25 | X58: 0.25 | Y58: 0.25 | Z58: =Y58 -> 0.25 | AA58: 0.25 | AB58: 0.25 | AC58: 0.25 | AD58: 0.25 | AE58: 0.25 | AF58: 0.25 | AG58: 0.25 | AH58: 0.25 | AI58: 0.25 | AJ58: 0.25 | AK58: 0.25 | AL58: 0.25 | AM58: 0.25 | AN58: 0.25 | AO58: 0.25 | AP58: 0.25 | AQ58: 0.25 | AR58: 0.25 | AS58: 0.25 | AT58: 0.25 | AU58: 0.25 | AV58: 0.25 | AW58: 0.25
A60: Published Blogs (per mth) | B60: ='Web Pages_Input'!B29 -> 0 | C60: =IF(AND(AND(AND(B60=0,B82=0,B83=0,B84=0))),0,IF(B60<4,4,B60)) -> 0 | D60: =C60 -> 0 | E60: 0 | F60: 0 | G60: 0 | H60: 0 | I60: 0 | J60: 0 | K60: 0 | L60: 0 | M60: 0 | N60: 0 | O60: 0 | P60: 0 | Q60: 0 | R60: 0 | S60: 0 | T60: 0 | U60: 0 | V60: 0 | W60: 0 | X60: 0 | Y60: 0 | Z60: =Y60 -> 0 | AA60: 0 | AB60: 0 | AC60: 0 | AD60: 0 | AE60: 0 | AF60: 0 | AG60: 0 | AH60: 0 | AI60: 0 | AJ60: 0 | AK60: 0 | AL60: 0 | AM60: 0 | AN60: 0 | AO60: 0 | AP60: 0 | AQ60: 0 | AR60: 0 | AS60: 0 | AT60: 0 | AU60: 0 | AV60: 0 | AW60: 0
B61: =B2 -> Sep | C61: Oct | D61: Nov | E61: Dec | F61: Jan | G61: Feb | H61: Mar | I61: Apr | J61: May | K61: Jun | L61: Jul | M61: Aug | N61: Sep | O61: Oct | P61: Nov | Q61: Dec | R61: Jan | S61: Feb | T61: Mar | U61: Apr | V61: May | W61: Jun | X61: Jul | Y61: Aug | Z61: Sep | AA61: Oct | AB61: Nov | AC61: Dec | AD61: Jan | AE61: Feb | AF61: Mar | AG61: Apr | AH61: May | AI61: Jun | AJ61: Jul | AK61: Aug | AL61: Sep | AM61: Oct | AN61: Nov | AO61: Dec | AP61: Jan | AQ61: Feb | AR61: Mar | AS61: Apr | AT61: May | AU61: Jun | AV61: Jul | AW61: Aug
A62: Social Media Ad Spend | B62: =IF('Web Pages_Input'!B30=0,0,'Web Pages_Input'!B30) -> 0 | C62: =B62 -> 0 | D62: =C62 -> 0 | E62: 0 | F62: 0 | G62: 0 | H62: =IF(SUM('Web Pages_Input'!$B$19:$B$25)=0,'Rev Model'!G62,IF('P&L'!$D$25<6000,250,'P&L'!$D$25/12*0.5)) -> 0 | I62: 0 | J62: 0 | K62: 0 | L62: 0 | M62: 0 | N62: 0 | O62: 0 | P62: 0 | Q62: 0 | R62: 0 | S62: 0 | T62: 0 | U62: 0 | V62: 0 | W62: 0 | X62: 0 | Y62: =X62 -> 0 | Z62: =Y62 -> 0 | AA62: 0 | AB62: 0 | AC62: 0 | AD62: 0 | AE62: 0 | AF62: 0 | AG62: 0 | AH62: 0 | AI62: 0 | AJ62: 0 | AK62: 0 | AL62: 0 | AM62: 0 | AN62: 0 | AO62: 0 | AP62: 0 | AQ62: 0 | AR62: 0 | AS62: 0 | AT62: 0 | AU62: 0 | AV62: 0 | AW62: 0
A63: Design/Graphics/Photos (40%) | B63: =B62*0.4 -> 0 | C63: =C62*0.4 -> 0 | D63: 0 | E63: 0 | F63: 0 | G63: 0 | H63: 0 | I63: 0 | J63: 0 | K63: 0 | L63: 0 | M63: 0 | N63: 0 | O63: 0 | P63: 0 | Q63: 0 | R63: 0 | S63: 0 | T63: 0 | U63: 0 | V63: 0 | W63: 0 | X63: 0 | Y63: 0 | Z63: =Z62*0.4 -> 0 | AA63: 0 | AB63: 0 | AC63: 0 | AD63: 0 | AE63: 0 | AF63: 0 | AG63: 0 | AH63: 0 | AI63: 0 | AJ63: 0 | AK63: 0 | AL63: 0 | AM63: 0 | AN63: 0 | AO63: 0 | AP63: 0 | AQ63: 0 | AR63: 0 | AS63: 0 | AT63: 0 | AU63: 0 | AV63: 0 | AW63: 0
A64: Advertising / Reach (60%) | B64: =B62*0.6 -> 0 | C64: =C62*0.6 -> 0 | D64: 0 | E64: 0 | F64: 0 | G64: 0 | H64: 0 | I64: 0 | J64: 0 | K64: 0 | L64: 0 | M64: 0 | N64: 0 | O64: 0 | P64: 0 | Q64: 0 | R64: 0 | S64: 0 | T64: 0 | U64: 0 | V64: 0 | W64: 0 | X64: 0 | Y64: 0 | Z64: =Z62*0.6 -> 0 | AA64: 0 | AB64: 0 | AC64: 0 | AD64: 0 | AE64: 0 | AF64: 0 | AG64: 0 | AH64: 0 | AI64: 0 | AJ64: 0 | AK64: 0 | AL64: 0 | AM64: 0 | AN64: 0 | AO64: 0 | AP64: 0 | AQ64: 0 | AR64: 0 | AS64: 0 | AT64: 0 | AU64: 0 | AV64: 0 | AW64: 0
A65: Facebook | B65: 0.6 | C65: 0.6 | D65: 0.6 | E65: 0.6 | F65: 0.6 | G65: 0.6 | H65: 0.6 | I65: 0.6 | J65: 0.6 | K65: 0.6 | L65: 0.6 | M65: 0.6 | N65: 0.6 | O65: 0.6 | P65: 0.6 | Q65: 0.6 | R65: 0.6 | S65: 0.6 | T65: 0.6 | U65: 0.6 | V65: 0.6 | W65: 0.6 | X65: 0.6 | Y65: 0.6 | Z65: 0.6 | AA65: 0.6 | AB65: 0.6 | AC65: 0.6 | AD65: 0.6 | AE65: 0.6 | AF65: 0.6 | AG65: 0.6 | AH65: 0.6 | AI65: 0.6 | AJ65: 0.6 | AK65: 0.6 | AL65: 0.6 | AM65: 0.6 | AN65: 0.6 | AO65: 0.6 | AP65: 0.6 | AQ65: 0.6 | AR65: 0.6 | AS65: 0.6 | AT65: 0.6 | AU65: 0.6 | AV65: 0.6 | AW65: 0.6
A66: Twitter | B66: 0.4 | C66: 0.4 | D66: 0.4 | E66: 0.4 | F66: 0.4 | G66: 0.4 | H66: 0.4 | I66: 0.4 | J66: 0.4 | K66: 0.4 | L66: 0.4 | M66: 0.4 | N66: 0.4 | O66: 0.4 | P66: 0.4 | Q66: 0.4 | R66: 0.4 | S66: 0.4 | T66: 0.4 | U66: 0.4 | V66: 0.4 | W66: 0.4 | X66: 0.4 | Y66: 0.4 | Z66: 0.4 | AA66: 0.4 | AB66: 0.4 | AC66: 0.4 | AD66: 0.4 | AE66: 0.4 | AF66: 0.4 | AG66: 0.4 | AH66: 0.4 | AI66: 0.4 | AJ66: 0.4 | AK66: 0.4 | AL66: 0.4 | AM66: 0.4 | AN66: 0.4 | AO66: 0.4 | AP66: 0.4 | AQ66: 0.4 | AR66: 0.4 | AS66: 0.4 | AT66: 0.4 | AU66: 0.4 | AV66: 0.4 | AW66: 0.4
A67: Facebook Average CPM | B67: 0.59 | C67: 0.59 | D67: 0.59 | E67: 0.59 | F67: 0.59 | G67: 0.59 | H67: 0.59 | I67: 0.59 | J67: 0.59 | K67: 0.59 | L67: 0.59 | M67: 0.59 | N67: 0.59 | O67: 0.59 | P67: 0.59 | Q67: 0.59 | R67: 0.59 | S67: 0.59 | T67: 0.59 | U67: 0.59 | V67: 0.59 | W67: 0.59 | X67: 0.59 | Y67: 0.59 | Z67: 0.59 | AA67: 0.59 | AB67: 0.59 | AC67: 0.59 | AD67: 0.59 | AE67: 0.59 | AF67: 0.59 | AG67: 0.59 | AH67: 0.59 | AI67: 0.59 | AJ67: 0.59 | AK67: 0.59 | AL67: 0.59 | AM67: 0.59 | AN67: 0.59 | AO67: 0.59 | AP67: 0.59 | AQ67: 0.59 | AR67: 0.59 | AS67: 0.59 | AT67: 0.59 | AU67: 0.59 | AV67: 0.59 | AW67: 0.59
A68: Twitter Average CPM | B68: 3.5 | C68: 3.5 | D68: 3.5 | E68: 3.5 | F68: 3.5 | G68: 3.5 | H68: 3.5 | I68: 3.5 | J68: 3.5 | K68: 3.5 | L68: 3.5 | M68: 3.5 | N68: 3.5 | O68: 3.5 | P68: 3.5 | Q68: 3.5 | R68: 3.5 | S68: 3.5 | T68: 3.5 | U68: 3.5 | V68: 3.5 | W68: 3.5 | X68: 3.5 | Y68: 3.5 | Z68: 3.5 | AA68: 3.5 | AB68: 3.5 | AC68: 3.5 | AD68: 3.5 | AE68: 3.5 | AF68: 3.5 | AG68: 3.5 | AH68: 3.5 | AI68: 3.5 | AJ68: 3.5 | AK68: 3.5 | AL68: 3.5 | AM68: 3.5 | AN68: 3.5 | AO68: 3.5 | AP68: 3.5 | AQ68: 3.5 | AR68: 3.5 | AS68: 3.5 | AT68: 3.5 | AU68: 3.5 | AV68: 3.5 | AW68: 3.5
A69: Facebook Impressions | B69: =ROUND(B64*B65/B67*1000,0) -> 0 | C69: =ROUND(C64*C65/C67*1000,0) -> 0 | D69: =ROUND(D64*D65/D67*1000,0) -> 0 | E69: =ROUND(E64*E65/E67*1000,0) -> 0 | F69: =ROUND(F64*F65/F67*1000,0) -> 0 | G69: 0 | H69: 0 | I69: 0 | J69: 0 | K69: 0 | L69: 0 | M69: 0 | N69: 0 | O69: 0 | P69: 0 | Q69: 0 | R69: 0 | S69: 0 | T69: 0 | U69: 0 | V69: 0 | W69: 0 | X69: 0 | Y69: 0 | Z69: =ROUND(Z64*Z65/Z67*1000,0) -> 0 | AA69: 0 | AB69: 0 | AC69: 0 | AD69: 0 | AE69: 0 | AF69: 0 | AG69: 0 | AH69: 0 | AI69: 0 | AJ69: 0 | AK69: 0 | AL69: 0 | AM69: 0 | AN69: 0 | AO69: 0 | AP69: 0 | AQ69: 0 | AR69: 0 | AS69: 0 | AT69: 0 | AU69: 0 | AV69: 0 | AW69: 0
A70: Twitter Impressions | B70: =ROUND(B64*B66/B68*1000,0) -> 0 | C70: =ROUND(C64*C66/C68*1000,0) -> 0 | D70: =ROUND(D64*D66/D68*1000,0) -> 0 | E70: =ROUND(E64*E66/E68*1000,0) -> 0 | F70: =ROUND(F64*F66/F68*1000,0) -> 0 | G70: 0 | H70: 0 | I70: 0 | J70: 0 | K70: 0 | L70: 0 | M70: 0 | N70: 0 | O70: 0 | P70: 0 | Q70: 0 | R70: 0 | S70: 0 | T70: 0 | U70: 0 | V70: 0 | W70: 0 | X70: 0 | Y70: 0 | Z70: =ROUND(Z64*Z66/Z68*1000,0) -> 0 | AA70: 0 | AB70: 0 | AC70: 0 | AD70: 0 | AE70: 0 | AF70: 0 | AG70: 0 | AH70: 0 | AI70: 0 | AJ70: 0 | AK70: 0 | AL70: 0 | AM70: 0 | AN70: 0 | AO70: 0 | AP70: 0 | AQ70: 0 | AR70: 0 | AS70: 0 | AT70: 0 | AU70: 0 | AV70: 0 | AW70: 0
A71: Facebook Click thro | B71: 0.00119 | C71: 0.00119 | D71: 0.00119 | E71: 0.00119 | F71: 0.00119 | G71: 0.00119 | H71: 0.00119 | I71: 0.00119 | J71: 0.00119 | K71: 0.00119 | L71: 0.00119 | M71: 0.00119 | N71: 0.00119 | O71: 0.00119 | P71: 0.00119 | Q71: 0.00119 | R71: 0.00119 | S71: 0.00119 | T71: 0.00119 | U71: 0.00119 | V71: 0.00119 | W71: 0.00119 | X71: 0.00119 | Y71: 0.00119 | Z71: 0.00119 | AA71: 0.00119 | AB71: 0.00119 | AC71: 0.00119 | AD71: 0.00119 | AE71: 0.00119 | AF71: 0.00119 | AG71: 0.00119 | AH71: 0.00119 | AI71: 0.00119 | AJ71: 0.00119 | AK71: 0.00119 | AL71: 0.00119 | AM71: 0.00119 | AN71: 0.00119 | AO71: 0.00119 | AP71: 0.00119 | AQ71: 0.00119 | AR71: 0.00119 | AS71: 0.00119 | AT71: 0.00119 | AU71: 0.00119 | AV71: 0.00119 | AW71: 0.00119
A72: Twitter Click thro | B72: 0.02 | C72: 0.02 | D72: 0.02 | E72: 0.02 | F72: 0.02 | G72: 0.02 | H72: 0.02 | I72: 0.02 | J72: 0.02 | K72: 0.02 | L72: 0.02 | M72: 0.02 | N72: 0.02 | O72: 0.02 | P72: 0.02 | Q72: 0.02 | R72: 0.02 | S72: 0.02 | T72: 0.02 | U72: 0.02 | V72: 0.02 | W72: 0.02 | X72: 0.02 | Y72: 0.02 | Z72: 0.02 | AA72: 0.02 | AB72: 0.02 | AC72: 0.02 | AD72: 0.02 | AE72: 0.02 | AF72: 0.02 | AG72: 0.02 | AH72: 0.02 | AI72: 0.02 | AJ72: 0.02 | AK72: 0.02 | AL72: 0.02 | AM72: 0.02 | AN72: 0.02 | AO72: 0.02 | AP72: 0.02 | AQ72: 0.02 | AR72: 0.02 | AS72: 0.02 | AT72: 0.02 | AU72: 0.02 | AV72: 0.02 | AW72: 0.02
A73: Facebook Site Visits | B73: =ROUND(B69*B71,0) -> 0 | C73: 0 | D73: 0 | E73: 0 | F73: =ROUND(F69*F71,0) -> 0 | G73: 0 | H73: 0 | I73: 0 | J73: 0 | K73: 0 | L73: 0 | M73: 0 | N73: 0 | O73: 0 | P73: 0 | Q73: 0 | R73: 0 | S73: 0 | T73: 0 | U73: 0 | V73: 0 | W73: 0 | X73: 0 | Y73: 0 | Z73: =ROUND(Z69*Z71,0) -> 0 | AA73: 0 | AB73: 0 | AC73: 0 | AD73: 0 | AE73: 0 | AF73: 0 | AG73: 0 | AH73: 0 | AI73: 0 | AJ73: 0 | AK73: 0 | AL73: 0 | AM73: 0 | AN73: 0 | AO73: 0 | AP73: 0 | AQ73: 0 | AR73: 0 | AS73: 0 | AT73: 0 | AU73: 0 | AV73: 0 | AW73: 0
A74: Twitter Site Visits | B74: 0 | C74: 0 | D74: 0 | E74: 0 | F74: =ROUND(F70*F72,0) -> 0 | G74: 0 | H74: 0 | I74: 0 | J74: 0 | K74: 0 | L74: 0 | M74: 0 | N74: 0 | O74: 0 | P74: 0 | Q74: 0 | R74: 0 | S74: 0 | T74: 0 | U74: 0 | V74: 0 | W74: 0 | X74: 0 | Y74: 0 | Z74: =ROUND(Z70*Z72,0) -> 0 | AA74: 0 | AB74: 0 | AC74: 0 | AD74: 0 | AE74: 0 | AF74: 0 | AG74: 0 | AH74: 0 | AI74: 0 | AJ74: 0 | AK74: 0 | AL74: 0 | AM74: 0 | AN74: 0 | AO74: 0 | AP74: 0 | AQ74: 0 | AR74: 0 | AS74: 0 | AT74: 0 | AU74: 0 | AV74: 0 | AW74: 0
A76: Average Current Transaction Value
A77: Average Ecommerce Transaction
A78: % of Total Visitors transacting on-line
A79: % of Visitors Shopping Vs. Educational Visits
A81: Social Media Traffic Impact | B81: =B2 -> Sep | C81: Oct | D81: Nov | E81: Dec | F81: Jan | G81: Feb | H81: Mar | I81: Apr | J81: May | K81: Jun | L81: Jul | M81: Aug | N81: Sep | O81: Oct | P81: Nov | Q81: Dec | R81: Jan | S81: Feb | T81: Mar | U81: Apr | V81: May | W81: Jun | X81: Jul | Y81: Aug | Z81: Sep | AA81: Oct | AB81: Nov | AC81: Dec | AD81: Jan | AE81: Feb | AF81: Mar | AG81: Apr | AH81: May | AI81: Jun | AJ81: Jul | AK81: Aug | AL81: Sep | AM81: Oct | AN81: Nov | AO81: Dec | AP81: Jan | AQ81: Feb | AR81: Mar | AS81: Apr | AT81: May | AU81: Jun | AV81: Jul | AW81: Aug
A82: Facebook Follows | B82: ='Web Pages_Input'!B19 -> 0 | C82: =IF($B$87=0,0,B82+INDEX('Social Table'!$A$13:$J$18,MATCH('Rev Model'!B82,'Social Table'!$A$13:$A$18,1),3)) -> 0 | D82: =IF($B$87=0,0,C82+INDEX('Social Table'!$A$13:$J$18,MATCH('Rev Model'!C82,'Social Table'!$A$13:$A$18,1),3)) -> 0 | E82: =IF($B$87=0,0,D82+INDEX('Social Table'!$A$13:$J$18,MATCH('Rev Model'!D82,'Social Table'!$A$13:$A$18,1),3)) -> 0 | F82: =IF($B$87=0,0,E82+INDEX('Social Table'!$A$13:$J$18,MATCH('Rev Model'!E82,'Social Table'!$A$13:$A$18,1),3)) -> 0 | G82: =IF($B$87=0,0,F82+INDEX('Social Table'!$A$13:$J$18,MATCH('Rev Model'!F82,'Social Table'!$A$13:$A$18,1),3)) -> 0 | H82: =IF($B$87=0,0,G82+INDEX('Social Table'!$A$13:$J$18,MATCH('Rev Model'!G82,'Social Table'!$A$13:$A$18,1),3)) -> 0 | I82: =IF($B$87=0,0,H82+INDEX('Social Table'!$A$13:$J$18,MATCH('Rev Model'!H82,'Social Table'!$A$13:$A$18,1),3)) -> 0 | J82: =IF($B$87=0,0,I82+INDEX('Social Table'!$A$13:$J$18,MATCH('Rev Model'!I82,'Social Table'!$A$13:$A$18,1),3)) -> 0 | K82: =IF($B$87=0,0,J82+INDEX('Social Table'!$A$13:$J$18,MATCH('Rev Model'!J82,'Social Table'!$A$13:$A$18,1),3)) -> 0 | L82: =IF($B$87=0,0,K82+INDEX('Social Table'!$A$13:$J$18,MATCH('Rev Model'!K82,'Social Table'!$A$13:$A$18,1),3)) -> 0 | M82: =IF($B$87=0,0,L82+INDEX('Social Table'!$A$13:$J$18,MATCH('Rev Model'!L82,'Social Table'!$A$13:$A$18,1),3)) -> 0 | N82: =IF($B$87=0,0,M82+INDEX('Social Table'!$A$13:$J$18,MATCH('Rev Model'!M82,'Social Table'!$A$13:$A$18,1),3)) -> 0 | O82: =IF($B$87=0,0,N82+INDEX('Social Table'!$A$13:$J$18,MATCH('Rev Model'!N82,'Social Table'!$A$13:$A$18,1),3)) -> 0 | P82: =IF($B$87=0,0,O82+INDEX('Social Table'!$A$13:$J$18,MATCH('Rev Model'!O82,'Social Table'!$A$13:$A$18,1),3)) -> 0 | Q82: =IF($B$87=0,0,P82+INDEX('Social Table'!$A$13:$J$18,MATCH('Rev Model'!P82,'Social Table'!$A$13:$A$18,1),3)) -> 0 | R82: =IF($B$87=0,0,Q82+INDEX('Social Table'!$A$13:$J$18,MATCH('Rev Model'!Q82,'Social Table'!$A$13:$A$18,1),3)) -> 0 | S82: =IF($B$87=0,0,R82+INDEX('Social Table'!$A$13:$J$18,MATCH('Rev Model'!R82,'Social Table'!$A$13:$A$18,1),3)) -> 0 | T82: =IF($B$87=0,0,S82+INDEX('Social Table'!$A$13:$J$18,MATCH('Rev Model'!S82,'Social Table'!$A$13:$A$18,1),3)) -> 0 | U82: =IF($B$87=0,0,T82+INDEX('Social Table'!$A$13:$J$18,MATCH('Rev Model'!T82,'Social Table'!$A$13:$A$18,1),3)) -> 0 | V82: =IF($B$87=0,0,U82+INDEX('Social Table'!$A$13:$J$18,MATCH('Rev Model'!U82,'Social Table'!$A$13:$A$18,1),3)) -> 0 | W82: =IF($B$87=0,0,V82+INDEX('Social Table'!$A$13:$J$18,MATCH('Rev Model'!V82,'Social Table'!$A$13:$A$18,1),3)) -> 0 | X82: =IF($B$87=0,0,W82+INDEX('Social Table'!$A$13:$J$18,MATCH('Rev Model'!W82,'Social Table'!$A$13:$A$18,1),3)) -> 0 | Y82: =IF($B$87=0,0,X82+INDEX('Social Table'!$A$13:$J$18,MATCH('Rev Model'!X82,'Social Table'!$A$13:$A$18,1),3)) -> 0 | Z82: =IF($B$87=0,0,Y82+INDEX('Social Table'!$A$13:$J$18,MATCH('Rev Model'!Y82,'Social Table'!$A$13:$A$18,1),3)) -> 0 | AA82: =IF($B$87=0,0,Z82+INDEX('Social Table'!$A$13:$J$18,MATCH('Rev Model'!Z82,'Social Table'!$A$13:$A$18,1),3)) -> 0 | AB82: =IF($B$87=0,0,AA82+INDEX('Social Table'!$A$13:$J$18,MATCH('Rev Model'!AA82,'Social Table'!$A$13:$A$18,1),3)) -> 0 | AC82: =IF($B$87=0,0,AB82+INDEX('Social Table'!$A$13:$J$18,MATCH('Rev Model'!AB82,'Social Table'!$A$13:$A$18,1),3)) -> 0 | AD82: =IF($B$87=0,0,AC82+INDEX('Social Table'!$A$13:$J$18,MATCH('Rev Model'!AC82,'Social Table'!$A$13:$A$18,1),3)) -> 0 | AE82: =IF($B$87=0,0,AD82+INDEX('Social Table'!$A$13:$J$18,MATCH('Rev Model'!AD82,'Social Table'!$A$13:$A$18,1),3)) -> 0 | AF82: =IF($B$87=0,0,AE82+INDEX('Social Table'!$A$13:$J$18,MATCH('Rev Model'!AE82,'Social Table'!$A$13:$A$18,1),3)) -> 0 | AG82: =IF($B$87=0,0,AF82+INDEX('Social Table'!$A$13:$J$18,MATCH('Rev Model'!AF82,'Social Table'!$A$13:$A$18,1),3)) -> 0 | AH82: =IF($B$87=0,0,AG82+INDEX('Social Table'!$A$13:$J$18,MATCH('Rev Model'!AG82,'Social Table'!$A$13:$A$18,1),3)) -> 0 | AI82: =IF($B$87=0,0,AH82+INDEX('Social Table'!$A$13:$J$18,MATCH('Rev Model'!AH82,'Social Table'!$A$13:$A$18,1),3)) -> 0 | AJ82: =IF($B$87=0,0,AI82+INDEX('Social Table'!$A$13:$J$18,MATCH('Rev Model'!AI82,'Social Table'!$A$13:$A$18,1),3)) -> 0 | AK82: =IF($B$87=0,0,AJ82+INDEX('Social Table'!$A$13:$J$18,MATCH('Rev Model'!AJ82,'Social Table'!$A$13:$A$18,1),3)) -> 0 | AL82: =IF($B$87=0,0,AK82+INDEX('Social Table'!$A$13:$J$18,MATCH('Rev Model'!AK82,'Social Table'!$A$13:$A$18,1),3)) -> 0 | AM82: =IF($B$87=0,0,AL82+INDEX('Social Table'!$A$13:$J$18,MATCH('Rev Model'!AL82,'Social Table'!$A$13:$A$18,1),3)) -> 0 | AN82: =IF($B$87=0,0,AM82+INDEX('Social Table'!$A$13:$J$18,MATCH('Rev Model'!AM82,'Social Table'!$A$13:$A$18,1),3)) -> 0 | AO82: =IF($B$87=0,0,AN82+INDEX('Social Table'!$A$13:$J$18,MATCH('Rev Model'!AN82,'Social Table'!$A$13:$A$18,1),3)) -> 0 | AP82: =IF($B$87=0,0,AO82+INDEX('Social Table'!$A$13:$J$18,MATCH('Rev Model'!AO82,'Social Table'!$A$13:$A$18,1),3)) -> 0 | AQ82: =IF($B$87=0,0,AP82+INDEX('Social Table'!$A$13:$J$18,MATCH('Rev Model'!AP82,'Social Table'!$A$13:$A$18,1),3)) -> 0 | AR82: =IF($B$87=0,0,AQ82+INDEX('Social Table'!$A$13:$J$18,MATCH('Rev Model'!AQ82,'Social Table'!$A$13:$A$18,1),3)) -> 0 | AS82: =IF($B$87=0,0,AR82+INDEX('Social Table'!$A$13:$J$18,MATCH('Rev Model'!AR82,'Social Table'!$A$13:$A$18,1),3)) -> 0 | AT82: =IF($B$87=0,0,AS82+INDEX('Social Table'!$A$13:$J$18,MATCH('Rev Model'!AS82,'Social Table'!$A$13:$A$18,1),3)) -> 0 | AU82: =IF($B$87=0,0,AT82+INDEX('Social Table'!$A$13:$J$18,MATCH('Rev Model'!AT82,'Social Table'!$A$13:$A$18,1),3)) -> 0 | AV82: =IF($B$87=0,0,AU82+INDEX('Social Table'!$A$13:$J$18,MATCH('Rev Model'!AU82,'Social Table'!$A$13:$A$18,1),3)) -> 0 | AW82: =IF($B$87=0,0,AV82+INDEX('Social Table'!$A$13:$J$18,MATCH('Rev Model'!AV82,'Social Table'!$A$13:$A$18,1),3)) -> 0
A83: Twitter | B83: ='Web Pages_Input'!B20 -> 0 | C83: =IF($B$87=0,0,B83+INDEX('Social Table'!$A$13:$J$18,MATCH('Rev Model'!B83,'Social Table'!$A$13:$A$18,1),5)) -> 0 | D83: =IF($B$87=0,0,C83+INDEX('Social Table'!$A$13:$J$18,MATCH('Rev Model'!C83,'Social Table'!$A$13:$A$18,1),5)) -> 0 | E83: =IF($B$87=0,0,D83+INDEX('Social Table'!$A$13:$J$18,MATCH('Rev Model'!D83,'Social Table'!$A$13:$A$18,1),5)) -> 0 | F83: =IF($B$87=0,0,E83+INDEX('Social Table'!$A$13:$J$18,MATCH('Rev Model'!E83,'Social Table'!$A$13:$A$18,1),5)) -> 0 | G83: =IF($B$87=0,0,F83+INDEX('Social Table'!$A$13:$J$18,MATCH('Rev Model'!F83,'Social Table'!$A$13:$A$18,1),5)) -> 0 | H83: =IF($B$87=0,0,G83+INDEX('Social Table'!$A$13:$J$18,MATCH('Rev Model'!G83,'Social Table'!$A$13:$A$18,1),5)) -> 0 | I83: =IF($B$87=0,0,H83+INDEX('Social Table'!$A$13:$J$18,MATCH('Rev Model'!H83,'Social Table'!$A$13:$A$18,1),5)) -> 0 | J83: =IF($B$87=0,0,I83+INDEX('Social Table'!$A$13:$J$18,MATCH('Rev Model'!I83,'Social Table'!$A$13:$A$18,1),5)) -> 0 | K83: =IF($B$87=0,0,J83+INDEX('Social Table'!$A$13:$J$18,MATCH('Rev Model'!J83,'Social Table'!$A$13:$A$18,1),5)) -> 0 | L83: =IF($B$87=0,0,K83+INDEX('Social Table'!$A$13:$J$18,MATCH('Rev Model'!K83,'Social Table'!$A$13:$A$18,1),5)) -> 0 | M83: =IF($B$87=0,0,L83+INDEX('Social Table'!$A$13:$J$18,MATCH('Rev Model'!L83,'Social Table'!$A$13:$A$18,1),5)) -> 0 | N83: =IF($B$87=0,0,M83+INDEX('Social Table'!$A$13:$J$18,MATCH('Rev Model'!M83,'Social Table'!$A$13:$A$18,1),5)) -> 0 | O83: =IF($B$87=0,0,N83+INDEX('Social Table'!$A$13:$J$18,MATCH('Rev Model'!N83,'Social Table'!$A$13:$A$18,1),5)) -> 0 | P83: =IF($B$87=0,0,O83+INDEX('Social Table'!$A$13:$J$18,MATCH('Rev Model'!O83,'Social Table'!$A$13:$A$18,1),5)) -> 0 | Q83: =IF($B$87=0,0,P83+INDEX('Social Table'!$A$13:$J$18,MATCH('Rev Model'!P83,'Social Table'!$A$13:$A$18,1),5)) -> 0 | R83: =IF($B$87=0,0,Q83+INDEX('Social Table'!$A$13:$J$18,MATCH('Rev Model'!Q83,'Social Table'!$A$13:$A$18,1),5)) -> 0 | S83: =IF($B$87=0,0,R83+INDEX('Social Table'!$A$13:$J$18,MATCH('Rev Model'!R83,'Social Table'!$A$13:$A$18,1),5)) -> 0 | T83: =IF($B$87=0,0,S83+INDEX('Social Table'!$A$13:$J$18,MATCH('Rev Model'!S83,'Social Table'!$A$13:$A$18,1),5)) -> 0 | U83: =IF($B$87=0,0,T83+INDEX('Social Table'!$A$13:$J$18,MATCH('Rev Model'!T83,'Social Table'!$A$13:$A$18,1),5)) -> 0 | V83: =IF($B$87=0,0,U83+INDEX('Social Table'!$A$13:$J$18,MATCH('Rev Model'!U83,'Social Table'!$A$13:$A$18,1),5)) -> 0 | W83: =IF($B$87=0,0,V83+INDEX('Social Table'!$A$13:$J$18,MATCH('Rev Model'!V83,'Social Table'!$A$13:$A$18,1),5)) -> 0 | X83: =IF($B$87=0,0,W83+INDEX('Social Table'!$A$13:$J$18,MATCH('Rev Model'!W83,'Social Table'!$A$13:$A$18,1),5)) -> 0 | Y83: =IF($B$87=0,0,X83+INDEX('Social Table'!$A$13:$J$18,MATCH('Rev Model'!X83,'Social Table'!$A$13:$A$18,1),5)) -> 0 | Z83: =IF($B$87=0,0,Y83+INDEX('Social Table'!$A$13:$J$18,MATCH('Rev Model'!Y83,'Social Table'!$A$13:$A$18,1),5)) -> 0 | AA83: =IF($B$87=0,0,Z83+INDEX('Social Table'!$A$13:$J$18,MATCH('Rev Model'!Z83,'Social Table'!$A$13:$A$18,1),5)) -> 0 | AB83: =IF($B$87=0,0,AA83+INDEX('Social Table'!$A$13:$J$18,MATCH('Rev Model'!AA83,'Social Table'!$A$13:$A$18,1),5)) -> 0 | AC83: =IF($B$87=0,0,AB83+INDEX('Social Table'!$A$13:$J$18,MATCH('Rev Model'!AB83,'Social Table'!$A$13:$A$18,1),5)) -> 0 | AD83: =IF($B$87=0,0,AC83+INDEX('Social Table'!$A$13:$J$18,MATCH('Rev Model'!AC83,'Social Table'!$A$13:$A$18,1),5)) -> 0 | AE83: =IF($B$87=0,0,AD83+INDEX('Social Table'!$A$13:$J$18,MATCH('Rev Model'!AD83,'Social Table'!$A$13:$A$18,1),5)) -> 0 | AF83: =IF($B$87=0,0,AE83+INDEX('Social Table'!$A$13:$J$18,MATCH('Rev Model'!AE83,'Social Table'!$A$13:$A$18,1),5)) -> 0 | AG83: =IF($B$87=0,0,AF83+INDEX('Social Table'!$A$13:$J$18,MATCH('Rev Model'!AF83,'Social Table'!$A$13:$A$18,1),5)) -> 0 | AH83: =IF($B$87=0,0,AG83+INDEX('Social Table'!$A$13:$J$18,MATCH('Rev Model'!AG83,'Social Table'!$A$13:$A$18,1),5)) -> 0 | AI83: =IF($B$87=0,0,AH83+INDEX('Social Table'!$A$13:$J$18,MATCH('Rev Model'!AH83,'Social Table'!$A$13:$A$18,1),5)) -> 0 | AJ83: =IF($B$87=0,0,AI83+INDEX('Social Table'!$A$13:$J$18,MATCH('Rev Model'!AI83,'Social Table'!$A$13:$A$18,1),5)) -> 0 | AK83: =IF($B$87=0,0,AJ83+INDEX('Social Table'!$A$13:$J$18,MATCH('Rev Model'!AJ83,'Social Table'!$A$13:$A$18,1),5)) -> 0 | AL83: =IF($B$87=0,0,AK83+INDEX('Social Table'!$A$13:$J$18,MATCH('Rev Model'!AK83,'Social Table'!$A$13:$A$18,1),5)) -> 0 | AM83: =IF($B$87=0,0,AL83+INDEX('Social Table'!$A$13:$J$18,MATCH('Rev Model'!AL83,'Social Table'!$A$13:$A$18,1),5)) -> 0 | AN83: =IF($B$87=0,0,AM83+INDEX('Social Table'!$A$13:$J$18,MATCH('Rev Model'!AM83,'Social Table'!$A$13:$A$18,1),5)) -> 0 | AO83: =IF($B$87=0,0,AN83+INDEX('Social Table'!$A$13:$J$18,MATCH('Rev Model'!AN83,'Social Table'!$A$13:$A$18,1),5)) -> 0 | AP83: =IF($B$87=0,0,AO83+INDEX('Social Table'!$A$13:$J$18,MATCH('Rev Model'!AO83,'Social Table'!$A$13:$A$18,1),5)) -> 0 | AQ83: =IF($B$87=0,0,AP83+INDEX('Social Table'!$A$13:$J$18,MATCH('Rev Model'!AP83,'Social Table'!$A$13:$A$18,1),5)) -> 0 | AR83: =IF($B$87=0,0,AQ83+INDEX('Social Table'!$A$13:$J$18,MATCH('Rev Model'!AQ83,'Social Table'!$A$13:$A$18,1),5)) -> 0 | AS83: =IF($B$87=0,0,AR83+INDEX('Social Table'!$A$13:$J$18,MATCH('Rev Model'!AR83,'Social Table'!$A$13:$A$18,1),5)) -> 0 | AT83: =IF($B$87=0,0,AS83+INDEX('Social Table'!$A$13:$J$18,MATCH('Rev Model'!AS83,'Social Table'!$A$13:$A$18,1),5)) -> 0 | AU83: =IF($B$87=0,0,AT83+INDEX('Social Table'!$A$13:$J$18,MATCH('Rev Model'!AT83,'Social Table'!$A$13:$A$18,1),5)) -> 0 | AV83: =IF($B$87=0,0,AU83+INDEX('Social Table'!$A$13:$J$18,MATCH('Rev Model'!AU83,'Social Table'!$A$13:$A$18,1),5)) -> 0 | AW83: =IF($B$87=0,0,AV83+INDEX('Social Table'!$A$13:$J$18,MATCH('Rev Model'!AV83,'Social Table'!$A$13:$A$18,1),5)) -> 0
A84: LinkedIn (Company) | B84: ='Web Pages_Input'!B21 -> 0 | C84: =IF($B$87=0,0,B84+INDEX('Social Table'!$A$13:$J$18,MATCH('Rev Model'!B84,'Social Table'!$A$13:$A$18,1),10)) -> 0 | D84: =IF($B$87=0,0,C84+INDEX('Social Table'!$A$13:$J$18,MATCH('Rev Model'!C84,'Social Table'!$A$13:$A$18,1),10)) -> 0 | E84: =IF($B$87=0,0,D84+INDEX('Social Table'!$A$13:$J$18,MATCH('Rev Model'!D84,'Social Table'!$A$13:$A$18,1),10)) -> 0 | F84: =IF($B$87=0,0,E84+INDEX('Social Table'!$A$13:$J$18,MATCH('Rev Model'!E84,'Social Table'!$A$13:$A$18,1),10)) -> 0 | G84: =IF($B$87=0,0,F84+INDEX('Social Table'!$A$13:$J$18,MATCH('Rev Model'!F84,'Social Table'!$A$13:$A$18,1),10)) -> 0 | H84: =IF($B$87=0,0,G84+INDEX('Social Table'!$A$13:$J$18,MATCH('Rev Model'!G84,'Social Table'!$A$13:$A$18,1),10)) -> 0 | I84: =IF($B$87=0,0,H84+INDEX('Social Table'!$A$13:$J$18,MATCH('Rev Model'!H84,'Social Table'!$A$13:$A$18,1),10)) -> 0 | J84: =IF($B$87=0,0,I84+INDEX('Social Table'!$A$13:$J$18,MATCH('Rev Model'!I84,'Social Table'!$A$13:$A$18,1),10)) -> 0 | K84: =IF($B$87=0,0,J84+INDEX('Social Table'!$A$13:$J$18,MATCH('Rev Model'!J84,'Social Table'!$A$13:$A$18,1),10)) -> 0 | L84: =IF($B$87=0,0,K84+INDEX('Social Table'!$A$13:$J$18,MATCH('Rev Model'!K84,'Social Table'!$A$13:$A$18,1),10)) -> 0 | M84: =IF($B$87=0,0,L84+INDEX('Social Table'!$A$13:$J$18,MATCH('Rev Model'!L84,'Social Table'!$A$13:$A$18,1),10)) -> 0 | N84: =IF($B$87=0,0,M84+INDEX('Social Table'!$A$13:$J$18,MATCH('Rev Model'!M84,'Social Table'!$A$13:$A$18,1),10)) -> 0 | O84: =IF($B$87=0,0,N84+INDEX('Social Table'!$A$13:$J$18,MATCH('Rev Model'!N84,'Social Table'!$A$13:$A$18,1),10)) -> 0 | P84: =IF($B$87=0,0,O84+INDEX('Social Table'!$A$13:$J$18,MATCH('Rev Model'!O84,'Social Table'!$A$13:$A$18,1),10)) -> 0 | Q84: =IF($B$87=0,0,P84+INDEX('Social Table'!$A$13:$J$18,MATCH('Rev Model'!P84,'Social Table'!$A$13:$A$18,1),10)) -> 0 | R84: =IF($B$87=0,0,Q84+INDEX('Social Table'!$A$13:$J$18,MATCH('Rev Model'!Q84,'Social Table'!$A$13:$A$18,1),10)) -> 0 | S84: =IF($B$87=0,0,R84+INDEX('Social Table'!$A$13:$J$18,MATCH('Rev Model'!R84,'Social Table'!$A$13:$A$18,1),10)) -> 0 | T84: =IF($B$87=0,0,S84+INDEX('Social Table'!$A$13:$J$18,MATCH('Rev Model'!S84,'Social Table'!$A$13:$A$18,1),10)) -> 0 | U84: =IF($B$87=0,0,T84+INDEX('Social Table'!$A$13:$J$18,MATCH('Rev Model'!T84,'Social Table'!$A$13:$A$18,1),10)) -> 0 | V84: =IF($B$87=0,0,U84+INDEX('Social Table'!$A$13:$J$18,MATCH('Rev Model'!U84,'Social Table'!$A$13:$A$18,1),10)) -> 0 | W84: =IF($B$87=0,0,V84+INDEX('Social Table'!$A$13:$J$18,MATCH('Rev Model'!V84,'Social Table'!$A$13:$A$18,1),10)) -> 0 | X84: =IF($B$87=0,0,W84+INDEX('Social Table'!$A$13:$J$18,MATCH('Rev Model'!W84,'Social Table'!$A$13:$A$18,1),10)) -> 0 | Y84: =IF($B$87=0,0,X84+INDEX('Social Table'!$A$13:$J$18,MATCH('Rev Model'!X84,'Social Table'!$A$13:$A$18,1),10)) -> 0 | Z84: =IF($B$87=0,0,Y84+INDEX('Social Table'!$A$13:$J$18,MATCH('Rev Model'!Y84,'Social Table'!$A$13:$A$18,1),10)) -> 0 | AA84: =IF($B$87=0,0,Z84+INDEX('Social Table'!$A$13:$J$18,MATCH('Rev Model'!Z84,'Social Table'!$A$13:$A$18,1),10)) -> 0 | AB84: =IF($B$87=0,0,AA84+INDEX('Social Table'!$A$13:$J$18,MATCH('Rev Model'!AA84,'Social Table'!$A$13:$A$18,1),10)) -> 0 | AC84: =IF($B$87=0,0,AB84+INDEX('Social Table'!$A$13:$J$18,MATCH('Rev Model'!AB84,'Social Table'!$A$13:$A$18,1),10)) -> 0 | AD84: =IF($B$87=0,0,AC84+INDEX('Social Table'!$A$13:$J$18,MATCH('Rev Model'!AC84,'Social Table'!$A$13:$A$18,1),10)) -> 0 | AE84: =IF($B$87=0,0,AD84+INDEX('Social Table'!$A$13:$J$18,MATCH('Rev Model'!AD84,'Social Table'!$A$13:$A$18,1),10)) -> 0 | AF84: =IF($B$87=0,0,AE84+INDEX('Social Table'!$A$13:$J$18,MATCH('Rev Model'!AE84,'Social Table'!$A$13:$A$18,1),10)) -> 0 | AG84: =IF($B$87=0,0,AF84+INDEX('Social Table'!$A$13:$J$18,MATCH('Rev Model'!AF84,'Social Table'!$A$13:$A$18,1),10)) -> 0 | AH84: =IF($B$87=0,0,AG84+INDEX('Social Table'!$A$13:$J$18,MATCH('Rev Model'!AG84,'Social Table'!$A$13:$A$18,1),10)) -> 0 | AI84: =IF($B$87=0,0,AH84+INDEX('Social Table'!$A$13:$J$18,MATCH('Rev Model'!AH84,'Social Table'!$A$13:$A$18,1),10)) -> 0 | AJ84: =IF($B$87=0,0,AI84+INDEX('Social Table'!$A$13:$J$18,MATCH('Rev Model'!AI84,'Social Table'!$A$13:$A$18,1),10)) -> 0 | AK84: =IF($B$87=0,0,AJ84+INDEX('Social Table'!$A$13:$J$18,MATCH('Rev Model'!AJ84,'Social Table'!$A$13:$A$18,1),10)) -> 0 | AL84: =IF($B$87=0,0,AK84+INDEX('Social Table'!$A$13:$J$18,MATCH('Rev Model'!AK84,'Social Table'!$A$13:$A$18,1),10)) -> 0 | AM84: =IF($B$87=0,0,AL84+INDEX('Social Table'!$A$13:$J$18,MATCH('Rev Model'!AL84,'Social Table'!$A$13:$A$18,1),10)) -> 0 | AN84: =IF($B$87=0,0,AM84+INDEX('Social Table'!$A$13:$J$18,MATCH('Rev Model'!AM84,'Social Table'!$A$13:$A$18,1),10)) -> 0 | AO84: =IF($B$87=0,0,AN84+INDEX('Social Table'!$A$13:$J$18,MATCH('Rev Model'!AN84,'Social Table'!$A$13:$A$18,1),10)) -> 0 | AP84: =IF($B$87=0,0,AO84+INDEX('Social Table'!$A$13:$J$18,MATCH('Rev Model'!AO84,'Social Table'!$A$13:$A$18,1),10)) -> 0 | AQ84: =IF($B$87=0,0,AP84+INDEX('Social Table'!$A$13:$J$18,MATCH('Rev Model'!AP84,'Social Table'!$A$13:$A$18,1),10)) -> 0 | AR84: =IF($B$87=0,0,AQ84+INDEX('Social Table'!$A$13:$J$18,MATCH('Rev Model'!AQ84,'Social Table'!$A$13:$A$18,1),10)) -> 0 | AS84: =IF($B$87=0,0,AR84+INDEX('Social Table'!$A$13:$J$18,MATCH('Rev Model'!AR84,'Social Table'!$A$13:$A$18,1),10)) -> 0 | AT84: =IF($B$87=0,0,AS84+INDEX('Social Table'!$A$13:$J$18,MATCH('Rev Model'!AS84,'Social Table'!$A$13:$A$18,1),10)) -> 0 | AU84: =IF($B$87=0,0,AT84+INDEX('Social Table'!$A$13:$J$18,MATCH('Rev Model'!AT84,'Social Table'!$A$13:$A$18,1),10)) -> 0 | AV84: =IF($B$87=0,0,AU84+INDEX('Social Table'!$A$13:$J$18,MATCH('Rev Model'!AU84,'Social Table'!$A$13:$A$18,1),10)) -> 0 | AW84: =IF($B$87=0,0,AV84+INDEX('Social Table'!$A$13:$J$18,MATCH('Rev Model'!AV84,'Social Table'!$A$13:$A$18,1),10)) -> 0
A85: Google+ | B85: ='Web Pages_Input'!B22 -> 0 | C85: =IF($B$87=0,0,B85+INDEX('Social Table'!$A$13:$J$18,MATCH('Rev Model'!B85,'Social Table'!$A$13:$A$18,1),6)) -> 0 | D85: =IF($B$87=0,0,C85+INDEX('Social Table'!$A$13:$J$18,MATCH('Rev Model'!C85,'Social Table'!$A$13:$A$18,1),6)) -> 0 | E85: =IF($B$87=0,0,D85+INDEX('Social Table'!$A$13:$J$18,MATCH('Rev Model'!D85,'Social Table'!$A$13:$A$18,1),6)) -> 0 | F85: =IF($B$87=0,0,E85+INDEX('Social Table'!$A$13:$J$18,MATCH('Rev Model'!E85,'Social Table'!$A$13:$A$18,1),6)) -> 0 | G85: =IF($B$87=0,0,F85+INDEX('Social Table'!$A$13:$J$18,MATCH('Rev Model'!F85,'Social Table'!$A$13:$A$18,1),6)) -> 0 | H85: =IF($B$87=0,0,G85+INDEX('Social Table'!$A$13:$J$18,MATCH('Rev Model'!G85,'Social Table'!$A$13:$A$18,1),6)) -> 0 | I85: =IF($B$87=0,0,H85+INDEX('Social Table'!$A$13:$J$18,MATCH('Rev Model'!H85,'Social Table'!$A$13:$A$18,1),6)) -> 0 | J85: =IF($B$87=0,0,I85+INDEX('Social Table'!$A$13:$J$18,MATCH('Rev Model'!I85,'Social Table'!$A$13:$A$18,1),6)) -> 0 | K85: =IF($B$87=0,0,J85+INDEX('Social Table'!$A$13:$J$18,MATCH('Rev Model'!J85,'Social Table'!$A$13:$A$18,1),6)) -> 0 | L85: =IF($B$87=0,0,K85+INDEX('Social Table'!$A$13:$J$18,MATCH('Rev Model'!K85,'Social Table'!$A$13:$A$18,1),6)) -> 0 | M85: =IF($B$87=0,0,L85+INDEX('Social Table'!$A$13:$J$18,MATCH('Rev Model'!L85,'Social Table'!$A$13:$A$18,1),6)) -> 0 | N85: =IF($B$87=0,0,M85+INDEX('Social Table'!$A$13:$J$18,MATCH('Rev Model'!M85,'Social Table'!$A$13:$A$18,1),6)) -> 0 | O85: =IF($B$87=0,0,N85+INDEX('Social Table'!$A$13:$J$18,MATCH('Rev Model'!N85,'Social Table'!$A$13:$A$18,1),6)) -> 0 | P85: =IF($B$87=0,0,O85+INDEX('Social Table'!$A$13:$J$18,MATCH('Rev Model'!O85,'Social Table'!$A$13:$A$18,1),6)) -> 0 | Q85: =IF($B$87=0,0,P85+INDEX('Social Table'!$A$13:$J$18,MATCH('Rev Model'!P85,'Social Table'!$A$13:$A$18,1),6)) -> 0 | R85: =IF($B$87=0,0,Q85+INDEX('Social Table'!$A$13:$J$18,MATCH('Rev Model'!Q85,'Social Table'!$A$13:$A$18,1),6)) -> 0 | S85: =IF($B$87=0,0,R85+INDEX('Social Table'!$A$13:$J$18,MATCH('Rev Model'!R85,'Social Table'!$A$13:$A$18,1),6)) -> 0 | T85: =IF($B$87=0,0,S85+INDEX('Social Table'!$A$13:$J$18,MATCH('Rev Model'!S85,'Social Table'!$A$13:$A$18,1),6)) -> 0 | U85: =IF($B$87=0,0,T85+INDEX('Social Table'!$A$13:$J$18,MATCH('Rev Model'!T85,'Social Table'!$A$13:$A$18,1),6)) -> 0 | V85: =IF($B$87=0,0,U85+INDEX('Social Table'!$A$13:$J$18,MATCH('Rev Model'!U85,'Social Table'!$A$13:$A$18,1),6)) -> 0 | W85: =IF($B$87=0,0,V85+INDEX('Social Table'!$A$13:$J$18,MATCH('Rev Model'!V85,'Social Table'!$A$13:$A$18,1),6)) -> 0 | X85: =IF($B$87=0,0,W85+INDEX('Social Table'!$A$13:$J$18,MATCH('Rev Model'!W85,'Social Table'!$A$13:$A$18,1),6)) -> 0 | Y85: =IF($B$87=0,0,X85+INDEX('Social Table'!$A$13:$J$18,MATCH('Rev Model'!X85,'Social Table'!$A$13:$A$18,1),6)) -> 0 | Z85: =IF($B$87=0,0,Y85+INDEX('Social Table'!$A$13:$J$18,MATCH('Rev Model'!Y85,'Social Table'!$A$13:$A$18,1),6)) -> 0 | AA85: =IF($B$87=0,0,Z85+INDEX('Social Table'!$A$13:$J$18,MATCH('Rev Model'!Z85,'Social Table'!$A$13:$A$18,1),6)) -> 0 | AB85: =IF($B$87=0,0,AA85+INDEX('Social Table'!$A$13:$J$18,MATCH('Rev Model'!AA85,'Social Table'!$A$13:$A$18,1),6)) -> 0 | AC85: =IF($B$87=0,0,AB85+INDEX('Social Table'!$A$13:$J$18,MATCH('Rev Model'!AB85,'Social Table'!$A$13:$A$18,1),6)) -> 0 | AD85: =IF($B$87=0,0,AC85+INDEX('Social Table'!$A$13:$J$18,MATCH('Rev Model'!AC85,'Social Table'!$A$13:$A$18,1),6)) -> 0 | AE85: =IF($B$87=0,0,AD85+INDEX('Social Table'!$A$13:$J$18,MATCH('Rev Model'!AD85,'Social Table'!$A$13:$A$18,1),6)) -> 0 | AF85: =IF($B$87=0,0,AE85+INDEX('Social Table'!$A$13:$J$18,MATCH('Rev Model'!AE85,'Social Table'!$A$13:$A$18,1),6)) -> 0 | AG85: =IF($B$87=0,0,AF85+INDEX('Social Table'!$A$13:$J$18,MATCH('Rev Model'!AF85,'Social Table'!$A$13:$A$18,1),6)) -> 0 | AH85: =IF($B$87=0,0,AG85+INDEX('Social Table'!$A$13:$J$18,MATCH('Rev Model'!AG85,'Social Table'!$A$13:$A$18,1),6)) -> 0 | AI85: =IF($B$87=0,0,AH85+INDEX('Social Table'!$A$13:$J$18,MATCH('Rev Model'!AH85,'Social Table'!$A$13:$A$18,1),6)) -> 0 | AJ85: =IF($B$87=0,0,AI85+INDEX('Social Table'!$A$13:$J$18,MATCH('Rev Model'!AI85,'Social Table'!$A$13:$A$18,1),6)) -> 0 | AK85: =IF($B$87=0,0,AJ85+INDEX('Social Table'!$A$13:$J$18,MATCH('Rev Model'!AJ85,'Social Table'!$A$13:$A$18,1),6)) -> 0 | AL85: =IF($B$87=0,0,AK85+INDEX('Social Table'!$A$13:$J$18,MATCH('Rev Model'!AK85,'Social Table'!$A$13:$A$18,1),6)) -> 0 | AM85: =IF($B$87=0,0,AL85+INDEX('Social Table'!$A$13:$J$18,MATCH('Rev Model'!AL85,'Social Table'!$A$13:$A$18,1),6)) -> 0 | AN85: =IF($B$87=0,0,AM85+INDEX('Social Table'!$A$13:$J$18,MATCH('Rev Model'!AM85,'Social Table'!$A$13:$A$18,1),6)) -> 0 | AO85: =IF($B$87=0,0,AN85+INDEX('Social Table'!$A$13:$J$18,MATCH('Rev Model'!AN85,'Social Table'!$A$13:$A$18,1),6)) -> 0 | AP85: =IF($B$87=0,0,AO85+INDEX('Social Table'!$A$13:$J$18,MATCH('Rev Model'!AO85,'Social Table'!$A$13:$A$18,1),6)) -> 0 | AQ85: =IF($B$87=0,0,AP85+INDEX('Social Table'!$A$13:$J$18,MATCH('Rev Model'!AP85,'Social Table'!$A$13:$A$18,1),6)) -> 0 | AR85: =IF($B$87=0,0,AQ85+INDEX('Social Table'!$A$13:$J$18,MATCH('Rev Model'!AQ85,'Social Table'!$A$13:$A$18,1),6)) -> 0 | AS85: =IF($B$87=0,0,AR85+INDEX('Social Table'!$A$13:$J$18,MATCH('Rev Model'!AR85,'Social Table'!$A$13:$A$18,1),6)) -> 0 | AT85: =IF($B$87=0,0,AS85+INDEX('Social Table'!$A$13:$J$18,MATCH('Rev Model'!AS85,'Social Table'!$A$13:$A$18,1),6)) -> 0 | AU85: =IF($B$87=0,0,AT85+INDEX('Social Table'!$A$13:$J$18,MATCH('Rev Model'!AT85,'Social Table'!$A$13:$A$18,1),6)) -> 0 | AV85: =IF($B$87=0,0,AU85+INDEX('Social Table'!$A$13:$J$18,MATCH('Rev Model'!AU85,'Social Table'!$A$13:$A$18,1),6)) -> 0 | AW85: =IF($B$87=0,0,AV85+INDEX('Social Table'!$A$13:$J$18,MATCH('Rev Model'!AV85,'Social Table'!$A$13:$A$18,1),6)) -> 0
A86: LinkedIn (Personal) | B86: ='Web Pages_Input'!B23 -> 0 | C86: =IF($B$87=0,0,B86+INDEX('Social Table'!$A$13:$J$18,MATCH('Rev Model'!B86,'Social Table'!$A$13:$A$18,1),4)) -> 0 | D86: =IF($B$87=0,0,C86+INDEX('Social Table'!$A$13:$J$18,MATCH('Rev Model'!C86,'Social Table'!$A$13:$A$18,1),4)) -> 0 | E86: =IF($B$87=0,0,D86+INDEX('Social Table'!$A$13:$J$18,MATCH('Rev Model'!D86,'Social Table'!$A$13:$A$18,1),4)) -> 0 | F86: =IF($B$87=0,0,E86+INDEX('Social Table'!$A$13:$J$18,MATCH('Rev Model'!E86,'Social Table'!$A$13:$A$18,1),4)) -> 0 | G86: =IF($B$87=0,0,F86+INDEX('Social Table'!$A$13:$J$18,MATCH('Rev Model'!F86,'Social Table'!$A$13:$A$18,1),4)) -> 0 | H86: =IF($B$87=0,0,G86+INDEX('Social Table'!$A$13:$J$18,MATCH('Rev Model'!G86,'Social Table'!$A$13:$A$18,1),4)) -> 0 | I86: =IF($B$87=0,0,H86+INDEX('Social Table'!$A$13:$J$18,MATCH('Rev Model'!H86,'Social Table'!$A$13:$A$18,1),4)) -> 0 | J86: =IF($B$87=0,0,I86+INDEX('Social Table'!$A$13:$J$18,MATCH('Rev Model'!I86,'Social Table'!$A$13:$A$18,1),4)) -> 0 | K86: =IF($B$87=0,0,J86+INDEX('Social Table'!$A$13:$J$18,MATCH('Rev Model'!J86,'Social Table'!$A$13:$A$18,1),4)) -> 0 | L86: =IF($B$87=0,0,K86+INDEX('Social Table'!$A$13:$J$18,MATCH('Rev Model'!K86,'Social Table'!$A$13:$A$18,1),4)) -> 0 | M86: =IF($B$87=0,0,L86+INDEX('Social Table'!$A$13:$J$18,MATCH('Rev Model'!L86,'Social Table'!$A$13:$A$18,1),4)) -> 0 | N86: =IF($B$87=0,0,M86+INDEX('Social Table'!$A$13:$J$18,MATCH('Rev Model'!M86,'Social Table'!$A$13:$A$18,1),4)) -> 0 | O86: =IF($B$87=0,0,N86+INDEX('Social Table'!$A$13:$J$18,MATCH('Rev Model'!N86,'Social Table'!$A$13:$A$18,1),4)) -> 0 | P86: =IF($B$87=0,0,O86+INDEX('Social Table'!$A$13:$J$18,MATCH('Rev Model'!O86,'Social Table'!$A$13:$A$18,1),4)) -> 0 | Q86: =IF($B$87=0,0,P86+INDEX('Social Table'!$A$13:$J$18,MATCH('Rev Model'!P86,'Social Table'!$A$13:$A$18,1),4)) -> 0 | R86: =IF($B$87=0,0,Q86+INDEX('Social Table'!$A$13:$J$18,MATCH('Rev Model'!Q86,'Social Table'!$A$13:$A$18,1),4)) -> 0 | S86: =IF($B$87=0,0,R86+INDEX('Social Table'!$A$13:$J$18,MATCH('Rev Model'!R86,'Social Table'!$A$13:$A$18,1),4)) -> 0 | T86: =IF($B$87=0,0,S86+INDEX('Social Table'!$A$13:$J$18,MATCH('Rev Model'!S86,'Social Table'!$A$13:$A$18,1),4)) -> 0 | U86: =IF($B$87=0,0,T86+INDEX('Social Table'!$A$13:$J$18,MATCH('Rev Model'!T86,'Social Table'!$A$13:$A$18,1),4)) -> 0 | V86: =IF($B$87=0,0,U86+INDEX('Social Table'!$A$13:$J$18,MATCH('Rev Model'!U86,'Social Table'!$A$13:$A$18,1),4)) -> 0 | W86: =IF($B$87=0,0,V86+INDEX('Social Table'!$A$13:$J$18,MATCH('Rev Model'!V86,'Social Table'!$A$13:$A$18,1),4)) -> 0 | X86: =IF($B$87=0,0,W86+INDEX('Social Table'!$A$13:$J$18,MATCH('Rev Model'!W86,'Social Table'!$A$13:$A$18,1),4)) -> 0 | Y86: =IF($B$87=0,0,X86+INDEX('Social Table'!$A$13:$J$18,MATCH('Rev Model'!X86,'Social Table'!$A$13:$A$18,1),4)) -> 0 | Z86: =IF($B$87=0,0,Y86+INDEX('Social Table'!$A$13:$J$18,MATCH('Rev Model'!Y86,'Social Table'!$A$13:$A$18,1),4)) -> 0 | AA86: =IF($B$87=0,0,Z86+INDEX('Social Table'!$A$13:$J$18,MATCH('Rev Model'!Z86,'Social Table'!$A$13:$A$18,1),4)) -> 0 | AB86: =IF($B$87=0,0,AA86+INDEX('Social Table'!$A$13:$J$18,MATCH('Rev Model'!AA86,'Social Table'!$A$13:$A$18,1),4)) -> 0 | AC86: =IF($B$87=0,0,AB86+INDEX('Social Table'!$A$13:$J$18,MATCH('Rev Model'!AB86,'Social Table'!$A$13:$A$18,1),4)) -> 0 | AD86: =IF($B$87=0,0,AC86+INDEX('Social Table'!$A$13:$J$18,MATCH('Rev Model'!AC86,'Social Table'!$A$13:$A$18,1),4)) -> 0 | AE86: =IF($B$87=0,0,AD86+INDEX('Social Table'!$A$13:$J$18,MATCH('Rev Model'!AD86,'Social Table'!$A$13:$A$18,1),4)) -> 0 | AF86: =IF($B$87=0,0,AE86+INDEX('Social Table'!$A$13:$J$18,MATCH('Rev Model'!AE86,'Social Table'!$A$13:$A$18,1),4)) -> 0 | AG86: =IF($B$87=0,0,AF86+INDEX('Social Table'!$A$13:$J$18,MATCH('Rev Model'!AF86,'Social Table'!$A$13:$A$18,1),4)) -> 0 | AH86: =IF($B$87=0,0,AG86+INDEX('Social Table'!$A$13:$J$18,MATCH('Rev Model'!AG86,'Social Table'!$A$13:$A$18,1),4)) -> 0 | AI86: =IF($B$87=0,0,AH86+INDEX('Social Table'!$A$13:$J$18,MATCH('Rev Model'!AH86,'Social Table'!$A$13:$A$18,1),4)) -> 0 | AJ86: =IF($B$87=0,0,AI86+INDEX('Social Table'!$A$13:$J$18,MATCH('Rev Model'!AI86,'Social Table'!$A$13:$A$18,1),4)) -> 0 | AK86: =IF($B$87=0,0,AJ86+INDEX('Social Table'!$A$13:$J$18,MATCH('Rev Model'!AJ86,'Social Table'!$A$13:$A$18,1),4)) -> 0 | AL86: =IF($B$87=0,0,AK86+INDEX('Social Table'!$A$13:$J$18,MATCH('Rev Model'!AK86,'Social Table'!$A$13:$A$18,1),4)) -> 0 | AM86: =IF($B$87=0,0,AL86+INDEX('Social Table'!$A$13:$J$18,MATCH('Rev Model'!AL86,'Social Table'!$A$13:$A$18,1),4)) -> 0 | AN86: =IF($B$87=0,0,AM86+INDEX('Social Table'!$A$13:$J$18,MATCH('Rev Model'!AM86,'Social Table'!$A$13:$A$18,1),4)) -> 0 | AO86: =IF($B$87=0,0,AN86+INDEX('Social Table'!$A$13:$J$18,MATCH('Rev Model'!AN86,'Social Table'!$A$13:$A$18,1),4)) -> 0 | AP86: =IF($B$87=0,0,AO86+INDEX('Social Table'!$A$13:$J$18,MATCH('Rev Model'!AO86,'Social Table'!$A$13:$A$18,1),4)) -> 0 | AQ86: =IF($B$87=0,0,AP86+INDEX('Social Table'!$A$13:$J$18,MATCH('Rev Model'!AP86,'Social Table'!$A$13:$A$18,1),4)) -> 0 | AR86: =IF($B$87=0,0,AQ86+INDEX('Social Table'!$A$13:$J$18,MATCH('Rev Model'!AQ86,'Social Table'!$A$13:$A$18,1),4)) -> 0 | AS86: =IF($B$87=0,0,AR86+INDEX('Social Table'!$A$13:$J$18,MATCH('Rev Model'!AR86,'Social Table'!$A$13:$A$18,1),4)) -> 0 | AT86: =IF($B$87=0,0,AS86+INDEX('Social Table'!$A$13:$J$18,MATCH('Rev Model'!AS86,'Social Table'!$A$13:$A$18,1),4)) -> 0 | AU86: =IF($B$87=0,0,AT86+INDEX('Social Table'!$A$13:$J$18,MATCH('Rev Model'!AT86,'Social Table'!$A$13:$A$18,1),4)) -> 0 | AV86: =IF($B$87=0,0,AU86+INDEX('Social Table'!$A$13:$J$18,MATCH('Rev Model'!AU86,'Social Table'!$A$13:$A$18,1),4)) -> 0 | AW86: =IF($B$87=0,0,AV86+INDEX('Social Table'!$A$13:$J$18,MATCH('Rev Model'!AV86,'Social Table'!$A$13:$A$18,1),4)) -> 0
A87: Total Social Contacts | B87: =SUM(B82:B86) -> 0 | C87: =SUM(C82:C86) -> 0 | D87: 0 | E87: 0 | F87: 0 | G87: 0 | H87: 0 | I87: 0 | J87: 0 | K87: 0 | L87: 0 | M87: 0 | N87: 0 | O87: 0 | P87: 0 | Q87: 0 | R87: 0 | S87: 0 | T87: 0 | U87: 0 | V87: 0 | W87: 0 | X87: 0 | Y87: 0 | Z87: =SUM(Z82:Z86) -> 0 | AA87: 0 | AB87: 0 | AC87: 0 | AD87: 0 | AE87: 0 | AF87: 0 | AG87: 0 | AH87: 0 | AI87: 0 | AJ87: 0 | AK87: 0 | AL87: 0 | AM87: 0 | AN87: 0 | AO87: 0 | AP87: 0 | AQ87: 0 | AR87: 0 | AS87: 0 | AT87: 0 | AU87: 0 | AV87: 0 | AW87: 0
A90: Variables
A91: Average Order Size (Existing Business) | B91: ='Web Pages_Input'!B14 -> 0
A92: Market Size Change / Price Change Per Annum | C92: 0.05 | D92: =C92 -> 0.05 | E92: =D92 -> 0.05 | F92: 0.05 | G92: 0.05 | H92: 0.05 | I92: 0.05 | J92: 0.05 | K92: 0.05 | L92: 0.05 | M92: 0.05 | N92: 0.05 | O92: 0.05 | P92: 0.05 | Q92: 0.05 | R92: 0.05 | S92: 0.05 | T92: 0.05 | U92: 0.05 | V92: 0.05 | W92: 0.05 | X92: 0.05 | Y92: 0.05 | Z92: =Y92 -> 0.05 | AA92: 0.05 | AB92: 0.05 | AC92: 0.05 | AD92: 0.05 | AE92: 0.05 | AF92: 0.05 | AG92: 0.05 | AH92: 0.05 | AI92: 0.05 | AJ92: 0.05 | AK92: 0.05 | AL92: 0.05 | AM92: 0.05 | AN92: 0.05 | AO92: 0.05 | AP92: 0.05 | AQ92: 0.05 | AR92: 0.05 | AS92: 0.05 | AT92: 0.05 | AU92: 0.05 | AV92: 0.05 | AW92: 0.05
A93: Average Order Size (New Customers) | B93: =IF(B91="",0,B91*0.375) -> 0 | C93: =ROUND(B93*(1+C94),2) -> 0 | D93: =ROUND(C93*(1+D94),2) -> 0 | E93: 0 | F93: 0 | G93: 0 | H93: 0 | I93: 0 | J93: 0 | K93: 0 | L93: 0 | M93: 0 | N93: 0 | O93: 0 | P93: 0 | Q93: 0 | R93: 0 | S93: 0 | T93: 0 | U93: 0 | V93: 0 | W93: 0 | X93: 0 | Y93: 0 | Z93: =ROUND(Y93*(1+Z94),2) -> 0 | AA93: 0 | AB93: 0 | AC93: 0 | AD93: 0 | AE93: 0 | AF93: 0 | AG93: 0 | AH93: 0 | AI93: 0 | AJ93: 0 | AK93: 0 | AL93: 0 | AM93: 0 | AN93: 0 | AO93: 0 | AP93: 0 | AQ93: 0 | AR93: 0 | AS93: 0 | AT93: 0 | AU93: 0 | AV93: 0 | AW93: 0
A94: Average Order Size Growth (new customers) | C94: 0.03 | D94: =C94 -> 0.03 | E94: =D94 -> 0.03 | F94: 0.03 | G94: 0.03 | H94: 0.03 | I94: 0.03 | J94: 0.03 | K94: 0.03 | L94: 0.03 | M94: 0.03 | N94: 0.03 | O94: 0.03 | P94: 0.03 | Q94: 0.03 | R94: 0.03 | S94: 0.03 | T94: 0.03 | U94: 0.03 | V94: 0.03 | W94: 0.03 | X94: 0.03 | Y94: 0.03 | Z94: =Y94 -> 0.03 | AA94: 0.03 | AB94: 0.03 | AC94: 0.03 | AD94: 0.03 | AE94: 0.03 | AF94: 0.03 | AG94: 0.03 | AH94: 0.03 | AI94: 0.03 | AJ94: 0.03 | AK94: 0.03 | AL94: 0.03 | AM94: 0.03 | AN94: 0.03 | AO94: 0.03 | AP94: 0.03 | AQ94: 0.03 | AR94: 0.03 | AS94: 0.03 | AT94: 0.03 | AU94: 0.03 | AV94: 0.03 | AW94: 0.03
A96: Web Traffic
A97: Blog Conversion | B97: =HLOOKUP($A97,'Social Table'!G3:J4,2,FALSE) -> 0 | C97: =IF(C60=0,0,IF(B97+0.01>0.1,0.1,B97+0.01)) -> 0 | D97: 0 | E97: 0 | F97: 0 | G97: 0 | H97: 0 | I97: 0 | J97: 0 | K97: 0 | L97: 0 | M97: 0 | N97: 0 | O97: 0 | P97: 0 | Q97: 0 | R97: 0 | S97: 0 | T97: 0 | U97: 0 | V97: 0 | W97: 0 | X97: 0 | Y97: 0 | Z97: =IF(Z60=0,0,IF(Y97+0.01>0.1,0.1,Y97+0.01)) -> 0 | AA97: 0 | AB97: 0 | AC97: 0 | AD97: 0 | AE97: 0 | AF97: 0 | AG97: 0 | AH97: 0 | AI97: 0 | AJ97: 0 | AK97: 0 | AL97: 0 | AM97: 0 | AN97: 0 | AO97: 0 | AP97: 0 | AQ97: 0 | AR97: 0 | AS97: 0 | AT97: 0 | AU97: 0 | AV97: 0 | AW97: 0
A98: Email Conversion | B98: =HLOOKUP($A98,'Social Table'!$G$3:$J$4,2,FALSE) -> 0 | C98: =IF(B98+0.0025>0.05,0.05,B98+0.0025) -> 0.0025 | D98: =IF(C98+0.0025>0.05,0.05,C98+0.0025) -> 0.005 | E98: 0.0075 | F98: 0.01 | G98: 0.0125 | H98: 0.015 | I98: 0.0175 | J98: 0.02 | K98: 0.0225 | L98: 0.025 | M98: 0.0275 | N98: 0.03 | O98: 0.0325 | P98: 0.035 | Q98: 0.0375 | R98: 0.04 | S98: 0.0425 | T98: 0.045 | U98: 0.0475 | V98: 0.05 | W98: 0.05 | X98: 0.05 | Y98: 0.05 | Z98: =IF(Y98+0.0025>0.05,0.05,Y98+0.0025) -> 0.05 | AA98: 0.05 | AB98: 0.05 | AC98: 0.05 | AD98: 0.05 | AE98: 0.05 | AF98: 0.05 | AG98: 0.05 | AH98: 0.05 | AI98: 0.05 | AJ98: 0.05 | AK98: 0.05 | AL98: 0.05 | AM98: 0.05 | AN98: 0.05 | AO98: 0.05 | AP98: 0.05 | AQ98: 0.05 | AR98: 0.05 | AS98: 0.05 | AT98: 0.05 | AU98: 0.05 | AV98: 0.05 | AW98: 0.05
A99: Social Conversion | B99: =HLOOKUP($A99,'Social Table'!$G$3:$J$4,2,FALSE) -> 0 | C99: =IF(B99+0.005>0.075,0.075,B99+0.005) -> 0.005 | D99: =IF(C99+0.005>0.075,0.075,C99+0.005) -> 0.01 | E99: 0.015 | F99: 0.02 | G99: 0.025 | H99: 0.03 | I99: 0.035 | J99: 0.04 | K99: 0.045 | L99: 0.05 | M99: 0.055 | N99: 0.06 | O99: 0.065 | P99: 0.07 | Q99: 0.075 | R99: 0.075 | S99: 0.075 | T99: 0.075 | U99: 0.075 | V99: 0.075 | W99: 0.075 | X99: 0.075 | Y99: 0.075 | Z99: =IF(Y99+0.005>0.075,0.075,Y99+0.005) -> 0.075 | AA99: 0.075 | AB99: 0.075 | AC99: 0.075 | AD99: 0.075 | AE99: 0.075 | AF99: 0.075 | AG99: 0.075 | AH99: 0.075 | AI99: 0.075 | AJ99: 0.075 | AK99: 0.075 | AL99: 0.075 | AM99: 0.075 | AN99: 0.075 | AO99: 0.075 | AP99: 0.075 | AQ99: 0.075 | AR99: 0.075 | AS99: 0.075 | AT99: 0.075 | AU99: 0.075 | AV99: 0.075 | AW99: 0.075
A101: Key Word Spend Effectiveness | B101: 0 | C101: =IF(C62=0,0,IF(B101+0.075>0.6,0.6,B101+0.075)) -> 0 | D101: 0 | E101: 0 | F101: 0 | G101: 0 | H101: 0 | I101: 0 | J101: 0 | K101: 0 | L101: 0 | M101: 0 | N101: 0 | O101: 0 | P101: 0 | Q101: 0 | R101: 0 | S101: 0 | T101: 0 | U101: 0 | V101: 0 | W101: 0 | X101: 0 | Y101: 0 | Z101: =IF(Z62=0,0,IF(Y101+0.075>0.6,0.6,Y101+0.075)) -> 0 | AA101: 0 | AB101: 0 | AC101: 0 | AD101: 0 | AE101: 0 | AF101: 0 | AG101: 0 | AH101: 0 | AI101: 0 | AJ101: 0 | AK101: 0 | AL101: 0 | AM101: 0 | AN101: 0 | AO101: 0 | AP101: 0 | AQ101: 0 | AR101: 0 | AS101: 0 | AT101: 0 | AU101: 0 | AV101: 0 | AW101: 0
A102: Cost per Keyword search to generate a site visit at 100% | B102: 1.25 | C102: =B102 -> 1.25 | D102: =C102 -> 1.25 | E102: 1.25 | F102: 1.25 | G102: 1.25 | H102: 1.25 | I102: 1.25 | J102: 1.25 | K102: 1.25 | L102: 1.25 | M102: 1.25 | N102: 1.25 | O102: 1.25 | P102: 1.25 | Q102: 1.25 | R102: 1.25 | S102: 1.25 | T102: 1.25 | U102: 1.25 | V102: 1.25 | W102: 1.25 | X102: 1.25 | Y102: 1.25 | Z102: =Y102 -> 1.25 | AA102: 1.25 | AB102: 1.25 | AC102: 1.25 | AD102: 1.25 | AE102: 1.25 | AF102: 1.25 | AG102: 1.25 | AH102: 1.25 | AI102: 1.25 | AJ102: 1.25 | AK102: 1.25 | AL102: 1.25 | AM102: 1.25 | AN102: 1.25 | AO102: 1.25 | AP102: 1.25 | AQ102: 1.25 | AR102: 1.25 | AS102: 1.25 | AT102: 1.25 | AU102: 1.25 | AV102: 1.25 | AW102: 1.25
A104: Content Download
A105: Blog Subscribers
A106: Email Subscribers
A107: Blog Views
A108: Subscribers | B108: 0.7 | C108: =IF(B108+0.01>0.85,0.85,B108+0.01) -> 0.71 | D108: =IF(C108+0.01>0.85,0.85,C108+0.01) -> 0.72 | E108: 0.73 | F108: 0.74 | G108: 0.75 | H108: 0.76 | I108: 0.77 | J108: 0.78 | K108: 0.79 | L108: 0.8 | M108: 0.81 | N108: 0.82 | O108: 0.83 | P108: 0.84 | Q108: 0.85 | R108: 0.85 | S108: 0.85 | T108: 0.85 | U108: 0.85 | V108: 0.85 | W108: 0.85 | X108: 0.85 | Y108: 0.85 | Z108: =IF(Y108+0.01>0.85,0.85,Y108+0.01) -> 0.85 | AA108: 0.85 | AB108: 0.85 | AC108: 0.85 | AD108: 0.85 | AE108: 0.85 | AF108: 0.85 | AG108: 0.85 | AH108: 0.85 | AI108: 0.85 | AJ108: 0.85 | AK108: 0.85 | AL108: 0.85 | AM108: 0.85 | AN108: 0.85 | AO108: 0.85 | AP108: 0.85 | AQ108: 0.85 | AR108: 0.85 | AS108: 0.85 | AT108: 0.85 | AU108: 0.85 | AV108: 0.85 | AW108: 0.85
A109: Email Blasts | B109: 0.015 | C109: =IF(B109+0.0025>0.04,0.04,B109+0.0025) -> 0.0175 | D109: =IF(C109+0.0025>0.04,0.04,C109+0.0025) -> 0.02 | E109: 0.0225 | F109: 0.025 | G109: 0.0275 | H109: 0.03 | I109: 0.0325 | J109: 0.035 | K109: 0.0375 | L109: 0.04 | M109: 0.04 | N109: 0.04 | O109: 0.04 | P109: 0.04 | Q109: 0.04 | R109: 0.04 | S109: 0.04 | T109: 0.04 | U109: 0.04 | V109: 0.04 | W109: 0.04 | X109: 0.04 | Y109: 0.04 | Z109: =IF(Y109+0.0025>0.04,0.04,Y109+0.0025) -> 0.04 | AA109: 0.04 | AB109: 0.04 | AC109: 0.04 | AD109: 0.04 | AE109: 0.04 | AF109: 0.04 | AG109: 0.04 | AH109: 0.04 | AI109: 0.04 | AJ109: 0.04 | AK109: 0.04 | AL109: 0.04 | AM109: 0.04 | AN109: 0.04 | AO109: 0.04 | AP109: 0.04 | AQ109: 0.04 | AR109: 0.04 | AS109: 0.04 | AT109: 0.04 | AU109: 0.04 | AV109: 0.04 | AW109: 0.04
A110: Site Visitors
A112: Social Shares (Percentage of Total Social Contacts) | B112: 0.02 | C112: =IF(B112+0.0025>0.04,0.04,B112+0.0025) -> 0.0225 | D112: =IF(C112+0.0025>0.04,0.04,C112+0.0025) -> 0.025 | E112: 0.0275 | F112: 0.03 | G112: 0.0325 | H112: 0.035 | I112: 0.0375 | J112: 0.04 | K112: 0.04 | L112: 0.04 | M112: 0.04 | N112: 0.04 | O112: 0.04 | P112: 0.04 | Q112: 0.04 | R112: 0.04 | S112: 0.04 | T112: 0.04 | U112: 0.04 | V112: 0.04 | W112: 0.04 | X112: 0.04 | Y112: 0.04 | Z112: =IF(Y112+0.0025>0.04,0.04,Y112+0.0025) -> 0.04 | AA112: 0.04 | AB112: 0.04 | AC112: 0.04 | AD112: 0.04 | AE112: 0.04 | AF112: 0.04 | AG112: 0.04 | AH112: 0.04 | AI112: 0.04 | AJ112: 0.04 | AK112: 0.04 | AL112: 0.04 | AM112: 0.04 | AN112: 0.04 | AO112: 0.04 | AP112: 0.04 | AQ112: 0.04 | AR112: 0.04 | AS112: 0.04 | AT112: 0.04 | AU112: 0.04 | AV112: 0.04 | AW112: 0.04
A114: Blog Sign-up Rate from email blasts | B114: 0.005 | C114: =IF(B114+0.005>0.08,0.08,B114+0.005) -> 0.01 | D114: =IF(C114+0.005>0.08,0.08,C114+0.005) -> 0.015 | E114: 0.02 | F114: 0.025 | G114: 0.03 | H114: 0.035 | I114: 0.04 | J114: 0.045 | K114: 0.05 | L114: 0.055 | M114: 0.06 | N114: 0.065 | O114: 0.07 | P114: 0.075 | Q114: 0.08 | R114: 0.08 | S114: 0.08 | T114: 0.08 | U114: 0.08 | V114: 0.08 | W114: 0.08 | X114: 0.08 | Y114: 0.08 | Z114: =IF(Y114+0.005>0.08,0.08,Y114+0.005) -> 0.08 | AA114: 0.08 | AB114: 0.08 | AC114: 0.08 | AD114: 0.08 | AE114: 0.08 | AF114: 0.08 | AG114: 0.08 | AH114: 0.08 | AI114: 0.08 | AJ114: 0.08 | AK114: 0.08 | AL114: 0.08 | AM114: 0.08 | AN114: 0.08 | AO114: 0.08 | AP114: 0.08 | AQ114: 0.08 | AR114: 0.08 | AS114: 0.08 | AT114: 0.08 | AU114: 0.08 | AV114: 0.08 | AW114: 0.08
A117: Digital Marketing Investment (Incremental Costs)
A118: CRM (HubSpot - Free) | B118: 0 | C118: 0 | D118: 0 | E118: 0 | F118: 0 | G118: 0 | H118: 0 | I118: 0 | J118: 0 | K118: 0 | L118: 0 | M118: 0 | N118: 0 | O118: 0 | P118: 0 | Q118: 0 | R118: 0 | S118: 0 | T118: 0 | U118: 0 | V118: 0 | W118: 0 | X118: 0 | Y118: 0 | Z118: 0 | AA118: 0 | AB118: 0 | AC118: 0 | AD118: 0 | AE118: 0 | AF118: 0 | AG118: 0 | AH118: 0 | AI118: 0 | AJ118: 0 | AK118: 0 | AL118: 0 | AM118: 0 | AN118: 0 | AO118: 0 | AP118: 0 | AQ118: 0 | AR118: 0 | AS118: 0 | AT118: 0 | AU118: 0 | AV118: 0 | AW118: 0
A119: Digital Marketing Service (HubSpot) | G119: 200 | H119: 200 | I119: 200 | J119: 800 | K119: 800 | L119: 800 | M119: 800 | N119: 800 | O119: 800 | P119: 800 | Q119: 800 | R119: 800 | S119: 800 | T119: 800 | U119: 800 | V119: 800 | W119: 800 | X119: 800 | Y119: 800 | Z119: 800 | AA119: 800 | AB119: 800 | AC119: 800 | AD119: 800 | AE119: 800 | AF119: 800 | AG119: 800 | AH119: 800 | AI119: 800 | AJ119: 800 | AK119: 800 | AL119: 800 | AM119: 800 | AN119: 800 | AO119: 800 | AP119: 800 | AQ119: 800 | AR119: 800 | AS119: 800 | AT119: 800 | AU119: 800 | AV119: 800 | AW119: 800
A120: Power Ecommerce & Site Upgrade | B120: 4000 | D120: 150 | E120: 150 | F120: 150 | G120: 150 | H120: 150 | I120: 150 | J120: 150 | K120: 150 | L120: 150 | M120: 300 | N120: 300 | O120: 300 | P120: 300 | Q120: 300 | R120: 300 | S120: 300 | T120: 300 | U120: 300 | V120: 300 | W120: 300 | X120: 300 | Y120: 300 | Z120: 300 | AA120: 300 | AB120: 300 | AC120: 300 | AD120: 300 | AE120: 300 | AF120: 300 | AG120: 300 | AH120: 300 | AI120: 300 | AJ120: 300 | AK120: 300 | AL120: 300 | AM120: 300 | AN120: 300 | AO120: 300 | AP120: 300 | AQ120: 300 | AR120: 300 | AS120: 300 | AT120: 300 | AU120: 300 | AV120: 300 | AW120: 300
A121: Education (Execution Plan) | B121: 175 | C121: 175 | D121: 175 | E121: 175 | F121: 175 | G121: 175 | H121: 175 | I121: 175 | J121: 175 | K121: 175 | L121: 175 | M121: 175 | N121: 175 | O121: 175 | P121: 175 | Q121: 175 | R121: 175 | S121: 175 | T121: 175 | U121: 175 | V121: 175 | W121: 175 | X121: 175 | Y121: 175 | Z121: 30 | AA121: 30 | AB121: 30 | AC121: 30 | AD121: 30 | AE121: 30 | AF121: 30 | AG121: 30 | AH121: 30 | AI121: 30 | AJ121: 30 | AK121: 30 | AL121: 30 | AM121: 30 | AN121: 30 | AO121: 30 | AP121: 30 | AQ121: 30 | AR121: 30 | AS121: 30 | AT121: 30 | AU121: 30 | AV121: 30 | AW121: 30
A122: Content Writing, Social Platforms & Analytics | B122: 1250 | C122: =B122 -> 1250 | D122: =C122 -> 1250 | E122: 1250 | F122: 1250 | G122: 1250 | H122: 1250 | I122: 1250 | J122: 1250 | K122: 1250 | L122: 1250 | M122: 1250 | N122: 1250 | O122: 1250 | P122: 1250 | Q122: 1250 | R122: 1250 | S122: 1250 | T122: 1250 | U122: 1250 | V122: 1250 | W122: 1250 | X122: 1250 | Y122: 1250 | Z122: =Y122*0.5 -> 625 | AA122: 625 | AB122: 625 | AC122: 625 | AD122: 625 | AE122: 625 | AF122: 625 | AG122: 625 | AH122: 625 | AI122: 625 | AJ122: 625 | AK122: 625 | AL122: 625 | AM122: 625 | AN122: 625 | AO122: 625 | AP122: 625 | AQ122: 625 | AR122: 625 | AS122: 625 | AT122: 625 | AU122: 625 | AV122: 625 | AW122: =AV122 -> 625
A123: Total | B123: =SUM(B118:B122) -> 5425 | C123: =SUM(C118:C122) -> 1425 | D123: 1575 | E123: 1575 | F123: 1575 | G123: 1775 | H123: 1775 | I123: 1775 | J123: 2375 | K123: 2375 | L123: 2375 | M123: 2525 | N123: 2525 | O123: 2525 | P123: 2525 | Q123: 2525 | R123: 2525 | S123: 2525 | T123: 2525 | U123: 2525 | V123: 2525 | W123: 2525 | X123: 2525 | Y123: 2525 | Z123: =SUM(Z118:Z122) -> 1755 | AA123: 1755 | AB123: 1755 | AC123: 1755 | AD123: 1755 | AE123: 1755 | AF123: 1755 | AG123: 1755 | AH123: 1755 | AI123: 1755 | AJ123: 1755 | AK123: 1755 | AL123: 1755 | AM123: 1755 | AN123: 1755 | AO123: 1755 | AP123: 1755 | AQ123: 1755 | AR123: 1755 | AS123: 1755 | AT123: 1755 | AU123: 1755 | AV123: 1755 | AW123: 1755 | AX123: =Y123*12 -> 30300 | AY123: =AX123 -> 30300
A124: Cumulative Cost | B124: =B123 -> 5425 | C124: =C123+B124 -> 6850 | D124: =D123+C124 -> 8425 | E124: 10000 | F124: 11575 | G124: 13350 | H124: 15125 | I124: 16900 | J124: 19275 | K124: 21650 | L124: 24025 | M124: 26550 | N124: 29075 | O124: 31600 | P124: 34125 | Q124: 36650 | R124: 39175 | S124: 41700 | T124: 44225 | U124: 46750 | V124: 49275 | W124: 51800 | X124: 54325 | Y124: 56850 | Z124: =Z123+Y124 -> 58605 | AA124: 60360 | AB124: 62115 | AC124: 63870 | AD124: 65625 | AE124: 67380 | AF124: 69135 | AG124: 70890 | AH124: 72645 | AI124: 74400 | AJ124: 76155 | AK124: 77910 | AL124: 79665 | AM124: 81420 | AN124: 83175 | AO124: 84930 | AP124: 86685 | AQ124: 88440 | AR124: 90195 | AS124: 91950 | AT124: 93705 | AU124: 95460 | AV124: 97215 | AW124: 98970 | AX124: =AX123+Y124 -> 87150 | AY124: =AY123+AX124 -> 117450
A126: Gain (New Business) | B126: =B14 -> 0 | C126: 0 | D126: 0 | E126: 0 | F126: 0 | G126: 0 | H126: 0 | I126: 0 | J126: 0 | K126: 0 | L126: 0 | M126: 0 | N126: 0 | O126: 0 | P126: 0 | Q126: 0 | R126: 0 | S126: 0 | T126: 0 | U126: 0 | V126: 0 | W126: 0 | X126: 0 | Y126: 0 | Z126: 0 | AA126: 0 | AB126: 0 | AC126: 0 | AD126: 0 | AE126: 0 | AF126: 0 | AG126: 0 | AH126: =AH14 -> 0 | AI126: 0 | AJ126: 0 | AK126: 0 | AL126: 0 | AM126: 0 | AN126: 0 | AO126: 0 | AP126: 0 | AQ126: 0 | AR126: 0 | AS126: 0 | AT126: 0 | AU126: 0 | AV126: 0 | AW126: 0
A127: Cumulative New Business Gain | B127: =B126 -> 0 | C127: =C126+B127 -> 0 | D127: 0 | E127: 0 | F127: 0 | G127: 0 | H127: 0 | I127: 0 | J127: 0 | K127: 0 | L127: 0 | M127: 0 | N127: 0 | O127: 0 | P127: 0 | Q127: 0 | R127: 0 | S127: 0 | T127: 0 | U127: 0 | V127: 0 | W127: 0 | X127: 0 | Y127: 0 | Z127: 0 | AA127: 0 | AB127: 0 | AC127: 0 | AD127: 0 | AE127: 0 | AF127: 0 | AG127: 0 | AH127: 0 | AI127: 0 | AJ127: 0 | AK127: 0 | AL127: 0 | AM127: 0 | AN127: 0 | AO127: 0 | AP127: 0 | AQ127: 0 | AR127: 0 | AS127: 0 | AT127: 0 | AU127: 0 | AV127: 0 | AW127: 0 | AX127: =AX126+Y127 ->  | AY127: =AY126+AX127 -> 
A128: ROI | B128: =(B127-B124)/B124 -> -1 | C128: -1 | D128: -1 | E128: -1 | F128: -1 | G128: -1 | H128: -1 | I128: -1 | J128: -1 | K128: -1 | L128: -1 | M128: -1 | N128: -1 | O128: -1 | P128: -1 | Q128: -1 | R128: -1 | S128: -1 | T128: -1 | U128: -1 | V128: -1 | W128: -1 | X128: -1 | Y128: -1 | Z128: -1 | AA128: -1 | AB128: -1 | AC128: -1 | AD128: -1 | AE128: -1 | AF128: -1 | AG128: -1 | AH128: =(AH127-AH124)/AH124 -> -1 | AI128: -1 | AJ128: -1 | AK128: -1 | AL128: -1 | AM128: -1 | AN128: -1 | AO128: -1 | AP128: -1 | AQ128: -1 | AR128: -1 | AS128: -1 | AT128: -1 | AU128: -1 | AV128: -1 | AW128: -1
A130: Cumulative Base Business | B130: =B8 -> 0 | C130: =C8+B130 -> 0 | D130: 0 | E130: 0 | F130: 0 | G130: 0 | H130: 0 | I130: 0 | J130: 0 | K130: 0 | L130: 0 | M130: 0 | N130: 0 | O130: 0 | P130: 0 | Q130: 0 | R130: 0 | S130: 0 | T130: 0 | U130: 0 | V130: 0 | W130: 0 | X130: 0 | Y130: 0 | Z130: 0 | AA130: 0 | AB130: 0 | AC130: 0 | AD130: 0 | AE130: 0 | AF130: 0 | AG130: 0 | AH130: 0 | AI130: 0 | AJ130: 0 | AK130: 0 | AL130: 0 | AM130: 0 | AN130: 0 | AO130: 0 | AP130: 0 | AQ130: 0 | AR130: 0 | AS130: 0 | AT130: 0 | AU130: 0 | AV130: 0 | AW130: 0 | AX130: =AX8+Y130 ->  | AY130: =AY8+AX130 -> 
A133: Market Share Calculator
A134: Market Size per Month ($M) (3% decline per year) | B134: =25000000000/1000/12 -> 2083333.333 | C134: =B134-(0.03/12*B134) -> 2078125 | D134: =C134-(0.03/12*C134) -> 2072929.688 | E134: 2067747.363 | F134: 2062577.995 | G134: 2057421.55 | H134: 2052277.996 | I134: 2047147.301 | J134: 2042029.433 | K134: 2036924.359 | L134: 2031832.048 | M134: 2026752.468 | N134: 2021685.587 | O134: 2016631.373 | P134: 2011589.795 | Q134: 2006560.82 | R134: 2001544.418 | S134: 1996540.557 | T134: 1991549.206 | U134: 1986570.333 | V134: 1981603.907 | W134: 1976649.897 | X134: 1971708.272 | Y134: 1966779.002 | Z134: 1961862.054 | AA134: 1956957.399 | AB134: 1952065.005 | AC134: 1947184.843 | AD134: 1942316.881 | AE134: 1937461.089 | AF134: 1932617.436 | AG134: 1927785.892 | AH134: 1922966.428 | AI134: 1918159.012 | AJ134: 1913363.614 | AK134: 1908580.205 | AL134: 1903808.754 | AM134: 1899049.233 | AN134: 1894301.609 | AO134: 1889565.855 | AP134: 1884841.941 | AQ134: 1880129.836 | AR134: 1875429.511 | AS134: 1870740.938 | AT134: 1866064.085 | AU134: 1861398.925 | AV134: 1856745.428 | AW134: 1852103.564
A135: Population | B135: =B154 -> 323996000 | C135: =B135*(1+$C$155) -> 324215166.7 | D135: =C135*(1+$C$155) -> 324434481.6 | E135: 324653944.9 | F135: 324873556.6 | G135: 325093316.9 | H135: 325313225.8 | I135: 325533283.5 | J135: 325753490.1 | K135: 325973845.6 | L135: 326194350.2 | M135: =B155 -> 326626000 | N135: =M135*(1+$C$156) -> 326845166.7 | O135: =N135*(1+$C$156) -> 327064480.4 | P135: 327283941.3 | Q135: 327503549.4 | R135: 327723304.9 | S135: 327943207.9 | T135: 328163258.4 | U135: 328383456.6 | V135: 328603802.5 | W135: 328824296.3 | X135: 329044938 | Y135: =B156 -> 329256000 | Z135: =Y135*(1+$C$157) -> 329475000 | AA135: =Z135*(1+$C$157) -> 329694145.7 | AB135: 329913437.1 | AC135: 330132874.4 | AD135: 330352457.6 | AE135: 330572186.9 | AF135: 330792062.4 | AG135: 331012084 | AH135: 331232252.1 | AI135: 331452566.6 | AJ135: =B157 -> 331884000 | AK135: =AJ135*(1+$C$158) -> 332102250 | AL135: =AK135*(1+$C$158) -> 332320643.5 | AM135: 332539180.7 | AN135: 332757861.5 | AO135: 332976686.2 | AP135: 333195654.7 | AQ135: 333414767.3 | AR135: 333634023.9 | AS135: 333853424.8 | AT135: 334072969.9 | AU135: 334292659.4 | AV135: 334512493.3 | AW135: =B158 -> 334503000
A136: Spend per head of population | B136: =B134*1000/B135 -> 6.430120536 | C136: =C134*1000/C135 -> 6.409709396 | D136: 6.389363046 | E136: 6.369081282 | F136: 6.348863898 | G136: 6.32871069 | H136: 6.308621455 | I136: 6.288595989 | J136: 6.268634089 | K136: 6.248735555 | L136: 6.228900185 | M136: 6.205116764 | N136: 6.185453521 | O136: 6.165852588 | P136: 6.146313769 | Q136: 6.126836865 | R136: 6.107421681 | S136: 6.088068022 | T136: 6.068775692 | U136: 6.049544497 | V136: 6.030374243 | W136: 6.011264737 | X136: 5.992215787 | Y136: 5.973403679 | Z136: 5.954509611 | AA136: 5.935675306 | AB136: 5.916900574 | AC136: 5.898185228 | AD136: 5.879529079 | AE136: 5.86093194 | AF136: 5.842393624 | AG136: 5.823913945 | AH136: 5.805492719 | AI136: 5.787129759 | AJ136: 5.765157748 | AK136: 5.746965596 | AL136: 5.728830849 | AM136: 5.710753328 | AN136: 5.69273285 | AO136: 5.674769237 | AP136: 5.656862309 | AQ136: 5.639011887 | AR136: 5.621217792 | AS136: 5.603479847 | AT136: 5.585797875 | AU136: 5.568171699 | AV136: 5.550601143 | AW136: 5.536881774
A137: Average Local Market Size (assume reach expands 1%/Mth) | C137: =ROUND(B137*1.01,0) -> 0 | D137: =ROUND(C137*1.01,0) -> 0 | E137: 0 | F137: 0 | G137: 0 | H137: 0 | I137: 0 | J137: 0 | K137: 0 | L137: 0 | M137: 0 | N137: 0 | O137: 0 | P137: 0 | Q137: 0 | R137: 0 | S137: 0 | T137: 0 | U137: 0 | V137: 0 | W137: 0 | X137: 0 | Y137: 0 | Z137: 0 | AA137: 0 | AB137: 0 | AC137: 0 | AD137: 0 | AE137: 0 | AF137: 0 | AG137: 0 | AH137: 0 | AI137: 0 | AJ137: 0 | AK137: 0 | AL137: 0 | AM137: 0 | AN137: 0 | AO137: 0 | AP137: 0 | AQ137: 0 | AR137: 0 | AS137: 0 | AT137: 0 | AU137: 0 | AV137: 0 | AW137: 0
A138: Spend per Local Market | B138: =B137*B136 -> 0 | C138: =C137*C136 -> 0 | D138: 0 | E138: 0 | F138: 0 | G138: 0 | H138: 0 | I138: 0 | J138: 0 | K138: 0 | L138: 0 | M138: 0 | N138: 0 | O138: 0 | P138: 0 | Q138: 0 | R138: 0 | S138: 0 | T138: 0 | U138: 0 | V138: 0 | W138: 0 | X138: 0 | Y138: 0 | Z138: 0 | AA138: 0 | AB138: 0 | AC138: 0 | AD138: 0 | AE138: 0 | AF138: 0 | AG138: 0 | AH138: 0 | AI138: 0 | AJ138: 0 | AK138: 0 | AL138: 0 | AM138: 0 | AN138: 0 | AO138: 0 | AP138: 0 | AQ138: 0 | AR138: 0 | AS138: 0 | AT138: 0 | AU138: 0 | AV138: 0 | AW138: 0
A139: Model Revenue | B139: =B20 -> 0 | C139: =C20 -> 0 | D139: 0 | E139: 0 | F139: 0 | G139: 0 | H139: 0 | I139: 0 | J139: 0 | K139: 0 | L139: 0 | M139: 0 | N139: 0 | O139: 0 | P139: 0 | Q139: 0 | R139: 0 | S139: 0 | T139: 0 | U139: 0 | V139: 0 | W139: 0 | X139: 0 | Y139: 0 | Z139: 0 | AA139: 0 | AB139: 0 | AC139: 0 | AD139: 0 | AE139: 0 | AF139: 0 | AG139: 0 | AH139: 0 | AI139: 0 | AJ139: 0 | AK139: 0 | AL139: 0 | AM139: 0 | AN139: 0 | AO139: 0 | AP139: 0 | AQ139: 0 | AR139: 0 | AS139: 0 | AT139: 0 | AU139: 0 | AV139: 0 | AW139: 0
A140: Market Share | B140: =IF(B138=0,0,B139/B138) -> 0 | C140: =IF(C138=0,0,C139/C138) -> 0 | D140: 0 | E140: 0 | F140: 0 | G140: 0 | H140: 0 | I140: 0 | J140: 0 | K140: 0 | L140: 0 | M140: 0 | N140: 0 | O140: 0 | P140: 0 | Q140: 0 | R140: 0 | S140: 0 | T140: 0 | U140: 0 | V140: 0 | W140: 0 | X140: 0 | Y140: 0 | Z140: 0 | AA140: 0 | AB140: 0 | AC140: 0 | AD140: 0 | AE140: 0 | AF140: 0 | AG140: 0 | AH140: 0 | AI140: 0 | AJ140: 0 | AK140: 0 | AL140: 0 | AM140: 0 | AN140: 0 | AO140: 0 | AP140: 0 | AQ140: 0 | AR140: 0 | AS140: 0 | AT140: 0 | AU140: 0 | AV140: 0 | AW140: 0
A143: Churn on New Customers | B143: ='LG Calculator'!$G$27 -> 0 | C143: ='LG Calculator'!$G$27 -> 0 | D143: ='LG Calculator'!$G$27 -> 0 | E143: ='LG Calculator'!$G$27 -> 0 | F143: ='LG Calculator'!$G$27 -> 0 | G143: ='LG Calculator'!$G$27 -> 0 | H143: ='LG Calculator'!$G$27 -> 0 | I143: ='LG Calculator'!$G$27 -> 0 | J143: ='LG Calculator'!$G$27 -> 0 | K143: ='LG Calculator'!$G$27 -> 0 | L143: ='LG Calculator'!$G$27 -> 0 | M143: ='LG Calculator'!$G$27 -> 0 | N143: ='LG Calculator'!$G$27 -> 0 | O143: ='LG Calculator'!$G$27 -> 0 | P143: ='LG Calculator'!$G$27 -> 0 | Q143: ='LG Calculator'!$G$27 -> 0 | R143: ='LG Calculator'!$G$27 -> 0 | S143: ='LG Calculator'!$G$27 -> 0 | T143: ='LG Calculator'!$G$27 -> 0 | U143: ='LG Calculator'!$G$27 -> 0 | V143: ='LG Calculator'!$G$27 -> 0 | W143: ='LG Calculator'!$G$27 -> 0 | X143: ='LG Calculator'!$G$27 -> 0 | Y143: ='LG Calculator'!$G$27 -> 0 | Z143: ='LG Calculator'!$G$27 -> 0 | AA143: ='LG Calculator'!$G$27 -> 0 | AB143: ='LG Calculator'!$G$27 -> 0 | AC143: ='LG Calculator'!$G$27 -> 0 | AD143: ='LG Calculator'!$G$27 -> 0 | AE143: ='LG Calculator'!$G$27 -> 0 | AF143: ='LG Calculator'!$G$27 -> 0 | AG143: ='LG Calculator'!$G$27 -> 0 | AH143: ='LG Calculator'!$G$27 -> 0 | AI143: ='LG Calculator'!$G$27 -> 0 | AJ143: ='LG Calculator'!$G$27 -> 0 | AK143: ='LG Calculator'!$G$27 -> 0 | AL143: ='LG Calculator'!$G$27 -> 0 | AM143: ='LG Calculator'!$G$27 -> 0 | AN143: ='LG Calculator'!$G$27 -> 0 | AO143: ='LG Calculator'!$G$27 -> 0 | AP143: ='LG Calculator'!$G$27 -> 0 | AQ143: ='LG Calculator'!$G$27 -> 0 | AR143: ='LG Calculator'!$G$27 -> 0 | AS143: ='LG Calculator'!$G$27 -> 0 | AT143: ='LG Calculator'!$G$27 -> 0 | AU143: ='LG Calculator'!$G$27 -> 0 | AV143: ='LG Calculator'!$G$27 -> 0 | AW143: ='LG Calculator'!$G$27 -> 0
A144: Net Cumulative New Customers | B144: =B33*(1-B143) -> 0 | C144: =C33*(1-C143) -> 0 | D144: 0 | E144: 0 | F144: 0 | G144: 0 | H144: 0 | I144: 0 | J144: 0 | K144: 0 | L144: 0 | M144: 0 | N144: 0 | O144: 0 | P144: 0 | Q144: 0 | R144: 0 | S144: 0 | T144: 0 | U144: 0 | V144: 0 | W144: 0 | X144: 0 | Y144: 0 | Z144: 0 | AA144: 0 | AB144: 0 | AC144: 0 | AD144: 0 | AE144: 0 | AF144: 0 | AG144: 0 | AH144: 0 | AI144: 0 | AJ144: 0 | AK144: 0 | AL144: 0 | AM144: 0 | AN144: 0 | AO144: 0 | AP144: 0 | AQ144: 0 | AR144: 0 | AS144: 0 | AT144: 0 | AU144: 0 | AV144: 0 | AW144: 0
M145: =ROUND(M144*(1-'LG Calculator'!G26),0) -> 0
A146: Avg. Spend per BASE Customer per Month | B146: =IF(B8=0,0,B8/B6) -> 0 | C146: =IF(C8=0,0,C8/C6) -> 0 | D146: 0 | E146: 0 | F146: 0 | G146: 0 | H146: 0 | I146: 0 | J146: 0 | K146: 0 | L146: 0 | M146: 0 | N146: 0 | O146: 0 | P146: 0 | Q146: 0 | R146: 0 | S146: 0 | T146: 0 | U146: 0 | V146: 0 | W146: 0 | X146: 0 | Y146: 0 | Z146: 0 | AA146: 0 | AB146: 0 | AC146: 0 | AD146: 0 | AE146: 0 | AF146: 0 | AG146: 0 | AH146: 0 | AI146: 0 | AJ146: 0 | AK146: 0 | AL146: 0 | AM146: 0 | AN146: 0 | AO146: 0 | AP146: 0 | AQ146: 0 | AR146: 0 | AS146: 0 | AT146: 0 | AU146: 0 | AV146: 0 | AW146: 0 | AZ146: =AVERAGE(B146:AW146)*12 -> 0
A147: Avg. Spend per NEW Customer per Month | B147: =IF(B14=0,0,B14/B33) -> 0 | C147: =IF(C14=0,0,C14/C33) -> 0 | D147: 0 | E147: 0 | F147: 0 | G147: 0 | H147: 0 | I147: 0 | J147: 0 | K147: 0 | L147: 0 | M147: 0 | N147: 0 | O147: 0 | P147: 0 | Q147: 0 | R147: 0 | S147: 0 | T147: 0 | U147: 0 | V147: 0 | W147: 0 | X147: 0 | Y147: 0 | Z147: 0 | AA147: 0 | AB147: 0 | AC147: 0 | AD147: 0 | AE147: 0 | AF147: 0 | AG147: 0 | AH147: 0 | AI147: 0 | AJ147: 0 | AK147: 0 | AL147: 0 | AM147: 0 | AN147: 0 | AO147: 0 | AP147: 0 | AQ147: 0 | AR147: 0 | AS147: 0 | AT147: 0 | AU147: 0 | AV147: 0 | AW147: 0 | AZ147: =AVERAGE(B147:AW147)*12 -> 0
A148: Avg. Spend per Customer per Month | B148: =IF(B20=0,0,B20/(B33+B6)) -> 0 | C148: =IF(C20=0,0,C20/(C33+C6)) -> 0 | D148: 0 | E148: 0 | F148: 0 | G148: 0 | H148: 0 | I148: 0 | J148: 0 | K148: 0 | L148: 0 | M148: 0 | N148: 0 | O148: 0 | P148: 0 | Q148: 0 | R148: 0 | S148: 0 | T148: 0 | U148: 0 | V148: 0 | W148: 0 | X148: 0 | Y148: 0 | Z148: 0 | AA148: 0 | AB148: 0 | AC148: 0 | AD148: 0 | AE148: 0 | AF148: 0 | AG148: 0 | AH148: 0 | AI148: 0 | AJ148: 0 | AK148: 0 | AL148: 0 | AM148: 0 | AN148: 0 | AO148: 0 | AP148: 0 | AQ148: 0 | AR148: 0 | AS148: 0 | AT148: 0 | AU148: 0 | AV148: 0 | AW148: 0 | AZ148: =AVERAGE(B148:AW148)*12 -> 0
A151: Dynamic Chart Band (Min) | B151: =IF(AND(COUNT($B3:B3)>=6,(B8+B14)<($B8+$B14)),ROUND(($AW$8+$AW$14)*1.05,0),0) -> 0 | C151: =IF(AND(COUNT($B3:C3)>=6,(C8+C14)<($B8+$B14)),ROUND(($AW$8+$AW$14)*1.05,0),0) -> 0 | D151: =IF(AND(COUNT($B3:D3)>=6,(AVERAGE(B8,C8,D8)+AVERAGE(B14,C14,D14))<($B8+$B14)),ROUND(($AW$8+$AW$14)*1.05,0),0) -> 0 | E151: =IF(AND(COUNT($B3:E3)>=6,(AVERAGE(C8,D8,E8)+AVERAGE(C14,D14,E14))<($B8+$B14)),ROUND(($AW$8+$AW$14)*1.05,0),0) -> 0 | F151: =IF(AND(COUNT($B3:F3)>=6,(AVERAGE(D8,E8,F8)+AVERAGE(D14,E14,F14))<($B8+$B14)),ROUND(($AW$8+$AW$14)*1.05,0),0) -> 0 | G151: =IF(AND(COUNT($B3:G3)>=6,(AVERAGE(E8,F8,G8)+AVERAGE(E14,F14,G14))<($B8+$B14)),ROUND(($AW$8+$AW$14)*1.05,0),0) -> 0 | H151: =IF(AND(COUNT($B3:H3)>=6,(AVERAGE(F8,G8,H8)+AVERAGE(F14,G14,H14))<($B8+$B14)),ROUND(($AW$8+$AW$14)*1.05,0),0) -> 0 | I151: =IF(AND(COUNT($B3:I3)>=6,(AVERAGE(G8,H8,I8)+AVERAGE(G14,H14,I14))<($B8+$B14)),ROUND(($AW$8+$AW$14)*1.05,0),0) -> 0 | J151: =IF(AND(COUNT($B3:J3)>=6,(AVERAGE(H8,I8,J8)+AVERAGE(H14,I14,J14))<($B8+$B14)),ROUND(($AW$8+$AW$14)*1.05,0),0) -> 0 | K151: =IF(AND(COUNT($B3:K3)>=6,(AVERAGE(I8,J8,K8)+AVERAGE(I14,J14,K14))<($B8+$B14)),ROUND(($AW$8+$AW$14)*1.05,0),0) -> 0 | L151: =IF(AND(COUNT($B3:L3)>=6,(AVERAGE(J8,K8,L8)+AVERAGE(J14,K14,L14))<($B8+$B14)),ROUND(($AW$8+$AW$14)*1.05,0),0) -> 0 | M151: =IF(AND(COUNT($B3:M3)>=6,(AVERAGE(K8,L8,M8)+AVERAGE(K14,L14,M14))<($B8+$B14)),ROUND(($AW$8+$AW$14)*1.05,0),0) -> 0 | N151: =IF(AND(COUNT($B3:N3)>=6,(AVERAGE(L8,M8,N8)+AVERAGE(L14,M14,N14))<($B8+$B14)),ROUND(($AW$8+$AW$14)*1.05,0),0) -> 0 | O151: =IF(AND(COUNT($B3:O3)>=6,(AVERAGE(M8,N8,O8)+AVERAGE(M14,N14,O14))<($B8+$B14)),ROUND(($AW$8+$AW$14)*1.05,0),0) -> 0 | P151: =IF(AND(COUNT($B3:P3)>=6,(AVERAGE(N8,O8,P8)+AVERAGE(N14,O14,P14))<($B8+$B14)),ROUND(($AW$8+$AW$14)*1.05,0),0) -> 0 | Q151: =IF(AND(COUNT($B3:Q3)>=6,(AVERAGE(O8,P8,Q8)+AVERAGE(O14,P14,Q14))<($B8+$B14)),ROUND(($AW$8+$AW$14)*1.05,0),0) -> 0 | R151: =IF(AND(COUNT($B3:R3)>=6,(AVERAGE(P8,Q8,R8)+AVERAGE(P14,Q14,R14))<($B8+$B14)),ROUND(($AW$8+$AW$14)*1.05,0),0) -> 0 | S151: =IF(AND(COUNT($B3:S3)>=6,(AVERAGE(Q8,R8,S8)+AVERAGE(Q14,R14,S14))<($B8+$B14)),ROUND(($AW$8+$AW$14)*1.05,0),0) -> 0 | T151: =IF(AND(COUNT($B3:T3)>=6,(AVERAGE(R8,S8,T8)+AVERAGE(R14,S14,T14))<($B8+$B14)),ROUND(($AW$8+$AW$14)*1.05,0),0) -> 0 | U151: =IF(AND(COUNT($B3:U3)>=6,(AVERAGE(S8,T8,U8)+AVERAGE(S14,T14,U14))<($B8+$B14)),ROUND(($AW$8+$AW$14)*1.05,0),0) -> 0 | V151: =IF(AND(COUNT($B3:V3)>=6,(AVERAGE(T8,U8,V8)+AVERAGE(T14,U14,V14))<($B8+$B14)),ROUND(($AW$8+$AW$14)*1.05,0),0) -> 0 | W151: =IF(AND(COUNT($B3:W3)>=6,(AVERAGE(U8,V8,W8)+AVERAGE(U14,V14,W14))<($B8+$B14)),ROUND(($AW$8+$AW$14)*1.05,0),0) -> 0 | X151: =IF(AND(COUNT($B3:X3)>=6,(AVERAGE(V8,W8,X8)+AVERAGE(V14,W14,X14))<($B8+$B14)),ROUND(($AW$8+$AW$14)*1.05,0),0) -> 0 | Y151: =IF(AND(COUNT($B3:Y3)>=6,(AVERAGE(W8,X8,Y8)+AVERAGE(W14,X14,Y14))<($B8+$B14)),ROUND(($AW$8+$AW$14)*1.05,0),0) -> 0 | Z151: =IF(AND(COUNT($B3:Z3)>=6,(AVERAGE(X8,Y8,Z8)+AVERAGE(X14,Y14,Z14))<($B8+$B14)),ROUND(($AW$8+$AW$14)*1.05,0),0) -> 0 | AA151: =IF(AND(COUNT($B3:AA3)>=6,(AVERAGE(Y8,Z8,AA8)+AVERAGE(Y14,Z14,AA14))<($B8+$B14)),ROUND(($AW$8+$AW$14)*1.05,0),0) -> 0 | AB151: =IF(AND(COUNT($B3:AB3)>=6,(AVERAGE(Z8,AA8,AB8)+AVERAGE(Z14,AA14,AB14))<($B8+$B14)),ROUND(($AW$8+$AW$14)*1.05,0),0) -> 0 | AC151: =IF(AND(COUNT($B3:AC3)>=6,(AVERAGE(AA8,AB8,AC8)+AVERAGE(AA14,AB14,AC14))<($B8+$B14)),ROUND(($AW$8+$AW$14)*1.05,0),0) -> 0 | AD151: =IF(AND(COUNT($B3:AD3)>=6,(AVERAGE(AB8,AC8,AD8)+AVERAGE(AB14,AC14,AD14))<($B8+$B14)),ROUND(($AW$8+$AW$14)*1.05,0),0) -> 0 | AE151: =IF(AND(COUNT($B3:AE3)>=6,(AVERAGE(AC8,AD8,AE8)+AVERAGE(AC14,AD14,AE14))<($B8+$B14)),ROUND(($AW$8+$AW$14)*1.05,0),0) -> 0 | AF151: =IF(AND(COUNT($B3:AF3)>=6,(AVERAGE(AD8,AE8,AF8)+AVERAGE(AD14,AE14,AF14))<($B8+$B14)),ROUND(($AW$8+$AW$14)*1.05,0),0) -> 0 | AG151: =IF(AND(COUNT($B3:AG3)>=6,(AVERAGE(AE8,AF8,AG8)+AVERAGE(AE14,AF14,AG14))<($B8+$B14)),ROUND(($AW$8+$AW$14)*1.05,0),0) -> 0 | AH151: =IF(AND(COUNT($B3:AH3)>=6,(AVERAGE(AF8,AG8,AH8)+AVERAGE(AF14,AG14,AH14))<($B8+$B14)),ROUND(($AW$8+$AW$14)*1.05,0),0) -> 0 | AI151: =IF(AND(COUNT($B3:AI3)>=6,(AVERAGE(AG8,AH8,AI8)+AVERAGE(AG14,AH14,AI14))<($B8+$B14)),ROUND(($AW$8+$AW$14)*1.05,0),0) -> 0 | AJ151: =IF(AND(COUNT($B3:AJ3)>=6,(AVERAGE(AH8,AI8,AJ8)+AVERAGE(AH14,AI14,AJ14))<($B8+$B14)),ROUND(($AW$8+$AW$14)*1.05,0),0) -> 0 | AK151: =IF(AND(COUNT($B3:AK3)>=6,(AVERAGE(AI8,AJ8,AK8)+AVERAGE(AI14,AJ14,AK14))<($B8+$B14)),ROUND(($AW$8+$AW$14)*1.05,0),0) -> 0 | AL151: =IF(AND(COUNT($B3:AL3)>=6,(AVERAGE(AJ8,AK8,AL8)+AVERAGE(AJ14,AK14,AL14))<($B8+$B14)),ROUND(($AW$8+$AW$14)*1.05,0),0) -> 0 | AM151: =IF(AND(COUNT($B3:AM3)>=6,(AVERAGE(AK8,AL8,AM8)+AVERAGE(AK14,AL14,AM14))<($B8+$B14)),ROUND(($AW$8+$AW$14)*1.05,0),0) -> 0 | AN151: =IF(AND(COUNT($B3:AN3)>=6,(AVERAGE(AL8,AM8,AN8)+AVERAGE(AL14,AM14,AN14))<($B8+$B14)),ROUND(($AW$8+$AW$14)*1.05,0),0) -> 0 | AO151: =IF(AND(COUNT($B3:AO3)>=6,(AVERAGE(AM8,AN8,AO8)+AVERAGE(AM14,AN14,AO14))<($B8+$B14)),ROUND(($AW$8+$AW$14)*1.05,0),0) -> 0 | AP151: =IF(AND(COUNT($B3:AP3)>=6,(AVERAGE(AN8,AO8,AP8)+AVERAGE(AN14,AO14,AP14))<($B8+$B14)),ROUND(($AW$8+$AW$14)*1.05,0),0) -> 0 | AQ151: =IF(AND(COUNT($B3:AQ3)>=6,(AVERAGE(AO8,AP8,AQ8)+AVERAGE(AO14,AP14,AQ14))<($B8+$B14)),ROUND(($AW$8+$AW$14)*1.05,0),0) -> 0 | AR151: =IF(AND(COUNT($B3:AR3)>=6,(AVERAGE(AP8,AQ8,AR8)+AVERAGE(AP14,AQ14,AR14))<($B8+$B14)),ROUND(($AW$8+$AW$14)*1.05,0),0) -> 0 | AS151: =IF(AND(COUNT($B3:AS3)>=6,(AVERAGE(AQ8,AR8,AS8)+AVERAGE(AQ14,AR14,AS14))<($B8+$B14)),ROUND(($AW$8+$AW$14)*1.05,0),0) -> 0 | AT151: =IF(AND(COUNT($B3:AT3)>=6,(AVERAGE(AR8,AS8,AT8)+AVERAGE(AR14,AS14,AT14))<($B8+$B14)),ROUND(($AW$8+$AW$14)*1.05,0),0) -> 0 | AU151: =IF(AND(COUNT($B3:AU3)>=6,(AVERAGE(AS8,AT8,AU8)+AVERAGE(AS14,AT14,AU14))<($B8+$B14)),ROUND(($AW$8+$AW$14)*1.05,0),0) -> 0 | AV151: =IF(AND(COUNT($B3:AV3)>=6,(AVERAGE(AT8,AU8,AV8)+AVERAGE(AT14,AU14,AV14))<($B8+$B14)),ROUND(($AW$8+$AW$14)*1.05,0),0) -> 0 | AW151: =IF(AND(COUNT($B3:AW3)>=6,(AVERAGE(AU8,AV8,AW8)+AVERAGE(AU14,AV14,AW14))<($B8+$B14)),ROUND(($AW$8+$AW$14)*1.05,0),0) -> 0
A153: 2014 National Population Projections (U.S. Census)
A154: Projected 2016 | B154: 323996000
A155: Projected 2017 | B155: 326626000 | C155: =((B155-B154)/B154)/12 -> 0.0006764486804
A156: Projected 2018 | B156: 329256000 | C156: =((B156-B155)/B155)/12 -> 0.0006710019002
A157: Projected 2019 | B157: 331884000 | C157: =((B157-B156)/B156)/12 -> 0.0006651359429
A158: Projected 2020 | B158: 334503000 | C158: =((B158-B157)/B157)/12 -> 0.0006576092852
A160: Churn | B160: ='LG Calculator'!G26 -> 0 | M160: =1-((M6+M33)-(M33-B33))/(B6+B33) ->  | S160: =1-((S6+S33)-(S33-H33))/(H6+H33) ->  | T160: =1-((T6+T33)-(T33-I33))/(I6+I33) -> 
A161: Customer Acquisition Rate | B161: ='LG Calculator'!G28 ->  | M161: =1-(((M6+M33)-(M33-B33))/(M6+M33)) ->  | N161: =1-(((N6+N33)-(N33-C33))/(N6+N33)) ->  | X161: =1-((X6+X33)-(X33-M33))/(X6+X33) ->  | Y161: =1-((Y6+Y33)-(Y33-N33))/(Y6+Y33) -> 
A162: Life Time Value | B162: =(1/B160*12*(B20/(B6+B33)))*(1-'P&L'!D72) ->  | M162: =((1/M160*12)*((M20)/(M6+M33)))*(1-'P&L'!Q72) ->  | N162: =((1/N160*12)*((N20)/(N6+N33)))*(1-'P&L'!R72) ->  | O162: =((1/O160*12)*((O20)/(O6+O33)))*(1-'P&L'!S72) ->  | P162: =((1/P160*12)*((P20)/(P6+P33)))*(1-'P&L'!T72) ->  | Q162: =((1/Q160*12)*((Q20)/(Q6+Q33)))*(1-'P&L'!U72) ->  | R162: =((1/R160*12)*((R20)/(R6+R33)))*(1-'P&L'!V72) ->  | S162: =((1/S160*12)*((S20)/(S6+S33)))*(1-'P&L'!W72) ->  | T162: =((1/T160*12)*((T20)/(T6+T33)))*(1-'P&L'!X72) ->  | U162: =((1/U160*12)*((U20)/(U6+U33)))*(1-'P&L'!Y72) ->  | V162: =((1/V160*12)*((V20)/(V6+V33)))*(1-'P&L'!Z72) ->  | W162: =((1/W160*12)*((W20)/(W6+W33)))*(1-'P&L'!AA72) ->  | X162: =((1/X160*12)*((X20)/(X6+X33)))*(1-'P&L'!AB72) ->  | Y162: =((1/Y160*12)*((Y20)/(Y6+Y33)))*(1-'P&L'!AC72) ->  | Z162: =((1/Z160*12)*((Z20)/(Z6+Z33)))*(1-'P&L'!AD72) ->  | AA162: =((1/AA160*12)*((AA20)/(AA6+AA33)))*(1-'P&L'!AE72) ->  | AB162: =((1/AB160*12)*((AB20)/(AB6+AB33)))*(1-'P&L'!AF72) ->  | AC162: =((1/AC160*12)*((AC20)/(AC6+AC33)))*(1-'P&L'!AG72) ->  | AD162: =((1/AD160*12)*((AD20)/(AD6+AD33)))*(1-'P&L'!AH72) ->  | AE162: =((1/AE160*12)*((AE20)/(AE6+AE33)))*(1-'P&L'!AI72) ->  | AF162: =((1/AF160*12)*((AF20)/(AF6+AF33)))*(1-'P&L'!AJ72) ->  | AG162: =((1/AG160*12)*((AG20)/(AG6+AG33)))*(1-'P&L'!AK72) ->  | AH162: =((1/AH160*12)*((AH20)/(AH6+AH33)))*(1-'P&L'!AL72) ->  | AI162: =((1/AI160*12)*((AI20)/(AI6+AI33)))*(1-'P&L'!AM72) ->  | AJ162: =((1/AJ160*12)*((AJ20)/(AJ6+AJ33)))*(1-'P&L'!AN72) ->  | AK162: =((1/AK160*12)*((AK20)/(AK6+AK33)))*(1-'P&L'!AO72) ->  | AL162: =((1/AL160*12)*((AL20)/(AL6+AL33)))*(1-'P&L'!AP72) ->  | AM162: =((1/AM160*12)*((AM20)/(AM6+AM33)))*(1-'P&L'!AQ72) ->  | AN162: =((1/AN160*12)*((AN20)/(AN6+AN33)))*(1-'P&L'!AR72) ->  | AO162: =((1/AO160*12)*((AO20)/(AO6+AO33)))*(1-'P&L'!AS72) ->  | AP162: =((1/AP160*12)*((AP20)/(AP6+AP33)))*(1-'P&L'!AT72) ->  | AQ162: =((1/AQ160*12)*((AQ20)/(AQ6+AQ33)))*(1-'P&L'!AU72) ->  | AR162: =((1/AR160*12)*((AR20)/(AR6+AR33)))*(1-'P&L'!AV72) ->  | AS162: =((1/AS160*12)*((AS20)/(AS6+AS33)))*(1-'P&L'!AW72) ->  | AT162: =((1/AT160*12)*((AT20)/(AT6+AT33)))*(1-'P&L'!AX72) ->  | AU162: =((1/AU160*12)*((AU20)/(AU6+AU33)))*(1-'P&L'!AY72) ->  | AV162: =((1/AV160*12)*((AV20)/(AV6+AV33)))*(1-'P&L'!AZ72) ->  | AW162: =((1/AW160*12)*((AW20)/(AW6+AW33)))*(1-'P&L'!BA72) -> 
A163: Cost of Customer Acquisition | B163: ='P&L'!D50/'LG Calculator'!G24 ->  | M163: =SUM('P&L'!F41:Q41)/(M33-B33) ->  | N163: =SUM('P&L'!G41:R41)/(N33-C33) ->  | O163: =SUM('P&L'!H41:S41)/(O33-D33) ->  | P163: =SUM('P&L'!I41:T41)/(P33-E33) ->  | Q163: =SUM('P&L'!J41:U41)/(Q33-F33) ->  | R163: =SUM('P&L'!K41:V41)/(R33-G33) ->  | S163: =SUM('P&L'!L41:W41)/(S33-H33) ->  | T163: =SUM('P&L'!M41:X41)/(T33-I33) ->  | U163: =SUM('P&L'!N41:Y41)/(U33-J33) ->  | V163: =SUM('P&L'!O41:Z41)/(V33-K33) ->  | W163: =SUM('P&L'!P41:AA41)/(W33-L33) ->  | X163: =SUM('P&L'!Q41:AB41)/(X33-M33) ->  | Y163: =SUM('P&L'!R41:AC41)/(Y33-N33) ->  | Z163: =SUM('P&L'!S41:AD41)/(Z33-O33) ->  | AA163: =SUM('P&L'!T41:AE41)/(AA33-P33) ->  | AB163: =SUM('P&L'!U41:AF41)/(AB33-Q33) ->  | AC163: =SUM('P&L'!V41:AG41)/(AC33-R33) ->  | AD163: =SUM('P&L'!W41:AH41)/(AD33-S33) ->  | AE163: =SUM('P&L'!X41:AI41)/(AE33-T33) ->  | AF163: =SUM('P&L'!Y41:AJ41)/(AF33-U33) ->  | AG163: =SUM('P&L'!Z41:AK41)/(AG33-V33) ->  | AH163: =SUM('P&L'!AA41:AL41)/(AH33-W33) ->  | AI163: =SUM('P&L'!AB41:AM41)/(AI33-X33) ->  | AJ163: =SUM('P&L'!AC41:AN41)/(AJ33-Y33) ->  | AK163: =SUM('P&L'!AD41:AO41)/(AK33-Z33) ->  | AL163: =SUM('P&L'!AE41:AP41)/(AL33-AA33) ->  | AM163: =SUM('P&L'!AF41:AQ41)/(AM33-AB33) ->  | AN163: =SUM('P&L'!AG41:AR41)/(AN33-AC33) ->  | AO163: =SUM('P&L'!AH41:AS41)/(AO33-AD33) ->  | AP163: =SUM('P&L'!AI41:AT41)/(AP33-AE33) ->  | AQ163: =SUM('P&L'!AJ41:AU41)/(AQ33-AF33) ->  | AR163: =SUM('P&L'!AK41:AV41)/(AR33-AG33) ->  | AS163: =SUM('P&L'!AL41:AW41)/(AS33-AH33) ->  | AT163: =SUM('P&L'!AM41:AX41)/(AT33-AI33) ->  | AU163: =SUM('P&L'!AN41:AY41)/(AU33-AJ33) ->  | AV163: =SUM('P&L'!AO41:AZ41)/(AV33-AK33) ->  | AW163: =SUM('P&L'!AP41:BA41)/(AW33-AL33) -> 
A164: Avg. Revenue per Customer | B164: ='P&L'!D7/('Rev Model'!B6+'Rev Model'!B33) ->  | M164: ='P&L'!BC7/('Rev Model'!M6+'Rev Model'!M33) ->  | Y164: ='P&L'!BD7/('Rev Model'!Y6+'Rev Model'!Y33) ->  | AK164: ='P&L'!BF7/('Rev Model'!AK6+'Rev Model'!AK33) ->  | AW164: ='P&L'!BG7/('Rev Model'!AW6+'Rev Model'!AW33) -> 
A166: Secondary Blog Audience (shares) | B166: =ROUND(B52*0.025,0)*B60 -> 0 | C166: =ROUND(C52*0.025,0)*C60 -> 0 | D166: 0 | E166: 0 | F166: 0 | G166: 0 | H166: 0 | I166: 0 | J166: 0 | K166: 0 | L166: 0 | M166: 0 | N166: 0 | O166: 0 | P166: 0 | Q166: 0 | R166: 0 | S166: 0 | T166: 0 | U166: 0 | V166: 0 | W166: 0 | X166: 0 | Y166: 0 | Z166: 0 | AA166: 0 | AB166: 0 | AC166: 0 | AD166: 0 | AE166: 0 | AF166: 0 | AG166: 0 | AH166: 0 | AI166: 0 | AJ166: 0 | AK166: 0 | AL166: 0 | AM166: 0 | AN166: 0 | AO166: 0 | AP166: 0 | AQ166: 0 | AR166: 0 | AS166: 0 | AT166: 0 | AU166: 0 | AV166: 0 | AW166: 0
A167: Avg. Secondary Audience | B167: 750 | C167: =B167 -> 750 | D167: =C167 -> 750 | E167: 750 | F167: 750 | G167: 750 | H167: 750 | I167: 750 | J167: 750 | K167: 750 | L167: 750 | M167: 750 | N167: 750 | O167: 750 | P167: 750 | Q167: 750 | R167: 750 | S167: 750 | T167: 750 | U167: 750 | V167: 750 | W167: 750 | X167: 750 | Y167: 750 | Z167: 750 | AA167: 750 | AB167: 750 | AC167: 750 | AD167: 750 | AE167: 750 | AF167: 750 | AG167: 750 | AH167: 750 | AI167: 750 | AJ167: 750 | AK167: 750 | AL167: 750 | AM167: 750 | AN167: 750 | AO167: 750 | AP167: 750 | AQ167: 750 | AR167: 750 | AS167: 750 | AT167: 750 | AU167: 750 | AV167: 750 | AW167: 750
A168: Total secondary audience | B168: =B167*B166 -> 0 | C168: =C167*C166 -> 0 | D168: 0 | E168: 0 | F168: 0 | G168: 0 | H168: 0 | I168: 0 | J168: 0 | K168: 0 | L168: 0 | M168: 0 | N168: 0 | O168: 0 | P168: 0 | Q168: 0 | R168: 0 | S168: 0 | T168: 0 | U168: 0 | V168: 0 | W168: 0 | X168: 0 | Y168: 0 | Z168: 0 | AA168: 0 | AB168: 0 | AC168: 0 | AD168: 0 | AE168: 0 | AF168: 0 | AG168: 0 | AH168: 0 | AI168: 0 | AJ168: 0 | AK168: 0 | AL168: 0 | AM168: 0 | AN168: 0 | AO168: 0 | AP168: 0 | AQ168: 0 | AR168: 0 | AS168: 0 | AT168: 0 | AU168: 0 | AV168: 0 | AW168: 0
A169: Secondary audience read-rate | B169: 0.2 | C169: =B169 -> 0.2 | D169: =C169 -> 0.2 | E169: 0.2 | F169: 0.2 | G169: 0.2 | H169: 0.2 | I169: 0.2 | J169: 0.2 | K169: 0.2 | L169: 0.2 | M169: 0.2 | N169: 0.2 | O169: 0.2 | P169: 0.2 | Q169: 0.2 | R169: 0.2 | S169: 0.2 | T169: 0.2 | U169: 0.2 | V169: 0.2 | W169: 0.2 | X169: 0.2 | Y169: 0.2 | Z169: 0.2 | AA169: 0.2 | AB169: 0.2 | AC169: 0.2 | AD169: 0.2 | AE169: 0.2 | AF169: 0.2 | AG169: 0.2 | AH169: 0.2 | AI169: 0.2 | AJ169: 0.2 | AK169: 0.2 | AL169: 0.2 | AM169: 0.2 | AN169: 0.2 | AO169: 0.2 | AP169: 0.2 | AQ169: 0.2 | AR169: 0.2 | AS169: 0.2 | AT169: 0.2 | AU169: 0.2 | AV169: 0.2 | AW169: 0.2
A170: Secondary audience click-rate | B170: 0.1 | C170: =B170 -> 0.1 | D170: =C170 -> 0.1 | E170: 0.1 | F170: 0.1 | G170: 0.1 | H170: 0.1 | I170: 0.1 | J170: 0.1 | K170: 0.1 | L170: 0.1 | M170: 0.1 | N170: 0.1 | O170: 0.1 | P170: 0.1 | Q170: 0.1 | R170: 0.1 | S170: 0.1 | T170: 0.1 | U170: 0.1 | V170: 0.1 | W170: 0.1 | X170: 0.1 | Y170: 0.1 | Z170: 0.1 | AA170: 0.1 | AB170: 0.1 | AC170: 0.1 | AD170: 0.1 | AE170: 0.1 | AF170: 0.1 | AG170: 0.1 | AH170: 0.1 | AI170: 0.1 | AJ170: 0.1 | AK170: 0.1 | AL170: 0.1 | AM170: 0.1 | AN170: 0.1 | AO170: 0.1 | AP170: 0.1 | AQ170: 0.1 | AR170: 0.1 | AS170: 0.1 | AT170: 0.1 | AU170: 0.1 | AV170: 0.1 | AW170: 0.1
A171: Secondary audience traffic | B171: =ROUND(B168*B169*B170,0) -> 0 | C171: =ROUND(C168*C169*C170,0) -> 0 | D171: =ROUND(D168*D169*D170,0) -> 0 | E171: 0 | F171: 0 | G171: 0 | H171: 0 | I171: 0 | J171: 0 | K171: 0 | L171: 0 | M171: 0 | N171: 0 | O171: 0 | P171: 0 | Q171: 0 | R171: 0 | S171: 0 | T171: 0 | U171: 0 | V171: 0 | W171: 0 | X171: 0 | Y171: 0 | Z171: 0 | AA171: 0 | AB171: 0 | AC171: 0 | AD171: 0 | AE171: 0 | AF171: 0 | AG171: 0 | AH171: 0 | AI171: 0 | AJ171: 0 | AK171: 0 | AL171: 0 | AM171: 0 | AN171: 0 | AO171: 0 | AP171: 0 | AQ171: 0 | AR171: 0 | AS171: 0 | AT171: 0 | AU171: 0 | AV171: 0 | AW171: 0
A173: Primary Audience Visit Acquisition
A174: Total Social Audience | B174: =B87 -> 0 | C174: =C87 -> 0 | D174: 0 | E174: 0 | F174: 0 | G174: 0 | H174: 0 | I174: 0 | J174: 0 | K174: 0 | L174: 0 | M174: 0 | N174: 0 | O174: 0 | P174: 0 | Q174: 0 | R174: 0 | S174: 0 | T174: 0 | U174: 0 | V174: 0 | W174: 0 | X174: 0 | Y174: 0 | Z174: 0 | AA174: 0 | AB174: 0 | AC174: 0 | AD174: 0 | AE174: 0 | AF174: 0 | AG174: 0 | AH174: 0 | AI174: 0 | AJ174: 0 | AK174: 0 | AL174: 0 | AM174: 0 | AN174: 0 | AO174: 0 | AP174: 0 | AQ174: 0 | AR174: 0 | AS174: 0 | AT174: 0 | AU174: 0 | AV174: 0 | AW174: 0
A175: Impressions | B175: =ROUND(B174*0.2,0) -> 0 | C175: =ROUND(C174*0.2,0) -> 0 | D175: 0 | E175: 0 | F175: 0 | G175: 0 | H175: 0 | I175: 0 | J175: 0 | K175: 0 | L175: 0 | M175: 0 | N175: 0 | O175: 0 | P175: 0 | Q175: 0 | R175: 0 | S175: 0 | T175: 0 | U175: 0 | V175: 0 | W175: 0 | X175: 0 | Y175: 0 | Z175: 0 | AA175: 0 | AB175: 0 | AC175: 0 | AD175: 0 | AE175: 0 | AF175: 0 | AG175: 0 | AH175: 0 | AI175: 0 | AJ175: 0 | AK175: 0 | AL175: 0 | AM175: 0 | AN175: 0 | AO175: 0 | AP175: 0 | AQ175: 0 | AR175: 0 | AS175: 0 | AT175: 0 | AU175: 0 | AV175: 0 | AW175: 0
A176: Clicks | B176: =ROUND(B175*0.1,0) -> 0 | C176: =ROUND(C175*0.1,0) -> 0 | D176: 0 | E176: 0 | F176: 0 | G176: 0 | H176: 0 | I176: 0 | J176: 0 | K176: 0 | L176: 0 | M176: 0 | N176: 0 | O176: 0 | P176: 0 | Q176: 0 | R176: 0 | S176: 0 | T176: 0 | U176: 0 | V176: 0 | W176: 0 | X176: 0 | Y176: 0 | Z176: 0 | AA176: 0 | AB176: 0 | AC176: 0 | AD176: 0 | AE176: 0 | AF176: 0 | AG176: 0 | AH176: 0 | AI176: 0 | AJ176: 0 | AK176: 0 | AL176: 0 | AM176: 0 | AN176: 0 | AO176: 0 | AP176: 0 | AQ176: 0 | AR176: 0 | AS176: 0 | AT176: 0 | AU176: 0 | AV176: 0 | AW176: 0

Sheet Dashboard
B3: Speedo | E3: Pointer | F3: Web CM | G3: Web Cum | H3: Social CM | I3: Social Cum | J3: Social Traffic CM | K3: Social Traffic Cum | L3: Blog Subs CM | M3: Blog Subs Cum | N3: Email Contacts CM | O3: Email Contacts Cum | P3: Emails Sent CM | Q3: Emails Sent Cum. | R3: Email Opens CM | S3: Email Opens Cum. | T3: Email Clicks CM | U3: Email Clicks Cum. | V3: Shares CM | W3: Shares Cum. | X3: Leads CM | Y3: Leads Cum. | Z3: Net Customer Add CM | AA3: Net Customer Add Cum. | AB3: Base Revenue CM | AC3: Base Rev Cum. | AD3: New Revenue CM | AE3: New Revenue CUM.
B4: Start | C4: 0 | E4: Value | F4: =E23 -> 0.9627498486 | G4: =H23 ->  | H4: =E30 ->  | I4: =H30 -> 0.9009882528 | J4: =E34 -> 0.9352380952 | K4: =H34 ->  | L4: =E36 ->  | M4: =H36 ->  | N4: =E37 ->  | O4: =H37 ->  | P4: =E38 ->  | Q4: =H38 ->  | R4: =E39 ->  | S4: =H39 ->  | T4: =E40 ->  | U4: =H40 ->  | V4: =E44 ->  | W4: =H44 ->  | X4: =E46 ->  | Y4: =H46 ->  | Z4: =E50 ->  | AA4: =H50 ->  | AB4: =E51 ->  | AC4: =H51 ->  | AD4: =E52 ->  | AE4: =H52 -> 
B5: Initial | C5: 0.15 | E5: Pointer | F5: 0.02 | G5: 0.02 | H5: 0.02 | I5: 0.02 | J5: 0.02 | K5: 0.02 | L5: 0.02 | M5: 0.02 | N5: 0.02 | O5: 0.02 | P5: 0.02 | Q5: 0.02 | R5: 0.02 | S5: 0.02 | T5: 0.02 | U5: 0.02 | V5: 0.02 | W5: 0.02 | X5: 0.02 | Y5: 0.02 | Z5: 0.02 | AA5: 0.02 | AB5: 0.02 | AC5: 0.02 | AD5: 0.02 | AE5: 0.02
B6: Middle | C6: 0.45 | E6: End | F6: =SUM($C$4:$C$9)-F5-F4 -> 1.417250151 | I6: 1.479011747 | J6: 1.444761905
B7: End | C7: 0.4
B8: Above | C8: 0.2
B9: Max | C9: 1.2
C17: Plan | D17: Actual | E17: % of Plan | F17: Cum. Plan | G17: Cum Act | H17: % of Plan
B18: Organic Relevant | C18: 84 | D18: 84 | E18: =1+(D18-C18)/C18 -> 1 | F18: =SUM('Rev Model'!$B24:$S24) -> 0 | G18: 1256 | H18: =1+(G18-F18)/F18 -> 
B19: From email | C19: 1720 | D19: 1925 | E19: 1.119186047 | F19: =SUM('Rev Model'!$B25:$S25) -> 0 | G19: 12956
B20: Blog | C20: 620 | D20: 400 | E20: 0.6451612903 | F20: =SUM('Rev Model'!$B26:$S26) -> 0 | G20: 4850
B21: Paid | C21: 525 | D21: 350 | E21: 0.6666666667 | F21: =SUM('Rev Model'!$B27:$S27) -> 0 | G21: 7000
B22: Social | C22: 353 | D22: 420 | E22: 1.1898017 | F22: =SUM('Rev Model'!$B28:$S28) -> 0 | G22: 4000
B23: Qualified Website traffic | C23: =SUM(C18:C22) -> 3302 | D23: =SUM(D18:D22) -> 3179 | E23: 0.9627498486 | F23: =SUM(F18:F22) -> 0 | G23: =SUM(G18:G22) -> 30062
B25: Facebook Follows | C25: ='Rev Model'!$U82-'Rev Model'!$T82 -> 0 | D25: 11 | E25: =1+(D25-C25)/C25 ->  | F25: 226 | G25: 250 | H25: =1+(G25-F25)/F25 -> 1.10619469
B26: Twitter | C26: ='Rev Model'!$U83-'Rev Model'!$T83 -> 0 | D26: 182 | F26: 3115 | G26: 2600 | H26: 0.834670947
B27: LinkedIn (Company) | C27: ='Rev Model'!$U84-'Rev Model'!$T84 -> 0 | D27: 9 | F27: 171 | G27: 182 | H27: 1.064327485
B28: Google+ | C28: ='Rev Model'!$U85-'Rev Model'!$T85 -> 0 | D28: 8 | F28: 166 | G28: 75 | H28: 0.4518072289
B29: LinkedIn (Personal) | C29: ='Rev Model'!$U86-'Rev Model'!$T86 -> 0 | D29: 50 | F29: 1685 | G29: 1725 | H29: 1.023738872
B30: Total Social Contacts | C30: =SUM(C25:C29) -> 0 | D30: =SUM(D25:D29) -> 260 | F30: =SUM(F25:F29) -> 5363 | G30: =SUM(G25:G29) -> 4832 | H30: 0.9009882528
B32: Facebook Site Visits | C32: 182 | D32: 191 | E32: =1+(D32-C32)/C32 -> 1.049450549 | F32: =SUM('Rev Model'!$B73:$S73) -> 0 | G32: 2225 | H32: =1+(G32-F32)/F32 -> 
B33: Twitter Site Visits | C33: 343 | D33: 300 | E33: =1+(D33-C33)/C33 -> 0.8746355685 | F33: =SUM('Rev Model'!$B74:$S74) -> 0 | G33: 3825 | H33: =1+(G33-F33)/F33 -> 
B34: Total Social Visits | C34: =SUM(C32:C33) -> 525 | D34: =SUM(D32:D33) -> 491 | E34: =1+(D34-C34)/C34 -> 0.9352380952 | F34: =SUM(F32:F33) -> 0 | G34: =SUM(G32:G33) -> 6050 | H34: =1+(G34-F34)/F34 -> 
B36: Blog Subscribers | C36: ='Rev Model'!$U52-'Rev Model'!$T52 -> 0 | D36: 16 | E36: =1+(D36-C36)/C36 ->  | F36: ='Rev Model'!$U52 -> 0 | G36: 245 | H36: =1+(G36-F36)/F36 -> 
B37: Email Contacts | C37: ='Rev Model'!$U53-'Rev Model'!$T53 -> 0 | D37: 250 | E37: =1+(D37-C37)/C37 ->  | F37: ='Rev Model'!$U53 -> 0 | G37: 4920 | H37: =1+(G37-F37)/F37 -> 
B38: Emails Sent | C38: ='Rev Model'!$U$54 -> 0 | D38: =G37*6 -> 29520 | E38: =1+(D38-C38)/C38 ->  | F38: =SUM('Rev Model'!$B54:$S54) -> 0 | G38: 348000 | H38: =1+(G38-F38)/F38 -> 
B39: Email Opens | C39: =C38*0.2 -> 0 | D39: =D38*0.2 -> 5904 | E39: =1+(D39-C39)/C39 ->  | F39: =F38*0.2 -> 0 | G39: =G38*0.19 -> 66120 | H39: =1+(G39-F39)/F39 -> 
B40: Email Clicks | C40: =C39*0.25 -> 0 | D40: =D39*0.25 -> 1476 | E40: =1+(D40-C40)/C40 ->  | F40: =ROUND(F39*0.25,0) -> 0 | G40: =ROUND(G39*0.28,0) -> 18514 | H40: =1+(G40-F40)/F40 -> 
B42: Shares From Content | C42: ='Rev Model'!$T45-'Rev Model'!$S45 -> 0 | D42: 7 | E42: =1+(D42-C42)/C42 ->  | F42: ='Rev Model'!$T$45 -> 0 | G42: 130 | H42: =1+(G42-F42)/F42 -> 
B43: Shares From Product Reviews | C43: ='Rev Model'!$T$46 -> 0 | D43: 18 | E43: =1+(D43-C43)/C43 ->  | F43: =SUM('Rev Model'!$B46:$T46) -> 0 | G43: 200 | H43: =1+(G43-F43)/F43 -> 
B44: Cumulative Social Shares | C44: =SUM(C42:C43) -> 0 | D44: =SUM(D42:D43) -> 25 | E44: =1+(D44-C44)/C44 ->  | F44: =SUM(F42:F43) -> 0 | G44: =SUM(G42:G43) -> 330 | H44: =1+(G44-F44)/F44 -> 
B46: Leads | C46: ='Rev Model'!$S$36 -> 0 | D46: 180 | E46: =1+(D46-C46)/C46 ->  | F46: ='Rev Model'!$S$37 -> 0 | G46: 2400 | H46: =1+(G46-F46)/F46 -> 
B48: Net Base Customers | C48: ='Rev Model'!$T$6-'Rev Model'!$S$6 -> 0 | D48: -1 | E48: =1+(D48-C48)/C48 ->  | F48: ='Rev Model'!$T$6 -> 0 | G48: 132 | H48: =1+(G48-F48)/F48 -> 
B49: New Customers | C49: ='Sales Funnel'!$U$16 -> 0 | D49: 12 | E49: =1+(D49-C49)/C49 ->  | F49: ='Sales Funnel'!$U$18 -> 0 | G49: 120 | H49: =1+(G49-F49)/F49 -> 
B50: Net Customer Add | C50: =SUM(C48:C49) -> 0 | D50: =SUM(D48:D49) -> 11 | E50: =1+(D50-C50)/C50 ->  | F50: =F48-'Rev Model'!$T$4+F49 -> 0 | G50: =G48-'Rev Model'!$T$4+G49 -> 252 | H50: =1+(G50-F50)/F50 -> 
B51: Base Revenue | C51: ='Rev Model'!$T$8 -> 0 | D51: 43150 | E51: =1+(D51-C51)/C51 ->  | F51: =SUM('Rev Model'!$B8:$S8) -> 0 | G51: 852000 | H51: =1+(G51-F51)/F51 -> 
B52: New Revenue | C52: ='Rev Model'!$T$14 -> 0 | D52: 9750 | E52: =1+(D52-C52)/C52 ->  | F52: =SUM('Rev Model'!$B14:$S14) -> 0 | G52: 68000 | H52: =1+(G52-F52)/F52 -> 

Sheet Social Table (hidden)
H2: 0 | I2: 1 | J2: 2 | K2: Default Workbook Balance Sheet Variables
A3: Baseline Dealer Size (Revenue) | C3: Email Conversion | D3: Blog Conversion | E3: Social Conversion | F3: Social Shares | G3: Input from Web Form | H3: Email Conversion | I3: Blog Conversion | J3: Social Conversion | K3: Cash | L3: AR | M3: Inventory | N3: PP&E | O3: Depreciation | P3: AP | Q3: Overdraft | R3: Long-Term Debt | S3: Advertising Default
A4: 0 | B4: 100000 | C4: 0.01 | D4: 0.01 | E4: 0.02 | G4: ='Web Pages_Input'!C10 -> 0 | H4: =IF($G4=0,0,INDEX($A4:C10,MATCH($G$4,$A$4:$A$10,1),3+H$2)) -> 0 | I4: =IF($G4=0,0,INDEX($A4:D10,MATCH($G$4,$A$4:$A$10,1),3+I$2)) -> 0 | J4: =IF($G4=0,0,INDEX($A4:E10,MATCH($G$4,$A$4:$A$10,1),3+J$2)) -> 0 | K4: =$G$4/26 -> 0 | L4: ='Web Pages_Input'!$C$10/242*'Balance Sheet'!$D$52 -> 0 | M4: ='Web Pages_Input'!$B$10/365*'Balance Sheet'!$D$53 -> 0 | N4: =AVERAGE(A4,B4)*25% -> 12500 | R4: 50000 | S4: 250
A5: =B4 -> 100000 | B5: 250000 | C5: =C4+0.0025 -> 0.0125 | D5: 0.02 | E5: =E4+0.0025 -> 0.0225 | N5: =AVERAGE(A5,B5)*25% -> 43750 | R5: 100000 | S5: =S4+250 -> 500
A6: 250000 | B6: 1000000 | C6: =C5+0.0025 -> 0.015 | D6: 0.03 | E6: =E5+0.0025 -> 0.025 | N6: =AVERAGE(A6,B6)*10% -> 62500 | R6: 200000 | S6: =S5+250 -> 750
A7: 1000000 | B7: 2000000 | C7: =C6+0.0025 -> 0.0175 | D7: 0.04 | E7: =E6+0.0025 -> 0.0275 | N7: =AVERAGE(A7,B7)*5% -> 75000 | R7: 300000 | S7: =S6+250 -> 1000
A8: 2000000 | B8: 4000000 | C8: =C7+0.0025 -> 0.02 | D8: 0.05 | E8: =E7+0.0025 -> 0.03 | N8: =AVERAGE(A8,B8)*2.5% -> 75000 | R8: 500000 | S8: =S7+500 -> 1500
A9: 4000000 | B9: 8000000 | C9: 0.0225 | D9: 0.05 | E9: 0.03 | N9: =AVERAGE(A9,B9)*1.5% -> 90000 | R9: 600000 | S9: =S8+500 -> 2000
A10: 8000000 | C10: =C8+0.0025 -> 0.0225 | D10: 0.06 | E10: =E8+0.0025 -> 0.0325 | N10: =AVERAGE(A10,B10)*1.5% -> 120000 | R10: 700000 | S10: =S9+500 -> 2500
A12: Social Following Growth per Mth. | C12: Facebook Follows | D12: LinkedIn (Personal) | E12: Twitter | F12: Google+ | G12: Blog Subscribers | H12: Total Social Shares From Content | I12: Email Contacts | J12: LinkedIn (Company)
A13: 0 | B13: 100 | C13: 8 | D13: 25 | E13: 50 | F13: 8 | G13: 10 | H13: 6 | I13: 50 | J13: 8
A14: =B13 -> 100 | B14: 250 | C14: 10 | D14: 30 | E14: 75 | F14: 10 | G14: 15 | H14: 10 | I14: 65 | J14: 10
A15: =B14 -> 250 | B15: 500 | C15: 13 | D15: 35 | E15: 100 | F15: 13 | G15: 25 | H15: 12 | I15: 80 | J15: 13
A16: =B15 -> 500 | B16: 1000 | C16: 16 | D16: 40 | E16: 175 | F16: 16 | G16: 50 | H16: 16 | I16: 100 | J16: 16
A17: =B16 -> 1000 | B17: 2000 | C17: 20 | D17: 45 | E17: 200 | F17: 20 | G17: 100 | H17: 20 | I17: 200 | J17: 20
A18: =B17 -> 2000 | C18: 25 | D18: 50 | E18: 250 | F18: 25 | G18: 125 | H18: 25 | I18: 225 | J18: 25
B20: Input From WebForm: | C20: ='Web Pages_Input'!B19 -> 0 | D20: ='Web Pages_Input'!B23 -> 0 | E20: ='Web Pages_Input'!B20 -> 0 | F20: ='Web Pages_Input'!B22 -> 0 | G20: ='Web Pages_Input'!B24 -> 0 | H20: ='Web Pages_Input'!B25 -> 0 | I20: ='Web Pages_Input'!B27 -> 0 | J20: ='Web Pages_Input'!B21 -> 0
B22: Export to Model: | C22: =INDEX($A$13:$J$18,MATCH(C$20,$A$13:$A$18,1),3+C24) -> 8 | D22: =INDEX($A$13:$J$18,MATCH(D$20,$A$13:$A$18,1),3+D24) -> 25 | E22: 50 | F22: 8 | G22: 10 | H22: 6 | I22: 50 | J22: 8
C24: 0 | D24: 1 | E24: 2 | F24: 3 | G24: 4 | H24: 5 | I24: 6 | J24: 7
A26: Mth in | B26: Month Out | C26: Total Social Shares
A27: 0 | B27: 3 | C27: 0.01
A28: =B27 -> 3 | B28: 6 | C28: 0.02
A29: =B28 -> 6 | B29: 9 | C29: 0.04
A30: 9 | B30: 12 | C30: 0.06
A31: 12 | B31: 15 | C31: 0.07
A32: 15 | B32: 18 | C32: 0.08
A33: 18 | B33: 21 | C33: 0.09
A34: 21 | B34: 24 | C34: 0.1
A35: 24 | C35: 0.1
A38: Social Shares - conversion rate | C38: Visit -> Lead | D38: Opp -> Cust | F38: Product Reviews - conversion rate | H38: Visit -> Lead | I38: Opp -> Cust
A39: 0 | B39: 250 | C39: 0.05 | D39: 0.5101404056 | E39: ='Sales Funnel'!AX18/'Sales Funnel'!AX14 ->  | F39: 0 | G39: 250 | H39: 0.1 | I39: 0.5
A40: =B39 -> 250 | B40: 500 | C40: =C39+0.0025 -> 0.0525 | D40: =D39+0.0025 -> 0.5126404056 | F40: =G39 -> 250 | G40: 500 | H40: =H39+0.0025 -> 0.1025 | I40: =I39+0.0025 -> 0.5025
A41: =B40 -> 500 | B41: 750 | C41: =C40+0.0025 -> 0.055 | D41: =D40+0.0025 -> 0.5151404056 | F41: =G40 -> 500 | G41: 750 | H41: =H40+0.0025 -> 0.105 | I41: 0.505
A42: 750 | B42: 1000 | C42: 0.0575 | D42: 0.5176404056 | F42: 750 | G42: 1000 | H42: 0.1075 | I42: 0.5075
A43: 1000 | B43: 1500 | C43: 0.06 | D43: 0.5201404056 | F43: 1000 | G43: 1500 | H43: 0.11 | I43: 0.51
A44: 1500 | B44: 2000 | C44: 0.0625 | D44: 0.5226404056 | F44: 1500 | G44: 2000 | H44: 0.1125 | I44: 0.5125
A45: 2000 | B45: 3000 | C45: 0.065 | D45: 0.5251404056 | F45: 2000 | G45: 3000 | H45: 0.115 | I45: 0.515
A46: 3000 | B46: 4000 | C46: 0.0675 | D46: 0.5276404056 | F46: 3000 | G46: 4000 | H46: 0.1175 | I46: 0.5175
A47: 4000 | B47: 5000 | C47: 0.07 | D47: 0.5301404056 | F47: 4000 | G47: 5000 | H47: 0.12 | I47: 0.52
A48: 5000 | C48: 0.0725 | D48: 0.5326404056 | F48: 5000 | H48: 0.1225 | I48: 0.5225
A51: SG&A Pre-populate TTM Income Statement
A52: Low Range | B52: High Range | C52: SG&A %
A53: 0 | B53: 250000 | C53: 0.4
A54: =B53 -> 250000 | B54: 325000 | C54: 0.375
A55: 325000 | B55: 400000 | C55: 0.35
A56: 400000 | B56: 500000 | C56: 0.325
A57: 500000 | B57: 750000 | C57: 0.3
A58: 750000 | B58: 1000000 | C58: 0.25
A59: 1000000 | B59: 1500000 | C59: 0.2
A60: 1500000 | C60: 0.15

Sheet Sales Funnel
C1: ='Rev Model'!B2 -> Sep | D1: ='Rev Model'!C2 -> Oct | E1: ='Rev Model'!D2 -> Nov | F1: ='Rev Model'!E2 -> Dec | G1: ='Rev Model'!F2 -> Jan | H1: ='Rev Model'!G2 -> Feb | I1: ='Rev Model'!H2 -> Mar | J1: ='Rev Model'!I2 -> Apr | K1: ='Rev Model'!J2 -> May | L1: ='Rev Model'!K2 -> Jun | M1: ='Rev Model'!L2 -> Jul | N1: ='Rev Model'!M2 -> Aug | O1: ='Rev Model'!N2 -> Sep | P1: ='Rev Model'!O2 -> Oct | Q1: ='Rev Model'!P2 -> Nov | R1: ='Rev Model'!Q2 -> Dec | S1: ='Rev Model'!R2 -> Jan | T1: ='Rev Model'!S2 -> Feb | U1: ='Rev Model'!T2 -> Mar | V1: ='Rev Model'!U2 -> Apr | W1: ='Rev Model'!V2 -> May | X1: ='Rev Model'!W2 -> Jun | Y1: ='Rev Model'!X2 -> Jul | Z1: ='Rev Model'!Y2 -> Aug | AA1: ='Rev Model'!Z2 -> Sep | AB1: ='Rev Model'!AA2 -> Oct | AC1: ='Rev Model'!AB2 -> Nov | AD1: ='Rev Model'!AC2 -> Dec | AE1: ='Rev Model'!AD2 -> Jan | AF1: ='Rev Model'!AE2 -> Feb | AG1: ='Rev Model'!AF2 -> Mar | AH1: ='Rev Model'!AG2 -> Apr | AI1: ='Rev Model'!AH2 -> May | AJ1: ='Rev Model'!AI2 -> Jun | AK1: ='Rev Model'!AJ2 -> Jul | AL1: ='Rev Model'!AK2 -> Aug | AM1: ='Rev Model'!AL2 -> Sep | AN1: ='Rev Model'!AM2 -> Oct | AO1: ='Rev Model'!AN2 -> Nov | AP1: ='Rev Model'!AO2 -> Dec | AQ1: ='Rev Model'!AP2 -> Jan | AR1: ='Rev Model'!AQ2 -> Feb | AS1: ='Rev Model'!AR2 -> Mar | AT1: ='Rev Model'!AS2 -> Apr | AU1: ='Rev Model'!AT2 -> May | AV1: ='Rev Model'!AU2 -> Jun | AW1: ='Rev Model'!AV2 -> Jul | AX1: ='Rev Model'!AW2 -> Aug
C2: ='Rev Model'!B3 -> 9 | D2: ='Rev Model'!C3 -> 10 | E2: ='Rev Model'!D3 -> 11 | F2: ='Rev Model'!E3 -> 12 | G2: ='Rev Model'!F3 -> 1 | H2: ='Rev Model'!G3 -> 2 | I2: ='Rev Model'!H3 -> 3 | J2: ='Rev Model'!I3 -> 4 | K2: ='Rev Model'!J3 -> 5 | L2: ='Rev Model'!K3 -> 6 | M2: ='Rev Model'!L3 -> 7 | N2: ='Rev Model'!M3 -> 8 | O2: ='Rev Model'!N3 -> 9 | P2: ='Rev Model'!O3 -> 10 | Q2: ='Rev Model'!P3 -> 11 | R2: ='Rev Model'!Q3 -> 12 | S2: ='Rev Model'!R3 -> 1 | T2: ='Rev Model'!S3 -> 2 | U2: ='Rev Model'!T3 -> 3 | V2: ='Rev Model'!U3 -> 4 | W2: ='Rev Model'!V3 -> 5 | X2: ='Rev Model'!W3 -> 6 | Y2: ='Rev Model'!X3 -> 7 | Z2: ='Rev Model'!Y3 -> 8 | AA2: ='Rev Model'!Z3 -> 9 | AB2: ='Rev Model'!AA3 -> 10 | AC2: ='Rev Model'!AB3 -> 11 | AD2: ='Rev Model'!AC3 -> 12 | AE2: ='Rev Model'!AD3 -> 1 | AF2: ='Rev Model'!AE3 -> 2 | AG2: ='Rev Model'!AF3 -> 3 | AH2: ='Rev Model'!AG3 -> 4 | AI2: ='Rev Model'!AH3 -> 5 | AJ2: ='Rev Model'!AI3 -> 6 | AK2: ='Rev Model'!AJ3 -> 7 | AL2: ='Rev Model'!AK3 -> 8 | AM2: ='Rev Model'!AL3 -> 9 | AN2: ='Rev Model'!AM3 -> 10 | AO2: ='Rev Model'!AN3 -> 11 | AP2: ='Rev Model'!AO3 -> 12 | AQ2: ='Rev Model'!AP3 -> 1 | AR2: ='Rev Model'!AQ3 -> 2 | AS2: ='Rev Model'!AR3 -> 3 | AT2: ='Rev Model'!AS3 -> 4 | AU2: ='Rev Model'!AT3 -> 5 | AV2: ='Rev Model'!AU3 -> 6 | AW2: ='Rev Model'!AV3 -> 7 | AX2: ='Rev Model'!AW3 -> 8
A3: Total Visitors
A4: =IF(SUM(C4:Z4)=0,"","Visitors") ->  | C4: ='Rev Model'!B29 -> 0 | D4: ='Rev Model'!C29 -> 0 | E4: ='Rev Model'!D29 -> 0 | F4: ='Rev Model'!E29 -> 0 | G4: ='Rev Model'!F29 -> 0 | H4: ='Rev Model'!G29 -> 0 | I4: ='Rev Model'!H29 -> 0 | J4: ='Rev Model'!I29 -> 0 | K4: ='Rev Model'!J29 -> 0 | L4: ='Rev Model'!K29 -> 0 | M4: ='Rev Model'!L29 -> 0 | N4: ='Rev Model'!M29 -> 0 | O4: ='Rev Model'!N29 -> 0 | P4: ='Rev Model'!O29 -> 0 | Q4: ='Rev Model'!P29 -> 0 | R4: ='Rev Model'!Q29 -> 0 | S4: ='Rev Model'!R29 -> 0 | T4: ='Rev Model'!S29 -> 0 | U4: ='Rev Model'!T29 -> 0 | V4: ='Rev Model'!U29 -> 0 | W4: ='Rev Model'!V29 -> 0 | X4: ='Rev Model'!W29 -> 0 | Y4: ='Rev Model'!X29 -> 0 | Z4: ='Rev Model'!Y29 -> 0 | AA4: ='Rev Model'!Z29 -> 0 | AB4: ='Rev Model'!AA29 -> 0 | AC4: ='Rev Model'!AB29 -> 0 | AD4: ='Rev Model'!AC29 -> 0 | AE4: ='Rev Model'!AD29 -> 0 | AF4: ='Rev Model'!AE29 -> 0 | AG4: ='Rev Model'!AF29 -> 0 | AH4: ='Rev Model'!AG29 -> 0 | AI4: ='Rev Model'!AH29 -> 0 | AJ4: ='Rev Model'!AI29 -> 0 | AK4: ='Rev Model'!AJ29 -> 0 | AL4: ='Rev Model'!AK29 -> 0 | AM4: ='Rev Model'!AL29 -> 0 | AN4: ='Rev Model'!AM29 -> 0 | AO4: ='Rev Model'!AN29 -> 0 | AP4: ='Rev Model'!AO29 -> 0 | AQ4: ='Rev Model'!AP29 -> 0 | AR4: ='Rev Model'!AQ29 -> 0 | AS4: ='Rev Model'!AR29 -> 0 | AT4: ='Rev Model'!AS29 -> 0 | AU4: ='Rev Model'!AT29 -> 0 | AV4: ='Rev Model'!AU29 -> 0 | AW4: ='Rev Model'!AV29 -> 0 | AX4: ='Rev Model'!AW29 -> 0
A5: Cumulative Visitors | C5: =C4 -> 0 | D5: =D4+C5 -> 0 | E5: =E4+D5 -> 0 | F5: 0 | G5: 0 | H5: 0 | I5: 0 | J5: 0 | K5: 0 | L5: 0 | M5: 0 | N5: 0 | O5: 0 | P5: 0 | Q5: 0 | R5: 0 | S5: 0 | T5: 0 | U5: 0 | V5: 0 | W5: 0 | X5: 0 | Y5: 0 | Z5: 0 | AA5: =AA4+Z5 -> 0 | AB5: 0 | AC5: 0 | AD5: 0 | AE5: 0 | AF5: 0 | AG5: 0 | AH5: 0 | AI5: 0 | AJ5: 0 | AK5: 0 | AL5: 0 | AM5: 0 | AN5: 0 | AO5: 0 | AP5: 0 | AQ5: 0 | AR5: 0 | AS5: 0 | AT5: 0 | AU5: 0 | AV5: 0 | AW5: 0 | AX5: 0 | AZ5: 121760
A6: Landing Page Conversion Rate | B6: =B7 -> 0.1 | C6: =INDEX('Social Table'!$A$39:$C$48,MATCH('Rev Model'!$B$47,'Social Table'!$A$39:$A$48,1),3) -> 0.05 | D6: =INDEX('Social Table'!$A$39:$C$48,MATCH('Rev Model'!$B$47,'Social Table'!$A$39:$A$48,1),3) -> 0.05 | E6: =INDEX('Social Table'!$A$39:$C$48,MATCH('Rev Model'!$B$47,'Social Table'!$A$39:$A$48,1),3) -> 0.05 | F6: =INDEX('Social Table'!$A$39:$C$48,MATCH('Rev Model'!$B$47,'Social Table'!$A$39:$A$48,1),3) -> 0.05 | G6: =INDEX('Social Table'!$A$39:$C$48,MATCH('Rev Model'!$B$47,'Social Table'!$A$39:$A$48,1),3) -> 0.05 | H6: =INDEX('Social Table'!$A$39:$C$48,MATCH('Rev Model'!$B$47,'Social Table'!$A$39:$A$48,1),3) -> 0.05 | I6: =INDEX('Social Table'!$A$39:$C$48,MATCH('Rev Model'!$B$47,'Social Table'!$A$39:$A$48,1),3) -> 0.05 | J6: =INDEX('Social Table'!$A$39:$C$48,MATCH('Rev Model'!$B$47,'Social Table'!$A$39:$A$48,1),3) -> 0.05 | K6: =INDEX('Social Table'!$A$39:$C$48,MATCH('Rev Model'!$B$47,'Social Table'!$A$39:$A$48,1),3) -> 0.05 | L6: =INDEX('Social Table'!$A$39:$C$48,MATCH('Rev Model'!$B$47,'Social Table'!$A$39:$A$48,1),3) -> 0.05 | M6: =INDEX('Social Table'!$A$39:$C$48,MATCH('Rev Model'!$B$47,'Social Table'!$A$39:$A$48,1),3) -> 0.05 | N6: =INDEX('Social Table'!$A$39:$C$48,MATCH('Rev Model'!$B$47,'Social Table'!$A$39:$A$48,1),3) -> 0.05 | O6: =INDEX('Social Table'!$A$39:$C$48,MATCH('Rev Model'!$B$47,'Social Table'!$A$39:$A$48,1),3) -> 0.05 | P6: =INDEX('Social Table'!$A$39:$C$48,MATCH('Rev Model'!$B$47,'Social Table'!$A$39:$A$48,1),3) -> 0.05 | Q6: =INDEX('Social Table'!$A$39:$C$48,MATCH('Rev Model'!$B$47,'Social Table'!$A$39:$A$48,1),3) -> 0.05 | R6: =INDEX('Social Table'!$A$39:$C$48,MATCH('Rev Model'!$B$47,'Social Table'!$A$39:$A$48,1),3) -> 0.05 | S6: =INDEX('Social Table'!$A$39:$C$48,MATCH('Rev Model'!$B$47,'Social Table'!$A$39:$A$48,1),3) -> 0.05 | T6: =INDEX('Social Table'!$A$39:$C$48,MATCH('Rev Model'!$B$47,'Social Table'!$A$39:$A$48,1),3) -> 0.05 | U6: =INDEX('Social Table'!$A$39:$C$48,MATCH('Rev Model'!$B$47,'Social Table'!$A$39:$A$48,1),3) -> 0.05 | V6: =INDEX('Social Table'!$A$39:$C$48,MATCH('Rev Model'!$B$47,'Social Table'!$A$39:$A$48,1),3) -> 0.05 | W6: =INDEX('Social Table'!$A$39:$C$48,MATCH('Rev Model'!$B$47,'Social Table'!$A$39:$A$48,1),3) -> 0.05 | X6: =INDEX('Social Table'!$A$39:$C$48,MATCH('Rev Model'!$B$47,'Social Table'!$A$39:$A$48,1),3) -> 0.05 | Y6: =INDEX('Social Table'!$A$39:$C$48,MATCH('Rev Model'!$B$47,'Social Table'!$A$39:$A$48,1),3) -> 0.05 | Z6: =INDEX('Social Table'!$A$39:$C$48,MATCH('Rev Model'!$B$47,'Social Table'!$A$39:$A$48,1),3) -> 0.05 | AA6: =INDEX('Social Table'!$A$39:$C$48,MATCH('Rev Model'!$B$47,'Social Table'!$A$39:$A$48,1),3) -> 0.05 | AB6: =INDEX('Social Table'!$A$39:$C$48,MATCH('Rev Model'!$B$47,'Social Table'!$A$39:$A$48,1),3) -> 0.05 | AC6: =INDEX('Social Table'!$A$39:$C$48,MATCH('Rev Model'!$B$47,'Social Table'!$A$39:$A$48,1),3) -> 0.05 | AD6: =INDEX('Social Table'!$A$39:$C$48,MATCH('Rev Model'!$B$47,'Social Table'!$A$39:$A$48,1),3) -> 0.05 | AE6: =INDEX('Social Table'!$A$39:$C$48,MATCH('Rev Model'!$B$47,'Social Table'!$A$39:$A$48,1),3) -> 0.05 | AF6: =INDEX('Social Table'!$A$39:$C$48,MATCH('Rev Model'!$B$47,'Social Table'!$A$39:$A$48,1),3) -> 0.05 | AG6: =INDEX('Social Table'!$A$39:$C$48,MATCH('Rev Model'!$B$47,'Social Table'!$A$39:$A$48,1),3) -> 0.05 | AH6: =INDEX('Social Table'!$A$39:$C$48,MATCH('Rev Model'!$B$47,'Social Table'!$A$39:$A$48,1),3) -> 0.05 | AI6: =INDEX('Social Table'!$A$39:$C$48,MATCH('Rev Model'!$B$47,'Social Table'!$A$39:$A$48,1),3) -> 0.05 | AJ6: =INDEX('Social Table'!$A$39:$C$48,MATCH('Rev Model'!$B$47,'Social Table'!$A$39:$A$48,1),3) -> 0.05 | AK6: =INDEX('Social Table'!$A$39:$C$48,MATCH('Rev Model'!$B$47,'Social Table'!$A$39:$A$48,1),3) -> 0.05 | AL6: =INDEX('Social Table'!$A$39:$C$48,MATCH('Rev Model'!$B$47,'Social Table'!$A$39:$A$48,1),3) -> 0.05 | AM6: =INDEX('Social Table'!$A$39:$C$48,MATCH('Rev Model'!$B$47,'Social Table'!$A$39:$A$48,1),3) -> 0.05 | AN6: =INDEX('Social Table'!$A$39:$C$48,MATCH('Rev Model'!$B$47,'Social Table'!$A$39:$A$48,1),3) -> 0.05 | AO6: =INDEX('Social Table'!$A$39:$C$48,MATCH('Rev Model'!$B$47,'Social Table'!$A$39:$A$48,1),3) -> 0.05 | AP6: =INDEX('Social Table'!$A$39:$C$48,MATCH('Rev Model'!$B$47,'Social Table'!$A$39:$A$48,1),3) -> 0.05 | AQ6: =INDEX('Social Table'!$A$39:$C$48,MATCH('Rev Model'!$B$47,'Social Table'!$A$39:$A$48,1),3) -> 0.05 | AR6: =INDEX('Social Table'!$A$39:$C$48,MATCH('Rev Model'!$B$47,'Social Table'!$A$39:$A$48,1),3) -> 0.05 | AS6: =INDEX('Social Table'!$A$39:$C$48,MATCH('Rev Model'!$B$47,'Social Table'!$A$39:$A$48,1),3) -> 0.05 | AT6: =INDEX('Social Table'!$A$39:$C$48,MATCH('Rev Model'!$B$47,'Social Table'!$A$39:$A$48,1),3) -> 0.05 | AU6: =INDEX('Social Table'!$A$39:$C$48,MATCH('Rev Model'!$B$47,'Social Table'!$A$39:$A$48,1),3) -> 0.05 | AV6: =INDEX('Social Table'!$A$39:$C$48,MATCH('Rev Model'!$B$47,'Social Table'!$A$39:$A$48,1),3) -> 0.05 | AW6: =INDEX('Social Table'!$A$39:$C$48,MATCH('Rev Model'!$B$47,'Social Table'!$A$39:$A$48,1),3) -> 0.05 | AX6: =INDEX('Social Table'!$A$39:$C$48,MATCH('Rev Model'!$B$47,'Social Table'!$A$39:$A$48,1),3) -> 0.05 | AZ6: 0.05
A7: =IF(SUM(C7:Z7)=0,"","Leads") ->  | B7: 0.1 | C7: =ROUND(C4*C6,0) -> 0 | D7: =ROUND(D4*D6,0) -> 0 | E7: 0 | F7: 0 | G7: 0 | H7: 0 | I7: 0 | J7: 0 | K7: 0 | L7: 0 | M7: 0 | N7: 0 | O7: 0 | P7: 0 | Q7: 0 | R7: 0 | S7: 0 | T7: 0 | U7: 0 | V7: 0 | W7: 0 | X7: 0 | Y7: 0 | Z7: 0 | AA7: =ROUND(AA4*AA6,0) -> 0 | AB7: 0 | AC7: 0 | AD7: 0 | AE7: 0 | AF7: 0 | AG7: 0 | AH7: 0 | AI7: 0 | AJ7: 0 | AK7: 0 | AL7: 0 | AM7: 0 | AN7: 0 | AO7: 0 | AP7: 0 | AQ7: 0 | AR7: 0 | AS7: 0 | AT7: 0 | AU7: 0 | AV7: 0 | AW7: 0 | AX7: 0
A8: Cumulative Leads | C8: =C7 -> 0 | D8: =D7+C8 -> 0 | E8: =E7+D8 -> 0 | F8: 0 | G8: 0 | H8: 0 | I8: 0 | J8: 0 | K8: 0 | L8: 0 | M8: 0 | N8: 0 | O8: 0 | P8: 0 | Q8: 0 | R8: 0 | S8: 0 | T8: 0 | U8: 0 | V8: 0 | W8: 0 | X8: 0 | Y8: 0 | Z8: 0 | AA8: =AA7+Z8 -> 0 | AB8: 0 | AC8: 0 | AD8: 0 | AE8: 0 | AF8: 0 | AG8: 0 | AH8: 0 | AI8: 0 | AJ8: 0 | AK8: 0 | AL8: 0 | AM8: 0 | AN8: 0 | AO8: 0 | AP8: 0 | AQ8: 0 | AR8: 0 | AS8: 0 | AT8: 0 | AU8: 0 | AV8: 0 | AW8: 0 | AX8: 0 | AZ8: =AZ5*AZ6 -> 6088
A9: =IF(SUM(C9:Z9)=0,"","MQLs") ->  | B9: 0.5 | C9: =ROUND(C7*$B9,0) -> 0 | D9: =ROUND(D7*$B9,0) -> 0 | E9: 0 | F9: 0 | G9: 0 | H9: 0 | I9: 0 | J9: 0 | K9: 0 | L9: 0 | M9: 0 | N9: 0 | O9: 0 | P9: 0 | Q9: 0 | R9: 0 | S9: 0 | T9: 0 | U9: 0 | V9: 0 | W9: 0 | X9: 0 | Y9: 0 | Z9: 0 | AA9: =ROUND(AA7*$B9,0) -> 0 | AB9: 0 | AC9: 0 | AD9: 0 | AE9: 0 | AF9: 0 | AG9: 0 | AH9: 0 | AI9: 0 | AJ9: 0 | AK9: 0 | AL9: 0 | AM9: 0 | AN9: 0 | AO9: 0 | AP9: 0 | AQ9: 0 | AR9: 0 | AS9: 0 | AT9: 0 | AU9: 0 | AV9: 0 | AW9: 0 | AX9: 0
A10: Cumulative MQLs | C10: =C9 -> 0 | D10: =D9+C10 -> 0 | E10: =E9+D10 -> 0 | F10: 0 | G10: 0 | H10: 0 | I10: 0 | J10: 0 | K10: 0 | L10: 0 | M10: 0 | N10: 0 | O10: 0 | P10: 0 | Q10: 0 | R10: 0 | S10: 0 | T10: 0 | U10: 0 | V10: 0 | W10: 0 | X10: 0 | Y10: 0 | Z10: 0 | AA10: =AA9+Z10 -> 0 | AB10: 0 | AC10: 0 | AD10: 0 | AE10: 0 | AF10: 0 | AG10: 0 | AH10: 0 | AI10: 0 | AJ10: 0 | AK10: 0 | AL10: 0 | AM10: 0 | AN10: 0 | AO10: 0 | AP10: 0 | AQ10: 0 | AR10: 0 | AS10: 0 | AT10: 0 | AU10: 0 | AV10: 0 | AW10: 0 | AX10: 0 | AZ10: =AZ8*B9 -> 3044
A11: =IF(SUM(C11:Z11)=0,"","SQLs") ->  | B11: 0.5 | C11: =ROUND(C9*$B11,0) -> 0 | D11: =ROUND(D9*$B11,0) -> 0 | E11: 0 | F11: 0 | G11: 0 | H11: 0 | I11: 0 | J11: 0 | K11: 0 | L11: 0 | M11: 0 | N11: 0 | O11: 0 | P11: 0 | Q11: 0 | R11: 0 | S11: 0 | T11: 0 | U11: 0 | V11: 0 | W11: 0 | X11: 0 | Y11: 0 | Z11: 0 | AA11: =ROUND(AA9*$B11,0) -> 0 | AB11: 0 | AC11: 0 | AD11: 0 | AE11: 0 | AF11: 0 | AG11: 0 | AH11: 0 | AI11: 0 | AJ11: 0 | AK11: 0 | AL11: 0 | AM11: 0 | AN11: 0 | AO11: 0 | AP11: 0 | AQ11: 0 | AR11: 0 | AS11: 0 | AT11: 0 | AU11: 0 | AV11: 0 | AW11: 0 | AX11: 0
A12: Cumulative SQLs | C12: =C11 -> 0 | D12: =D11+C12 -> 0 | E12: =E11+D12 -> 0 | F12: 0 | G12: 0 | H12: 0 | I12: 0 | J12: 0 | K12: 0 | L12: 0 | M12: 0 | N12: 0 | O12: 0 | P12: 0 | Q12: 0 | R12: 0 | S12: 0 | T12: 0 | U12: 0 | V12: 0 | W12: 0 | X12: 0 | Y12: 0 | Z12: 0 | AA12: =AA11+Z12 -> 0 | AB12: 0 | AC12: 0 | AD12: 0 | AE12: 0 | AF12: 0 | AG12: 0 | AH12: 0 | AI12: 0 | AJ12: 0 | AK12: 0 | AL12: 0 | AM12: 0 | AN12: 0 | AO12: 0 | AP12: 0 | AQ12: 0 | AR12: 0 | AS12: 0 | AT12: 0 | AU12: 0 | AV12: 0 | AW12: 0 | AX12: 0 | AZ12: =AZ10*B11 -> 1522
A13: =IF(SUM(C13:Z13)=0,"","Opportunites") ->  | B13: 0.5 | C13: =ROUND(C11*$B13,0) -> 0 | D13: =ROUND(D11*$B13,0) -> 0 | E13: 0 | F13: 0 | G13: 0 | H13: 0 | I13: 0 | J13: 0 | K13: 0 | L13: 0 | M13: 0 | N13: 0 | O13: 0 | P13: 0 | Q13: 0 | R13: 0 | S13: 0 | T13: 0 | U13: 0 | V13: 0 | W13: 0 | X13: 0 | Y13: 0 | Z13: 0 | AA13: =ROUND(AA11*$B13,0) -> 0 | AB13: 0 | AC13: 0 | AD13: 0 | AE13: 0 | AF13: 0 | AG13: 0 | AH13: 0 | AI13: 0 | AJ13: 0 | AK13: 0 | AL13: 0 | AM13: 0 | AN13: 0 | AO13: 0 | AP13: 0 | AQ13: 0 | AR13: 0 | AS13: 0 | AT13: 0 | AU13: 0 | AV13: 0 | AW13: 0 | AX13: 0
A14: Cumulative Opportunities | C14: =C13 -> 0 | D14: =D13+C14 -> 0 | E14: =E13+D14 -> 0 | F14: 0 | G14: 0 | H14: 0 | I14: 0 | J14: 0 | K14: 0 | L14: 0 | M14: 0 | N14: 0 | O14: 0 | P14: 0 | Q14: 0 | R14: 0 | S14: 0 | T14: 0 | U14: 0 | V14: 0 | W14: 0 | X14: 0 | Y14: 0 | Z14: 0 | AA14: =AA13+Z14 -> 0 | AB14: 0 | AC14: 0 | AD14: 0 | AE14: 0 | AF14: 0 | AG14: 0 | AH14: 0 | AI14: 0 | AJ14: 0 | AK14: 0 | AL14: 0 | AM14: 0 | AN14: 0 | AO14: 0 | AP14: 0 | AQ14: 0 | AR14: 0 | AS14: 0 | AT14: 0 | AU14: 0 | AV14: 0 | AW14: 0 | AX14: 0 | AZ14: =AZ12*B13 -> 761
A15: Elliott Lead to Customer Closing Rate | C15: =IF(OR(C4=0,C16=0),0,C16/C7) -> 0 | D15: =IF(OR(D4=0,D16=0),0,D16/D7) -> 0 | E15: 0 | F15: 0 | G15: 0 | H15: 0 | I15: 0 | J15: 0 | K15: 0 | L15: 0 | M15: 0 | N15: 0 | O15: 0 | P15: 0 | Q15: 0 | R15: 0 | S15: 0 | T15: 0 | U15: 0 | V15: 0 | W15: 0 | X15: 0 | Y15: 0 | Z15: 0 | AA15: =IF(OR(AA4=0,AA16=0),0,AA16/AA7) -> 0 | AB15: 0 | AC15: 0 | AD15: 0 | AE15: 0 | AF15: 0 | AG15: 0 | AH15: 0 | AI15: 0 | AJ15: 0 | AK15: 0 | AL15: 0 | AM15: 0 | AN15: 0 | AO15: 0 | AP15: 0 | AQ15: 0 | AR15: 0 | AS15: 0 | AT15: 0 | AU15: 0 | AV15: 0 | AW15: 0 | AX15: 0
A16: =IF(SUM(C16:Z16)=0,"","Customers") ->  | C16: =IF($B$16="",ROUND(C13*INDEX('Social Table'!$A$39:$D$48,MATCH('Rev Model'!$B47,'Social Table'!$A$39:$A$48,1),4),0),ROUND(C13*$B$16,0)) -> 0 | D16: =IF($B$16="",ROUND(D13*INDEX('Social Table'!$A$39:$D$48,MATCH('Rev Model'!$B47,'Social Table'!$A$39:$A$48,1),4),0),ROUND(D13*$B$16,0)) -> 0 | E16: =IF($B$16="",ROUND(E13*INDEX('Social Table'!$A$39:$D$48,MATCH('Rev Model'!$B47,'Social Table'!$A$39:$A$48,1),4),0),ROUND(E13*$B$16,0)) -> 0 | F16: =IF($B$16="",ROUND(F13*INDEX('Social Table'!$A$39:$D$48,MATCH('Rev Model'!$B47,'Social Table'!$A$39:$A$48,1),4),0),ROUND(F13*$B$16,0)) -> 0 | G16: =IF($B$16="",ROUND(G13*INDEX('Social Table'!$A$39:$D$48,MATCH('Rev Model'!$B47,'Social Table'!$A$39:$A$48,1),4),0),ROUND(G13*$B$16,0)) -> 0 | H16: =IF($B$16="",ROUND(H13*INDEX('Social Table'!$A$39:$D$48,MATCH('Rev Model'!$B47,'Social Table'!$A$39:$A$48,1),4),0),ROUND(H13*$B$16,0)) -> 0 | I16: =IF($B$16="",ROUND(I13*INDEX('Social Table'!$A$39:$D$48,MATCH('Rev Model'!$B47,'Social Table'!$A$39:$A$48,1),4),0),ROUND(I13*$B$16,0)) -> 0 | J16: =IF($B$16="",ROUND(J13*INDEX('Social Table'!$A$39:$D$48,MATCH('Rev Model'!$B47,'Social Table'!$A$39:$A$48,1),4),0),ROUND(J13*$B$16,0)) -> 0 | K16: =IF($B$16="",ROUND(K13*INDEX('Social Table'!$A$39:$D$48,MATCH('Rev Model'!$B47,'Social Table'!$A$39:$A$48,1),4),0),ROUND(K13*$B$16,0)) -> 0 | L16: =IF($B$16="",ROUND(L13*INDEX('Social Table'!$A$39:$D$48,MATCH('Rev Model'!$B47,'Social Table'!$A$39:$A$48,1),4),0),ROUND(L13*$B$16,0)) -> 0 | M16: =IF($B$16="",ROUND(M13*INDEX('Social Table'!$A$39:$D$48,MATCH('Rev Model'!$B47,'Social Table'!$A$39:$A$48,1),4),0),ROUND(M13*$B$16,0)) -> 0 | N16: =IF($B$16="",ROUND(N13*INDEX('Social Table'!$A$39:$D$48,MATCH('Rev Model'!$B47,'Social Table'!$A$39:$A$48,1),4),0),ROUND(N13*$B$16,0)) -> 0 | O16: =IF($B$16="",ROUND(O13*INDEX('Social Table'!$A$39:$D$48,MATCH('Rev Model'!$B47,'Social Table'!$A$39:$A$48,1),4),0),ROUND(O13*$B$16,0)) -> 0 | P16: =IF($B$16="",ROUND(P13*INDEX('Social Table'!$A$39:$D$48,MATCH('Rev Model'!$B47,'Social Table'!$A$39:$A$48,1),4),0),ROUND(P13*$B$16,0)) -> 0 | Q16: =IF($B$16="",ROUND(Q13*INDEX('Social Table'!$A$39:$D$48,MATCH('Rev Model'!$B47,'Social Table'!$A$39:$A$48,1),4),0),ROUND(Q13*$B$16,0)) -> 0 | R16: =IF($B$16="",ROUND(R13*INDEX('Social Table'!$A$39:$D$48,MATCH('Rev Model'!$B47,'Social Table'!$A$39:$A$48,1),4),0),ROUND(R13*$B$16,0)) -> 0 | S16: =IF($B$16="",ROUND(S13*INDEX('Social Table'!$A$39:$D$48,MATCH('Rev Model'!$B47,'Social Table'!$A$39:$A$48,1),4),0),ROUND(S13*$B$16,0)) -> 0 | T16: =IF($B$16="",ROUND(T13*INDEX('Social Table'!$A$39:$D$48,MATCH('Rev Model'!$B47,'Social Table'!$A$39:$A$48,1),4),0),ROUND(T13*$B$16,0)) -> 0 | U16: =IF($B$16="",ROUND(U13*INDEX('Social Table'!$A$39:$D$48,MATCH('Rev Model'!$B47,'Social Table'!$A$39:$A$48,1),4),0),ROUND(U13*$B$16,0)) -> 0 | V16: =IF($B$16="",ROUND(V13*INDEX('Social Table'!$A$39:$D$48,MATCH('Rev Model'!$B47,'Social Table'!$A$39:$A$48,1),4),0),ROUND(V13*$B$16,0)) -> 0 | W16: =IF($B$16="",ROUND(W13*INDEX('Social Table'!$A$39:$D$48,MATCH('Rev Model'!$B47,'Social Table'!$A$39:$A$48,1),4),0),ROUND(W13*$B$16,0)) -> 0 | X16: =IF($B$16="",ROUND(X13*INDEX('Social Table'!$A$39:$D$48,MATCH('Rev Model'!$B47,'Social Table'!$A$39:$A$48,1),4),0),ROUND(X13*$B$16,0)) -> 0 | Y16: =IF($B$16="",ROUND(Y13*INDEX('Social Table'!$A$39:$D$48,MATCH('Rev Model'!$B47,'Social Table'!$A$39:$A$48,1),4),0),ROUND(Y13*$B$16,0)) -> 0 | Z16: =IF($B$16="",ROUND(Z13*INDEX('Social Table'!$A$39:$D$48,MATCH('Rev Model'!$B47,'Social Table'!$A$39:$A$48,1),4),0),ROUND(Z13*$B$16,0)) -> 0 | AA16: =IF($B$16="",ROUND(AA13*INDEX('Social Table'!$A$39:$D$48,MATCH('Rev Model'!$B47,'Social Table'!$A$39:$A$48,1),4),0),ROUND(AA13*$B$16,0)) -> 0 | AB16: =IF($B$16="",ROUND(AB13*INDEX('Social Table'!$A$39:$D$48,MATCH('Rev Model'!$B47,'Social Table'!$A$39:$A$48,1),4),0),ROUND(AB13*$B$16,0)) -> 0 | AC16: =IF($B$16="",ROUND(AC13*INDEX('Social Table'!$A$39:$D$48,MATCH('Rev Model'!$B47,'Social Table'!$A$39:$A$48,1),4),0),ROUND(AC13*$B$16,0)) -> 0 | AD16: =IF($B$16="",ROUND(AD13*INDEX('Social Table'!$A$39:$D$48,MATCH('Rev Model'!$B47,'Social Table'!$A$39:$A$48,1),4),0),ROUND(AD13*$B$16,0)) -> 0 | AE16: =IF($B$16="",ROUND(AE13*INDEX('Social Table'!$A$39:$D$48,MATCH('Rev Model'!$B47,'Social Table'!$A$39:$A$48,1),4),0),ROUND(AE13*$B$16,0)) -> 0 | AF16: =IF($B$16="",ROUND(AF13*INDEX('Social Table'!$A$39:$D$48,MATCH('Rev Model'!$B47,'Social Table'!$A$39:$A$48,1),4),0),ROUND(AF13*$B$16,0)) -> 0 | AG16: =IF($B$16="",ROUND(AG13*INDEX('Social Table'!$A$39:$D$48,MATCH('Rev Model'!$B47,'Social Table'!$A$39:$A$48,1),4),0),ROUND(AG13*$B$16,0)) -> 0 | AH16: =IF($B$16="",ROUND(AH13*INDEX('Social Table'!$A$39:$D$48,MATCH('Rev Model'!$B47,'Social Table'!$A$39:$A$48,1),4),0),ROUND(AH13*$B$16,0)) -> 0 | AI16: =IF($B$16="",ROUND(AI13*INDEX('Social Table'!$A$39:$D$48,MATCH('Rev Model'!$B47,'Social Table'!$A$39:$A$48,1),4),0),ROUND(AI13*$B$16,0)) -> 0 | AJ16: =IF($B$16="",ROUND(AJ13*INDEX('Social Table'!$A$39:$D$48,MATCH('Rev Model'!$B47,'Social Table'!$A$39:$A$48,1),4),0),ROUND(AJ13*$B$16,0)) -> 0 | AK16: =IF($B$16="",ROUND(AK13*INDEX('Social Table'!$A$39:$D$48,MATCH('Rev Model'!$B47,'Social Table'!$A$39:$A$48,1),4),0),ROUND(AK13*$B$16,0)) -> 0 | AL16: =IF($B$16="",ROUND(AL13*INDEX('Social Table'!$A$39:$D$48,MATCH('Rev Model'!$B47,'Social Table'!$A$39:$A$48,1),4),0),ROUND(AL13*$B$16,0)) -> 0 | AM16: =IF($B$16="",ROUND(AM13*INDEX('Social Table'!$A$39:$D$48,MATCH('Rev Model'!$B47,'Social Table'!$A$39:$A$48,1),4),0),ROUND(AM13*$B$16,0)) -> 0 | AN16: =IF($B$16="",ROUND(AN13*INDEX('Social Table'!$A$39:$D$48,MATCH('Rev Model'!$B47,'Social Table'!$A$39:$A$48,1),4),0),ROUND(AN13*$B$16,0)) -> 0 | AO16: =IF($B$16="",ROUND(AO13*INDEX('Social Table'!$A$39:$D$48,MATCH('Rev Model'!$B47,'Social Table'!$A$39:$A$48,1),4),0),ROUND(AO13*$B$16,0)) -> 0 | AP16: =IF($B$16="",ROUND(AP13*INDEX('Social Table'!$A$39:$D$48,MATCH('Rev Model'!$B47,'Social Table'!$A$39:$A$48,1),4),0),ROUND(AP13*$B$16,0)) -> 0 | AQ16: =IF($B$16="",ROUND(AQ13*INDEX('Social Table'!$A$39:$D$48,MATCH('Rev Model'!$B47,'Social Table'!$A$39:$A$48,1),4),0),ROUND(AQ13*$B$16,0)) -> 0 | AR16: =IF($B$16="",ROUND(AR13*INDEX('Social Table'!$A$39:$D$48,MATCH('Rev Model'!$B47,'Social Table'!$A$39:$A$48,1),4),0),ROUND(AR13*$B$16,0)) -> 0 | AS16: =IF($B$16="",ROUND(AS13*INDEX('Social Table'!$A$39:$D$48,MATCH('Rev Model'!$B47,'Social Table'!$A$39:$A$48,1),4),0),ROUND(AS13*$B$16,0)) -> 0 | AT16: =IF($B$16="",ROUND(AT13*INDEX('Social Table'!$A$39:$D$48,MATCH('Rev Model'!$B47,'Social Table'!$A$39:$A$48,1),4),0),ROUND(AT13*$B$16,0)) -> 0 | AU16: =IF($B$16="",ROUND(AU13*INDEX('Social Table'!$A$39:$D$48,MATCH('Rev Model'!$B47,'Social Table'!$A$39:$A$48,1),4),0),ROUND(AU13*$B$16,0)) -> 0 | AV16: =IF($B$16="",ROUND(AV13*INDEX('Social Table'!$A$39:$D$48,MATCH('Rev Model'!$B47,'Social Table'!$A$39:$A$48,1),4),0),ROUND(AV13*$B$16,0)) -> 0 | AW16: =IF($B$16="",ROUND(AW13*INDEX('Social Table'!$A$39:$D$48,MATCH('Rev Model'!$B47,'Social Table'!$A$39:$A$48,1),4),0),ROUND(AW13*$B$16,0)) -> 0 | AX16: =IF($B$16="",ROUND(AX13*INDEX('Social Table'!$A$39:$D$48,MATCH('Rev Model'!$B47,'Social Table'!$A$39:$A$48,1),4),0),ROUND(AX13*$B$16,0)) -> 0 | AZ16: =ROUND(AZ14*0.51,0) -> 388
C17: =ROUND(C13*INDEX('Social Table'!$A$39:$D$48,MATCH('Rev Model'!B47,'Social Table'!$A$39:$A$48,1),4),0) -> 0 | D17: =ROUND(D13*INDEX('Social Table'!$A$39:$D$48,MATCH('Rev Model'!C47,'Social Table'!$A$39:$A$48,1),4),0) -> 0 | E17: =ROUND(E13*INDEX('Social Table'!$A$39:$D$48,MATCH('Rev Model'!D47,'Social Table'!$A$39:$A$48,1),4),0) -> 0 | F17: =ROUND(F13*INDEX('Social Table'!$A$39:$D$48,MATCH('Rev Model'!E47,'Social Table'!$A$39:$A$48,1),4),0) -> 0 | G17: =ROUND(G13*INDEX('Social Table'!$A$39:$D$48,MATCH('Rev Model'!F47,'Social Table'!$A$39:$A$48,1),4),0) -> 0 | H17: =ROUND(H13*INDEX('Social Table'!$A$39:$D$48,MATCH('Rev Model'!G47,'Social Table'!$A$39:$A$48,1),4),0) -> 0 | I17: =ROUND(I13*INDEX('Social Table'!$A$39:$D$48,MATCH('Rev Model'!H47,'Social Table'!$A$39:$A$48,1),4),0) -> 0 | J17: =ROUND(J13*INDEX('Social Table'!$A$39:$D$48,MATCH('Rev Model'!I47,'Social Table'!$A$39:$A$48,1),4),0) -> 0 | K17: =ROUND(K13*INDEX('Social Table'!$A$39:$D$48,MATCH('Rev Model'!J47,'Social Table'!$A$39:$A$48,1),4),0) -> 0 | L17: =ROUND(L13*INDEX('Social Table'!$A$39:$D$48,MATCH('Rev Model'!K47,'Social Table'!$A$39:$A$48,1),4),0) -> 0 | M17: =ROUND(M13*INDEX('Social Table'!$A$39:$D$48,MATCH('Rev Model'!L47,'Social Table'!$A$39:$A$48,1),4),0) -> 0 | N17: =ROUND(N13*INDEX('Social Table'!$A$39:$D$48,MATCH('Rev Model'!M47,'Social Table'!$A$39:$A$48,1),4),0) -> 0 | O17: =ROUND(O13*INDEX('Social Table'!$A$39:$D$48,MATCH('Rev Model'!N47,'Social Table'!$A$39:$A$48,1),4),0) -> 0 | P17: =ROUND(P13*INDEX('Social Table'!$A$39:$D$48,MATCH('Rev Model'!O47,'Social Table'!$A$39:$A$48,1),4),0) -> 0 | Q17: =ROUND(Q13*INDEX('Social Table'!$A$39:$D$48,MATCH('Rev Model'!P47,'Social Table'!$A$39:$A$48,1),4),0) -> 0 | R17: =ROUND(R13*INDEX('Social Table'!$A$39:$D$48,MATCH('Rev Model'!Q47,'Social Table'!$A$39:$A$48,1),4),0) -> 0 | S17: =ROUND(S13*INDEX('Social Table'!$A$39:$D$48,MATCH('Rev Model'!R47,'Social Table'!$A$39:$A$48,1),4),0) -> 0 | T17: =ROUND(T13*INDEX('Social Table'!$A$39:$D$48,MATCH('Rev Model'!S47,'Social Table'!$A$39:$A$48,1),4),0) -> 0 | U17: =ROUND(U13*INDEX('Social Table'!$A$39:$D$48,MATCH('Rev Model'!T47,'Social Table'!$A$39:$A$48,1),4),0) -> 0 | V17: =ROUND(V13*INDEX('Social Table'!$A$39:$D$48,MATCH('Rev Model'!U47,'Social Table'!$A$39:$A$48,1),4),0) -> 0 | W17: =ROUND(W13*INDEX('Social Table'!$A$39:$D$48,MATCH('Rev Model'!V47,'Social Table'!$A$39:$A$48,1),4),0) -> 0 | X17: =ROUND(X13*INDEX('Social Table'!$A$39:$D$48,MATCH('Rev Model'!W47,'Social Table'!$A$39:$A$48,1),4),0) -> 0 | Y17: =ROUND(Y13*INDEX('Social Table'!$A$39:$D$48,MATCH('Rev Model'!X47,'Social Table'!$A$39:$A$48,1),4),0) -> 0 | Z17: =ROUND(Z13*INDEX('Social Table'!$A$39:$D$48,MATCH('Rev Model'!Y47,'Social Table'!$A$39:$A$48,1),4),0) -> 0 | AA17: =ROUND(AA13*INDEX('Social Table'!$A$39:$D$48,MATCH('Rev Model'!Z47,'Social Table'!$A$39:$A$48,1),4),0) -> 0 | AB17: =ROUND(AB13*INDEX('Social Table'!$A$39:$D$48,MATCH('Rev Model'!AA47,'Social Table'!$A$39:$A$48,1),4),0) -> 0 | AC17: =ROUND(AC13*INDEX('Social Table'!$A$39:$D$48,MATCH('Rev Model'!AB47,'Social Table'!$A$39:$A$48,1),4),0) -> 0 | AD17: =ROUND(AD13*INDEX('Social Table'!$A$39:$D$48,MATCH('Rev Model'!AC47,'Social Table'!$A$39:$A$48,1),4),0) -> 0 | AE17: =ROUND(AE13*INDEX('Social Table'!$A$39:$D$48,MATCH('Rev Model'!AD47,'Social Table'!$A$39:$A$48,1),4),0) -> 0 | AF17: =ROUND(AF13*INDEX('Social Table'!$A$39:$D$48,MATCH('Rev Model'!AE47,'Social Table'!$A$39:$A$48,1),4),0) -> 0 | AG17: =ROUND(AG13*INDEX('Social Table'!$A$39:$D$48,MATCH('Rev Model'!AF47,'Social Table'!$A$39:$A$48,1),4),0) -> 0 | AH17: =ROUND(AH13*INDEX('Social Table'!$A$39:$D$48,MATCH('Rev Model'!AG47,'Social Table'!$A$39:$A$48,1),4),0) -> 0 | AI17: =ROUND(AI13*INDEX('Social Table'!$A$39:$D$48,MATCH('Rev Model'!AH47,'Social Table'!$A$39:$A$48,1),4),0) -> 0 | AJ17: =ROUND(AJ13*INDEX('Social Table'!$A$39:$D$48,MATCH('Rev Model'!AI47,'Social Table'!$A$39:$A$48,1),4),0) -> 0 | AK17: =ROUND(AK13*INDEX('Social Table'!$A$39:$D$48,MATCH('Rev Model'!AJ47,'Social Table'!$A$39:$A$48,1),4),0) -> 0 | AL17: =ROUND(AL13*INDEX('Social Table'!$A$39:$D$48,MATCH('Rev Model'!AK47,'Social Table'!$A$39:$A$48,1),4),0) -> 0 | AM17: =ROUND(AM13*INDEX('Social Table'!$A$39:$D$48,MATCH('Rev Model'!AL47,'Social Table'!$A$39:$A$48,1),4),0) -> 0 | AN17: =ROUND(AN13*INDEX('Social Table'!$A$39:$D$48,MATCH('Rev Model'!AM47,'Social Table'!$A$39:$A$48,1),4),0) -> 0 | AO17: =ROUND(AO13*INDEX('Social Table'!$A$39:$D$48,MATCH('Rev Model'!AN47,'Social Table'!$A$39:$A$48,1),4),0) -> 0 | AP17: =ROUND(AP13*INDEX('Social Table'!$A$39:$D$48,MATCH('Rev Model'!AO47,'Social Table'!$A$39:$A$48,1),4),0) -> 0 | AQ17: =ROUND(AQ13*INDEX('Social Table'!$A$39:$D$48,MATCH('Rev Model'!AP47,'Social Table'!$A$39:$A$48,1),4),0) -> 0 | AR17: =ROUND(AR13*INDEX('Social Table'!$A$39:$D$48,MATCH('Rev Model'!AQ47,'Social Table'!$A$39:$A$48,1),4),0) -> 0 | AS17: =ROUND(AS13*INDEX('Social Table'!$A$39:$D$48,MATCH('Rev Model'!AR47,'Social Table'!$A$39:$A$48,1),4),0) -> 0 | AT17: =ROUND(AT13*INDEX('Social Table'!$A$39:$D$48,MATCH('Rev Model'!AS47,'Social Table'!$A$39:$A$48,1),4),0) -> 0 | AU17: =ROUND(AU13*INDEX('Social Table'!$A$39:$D$48,MATCH('Rev Model'!AT47,'Social Table'!$A$39:$A$48,1),4),0) -> 0 | AV17: =ROUND(AV13*INDEX('Social Table'!$A$39:$D$48,MATCH('Rev Model'!AU47,'Social Table'!$A$39:$A$48,1),4),0) -> 0 | AW17: =ROUND(AW13*INDEX('Social Table'!$A$39:$D$48,MATCH('Rev Model'!AV47,'Social Table'!$A$39:$A$48,1),4),0) -> 0 | AX17: =ROUND(AX13*INDEX('Social Table'!$A$39:$D$48,MATCH('Rev Model'!AW47,'Social Table'!$A$39:$A$48,1),4),0) -> 0
A18: Cumulative Customers | C18: =C16 -> 0 | D18: =D16+C18 -> 0 | E18: 0 | F18: 0 | G18: 0 | H18: 0 | I18: 0 | J18: 0 | K18: 0 | L18: 0 | M18: 0 | N18: 0 | O18: 0 | P18: 0 | Q18: 0 | R18: 0 | S18: 0 | T18: 0 | U18: 0 | V18: 0 | W18: 0 | X18: 0 | Y18: 0 | Z18: 0 | AA18: =AA16+Z18 -> 0 | AB18: 0 | AC18: 0 | AD18: 0 | AE18: 0 | AF18: 0 | AG18: 0 | AH18: 0 | AI18: 0 | AJ18: 0 | AK18: 0 | AL18: 0 | AM18: 0 | AN18: 0 | AO18: 0 | AP18: 0 | AQ18: 0 | AR18: 0 | AS18: 0 | AT18: 0 | AU18: 0 | AV18: 0 | AW18: 0 | AX18: 0
A20: Shared Revenue Goal | C20: ='Rev Model'!B14 -> 0 | D20: ='Rev Model'!C14 -> 0 | E20: ='Rev Model'!D14 -> 0 | F20: ='Rev Model'!E14 -> 0 | G20: ='Rev Model'!F14 -> 0 | H20: ='Rev Model'!G14 -> 0 | I20: ='Rev Model'!H14 -> 0 | J20: ='Rev Model'!I14 -> 0 | K20: ='Rev Model'!J14 -> 0 | L20: ='Rev Model'!K14 -> 0 | M20: ='Rev Model'!L14 -> 0 | N20: ='Rev Model'!M14 -> 0 | O20: ='Rev Model'!N14 -> 0 | P20: ='Rev Model'!O14 -> 0 | Q20: ='Rev Model'!P14 -> 0 | R20: ='Rev Model'!Q14 -> 0 | S20: ='Rev Model'!R14 -> 0 | T20: ='Rev Model'!S14 -> 0 | U20: ='Rev Model'!T14 -> 0 | V20: ='Rev Model'!U14 -> 0 | W20: ='Rev Model'!V14 -> 0 | X20: ='Rev Model'!W14 -> 0 | Y20: ='Rev Model'!X14 -> 0 | Z20: ='Rev Model'!Y14 -> 0 | AA20: ='Rev Model'!Z14 -> 0 | AB20: ='Rev Model'!AA14 -> 0 | AC20: ='Rev Model'!AB14 -> 0 | AD20: ='Rev Model'!AC14 -> 0 | AE20: ='Rev Model'!AD14 -> 0 | AF20: ='Rev Model'!AE14 -> 0 | AG20: ='Rev Model'!AF14 -> 0 | AH20: ='Rev Model'!AG14 -> 0 | AI20: ='Rev Model'!AH14 -> 0 | AJ20: ='Rev Model'!AI14 -> 0 | AK20: ='Rev Model'!AJ14 -> 0 | AL20: ='Rev Model'!AK14 -> 0 | AM20: ='Rev Model'!AL14 -> 0 | AN20: ='Rev Model'!AM14 -> 0 | AO20: ='Rev Model'!AN14 -> 0 | AP20: ='Rev Model'!AO14 -> 0 | AQ20: ='Rev Model'!AP14 -> 0 | AR20: ='Rev Model'!AQ14 -> 0 | AS20: ='Rev Model'!AR14 -> 0 | AT20: ='Rev Model'!AS14 -> 0 | AU20: ='Rev Model'!AT14 -> 0 | AV20: ='Rev Model'!AU14 -> 0 | AW20: ='Rev Model'!AV14 -> 0 | AX20: ='Rev Model'!AW14 -> 0
A21: Average Deal Size | C21: =IF(C20=0,0,C20/C24) -> 0 | D21: =IF(D20=0,0,D20/D24) -> 0 | E21: 0 | F21: 0 | G21: 0 | H21: 0 | I21: 0 | J21: 0 | K21: 0 | L21: 0 | M21: 0 | N21: 0 | O21: 0 | P21: 0 | Q21: 0 | R21: 0 | S21: 0 | T21: 0 | U21: 0 | V21: 0 | W21: 0 | X21: 0 | Y21: 0 | Z21: 0 | AA21: =IF(AA20=0,0,AA20/AA24) -> 0 | AB21: 0 | AC21: 0 | AD21: 0 | AE21: 0 | AF21: 0 | AG21: 0 | AH21: 0 | AI21: 0 | AJ21: 0 | AK21: 0 | AL21: 0 | AM21: 0 | AN21: 0 | AO21: 0 | AP21: 0 | AQ21: 0 | AR21: 0 | AS21: 0 | AT21: 0 | AU21: 0 | AV21: 0 | AW21: 0 | AX21: 0
A23: Ian Model Customer Acquisition | C23: =ROUND(C4*C6*C15,0) -> 0 | D23: 0 | E23: 0 | F23: 0 | G23: 0 | H23: 0 | I23: 0 | J23: 0 | K23: 0 | L23: 0 | M23: 0 | N23: 0 | O23: 0 | P23: 0 | Q23: 0 | R23: 0 | S23: 0 | T23: 0 | U23: 0 | V23: 0 | W23: 0 | X23: 0 | Y23: 0 | Z23: =ROUND(Z4*Z6*Z15,0) -> 0 | AA23: =ROUND(AA4*AA6*AA15,0) -> 0 | AB23: 0 | AC23: 0 | AD23: 0 | AE23: 0 | AF23: 0 | AG23: 0 | AH23: 0 | AI23: 0 | AJ23: 0 | AK23: 0 | AL23: 0 | AM23: 0 | AN23: 0 | AO23: 0 | AP23: 0 | AQ23: 0 | AR23: 0 | AS23: 0 | AT23: 0 | AU23: 0 | AV23: 0 | AW23: 0 | AX23: 0
A24: Cumulative Customer Acquisition | C24: =C23 -> 0 | D24: =C24+D23 -> 0 | E24: =D24+E23 -> 0 | F24: 0 | G24: 0 | H24: 0 | I24: 0 | J24: 0 | K24: 0 | L24: 0 | M24: 0 | N24: 0 | O24: 0 | P24: 0 | Q24: 0 | R24: 0 | S24: 0 | T24: 0 | U24: 0 | V24: 0 | W24: 0 | X24: 0 | Y24: 0 | Z24: =Y24+Z23 -> 0 | AA24: 0 | AB24: 0 | AC24: 0 | AD24: 0 | AE24: 0 | AF24: 0 | AG24: 0 | AH24: 0 | AI24: 0 | AJ24: 0 | AK24: 0 | AL24: 0 | AM24: 0 | AN24: 0 | AO24: 0 | AP24: 0 | AQ24: 0 | AR24: 0 | AS24: 0 | AT24: 0 | AU24: 0 | AV24: 0 | AW24: 0 | AX24: 0
A26: Ian Model overall conversion rate | C26: =IF(OR(C4=0,C23=0),0,C23/C7) -> 0 | D26: =IF(OR(D4=0,D23=0),0,D23/D7) -> 0 | E26: 0 | F26: 0 | G26: 0 | H26: 0 | I26: 0 | J26: 0 | K26: 0 | L26: 0 | M26: 0 | N26: 0 | O26: 0 | P26: 0 | Q26: 0 | R26: 0 | S26: 0 | T26: 0 | U26: 0 | V26: 0 | W26: 0 | X26: 0 | Y26: 0 | Z26: 0 | AA26: =IF(OR(AA4=0,AA23=0),0,AA23/AA7) -> 0 | AB26: 0 | AC26: 0 | AD26: 0 | AE26: 0 | AF26: 0 | AG26: 0 | AH26: 0 | AI26: 0 | AJ26: 0 | AK26: 0 | AL26: 0 | AM26: 0 | AN26: 0 | AO26: 0 | AP26: 0 | AQ26: 0 | AR26: 0 | AS26: 0 | AT26: 0 | AU26: 0 | AV26: 0 | AW26: 0 | AX26: 0
A27: Conversion between stages @ 50%, 50%, 50%, 50% | C27: =C15 -> 0 | D27: =D15 -> 0 | E27: 0 | F27: 0 | G27: 0 | H27: 0 | I27: 0 | J27: 0 | K27: 0 | L27: 0 | M27: 0 | N27: 0 | O27: 0 | P27: 0 | Q27: 0 | R27: 0 | S27: 0 | T27: 0 | U27: 0 | V27: 0 | W27: 0 | X27: 0 | Y27: 0 | Z27: 0 | AA27: =AA15 -> 0 | AB27: 0 | AC27: 0 | AD27: 0 | AE27: 0 | AF27: 0 | AG27: 0 | AH27: 0 | AI27: 0 | AJ27: 0 | AK27: 0 | AL27: 0 | AM27: 0 | AN27: 0 | AO27: 0 | AP27: 0 | AQ27: 0 | AR27: 0 | AS27: 0 | AT27: 0 | AU27: 0 | AV27: 0 | AW27: 0 | AX27: 0
A29: Ian Model Average Deal Size | C29: =IF(C24=0,0,C20/C24) -> 0 | D29: 0 | E29: 0 | F29: 0 | G29: 0 | H29: 0 | I29: 0 | J29: 0 | K29: =IF(K24=0,0,K20/K24) -> 0 | L29: 0 | M29: 0 | N29: 0 | O29: 0 | P29: 0 | Q29: 0 | R29: 0 | S29: 0 | T29: 0 | U29: 0 | V29: 0 | W29: 0 | X29: 0 | Y29: =IF(Y24=0,0,Y20/Y24) -> 0 | Z29: 0 | AA29: 0 | AB29: =IF(AB24=0,0,AB20/AB24) -> 0 | AC29: 0 | AD29: 0 | AE29: 0 | AF29: 0 | AG29: 0 | AH29: 0 | AI29: 0 | AJ29: 0 | AK29: 0 | AL29: 0 | AM29: 0 | AN29: 0 | AO29: 0 | AP29: 0 | AQ29: 0 | AR29: 0 | AS29: 0 | AT29: 0 | AU29: 0 | AV29: 0 | AW29: 0 | AX29: 0
A31: Percent of revenue from cartridges | B31: =IF(Z20=0,0,Z53/Z20) -> 0 | C31: =B31 -> 0 | D31: =C31 -> 0 | E31: =D31 -> 0 | F31: 0 | G31: 0 | H31: 0 | I31: 0 | J31: 0 | K31: 0 | L31: 0 | M31: 0 | N31: 0 | O31: 0 | P31: 0 | Q31: 0 | R31: 0 | S31: 0 | T31: 0 | U31: 0 | V31: 0 | W31: 0 | X31: 0 | Y31: 0 | Z31: 0 | AA31: =Z31 -> 0 | AB31: 0 | AC31: 0 | AD31: 0 | AE31: 0 | AF31: 0 | AG31: 0 | AH31: 0 | AI31: 0 | AJ31: 0 | AK31: 0 | AL31: 0 | AM31: 0 | AN31: 0 | AO31: 0 | AP31: 0 | AQ31: 0 | AR31: 0 | AS31: 0 | AT31: 0 | AU31: 0 | AV31: 0 | AW31: 0 | AX31: 0
A33: Average Cartridge Sell Price | B33: 60 | C33: =B33 -> 60 | D33: =C33 -> 60 | E33: =D33 -> 60 | F33: 60 | G33: 60 | H33: 60 | I33: 60 | J33: 60 | K33: 60 | L33: 60 | M33: 60 | N33: 60 | O33: 60 | P33: 60 | Q33: 60 | R33: 60 | S33: 60 | T33: 60 | U33: 60 | V33: 60 | W33: 60 | X33: 60 | Y33: 60 | Z33: 60 | AA33: =Z33 -> 60 | AB33: 60 | AC33: 60 | AD33: 60 | AE33: 60 | AF33: 60 | AG33: 60 | AH33: 60 | AI33: 60 | AJ33: 60 | AK33: 60 | AL33: 60 | AM33: 60 | AN33: 60 | AO33: 60 | AP33: 60 | AQ33: 60 | AR33: 60 | AS33: 60 | AT33: 60 | AU33: 60 | AV33: 60 | AW33: 60 | AX33: 60
A34: # of Cartridges per month | C34: =C29*C31/'Sales Funnel'!C33 -> 0 | D34: =D29*D31/'Sales Funnel'!D33 -> 0 | E34: =E29*E31/'Sales Funnel'!E33 -> 0 | F34: =F29*F31/'Sales Funnel'!F33 -> 0 | G34: =G29*G31/'Sales Funnel'!G33 -> 0 | H34: =H29*H31/'Sales Funnel'!H33 -> 0 | I34: =I29*I31/'Sales Funnel'!I33 -> 0 | J34: =J29*J31/'Sales Funnel'!J33 -> 0 | K34: =K29*K31/'Sales Funnel'!K33 -> 0 | L34: =L29*L31/'Sales Funnel'!L33 -> 0 | M34: =M29*M31/'Sales Funnel'!M33 -> 0 | N34: =N29*N31/'Sales Funnel'!N33 -> 0 | O34: =O29*O31/'Sales Funnel'!O33 -> 0 | P34: =P29*P31/'Sales Funnel'!P33 -> 0 | Q34: =Q29*Q31/'Sales Funnel'!Q33 -> 0 | R34: =R29*R31/'Sales Funnel'!R33 -> 0 | S34: =S29*S31/'Sales Funnel'!S33 -> 0 | T34: =T29*T31/'Sales Funnel'!T33 -> 0 | U34: =U29*U31/'Sales Funnel'!U33 -> 0 | V34: =V29*V31/'Sales Funnel'!V33 -> 0 | W34: =W29*W31/'Sales Funnel'!W33 -> 0 | X34: =X29*X31/'Sales Funnel'!X33 -> 0 | Y34: =Y29*Y31/'Sales Funnel'!Y33 -> 0 | Z34: =Z29*Z31/'Sales Funnel'!Z33 -> 0 | AA34: =AA29*AA31/'Sales Funnel'!AA33 -> 0 | AB34: =AB29*AB31/'Sales Funnel'!AB33 -> 0 | AC34: =AC29*AC31/'Sales Funnel'!AC33 -> 0 | AD34: =AD29*AD31/'Sales Funnel'!AD33 -> 0 | AE34: =AE29*AE31/'Sales Funnel'!AE33 -> 0 | AF34: =AF29*AF31/'Sales Funnel'!AF33 -> 0 | AG34: =AG29*AG31/'Sales Funnel'!AG33 -> 0 | AH34: =AH29*AH31/'Sales Funnel'!AH33 -> 0 | AI34: =AI29*AI31/'Sales Funnel'!AI33 -> 0 | AJ34: =AJ29*AJ31/'Sales Funnel'!AJ33 -> 0 | AK34: =AK29*AK31/'Sales Funnel'!AK33 -> 0 | AL34: =AL29*AL31/'Sales Funnel'!AL33 -> 0 | AM34: =AM29*AM31/'Sales Funnel'!AM33 -> 0 | AN34: =AN29*AN31/'Sales Funnel'!AN33 -> 0 | AO34: =AO29*AO31/'Sales Funnel'!AO33 -> 0 | AP34: =AP29*AP31/'Sales Funnel'!AP33 -> 0 | AQ34: =AQ29*AQ31/'Sales Funnel'!AQ33 -> 0 | AR34: =AR29*AR31/'Sales Funnel'!AR33 -> 0 | AS34: =AS29*AS31/'Sales Funnel'!AS33 -> 0 | AT34: =AT29*AT31/'Sales Funnel'!AT33 -> 0 | AU34: =AU29*AU31/'Sales Funnel'!AU33 -> 0 | AV34: =AV29*AV31/'Sales Funnel'!AV33 -> 0 | AW34: =AW29*AW31/'Sales Funnel'!AW33 -> 0 | AX34: =AX29*AX31/'Sales Funnel'!AX33 -> 0
A35: # of Cartridges per year | C35: =ROUND(C34*12,0) -> 0 | D35: =ROUND(D34*12,0) -> 0 | E35: 0 | F35: 0 | G35: 0 | H35: 0 | I35: 0 | J35: 0 | K35: 0 | L35: 0 | M35: 0 | N35: 0 | O35: 0 | P35: 0 | Q35: 0 | R35: 0 | S35: 0 | T35: 0 | U35: 0 | V35: 0 | W35: 0 | X35: 0 | Y35: 0 | Z35: 0 | AA35: =ROUND(AA34*12,0) -> 0 | AB35: 0 | AC35: 0 | AD35: 0 | AE35: 0 | AF35: 0 | AG35: 0 | AH35: 0 | AI35: 0 | AJ35: 0 | AK35: 0 | AL35: 0 | AM35: 0 | AN35: 0 | AO35: 0 | AP35: 0 | AQ35: 0 | AR35: 0 | AS35: 0 | AT35: 0 | AU35: 0 | AV35: 0 | AW35: 0 | AX35: 0
A36: Est. Average Printers/Cust | B36: 4 | C36: =ROUND(C35/$B$36,0) -> 0 | D36: =ROUND(D35/$B$36,0) -> 0 | E36: 0 | F36: 0 | G36: 0 | H36: 0 | I36: 0 | J36: 0 | K36: 0 | L36: 0 | M36: 0 | N36: 0 | O36: 0 | P36: 0 | Q36: 0 | R36: 0 | S36: 0 | T36: 0 | U36: 0 | V36: 0 | W36: 0 | X36: 0 | Y36: 0 | Z36: 0 | AA36: =ROUND(AA35/$B$36,0) -> 0 | AB36: 0 | AC36: 0 | AD36: 0 | AE36: 0 | AF36: 0 | AG36: 0 | AH36: 0 | AI36: 0 | AJ36: 0 | AK36: 0 | AL36: 0 | AM36: 0 | AN36: 0 | AO36: 0 | AP36: 0 | AQ36: 0 | AR36: 0 | AS36: 0 | AT36: 0 | AU36: 0 | AV36: 0 | AW36: 0 | AX36: 0
A37: One printer for every 4.4 employees | C37: 4.4 | D37: =C37 -> 4.4 | E37: =D37 -> 4.4 | F37: 4.4 | G37: 4.4 | H37: 4.4 | I37: 4.4 | J37: 4.4 | K37: 4.4 | L37: 4.4 | M37: 4.4 | N37: 4.4 | O37: 4.4 | P37: 4.4 | Q37: 4.4 | R37: 4.4 | S37: 4.4 | T37: 4.4 | U37: 4.4 | V37: 4.4 | W37: 4.4 | X37: 4.4 | Y37: 4.4 | Z37: 4.4 | AA37: =Z37 -> 4.4 | AB37: 4.4 | AC37: 4.4 | AD37: 4.4 | AE37: 4.4 | AF37: 4.4 | AG37: 4.4 | AH37: 4.4 | AI37: 4.4 | AJ37: 4.4 | AK37: 4.4 | AL37: 4.4 | AM37: 4.4 | AN37: 4.4 | AO37: 4.4 | AP37: 4.4 | AQ37: 4.4 | AR37: 4.4 | AS37: 4.4 | AT37: 4.4 | AU37: 4.4 | AV37: 4.4 | AW37: 4.4 | AX37: 4.4
A38: Avg. Company Size (employees) | C38: =ROUND(C37*C36,0) -> 0 | D38: 0 | E38: 0 | F38: 0 | G38: 0 | H38: 0 | I38: 0 | J38: 0 | K38: 0 | L38: 0 | M38: 0 | N38: 0 | O38: 0 | P38: 0 | Q38: 0 | R38: 0 | S38: 0 | T38: 0 | U38: 0 | V38: 0 | W38: 0 | X38: 0 | Y38: 0 | Z38: 0 | AA38: =ROUND(AA37*AA36,0) -> 0 | AB38: 0 | AC38: 0 | AD38: 0 | AE38: 0 | AF38: 0 | AG38: 0 | AH38: 0 | AI38: 0 | AJ38: 0 | AK38: 0 | AL38: 0 | AM38: 0 | AN38: 0 | AO38: 0 | AP38: 0 | AQ38: 0 | AR38: 0 | AS38: 0 | AT38: 0 | AU38: 0 | AV38: 0 | AW38: 0 | AX38: 0
A40: Customer Mix
A41: Large (200 Employees) | B41: =IF('Web Pages_Input'!B10<50000,0.01,IF(AND('Web Pages_Input'!B10>=50000,'Web Pages_Input'!B10<100000),0.025,0.05)) -> 0.01 | C41: =ROUND(C$24*$B$41,0) -> 0 | D41: =ROUND(D$24*$B$41,0) -> 0 | E41: 0 | F41: 0 | G41: 0 | H41: 0 | I41: 0 | J41: 0 | K41: 0 | L41: 0 | M41: 0 | N41: 0 | O41: 0 | P41: 0 | Q41: 0 | R41: 0 | S41: 0 | T41: 0 | U41: 0 | V41: 0 | W41: 0 | X41: 0 | Y41: 0 | Z41: 0 | AA41: 0 | AB41: 0 | AC41: 0 | AD41: 0 | AE41: 0 | AF41: 0 | AG41: 0 | AH41: 0 | AI41: 0 | AJ41: 0 | AK41: 0 | AL41: 0 | AM41: 0 | AN41: 0 | AO41: 0 | AP41: 0 | AQ41: 0 | AR41: 0 | AS41: 0 | AT41: 0 | AU41: 0 | AV41: 0 | AW41: 0 | AX41: 0 | AY41: =Z41*B46 -> 0 | AZ41: =IF(SUM(AY41:AY43)=0,0,SUM(AY41:AY43)/SUM(Z41:Z43)) -> 0
A42: Medium (50 Employees) | B42: =IF('Web Pages_Input'!B10<50000,0.05,IF(AND('Web Pages_Input'!B10>=50000,'Web Pages_Input'!B10<100000),0.075,0.1)) -> 0.05 | C42: =ROUND(C$24*$B$42,0) -> 0 | D42: =ROUND(D$24*$B$42,0) -> 0 | E42: 0 | F42: 0 | G42: 0 | H42: 0 | I42: 0 | J42: 0 | K42: 0 | L42: 0 | M42: 0 | N42: 0 | O42: 0 | P42: 0 | Q42: 0 | R42: 0 | S42: 0 | T42: 0 | U42: 0 | V42: 0 | W42: 0 | X42: 0 | Y42: 0 | Z42: 0 | AA42: 0 | AB42: 0 | AC42: 0 | AD42: 0 | AE42: 0 | AF42: 0 | AG42: 0 | AH42: 0 | AI42: 0 | AJ42: 0 | AK42: 0 | AL42: 0 | AM42: 0 | AN42: 0 | AO42: 0 | AP42: 0 | AQ42: 0 | AR42: 0 | AS42: 0 | AT42: 0 | AU42: 0 | AV42: 0 | AW42: 0 | AX42: 0 | AY42: =Z42*B47 -> 0
A43: Small (10 Employees) | B43: =1-(SUM(B41:B42)) -> 0.94 | C43: =ROUND(C$24*$B$43,0) -> 0 | D43: =ROUND(D$24*$B$43,0) -> 0 | E43: 0 | F43: 0 | G43: 0 | H43: 0 | I43: 0 | J43: 0 | K43: 0 | L43: 0 | M43: 0 | N43: 0 | O43: 0 | P43: 0 | Q43: 0 | R43: 0 | S43: 0 | T43: 0 | U43: 0 | V43: 0 | W43: 0 | X43: 0 | Y43: 0 | Z43: 0 | AA43: 0 | AB43: 0 | AC43: 0 | AD43: 0 | AE43: 0 | AF43: 0 | AG43: 0 | AH43: 0 | AI43: 0 | AJ43: 0 | AK43: 0 | AL43: 0 | AM43: 0 | AN43: 0 | AO43: 0 | AP43: 0 | AQ43: 0 | AR43: 0 | AS43: 0 | AT43: 0 | AU43: 0 | AV43: 0 | AW43: 0 | AX43: 0 | AY43: =Z43*B48 -> 0
A45: Estimated Printer Population
A46: Large (200 Employees) | B46: 200 | C46: =ROUNDUP($B$46/C$37,0)*C41 -> 0 | D46: =ROUNDUP($B$46/D$37,0)*D41 -> 0 | E46: 0 | F46: 0 | G46: 0 | H46: 0 | I46: 0 | J46: 0 | K46: 0 | L46: 0 | M46: 0 | N46: 0 | O46: 0 | P46: 0 | Q46: 0 | R46: 0 | S46: 0 | T46: 0 | U46: 0 | V46: 0 | W46: 0 | X46: 0 | Y46: 0 | Z46: 0 | AA46: =ROUNDUP($B$46/AA$37,0)*AA41 -> 0 | AB46: 0 | AC46: 0 | AD46: 0 | AE46: 0 | AF46: 0 | AG46: 0 | AH46: 0 | AI46: 0 | AJ46: 0 | AK46: 0 | AL46: 0 | AM46: 0 | AN46: 0 | AO46: 0 | AP46: 0 | AQ46: 0 | AR46: 0 | AS46: 0 | AT46: 0 | AU46: 0 | AV46: 0 | AW46: 0 | AX46: 0 | AY46: =IF(Z46=0,0,Z46/Z41) -> 0
A47: Medium (50 Employees) | B47: 50 | C47: =ROUNDUP($B$47/C$37,0)*C42 -> 0 | D47: =ROUNDUP($B$47/D$37,0)*D42 -> 0 | E47: 0 | F47: 0 | G47: 0 | H47: 0 | I47: 0 | J47: 0 | K47: 0 | L47: 0 | M47: 0 | N47: 0 | O47: 0 | P47: 0 | Q47: 0 | R47: 0 | S47: 0 | T47: 0 | U47: 0 | V47: 0 | W47: 0 | X47: 0 | Y47: 0 | Z47: 0 | AA47: =ROUNDUP($B$47/AA$37,0)*AA42 -> 0 | AB47: 0 | AC47: 0 | AD47: 0 | AE47: 0 | AF47: 0 | AG47: 0 | AH47: 0 | AI47: 0 | AJ47: 0 | AK47: 0 | AL47: 0 | AM47: 0 | AN47: 0 | AO47: 0 | AP47: 0 | AQ47: 0 | AR47: 0 | AS47: 0 | AT47: 0 | AU47: 0 | AV47: 0 | AW47: 0 | AX47: 0 | AY47: =IF(Z47=0,0,Z47/Z42) -> 0
A48: Small (10 Employees) | B48: 10 | C48: =ROUNDUP($B$48/C$37,0)*C43 -> 0 | D48: =ROUNDUP($B$48/D$37,0)*D43 -> 0 | E48: 0 | F48: 0 | G48: 0 | H48: 0 | I48: 0 | J48: 0 | K48: 0 | L48: 0 | M48: 0 | N48: 0 | O48: 0 | P48: 0 | Q48: 0 | R48: 0 | S48: 0 | T48: 0 | U48: 0 | V48: 0 | W48: 0 | X48: 0 | Y48: 0 | Z48: 0 | AA48: =ROUNDUP($B$48/AA$37,0)*AA43 -> 0 | AB48: 0 | AC48: 0 | AD48: 0 | AE48: 0 | AF48: 0 | AG48: 0 | AH48: 0 | AI48: 0 | AJ48: 0 | AK48: 0 | AL48: 0 | AM48: 0 | AN48: 0 | AO48: 0 | AP48: 0 | AQ48: 0 | AR48: 0 | AS48: 0 | AT48: 0 | AU48: 0 | AV48: 0 | AW48: 0 | AX48: 0 | AY48: =IF(Z48=0,0,Z48/Z43) -> 0
A49: Total Estimated Printer Population | C49: =SUM(C46:C48) -> 0 | D49: =SUM(D46:D48) -> 0 | E49: 0 | F49: 0 | G49: 0 | H49: 0 | I49: 0 | J49: 0 | K49: 0 | L49: 0 | M49: 0 | N49: 0 | O49: 0 | P49: 0 | Q49: 0 | R49: 0 | S49: 0 | T49: 0 | U49: 0 | V49: 0 | W49: 0 | X49: 0 | Y49: 0 | Z49: 0 | AA49: =SUM(AA46:AA48) -> 0 | AB49: 0 | AC49: 0 | AD49: 0 | AE49: 0 | AF49: 0 | AG49: 0 | AH49: 0 | AI49: 0 | AJ49: 0 | AK49: 0 | AL49: 0 | AM49: 0 | AN49: 0 | AO49: 0 | AP49: 0 | AQ49: 0 | AR49: 0 | AS49: 0 | AT49: 0 | AU49: 0 | AV49: 0 | AW49: 0 | AX49: 0 | AY49: =IF(Z49=0,0,Z49/SUM(Z41:Z43)) -> 0
A51: Est. Annual Cartridge Consumption | C51: =C49*4 -> 0 | D51: =D49*4 -> 0 | E51: 0 | F51: 0 | G51: 0 | H51: 0 | I51: 0 | J51: 0 | K51: 0 | L51: 0 | M51: 0 | N51: 0 | O51: 0 | P51: 0 | Q51: 0 | R51: 0 | S51: 0 | T51: 0 | U51: 0 | V51: 0 | W51: 0 | X51: 0 | Y51: 0 | Z51: 0 | AA51: =AA49*4 -> 0 | AB51: 0 | AC51: 0 | AD51: 0 | AE51: 0 | AF51: 0 | AG51: 0 | AH51: 0 | AI51: 0 | AJ51: 0 | AK51: 0 | AL51: 0 | AM51: 0 | AN51: 0 | AO51: 0 | AP51: 0 | AQ51: 0 | AR51: 0 | AS51: 0 | AT51: 0 | AU51: 0 | AV51: 0 | AW51: 0 | AX51: 0
A52: Total Sales off Cartridges | C52: =C51*C33 -> 0 | D52: 0 | E52: 0 | F52: 0 | G52: 0 | H52: 0 | I52: 0 | J52: 0 | K52: 0 | L52: 0 | M52: 0 | N52: 0 | O52: 0 | P52: 0 | Q52: 0 | R52: 0 | S52: 0 | T52: 0 | U52: 0 | V52: 0 | W52: 0 | X52: 0 | Y52: 0 | Z52: =Z51*Z33 -> 0 | AA52: =AA51*AA33 -> 0 | AB52: 0 | AC52: 0 | AD52: 0 | AE52: 0 | AF52: 0 | AG52: 0 | AH52: 0 | AI52: 0 | AJ52: 0 | AK52: 0 | AL52: 0 | AM52: 0 | AN52: 0 | AO52: 0 | AP52: 0 | AQ52: 0 | AR52: 0 | AS52: 0 | AT52: 0 | AU52: 0 | AV52: 0 | AW52: 0 | AX52: 0
A53: Total Sales off Cartridges per month | C53: =C52/12 -> 0 | D53: =D52/12 -> 0 | E53: 0 | F53: 0 | G53: 0 | H53: 0 | I53: 0 | J53: 0 | K53: 0 | L53: 0 | M53: 0 | N53: 0 | O53: 0 | P53: 0 | Q53: 0 | R53: 0 | S53: 0 | T53: 0 | U53: 0 | V53: 0 | W53: 0 | X53: 0 | Y53: 0 | Z53: =Z52/12 -> 0 | AA53: =AA52/12 -> 0 | AB53: 0 | AC53: 0 | AD53: 0 | AE53: 0 | AF53: 0 | AG53: 0 | AH53: 0 | AI53: 0 | AJ53: 0 | AK53: 0 | AL53: 0 | AM53: 0 | AN53: 0 | AO53: 0 | AP53: 0 | AQ53: 0 | AR53: 0 | AS53: 0 | AT53: 0 | AU53: 0 | AV53: 0 | AW53: 0 | AX53: 0
Z54: =Z20*Z31 -> 0
A55: PRM Hero | C55: =IF(C49<=80,79,IF(AND(C49>80,C49<=250),139,IF(AND(C49>250,C49<=500),189,349))) -> 79 | D55: =IF(D49<=80,79,IF(AND(D49>80,D49<=250),139,IF(AND(D49>250,D49<=500),189,349))) -> 79 | E55: 79 | F55: 79 | G55: 79 | H55: 79 | I55: 79 | J55: 79 | K55: 79 | L55: 79 | M55: 79 | N55: 79 | O55: 79 | P55: 79 | Q55: 79 | R55: 79 | S55: 79 | T55: 79 | U55: 79 | V55: 79 | W55: 79 | X55: 79 | Y55: 79 | Z55: 79 | AA55: 79 | AB55: 79 | AC55: 79 | AD55: 79 | AE55: 79 | AF55: 79 | AG55: 79 | AH55: 79 | AI55: 79 | AJ55: 79 | AK55: 79 | AL55: 79 | AM55: 79 | AN55: 79 | AO55: 79 | AP55: 79 | AQ55: 79 | AR55: 79 | AS55: 79 | AT55: 79 | AU55: 79 | AV55: 79 | AW55: 79 | AX55: 79
A56: Cost per machine | C56: =C55/C49 ->  | D56: =D55/D49 -> 
A58: Example 10 customers | C58: =C55*10 -> 790 | D58: =D55*10 -> 790 | E58: 790 | F58: 790 | G58: 790 | H58: 790 | I58: 790 | J58: 790 | K58: 790 | L58: 790 | M58: 790 | N58: 790 | O58: 790 | P58: 790 | Q58: 790 | R58: 790 | S58: 790 | T58: 790 | U58: 790 | V58: 790 | W58: 790 | X58: 790 | Y58: 790 | Z58: 790 | AA58: 790 | AB58: 790 | AC58: 790 | AD58: 790 | AE58: 790 | AF58: 790 | AG58: 790 | AH58: 790 | AI58: 790 | AJ58: 790 | AK58: 790 | AL58: 790 | AM58: 790 | AN58: 790 | AO58: 790 | AP58: 790 | AQ58: 790 | AR58: 790 | AS58: 790 | AT58: 790 | AU58: 790 | AV58: 790 | AW58: 790 | AX58: 790
A59: PEC Proposed Billing (Total devices) | C59: =C49*10 -> 0 | D59: =D49*10 -> 0 | E59: 0 | F59: 0 | G59: 0 | H59: 0 | I59: 0 | J59: 0 | K59: 0 | L59: 0 | M59: 0 | N59: 0 | O59: 0 | P59: 0 | Q59: 0 | R59: 0 | S59: 0 | T59: 0 | U59: 0 | V59: 0 | W59: 0 | X59: 0 | Y59: 0 | Z59: 0 | AA59: 0 | AB59: 0 | AC59: 0 | AD59: 0 | AE59: 0 | AF59: 0 | AG59: 0 | AH59: 0 | AI59: 0 | AJ59: 0 | AK59: 0 | AL59: 0 | AM59: 0 | AN59: 0 | AO59: 0 | AP59: 0 | AQ59: 0 | AR59: 0 | AS59: 0 | AT59: 0 | AU59: 0 | AV59: 0 | AW59: 0 | AX59: 0
C60: =IF(C59<=80,79,IF(AND(C59>80,C59<=250),139,IF(AND(C59>250,C59<=500),189,349))) -> 79 | D60: =IF(D59<=80,79,IF(AND(D59>80,D59<=250),139,IF(AND(D59>250,D59<=500),189,349))) -> 79 | E60: 79 | F60: 79 | G60: 79 | H60: 79 | I60: 79 | J60: 79 | K60: 79 | L60: 79 | M60: 79 | N60: 79 | O60: 79 | P60: 79 | Q60: 79 | R60: 79 | S60: 79 | T60: 79 | U60: 79 | V60: 79 | W60: 79 | X60: 79 | Y60: 79 | Z60: 79 | AA60: 79 | AB60: 79 | AC60: 79 | AD60: 79 | AE60: 79 | AF60: 79 | AG60: 79 | AH60: 79 | AI60: 79 | AJ60: 79 | AK60: 79 | AL60: 79 | AM60: 79 | AN60: 79 | AO60: 79 | AP60: 79 | AQ60: 79 | AR60: 79 | AS60: 79 | AT60: 79 | AU60: 79 | AV60: 79 | AW60: 79 | AX60: 79

Sheet Charts
A2: Dynamic P&L Charts
B3: TTM | C3: Year 1 | D3: Year 2 | E3: Year 3 | F3: Year 4
A4: Base Revenue | B4: ='P&L'!D7 -> 0 | C4: =SUM('Rev Model'!B8:M8) -> 0 | D4: =SUM('Rev Model'!N8:Y8) -> 0 | E4: =SUM('Rev Model'!Z8:AK8) -> 0 | F4: =SUM('Rev Model'!AL8:AW8) -> 0
A5: New Business | B5: 0 | C5: =SUM('Rev Model'!B14:M14) -> 0 | D5: =SUM('Rev Model'!N14:Y14) -> 0 | E5: =SUM('Rev Model'!Z14:AK14) -> 0 | F5: =SUM('Rev Model'!AL14:AW14) -> 0 | V5: Frame | W5: Page | X5: New Frame | Y5: Done | AB5: Seq# | AC5: VBA Image | AD5: Excel Location | AE5: Excel Chart #
A6: Total Revenue | B6: =B5+B4 -> 0 | C6: =C5+C4 -> 0 | D6: =D5+D4 -> 0 | E6: =E5+E4 -> 0 | F6: =F5+F4 -> 0 | V6: 16 | W6: 1.1 | X6: 1 | Y6: 6 | AB6: 2 | AC6: 11 | AD6: Web Pages_Input | AE6: Chart_7
A7: COGs | B7: ='P&L'!D11 -> 0 | C7: =IF(B7=0,0,'P&L'!BC11) -> 0 | D7: =IF(C7=0,0,'P&L'!BD11) -> 0 | E7: =IF(D7=0,0,'P&L'!BF11) -> 0 | F7: =IF(E7=0,0,'P&L'!BG11) -> 0 | V7: 29 | W7: 1.1 | X7: 2 | Y7: 7 | AB7: 4 | AC7: 12 | AD7: Web Pages_Input | AE7: Chart_8
A8: Expenses | B8: ='P&L'!D41 -> 0 | C8: =IF(B8=0,0,'P&L'!BC41) -> 0 | D8: =IF(C8=0,0,'P&L'!BD41) -> 0 | E8: =IF(D8=0,0,'P&L'!BF41) -> 0 | F8: =IF(E8=0,0,'P&L'!BG41) -> 0 | V8: 17 | W8: 1.1 | X8: 3 | Y8: 8 | AB8: 7 | AC8: 13 | AD8: Charts | AE8: Chart_6
A9: Net Income | B9: ='P&L'!D55 -> 0 | C9: =IF(AND(C7=0,C8=0),0,'P&L'!BC55) -> 0 | D9: =IF(AND(D7=0,D8=0),0,'P&L'!BD55) -> 0 | E9: =IF(AND(E7=0,E8=0),0,'P&L'!BF55) -> 0 | F9: =IF(AND(F7=0,F8=0),0,'P&L'!BG55) -> 0 | V9: 30 | W9: 2 | X9: 4 | Y9: 9 | AB9: 8 | AC9: 2 | AD9: Charts | AE9: Chart_6
A10: COGs % | B10: =IF(B7=0,0,B7/SUM(B$4:B$5)) -> 0 | C10: 0 | D10: 0 | E10: 0 | F10: 0 | V10: 18 | W10: 2.1 | X10: 5 | Y10: 10 | AB10: 9 | AC10: 3 | AD10: Charts (2) | AE10: Chart_6
A11: Expenses % | B11: 0 | C11: 0 | D11: 0 | E11: 0 | F11: 0 | V11: 31 | W11: 3 | X11: 6 | Y11: 11 | AB11: 10 | AC11: 1 | AD11: Charts | AE11: Chart_6
A12: Net Income % | B12: ='P&L'!D73 -> 0 | C12: ='P&L'!BC73 -> 0 | D12: ='P&L'!BD73 -> 0 | E12: ='P&L'!BF73 -> 0 | F12: ='P&L'!BG73 -> 0 | V12: 27 | W12: 3.1 | X12: 7 | Y12: 12 | AB12: 11 | AC12: 4 | AD12: Charts | AE12: Chart_4
V13: 28 | W13: 3.2 | X13: 8 | Y13: 13 | AB13: 15 | AC13: 5 | AD13: Charts | AE13: Chart_1-6
V14: 32 | W14: 4 | X14: 9 | Y14: 14 | AB14: 15 | AC14: 6 | AD14: Charts (2) | AE14: Chart_1-6
V15: 1 | W15: 4.1 | X15: 10 | Y15: 15 | AB15: 16 | AC15: 7 | AD15: Web Pages_Input | AE15: Chart_2
A16: =IF(SUM(B20:F28)=0,1,IF(SUM(B4:F12)=SUM(B20:F28),1,2)) -> 1 | V16: 4 | W16: 4.2 | X16: 11 | Y16: 16 | AB16: 18 | AC16: 8 | AD16: Web Pages_Input | AE16: Chart_6
A17: The VBA copies and pastes this baseline (after??really check this???) all Working Capital & COGs adjustments are made and before social media strategy is entered | V17: 3 | W17: 4.3 | X17: 12 | Y17: 17 | AB17: 19 | AC17: 9 | AD17: Web Pages_Input | AE17: Chart_5
A18: Saved Baseline Data for P&L Charts | V18: 5 | W18: 4.4 | X18: 13 | Y18: 18 | AB18: 21 | AC18: 10 | AD18: Charts (3) | AE18: Chart_7-12
B19: TTM | C19: Year 1 | D19: Year 2 | E19: Year 3 | F19: Year 4 | V19: 11 | W19: 4.5 | X19: 14 | Y19: 19
A20: Base Revenue | V20: 10 | W20: 4.5 | X20: 15 | Y20: 20
A21: New Business | V21: 33 | W21: 5 | X21: 16 | Y21: 21
A22: Total Revenue | V22: 9 | W22: 5.1 | X22: 17 | Y22: 22
A23: COGs | V23: 14 | W23: 5.2 | X23: 18 | Y23: 23
A24: Expenses | G24: =((F24/B24)^(1/4))-1 ->  | H24: =(F24-B24)/4 -> 0 | V24: 15 | W24: 5.2 | X24: 19 | Y24: 24
A25: Net Income | V25: 19 | W25: 5.3 | X25: 20 | Y25: 25
A26: COGs % | V26: 20 | W26: 5.5 | X26: 21 | Y26: 26
A27: Expenses % | V27: 21 | W27: 5.5 | X27: 22 | Y27: 27
A28: Net Income % | V28: 22 | W28: 5.6 | X28: 23 | Y28: 28
V29: 12 | W29: 5.7 | X29: 24 | Y29: 29
V30: 13 | W30: 5.8 | X30: 25 | Y30: 30
V31: 23 | W31: 5.8 | X31: 26 | Y31: 31
V32: 24 | W32: 5.9 | X32: 27 | Y32: 32
V33: 25 | W33: 5.9 | X33: 28 | Y33: 33
V34: 26 | W34: 5.9 | X34: 29 | Y34: 34
A35: Dynamic Balance Sheet Charts
B36: Open | C36: Year 1 | D36: Year 2 | E36: Year 3 | F36: Year 4
A37: =IF(F37>B37,"Debt Increase","Debt Decrease") -> Debt Decrease | B37: =('Balance Sheet'!D27+'Balance Sheet'!D30+'Balance Sheet'!D36) -> 0 | C37: =('Balance Sheet'!P27+'Balance Sheet'!P30+'Balance Sheet'!P36) -> 0 | D37: =('Balance Sheet'!AB27+'Balance Sheet'!AB30+'Balance Sheet'!AB36) -> 0 | E37: =('Balance Sheet'!BB27+'Balance Sheet'!BB30+'Balance Sheet'!BB36) -> 0 | F37: =('Balance Sheet'!BC27+'Balance Sheet'!BC30+'Balance Sheet'!BC36) -> 0
A38: =IF(F38>B38,"Equity Increase","Equity Decrease") -> Equity Decrease | B38: ='Balance Sheet'!D41 -> 0 | C38: ='Balance Sheet'!P39 -> 0 | D38: ='Balance Sheet'!AB41 -> 0 | E38: ='Balance Sheet'!BB41 -> 0 | F38: ='Balance Sheet'!BC41 -> 0
A39: =IF(F39>B39,"Cash Increase","Cash Decrease") -> Cash Decrease | B39: ='Balance Sheet'!D5 -> 0 | C39: ='Cash Flow'!O40 -> 0 | D39: ='Cash Flow'!AA40 -> 0 | E39: ='Cash Flow'!BA40 -> 0 | F39: ='Cash Flow'!BB40 -> 0
A40: =IF(F40>B40,"Biz Value Increase","Biz Value Decrease") -> Biz Value Decrease | B40: =IF(B9<0,0,B9*'Biz Valuations'!$E$47) -> 0 | C40: =IF(C9<0,0,C9*'Biz Valuations'!$E$47) -> 0 | D40: =IF(D9<0,0,D9*'Biz Valuations'!$E$47) -> 0 | E40: =IF(E9<0,0,E9*'Biz Valuations'!$E$47) -> 0 | F40: =IF(F9<0,0,'Biz Valuations'!O35) -> 0
A50: The VBA copies and pastes this baseline after all Working Capital & COGs adjustments are made and before social media strategy is entered
A51: Saved Baseline Data for Balance Sheet Charts
B52: Open | C52: Year 1 | D52: Year 2 | E52: Year 3 | F52: Year 4
A53: =IF(F53>B53,"Debt Increase","Debt Decrease") -> Debt Decrease | G53: =IF(F53>B53,"increase",IF(F53=B53,"not change","decrease")) -> not change
A54: =IF(F54>B54,"Equity Increase","Equity Decrease") -> Equity Decrease | G54: =IF(F54>B54,"increase",IF(F54=B54,"not change","decrease")) -> not change
A55: =IF(F55>B55,"Cash Increase","Cash Decrease") -> Cash Decrease | G55: =IF(F55>B55,"increase",IF(F55=B55,"not change","decrease")) -> not change
A56: =IF(F56>B56,"Biz Value Increase","Biz Value Decrease") -> Biz Value Decrease | G56: =IF(F56>B56,"increase",IF(F56=B56,"not change","decrease")) -> not change

Sheet Charts (2)
A2: Dynamic P&L Charts
B3: TTM | C3: Year 1 | D3: Year 2 | E3: Year 3 | F3: Year 4 | G3: CAGR | AB3: TTM | AC3: Year 1 | AD3: Year 2 | AE3: Year 3 | AF3: Year 4 | AG3: CAGR
A4: Base Revenue | B4: ='P&L'!D7 -> 0 | C4: =SUM('Rev Model'!B8:M8) -> 0 | D4: =SUM('Rev Model'!N8:Y8) -> 0 | E4: =SUM('Rev Model'!Z8:AK8) -> 0 | F4: =SUM('Rev Model'!AL8:AW8) -> 0 | G4: =IF(SUM(B4:F4)=0,0,((F4/B4)^(1/4))-1) -> 0 | AA4: Base Revenue | AB4: =B4 -> 0 | AC4: 0 | AD4: 0 | AE4: 0 | AF4: 0 | AG4: 0
A5: New Business | B5: 0 | C5: =SUM('Rev Model'!B14:M14) -> 0 | D5: =SUM('Rev Model'!N14:Y14) -> 0 | E5: =SUM('Rev Model'!Z14:AK14) -> 0 | F5: =SUM('Rev Model'!AL14:AW14) -> 0 | G5: =IF(SUM(C5:F5)=0,0,((F5/C5)^(1/3))-1) -> 0 | AA5: New Business | AB5: =B5 -> 0 | AC5: =C5 -> 0 | AD5: =D5 -> 0 | AE5: =E5 -> 0 | AF5: =F5 -> 0 | AG5: =G5 -> 0
A6: Total Revenue | B6: =B5+B4 -> 0 | C6: =C5+C4 -> 0 | D6: =D5+D4 -> 0 | E6: =E5+E4 -> 0 | F6: =F5+F4 -> 0 | G6: =IF(SUM(B6:F6)=0,0,((F6/B6)^(1/4))-1) -> 0 | AA6: Total Revenue | AB6: 0 | AC6: 0 | AD6: 0 | AE6: 0 | AF6: 0 | AG6: =G6 -> 0
A7: COGs | B7: ='P&L'!D11 -> 0 | C7: =IF(B7=0,0,'P&L'!BC11) -> 0 | D7: =IF(C7=0,0,'P&L'!BD11) -> 0 | E7: =IF(D7=0,0,'P&L'!BF11) -> 0 | F7: =IF(E7=0,0,'P&L'!BG11) -> 0 | AA7: COGs | AB7: 0 | AC7: 0 | AD7: 0 | AE7: 0 | AF7: 0
A8: Expenses | B8: ='P&L'!D41 -> 0 | C8: =IF(B8=0,0,'P&L'!BC41) -> 0 | D8: =IF(C8=0,0,'P&L'!BD41) -> 0 | E8: =IF(D8=0,0,'P&L'!BF41) -> 0 | F8: =IF(E8=0,0,'P&L'!BG41) -> 0 | G8: =IF(SUM(B8:F8)=0,0,((F8/B8)^(1/4))-1) -> 0 | AA8: Expenses | AB8: 0 | AC8: 0 | AD8: 0 | AE8: 0 | AF8: 0 | AG8: =G8 -> 0
A9: Net Income | B9: ='P&L'!D55 -> 0 | C9: =IF(AND(C7=0,C8=0),0,'P&L'!BC55) -> 0 | D9: =IF(AND(D7=0,D8=0),0,'P&L'!BD55) -> 0 | E9: =IF(AND(E7=0,E8=0),0,'P&L'!BF55) -> 0 | F9: =IF(AND(F7=0,F8=0),0,'P&L'!BG55) -> 0 | AA9: Net Income | AB9: 0 | AC9: 0 | AD9: 0 | AE9: 0 | AF9: 0 | AG9: =SUM(AB9:AF9) -> 0
A10: COGs % | B10: =IF(B7=0,0,B7/SUM(B$4:B$5)) -> 0 | C10: 0 | D10: 0 | E10: 0 | F10: 0 | AA10: COGs % | AB10: 0 | AC10: 0 | AD10: 0 | AE10: 0 | AF10: 0
A11: Expenses % | B11: 0 | C11: 0 | D11: 0 | E11: 0 | F11: 0 | AA11: Expenses % | AB11: 0 | AC11: 0 | AD11: 0 | AE11: 0 | AF11: 0
A12: Net Income % | B12: ='P&L'!D73 -> 0 | C12: ='P&L'!BC73 -> 0 | D12: ='P&L'!BD73 -> 0 | E12: ='P&L'!BF73 -> 0 | F12: ='P&L'!BG73 -> 0 | AA12: Net Income % | AB12: 0 | AC12: 0 | AD12: 0 | AE12: 0 | AF12: 0
G13: Total
A14: Digital Investment | C14: =IF($J$22=0,0,SUM('Rev Model'!B123:M123)) -> 0 | D14: =IF($J$22=0,0,SUM('Rev Model'!N123:Y123))+C14 -> 0 | E14: =IF($J$22=0,0,SUM('Rev Model'!Z123:AK123))+D14 -> 0 | F14: =IF($J$22=0,0,SUM('Rev Model'!AL123:AW123))+E14 -> 0 | G14: =F14 -> 0 | AA14: Digital Investment | AB14: 0 | AC14: 140000 | AD14: 100000 | AE14: 100000 | AF14: 100000 | AG14: =SUM(AB14:AF14) -> 440000
A15: ROI | B15: =IF(B5=0,0,(B18-B14)/B14) -> 0 | C15: =IF(C5=0,0,(C18-C14)/C14) -> 0 | D15: =IF(D5=0,0,(D18-D14)/D14) -> 0 | E15: =IF(E5=0,0,(E18-E14)/E14) -> 0 | F15: =IF(F5=0,0,(F18-F14)/F14) -> 0 | G15: =IF(G5=0,0,(SUM(B5:F5)-G14)/G14) -> 0 | AA15: Cumulative ROI | AC15: =IF(AC5=0,0,(AC18-SUM($AC14:AC14))/SUM($AC14:AC14)) -> 0 | AD15: =IF(AD5=0,0,(AD18-SUM($AC14:AD14))/SUM($AC14:AD14)) -> 0 | AE15: =IF(AE5=0,0,(AE18-SUM($AC14:AE14))/SUM($AC14:AE14)) -> 0 | AF15: =IF(AF5=0,0,(AF18-SUM($AC14:AF14))/SUM($AC14:AF14)) -> 0 | AG15: =IF(AG5=0,0,(AF18-AG14)/AG14) -> 0
A16: Net Income Digital (Cumulative) | C16: =C9+B16 -> 0 | D16: =D9+C16 -> 0 | E16: =E9+D16 -> 0 | F16: =F9+E16 -> 0 | AA16: Net Income Digital (Cumulative) | AC16: =AC9+AB16 -> 0 | AD16: =AD9+AC16 -> 0 | AE16: =AE9+AD16 -> 0 | AF16: =AF9+AE16 -> 0
A17: Net Income Baseline (Cumulative) | B17: =Charts!B25 -> 0 | C17: =Charts!C25+B17 -> 0 | D17: =Charts!D25+C17 -> 0 | E17: =Charts!E25+D17 -> 0 | F17: =Charts!F25+E17 -> 0 | AA17: Net Income Baseline (Cumulative) | AB17: =Charts!B25 -> 0 | AC17: =Charts!C25+AB17 -> 0 | AD17: =Charts!D25+AC17 -> 0 | AE17: =Charts!E25+AD17 -> 0 | AF17: =Charts!F25+AE17 -> 0
A18: Return on Digital Strategy | B18: 0 | C18: =C16-C17 -> 0 | D18: =D16-D17 -> 0 | E18: =E16-E17 -> 0 | F18: =F16-F17 -> 0 | AA18: Return on Digital Strategy (Cum) | AB18: 0 | AC18: =AC16-AC17 -> 0 | AD18: =AD16-AD17 -> 0 | AE18: =AE16-AE17 -> 0 | AF18: =AF16-AF17 -> 0 | AG18: =SUM(AB18:AF18) -> 0
A20: Dynamic Balance Sheet Charts | B20: Open | C20: Year 1 | D20: Year 2 | E20: Year 3 | F20: Year 4
A21: =IF(F21>B21,"Debt Increase","Debt Decrease") -> Debt Decrease | B21: =('Balance Sheet'!D27+'Balance Sheet'!D30+'Balance Sheet'!D36) -> 0 | C21: =('Balance Sheet'!P27+'Balance Sheet'!P30+'Balance Sheet'!P36) -> 0 | D21: =('Balance Sheet'!AB27+'Balance Sheet'!AB30+'Balance Sheet'!AB36) -> 0 | E21: =('Balance Sheet'!AN27+'Balance Sheet'!AN30+'Balance Sheet'!AN36) -> 0 | F21: =('Balance Sheet'!AZ27+'Balance Sheet'!AZ30+'Balance Sheet'!AZ36) -> 0 | G21: =IF(F21>B21,"increase",IF(F21=B21,"not change","decrease")) -> not change
A22: =IF(F22>B22,"Equity Increase","Equity Decrease") -> Equity Decrease | B22: ='Balance Sheet'!D41 -> 0 | C22: ='Balance Sheet'!P39 -> 0 | D22: ='Balance Sheet'!AB41 -> 0 | E22: ='Balance Sheet'!BB41 -> 0 | F22: ='Balance Sheet'!BC41 -> 0 | G22: =IF(F22>B22,"increase",IF(F22=B22,"not change","decrease")) -> not change | H22: Variable Chart Titles | J22: =IF(SUM('Web Pages_Input'!B19:B25)=0,0,1) -> 0
A23: =IF(F23>B23,"Cash Increase","Cash Decrease") -> Cash Decrease | B23: ='Balance Sheet'!D5 -> 0 | C23: ='Cash Flow'!O40 -> 0 | D23: ='Cash Flow'!AA40 -> 0 | E23: ='Cash Flow'!AM40 -> 0 | F23: ='Cash Flow'!AY40 -> 0 | G23: =IF(F23>B23,"increase",IF(F23=B23,"not change","decrease")) -> not change | H23: =IF($J$22=0,"Base Revenue Outlook Modified Baseline","Base Revenue Outlook with Digital Marketing") -> Base Revenue Outlook Modified Baseline
A24: =IF(F24>B24,"Biz Value Increase","Biz Value Decrease") -> Biz Value Decrease | B24: =IF(B9<0,0,B9*'Biz Valuations'!$E$47) -> 0 | C24: =IF(C9<0,0,C9*'Biz Valuations'!$E$47) -> 0 | D24: =IF(D9<0,0,D9*'Biz Valuations'!$E$47) -> 0 | E24: =IF(E9<0,0,E9*'Biz Valuations'!$E$47) -> 0 | F24: =IF(F9<0,0,'Biz Valuations'!O35) -> 0 | G24: =IF(F24>B24,"increase",IF(F24=B24,"not change","decrease")) -> not change | H24: =IF($J$22=0,"New Business Outlook Modified Baseline","New Business Outlook with Digital Marketing") -> New Business Outlook Modified Baseline
C25: Year 1 | D25: Year 2 | E25: Year 3 | F25: Year 4 | H25: =IF($J$22=0,"Base + New Revenue Outlook Modified Baseline","Base + New Revenue Outlook with Digital Marketing") -> Base + New Revenue Outlook Modified Baseline
A26: CRM (HubSpot - Free) | C26: =SUM('Rev Model'!B118:M118) -> 0 | D26: =SUM('Rev Model'!N118:Y118) -> 0 | E26: =SUM('Rev Model'!Z118:AK118) -> 0 | F26: =SUM('Rev Model'!AL118:AW118) -> 0 | H26: =IF($J$22=0,"Net Income and Biz Valuation Modified Baseline","Net Income and Biz Valuation with Digital Marketing") -> Net Income and Biz Valuation Modified Baseline
A27: Digital Marketing Service (HubSpot) | C27: =SUM('Rev Model'!B119:M119) -> 3800 | D27: =SUM('Rev Model'!N119:Y119) -> 9600 | E27: =SUM('Rev Model'!Z119:AK119) -> 9600 | F27: =SUM('Rev Model'!AL119:AW119) -> 9600 | H27: =IF($J$22=0,"Balance Sheet KPI Modified Baseline","Balance Sheet KPI with Digital Marketing ") -> Balance Sheet KPI Modified Baseline
A28: Power Ecommerce & Site Upgrade | C28: =SUM('Rev Model'!B120:M120) -> 5650 | D28: =SUM('Rev Model'!N120:Y120) -> 3600 | E28: =SUM('Rev Model'!Z120:AK120) -> 3600 | F28: =SUM('Rev Model'!AL120:AW120) -> 3600 | H28: =IF($J$22=0,"P&L KPIs Modified Baseline","P&L KPIs with Digital Marketing") -> P&L KPIs Modified Baseline
A29: Education (Execution Plan) | C29: =SUM('Rev Model'!B121:M121) -> 2100 | D29: =SUM('Rev Model'!N121:Y121) -> 2100 | E29: =SUM('Rev Model'!Z121:AK121) -> 360 | F29: =SUM('Rev Model'!AL121:AW121) -> 360
A30: Content Writing, Social Platforms & Analytics | C30: =SUM('Rev Model'!B122:M122) -> 15000 | D30: =SUM('Rev Model'!N122:Y122) -> 15000 | E30: =SUM('Rev Model'!Z122:AK122) -> 7500 | F30: =SUM('Rev Model'!AL122:AW122) -> 7500
A31: Total | C31: =SUM(C26:C30) -> 26550 | D31: =SUM(D26:D30) -> 30300 | E31: =SUM(E26:E30) -> 21060 | F31: =SUM(F26:F30) -> 21060
A34: Market Share Model | H34: 7
B35: Open | C35: Year 1 | D35: Year 2 | E35: Year 3 | F35: Year 4
A36: Market Size per Month ($M) | B36: ='Rev Model'!B134 -> 2083333.333 | C36: ='Rev Model'!M134 -> 2026752.468 | D36: ='Rev Model'!Y134 -> 1966779.002 | E36: ='Rev Model'!AK134 -> 1908580.205 | F36: ='Rev Model'!AW134 -> 1852103.564
A37: Population | B37: ='Rev Model'!B135 -> 323996000 | C37: ='Rev Model'!M135 -> 326626000 | D37: ='Rev Model'!Y135 -> 329256000 | E37: ='Rev Model'!AK135 -> 332102250 | F37: ='Rev Model'!AW135 -> 334503000
A38: Spend per head | B38: ='Rev Model'!B136 -> 6.430120536 | C38: ='Rev Model'!M136 -> 6.205116764 | D38: ='Rev Model'!Y136 -> 5.973403679 | E38: ='Rev Model'!AK136 -> 5.746965596 | F38: ='Rev Model'!AW136 -> 5.536881774
A39: Avg. Local Market Size (pop) | B39: ='Rev Model'!B137 -> 0 | C39: ='Rev Model'!M137 -> 0 | D39: ='Rev Model'!Y137 -> 0 | E39: ='Rev Model'!AK137 -> 0 | F39: ='Rev Model'!AW137 -> 0
A40: Addressable Local Market | B40: ='Rev Model'!B138 -> 0 | C40: ='Rev Model'!M138 -> 0 | D40: ='Rev Model'!Y138 -> 0 | E40: ='Rev Model'!AK138 -> 0 | F40: ='Rev Model'!AW138 -> 0
A41: Monthly Revenue | B41: ='Rev Model'!B139 -> 0 | C41: ='Rev Model'!M139 -> 0 | D41: ='Rev Model'!Y139 -> 0 | E41: ='Rev Model'!AK139 -> 0 | F41: ='Rev Model'!AW139 -> 0
A42: Market Share | B42: ='Rev Model'!B140 -> 0 | C42: ='Rev Model'!M140 -> 0 | D42: ='Rev Model'!Y140 -> 0 | E42: ='Rev Model'!AK140 -> 0 | F42: ='Rev Model'!AW140 -> 0

Sheet Charts (3)

Sheet P&L
B1: =IF('Web Pages_Input'!B33=0,"[Company Name]",'Web Pages_Input'!B33) -> [Company Name] | D1: TTM Actual | F1: Profit & Loss Statement | BC1: Yr 1 Budget | BD1: Yr 2 Budget | BF1: Yr 3 Budget | BG1: Yr 4 Budget
D2: 242 | F2: ='Rev Model'!B1 -> 20 | G2: ='Rev Model'!C1 -> 21 | H2: ='Rev Model'!D1 -> 18 | I2: ='Rev Model'!E1 -> 20 | J2: ='Rev Model'!F1 -> 21 | K2: ='Rev Model'!G1 -> 18 | L2: ='Rev Model'!H1 -> 21 | M2: ='Rev Model'!I1 -> 20 | N2: ='Rev Model'!J1 -> 21 | O2: ='Rev Model'!K1 -> 20 | P2: ='Rev Model'!L1 -> 21 | Q2: ='Rev Model'!M1 -> 21 | R2: ='Rev Model'!N1 -> 20 | S2: ='Rev Model'!O1 -> 21 | T2: ='Rev Model'!P1 -> 18 | U2: ='Rev Model'!Q1 -> 20 | V2: ='Rev Model'!R1 -> 21 | W2: ='Rev Model'!S1 -> 18 | X2: ='Rev Model'!T1 -> 21 | Y2: ='Rev Model'!U1 -> 20 | Z2: ='Rev Model'!V1 -> 21 | AA2: ='Rev Model'!W1 -> 20 | AB2: ='Rev Model'!X1 -> 21 | AC2: ='Rev Model'!Y1 -> 21 | AD2: ='Rev Model'!Z1 -> 20 | AE2: ='Rev Model'!AA1 -> 21 | AF2: ='Rev Model'!AB1 -> 18 | AG2: ='Rev Model'!AC1 -> 20 | AH2: ='Rev Model'!AD1 -> 21 | AI2: ='Rev Model'!AE1 -> 18 | AJ2: ='Rev Model'!AF1 -> 21 | AK2: ='Rev Model'!AG1 -> 20 | AL2: ='Rev Model'!AH1 -> 21 | AM2: ='Rev Model'!AI1 -> 20 | AN2: ='Rev Model'!AJ1 -> 21 | AO2: ='Rev Model'!AK1 -> 21 | AP2: ='Rev Model'!AL1 -> 20 | AQ2: ='Rev Model'!AM1 -> 21 | AR2: ='Rev Model'!AN1 -> 18 | AS2: ='Rev Model'!AO1 -> 20 | AT2: ='Rev Model'!AP1 -> 21 | AU2: ='Rev Model'!AQ1 -> 18 | AV2: ='Rev Model'!AR1 -> 21 | AW2: ='Rev Model'!AS1 -> 20 | AX2: ='Rev Model'!AT1 -> 21 | AY2: ='Rev Model'!AU1 -> 20 | AZ2: ='Rev Model'!AV1 -> 21 | BA2: ='Rev Model'!AW1 -> 21 | BC2: =SUM(F2:Q2) -> 242 | BD2: =SUM(R2:AC2) -> 242 | BF2: 242 | BG2: 242
B3: INCOME | D3: Total | F3: ='Rev Model'!B2 -> Sep | G3: ='Rev Model'!C2 -> Oct | H3: ='Rev Model'!D2 -> Nov | I3: ='Rev Model'!E2 -> Dec | J3: ='Rev Model'!F2 -> Jan | K3: ='Rev Model'!G2 -> Feb | L3: ='Rev Model'!H2 -> Mar | M3: ='Rev Model'!I2 -> Apr | N3: ='Rev Model'!J2 -> May | O3: ='Rev Model'!K2 -> Jun | P3: ='Rev Model'!L2 -> Jul | Q3: ='Rev Model'!M2 -> Aug | R3: ='Rev Model'!N2 -> Sep | S3: ='Rev Model'!O2 -> Oct | T3: ='Rev Model'!P2 -> Nov | U3: ='Rev Model'!Q2 -> Dec | V3: ='Rev Model'!R2 -> Jan | W3: ='Rev Model'!S2 -> Feb | X3: ='Rev Model'!T2 -> Mar | Y3: ='Rev Model'!U2 -> Apr | Z3: ='Rev Model'!V2 -> May | AA3: ='Rev Model'!W2 -> Jun | AB3: ='Rev Model'!X2 -> Jul | AC3: ='Rev Model'!Y2 -> Aug | AD3: ='Rev Model'!Z2 -> Sep | AE3: ='Rev Model'!AA2 -> Oct | AF3: ='Rev Model'!AB2 -> Nov | AG3: ='Rev Model'!AC2 -> Dec | AH3: ='Rev Model'!AD2 -> Jan | AI3: ='Rev Model'!AE2 -> Feb | AJ3: ='Rev Model'!AF2 -> Mar | AK3: ='Rev Model'!AG2 -> Apr | AL3: ='Rev Model'!AH2 -> May | AM3: ='Rev Model'!AI2 -> Jun | AN3: ='Rev Model'!AJ2 -> Jul | AO3: ='Rev Model'!AK2 -> Aug | AP3: ='Rev Model'!AL2 -> Sep | AQ3: ='Rev Model'!AM2 -> Oct | AR3: ='Rev Model'!AN2 -> Nov | AS3: ='Rev Model'!AO2 -> Dec | AT3: ='Rev Model'!AP2 -> Jan | AU3: ='Rev Model'!AQ2 -> Feb | AV3: ='Rev Model'!AR2 -> Mar | AW3: ='Rev Model'!AS2 -> Apr | AX3: ='Rev Model'!AT2 -> May | AY3: ='Rev Model'!AU2 -> Jun | AZ3: ='Rev Model'!AV2 -> Jul | BA3: ='Rev Model'!AW2 -> Aug | BC3: Total | BD3: Total | BF3: Total | BG3: Total
C4: Sales
C5: Product Sales | D5: ='Web Pages_Input'!C10 -> 0 | F5: ='Rev Model'!B8+'Rev Model'!B14 -> 0 | G5: ='Rev Model'!C8+'Rev Model'!C14 -> 0 | H5: ='Rev Model'!D8+'Rev Model'!D14 -> 0 | I5: ='Rev Model'!E8+'Rev Model'!E14 -> 0 | J5: ='Rev Model'!F8+'Rev Model'!F14 -> 0 | K5: ='Rev Model'!G8+'Rev Model'!G14 -> 0 | L5: ='Rev Model'!H8+'Rev Model'!H14 -> 0 | M5: ='Rev Model'!I8+'Rev Model'!I14 -> 0 | N5: ='Rev Model'!J8+'Rev Model'!J14 -> 0 | O5: ='Rev Model'!K8+'Rev Model'!K14 -> 0 | P5: ='Rev Model'!L8+'Rev Model'!L14 -> 0 | Q5: ='Rev Model'!M8+'Rev Model'!M14 -> 0 | R5: ='Rev Model'!N8+'Rev Model'!N14 -> 0 | S5: ='Rev Model'!O8+'Rev Model'!O14 -> 0 | T5: ='Rev Model'!P8+'Rev Model'!P14 -> 0 | U5: ='Rev Model'!Q8+'Rev Model'!Q14 -> 0 | V5: ='Rev Model'!R8+'Rev Model'!R14 -> 0 | W5: ='Rev Model'!S8+'Rev Model'!S14 -> 0 | X5: ='Rev Model'!T8+'Rev Model'!T14 -> 0 | Y5: ='Rev Model'!U8+'Rev Model'!U14 -> 0 | Z5: ='Rev Model'!V8+'Rev Model'!V14 -> 0 | AA5: ='Rev Model'!W8+'Rev Model'!W14 -> 0 | AB5: ='Rev Model'!X8+'Rev Model'!X14 -> 0 | AC5: ='Rev Model'!Y8+'Rev Model'!Y14 -> 0 | AD5: ='Rev Model'!Z8+'Rev Model'!Z14 -> 0 | AE5: ='Rev Model'!AA8+'Rev Model'!AA14 -> 0 | AF5: ='Rev Model'!AB8+'Rev Model'!AB14 -> 0 | AG5: ='Rev Model'!AC8+'Rev Model'!AC14 -> 0 | AH5: ='Rev Model'!AD8+'Rev Model'!AD14 -> 0 | AI5: ='Rev Model'!AE8+'Rev Model'!AE14 -> 0 | AJ5: ='Rev Model'!AF8+'Rev Model'!AF14 -> 0 | AK5: ='Rev Model'!AG8+'Rev Model'!AG14 -> 0 | AL5: ='Rev Model'!AH8+'Rev Model'!AH14 -> 0 | AM5: ='Rev Model'!AI8+'Rev Model'!AI14 -> 0 | AN5: ='Rev Model'!AJ8+'Rev Model'!AJ14 -> 0 | AO5: ='Rev Model'!AK8+'Rev Model'!AK14 -> 0 | AP5: ='Rev Model'!AL8+'Rev Model'!AL14 -> 0 | AQ5: ='Rev Model'!AM8+'Rev Model'!AM14 -> 0 | AR5: ='Rev Model'!AN8+'Rev Model'!AN14 -> 0 | AS5: ='Rev Model'!AO8+'Rev Model'!AO14 -> 0 | AT5: ='Rev Model'!AP8+'Rev Model'!AP14 -> 0 | AU5: ='Rev Model'!AQ8+'Rev Model'!AQ14 -> 0 | AV5: ='Rev Model'!AR8+'Rev Model'!AR14 -> 0 | AW5: ='Rev Model'!AS8+'Rev Model'!AS14 -> 0 | AX5: ='Rev Model'!AT8+'Rev Model'!AT14 -> 0 | AY5: ='Rev Model'!AU8+'Rev Model'!AU14 -> 0 | AZ5: ='Rev Model'!AV8+'Rev Model'!AV14 -> 0 | BA5: ='Rev Model'!AW8+'Rev Model'!AW14 -> 0 | BC5: =SUM(F5:Q5) -> 0 | BD5: =SUM(R5:AC5) -> 0 | BF5: =SUM(AD5:AO5) -> 0 | BG5: =SUM(AP5:BA5) -> 0
C6: Other | BC6: =SUM(F6:Q6) -> 0 | BD6: =SUM(R6:AC6) -> 0
C7: Total Sales | D7: =SUM(D5:D6) -> 0 | F7: =SUM(F5:F6) -> 0 | G7: 0 | H7: 0 | I7: 0 | J7: 0 | K7: 0 | L7: 0 | M7: 0 | N7: 0 | O7: 0 | P7: 0 | Q7: 0 | R7: 0 | S7: 0 | T7: 0 | U7: 0 | V7: 0 | W7: 0 | X7: 0 | Y7: 0 | Z7: 0 | AA7: 0 | AB7: 0 | AC7: 0 | AD7: =SUM(AD5:AD6) -> 0 | AE7: 0 | AF7: 0 | AG7: 0 | AH7: 0 | AI7: 0 | AJ7: 0 | AK7: 0 | AL7: 0 | AM7: 0 | AN7: 0 | AO7: 0 | AP7: 0 | AQ7: 0 | AR7: 0 | AS7: 0 | AT7: 0 | AU7: 0 | AV7: 0 | AW7: 0 | AX7: 0 | AY7: 0 | AZ7: =SUM(AZ5:AZ6) -> 0 | BA7: =SUM(BA5:BA6) -> 0 | BC7: =SUM(F7:Q7) -> 0 | BD7: =SUM(R7:AC7) -> 0 | BF7: =SUM(BF5:BF6) -> 0 | BG7: =SUM(BG5:BG6) -> 0
C9: Cost of Goods Sold (from details section)
C10: ="COGS - "&C5 -> COGS - Product Sales | D10: =D67 -> 0 | F10: =F67 -> 0 | G10: 0 | H10: 0 | I10: 0 | J10: 0 | K10: 0 | L10: 0 | M10: 0 | N10: 0 | O10: 0 | P10: 0 | Q10: 0 | R10: =R67 -> 0 | S10: 0 | T10: 0 | U10: 0 | V10: 0 | W10: 0 | X10: 0 | Y10: 0 | Z10: 0 | AA10: 0 | AB10: 0 | AC10: 0 | AD10: =AD67 -> 0 | AE10: 0 | AF10: 0 | AG10: 0 | AH10: 0 | AI10: 0 | AJ10: 0 | AK10: 0 | AL10: 0 | AM10: 0 | AN10: 0 | AO10: 0 | AP10: 0 | AQ10: 0 | AR10: 0 | AS10: 0 | AT10: 0 | AU10: 0 | AV10: 0 | AW10: 0 | AX10: 0 | AY10: 0 | AZ10: =AZ67 -> 0 | BA10: =BA67 -> 0 | BC10: =SUM(F10:Q10) -> 0 | BD10: =SUM(R10:AC10) -> 0 | BF10: =BF67 -> 0 | BG10: =BG67 -> 0
C11: Total Cost of Goods Sold | D11: =SUM(D10:D10) -> 0 | F11: =SUM(F10:F10) -> 0 | G11: 0 | H11: 0 | I11: 0 | J11: 0 | K11: 0 | L11: 0 | M11: 0 | N11: 0 | O11: 0 | P11: 0 | Q11: 0 | R11: 0 | S11: 0 | T11: 0 | U11: 0 | V11: 0 | W11: 0 | X11: 0 | Y11: 0 | Z11: 0 | AA11: 0 | AB11: 0 | AC11: 0 | AD11: =SUM(AD10:AD10) -> 0 | AE11: 0 | AF11: 0 | AG11: 0 | AH11: 0 | AI11: 0 | AJ11: 0 | AK11: 0 | AL11: 0 | AM11: 0 | AN11: 0 | AO11: 0 | AP11: 0 | AQ11: 0 | AR11: 0 | AS11: 0 | AT11: 0 | AU11: 0 | AV11: 0 | AW11: 0 | AX11: 0 | AY11: 0 | AZ11: =SUM(AZ10:AZ10) -> 0 | BA11: =SUM(BA10:BA10) -> 0 | BC11: =SUM(F11:Q11) -> 0 | BD11: =SUM(R11:AC11) -> 0 | BF11: =SUM(BF10:BF10) -> 0 | BG11: =SUM(BG10:BG10) -> 0
C13: Gross Profit | D13: =D7-D11 -> 0 | F13: =F7-F11 -> 0 | G13: 0 | H13: 0 | I13: 0 | J13: 0 | K13: 0 | L13: 0 | M13: 0 | N13: 0 | O13: 0 | P13: 0 | Q13: 0 | R13: 0 | S13: 0 | T13: 0 | U13: 0 | V13: 0 | W13: 0 | X13: 0 | Y13: 0 | Z13: 0 | AA13: 0 | AB13: 0 | AC13: 0 | AD13: =AD7-AD11 -> 0 | AE13: 0 | AF13: 0 | AG13: 0 | AH13: 0 | AI13: 0 | AJ13: 0 | AK13: 0 | AL13: 0 | AM13: 0 | AN13: 0 | AO13: 0 | AP13: 0 | AQ13: 0 | AR13: 0 | AS13: 0 | AT13: 0 | AU13: 0 | AV13: 0 | AW13: 0 | AX13: 0 | AY13: 0 | AZ13: =AZ7-AZ11 -> 0 | BA13: =BA7-BA11 -> 0 | BC13: =SUM(F13:Q13) -> 0 | BD13: =SUM(R13:AC13) -> 0 | BF13: =BF7-BF11 -> 0 | BG13: =BG7-BG11 -> 0
C15: Non-Operating Income
C16: Rental Income | D16: 0 | BC16: =SUM(F16:Q16) -> 0 | BD16: =SUM(R16:AC16) -> 0 | BF16: 0 | BG16: 0
C17: Other | D17: 0 | BC17: =SUM(F17:Q17) -> 0 | BD17: =SUM(R17:AC17) -> 0 | BF17: 0 | BG17: 0
C18: Total Non-Operating Income | D18: =SUM(D16:D17) -> 0 | F18: =SUM(F16:F17) -> 0 | G18: 0 | H18: 0 | I18: 0 | J18: 0 | K18: 0 | L18: 0 | M18: 0 | N18: 0 | O18: 0 | P18: 0 | Q18: 0 | R18: 0 | S18: 0 | T18: 0 | U18: 0 | V18: 0 | W18: 0 | X18: 0 | Y18: 0 | Z18: 0 | AA18: 0 | AB18: 0 | AC18: 0 | AD18: =SUM(AD16:AD17) -> 0 | AE18: 0 | AF18: 0 | AG18: 0 | AH18: 0 | AI18: 0 | AJ18: 0 | AK18: 0 | AL18: 0 | AM18: 0 | AN18: 0 | AO18: 0 | AP18: 0 | AQ18: 0 | AR18: 0 | AS18: 0 | AT18: 0 | AU18: 0 | AV18: 0 | AW18: 0 | AX18: 0 | AY18: 0 | AZ18: =SUM(AZ16:AZ17) -> 0 | BA18: =SUM(BA16:BA17) -> 0 | BC18: =SUM(F18:Q18) -> 0 | BD18: =SUM(R18:AC18) -> 0 | BF18: =SUM(BF16:BF17) -> 0 | BG18: =SUM(BG16:BG17) -> 0
B20: Total INCOME | D20: =D13+D18 -> 0 | F20: =F13+F18 -> 0 | G20: 0 | H20: 0 | I20: 0 | J20: 0 | K20: 0 | L20: 0 | M20: 0 | N20: 0 | O20: 0 | P20: 0 | Q20: 0 | R20: 0 | S20: 0 | T20: 0 | U20: 0 | V20: 0 | W20: 0 | X20: 0 | Y20: 0 | Z20: 0 | AA20: 0 | AB20: 0 | AC20: 0 | AD20: =AD13+AD18 -> 0 | AE20: 0 | AF20: 0 | AG20: 0 | AH20: 0 | AI20: 0 | AJ20: 0 | AK20: 0 | AL20: 0 | AM20: 0 | AN20: 0 | AO20: 0 | AP20: 0 | AQ20: 0 | AR20: 0 | AS20: 0 | AT20: 0 | AU20: 0 | AV20: 0 | AW20: 0 | AX20: 0 | AY20: 0 | AZ20: =AZ13+AZ18 -> 0 | BA20: =BA13+BA18 -> 0 | BC20: =SUM(F20:Q20) -> 0 | BD20: =SUM(R20:AC20) -> 0 | BF20: =BF13+BF18 -> 0 | BG20: =BG13+BG18 -> 0
A22: [42] | B22: EXPENSES | D22: =D3 -> Total | F22: =F3 -> Sep | G22: Oct | H22: Nov | I22: Dec | J22: Jan | K22: Feb | L22: Mar | M22: Apr | N22: May | O22: Jun | P22: Jul | Q22: Aug | R22: Sep | S22: Oct | T22: Nov | U22: Dec | V22: Jan | W22: Feb | X22: Mar | Y22: Apr | Z22: May | AA22: Jun | AB22: Jul | AC22: Aug | AD22: =AD3 -> Sep | AE22: Oct | AF22: Nov | AG22: Dec | AH22: Jan | AI22: Feb | AJ22: Mar | AK22: Apr | AL22: May | AM22: Jun | AN22: Jul | AO22: Aug | AP22: Sep | AQ22: Oct | AR22: Nov | AS22: Dec | AT22: Jan | AU22: Feb | AV22: Mar | AW22: Apr | AX22: May | AY22: Jun | AZ22: =AZ3 -> Jul | BA22: =BA3 -> Aug | BC22: =BC3 -> Total | BD22: =BD3 -> Total | BF22: =BF3 -> Total | BG22: =BG3 -> Total
C23: Operating Expenses
C24: Accounting and Legal | F24: =IF(F$7=0,0,$BC24/$BC$41*$BC$41*(F$7/$BC$7)) -> 0 | G24: =IF(G$7=0,0,$BC24/$BC$41*$BC$41*(G$7/$BC$7)) -> 0 | H24: 0 | I24: 0 | J24: 0 | K24: 0 | L24: 0 | M24: 0 | N24: 0 | O24: 0 | P24: 0 | Q24: 0 | R24: =IF(R$7=0,0,$BD24/$BD$41*$BD$41*(R$7/$BD$7)) -> 0 | S24: =IF(S$7=0,0,$BD24/$BD$41*$BD$41*(S$7/$BD$7)) -> 0 | T24: 0 | U24: 0 | V24: 0 | W24: 0 | X24: 0 | Y24: 0 | Z24: 0 | AA24: 0 | AB24: 0 | AC24: 0 | AD24: =IF(AD$7=0,0,$BF24/$BF$41*$BF$41*(AD$7/$BF$7)) -> 0 | AE24: =IF(AE$7=0,0,$BF24/$BF$41*$BF$41*(AE$7/$BF$7)) -> 0 | AF24: 0 | AG24: 0 | AH24: 0 | AI24: 0 | AJ24: 0 | AK24: 0 | AL24: 0 | AM24: 0 | AN24: 0 | AO24: 0 | AP24: =IF(AP$7=0,0,$BG24/$BG$41*$BG$41*(AP$7/$BG$7)) -> 0 | AQ24: =IF(AQ$7=0,0,$BG24/$BG$41*$BG$41*(AQ$7/$BG$7)) -> 0 | AR24: 0 | AS24: 0 | AT24: 0 | AU24: 0 | AV24: 0 | AW24: 0 | AX24: 0 | AY24: 0 | AZ24: 0 | BA24: 0 | BC24: =IF(OR(BC$41=0,D24=""),0,D24/D$41*BC$41) -> 0 | BD24: =IF(BD$41=0,0,BC24/BC$41*BD$41) -> 0 | BF24: =IF(BF$41=0,0,BD24/BD$41*BF$41) -> 0 | BG24: =IF(BG$41=0,0,BF24/BF$41*BG$41) -> 0
C25: Advertising | F25: 0 | G25: 0 | H25: 0 | I25: 0 | J25: 0 | K25: 0 | L25: 0 | M25: 0 | N25: 0 | O25: 0 | P25: 0 | Q25: 0 | R25: 0 | S25: 0 | T25: 0 | U25: 0 | V25: 0 | W25: 0 | X25: 0 | Y25: 0 | Z25: 0 | AA25: 0 | AB25: 0 | AC25: 0 | AD25: 0 | AE25: 0 | AF25: 0 | AG25: 0 | AH25: 0 | AI25: 0 | AJ25: 0 | AK25: 0 | AL25: 0 | AM25: 0 | AN25: 0 | AO25: 0 | AP25: 0 | AQ25: 0 | AR25: 0 | AS25: 0 | AT25: 0 | AU25: 0 | AV25: 0 | AW25: 0 | AX25: 0 | AY25: 0 | AZ25: 0 | BA25: 0 | BC25: =IF(OR(BC$41=0,D25=""),0,D25/D$41*BC$41) -> 0 | BD25: 0 | BF25: 0 | BG25: 0
C26: Dues and Subscriptions | F26: 0 | G26: 0 | H26: 0 | I26: 0 | J26: 0 | K26: 0 | L26: 0 | M26: 0 | N26: 0 | O26: 0 | P26: 0 | Q26: 0 | R26: 0 | S26: 0 | T26: 0 | U26: 0 | V26: 0 | W26: 0 | X26: 0 | Y26: 0 | Z26: 0 | AA26: 0 | AB26: 0 | AC26: 0 | AD26: 0 | AE26: 0 | AF26: 0 | AG26: 0 | AH26: 0 | AI26: 0 | AJ26: 0 | AK26: 0 | AL26: 0 | AM26: 0 | AN26: 0 | AO26: 0 | AP26: 0 | AQ26: 0 | AR26: 0 | AS26: 0 | AT26: 0 | AU26: 0 | AV26: 0 | AW26: 0 | AX26: 0 | AY26: 0 | AZ26: 0 | BA26: 0 | BC26: 0 | BD26: 0 | BF26: 0 | BG26: 0
C27: Insurance | F27: 0 | G27: 0 | H27: 0 | I27: 0 | J27: 0 | K27: 0 | L27: 0 | M27: 0 | N27: 0 | O27: 0 | P27: 0 | Q27: 0 | R27: 0 | S27: 0 | T27: 0 | U27: 0 | V27: 0 | W27: 0 | X27: 0 | Y27: 0 | Z27: 0 | AA27: 0 | AB27: 0 | AC27: 0 | AD27: 0 | AE27: 0 | AF27: 0 | AG27: 0 | AH27: 0 | AI27: 0 | AJ27: 0 | AK27: 0 | AL27: 0 | AM27: 0 | AN27: 0 | AO27: 0 | AP27: 0 | AQ27: 0 | AR27: 0 | AS27: 0 | AT27: 0 | AU27: 0 | AV27: 0 | AW27: 0 | AX27: 0 | AY27: 0 | AZ27: 0 | BA27: 0 | BC27: 0 | BD27: 0 | BF27: 0 | BG27: 0
C28: Maintenance and Repairs | F28: 0 | G28: 0 | H28: 0 | I28: 0 | J28: 0 | K28: 0 | L28: 0 | M28: 0 | N28: 0 | O28: 0 | P28: 0 | Q28: 0 | R28: 0 | S28: 0 | T28: 0 | U28: 0 | V28: 0 | W28: 0 | X28: 0 | Y28: 0 | Z28: 0 | AA28: 0 | AB28: 0 | AC28: 0 | AD28: 0 | AE28: 0 | AF28: 0 | AG28: 0 | AH28: 0 | AI28: 0 | AJ28: 0 | AK28: 0 | AL28: 0 | AM28: 0 | AN28: 0 | AO28: 0 | AP28: 0 | AQ28: 0 | AR28: 0 | AS28: 0 | AT28: 0 | AU28: 0 | AV28: 0 | AW28: 0 | AX28: 0 | AY28: 0 | AZ28: 0 | BA28: 0 | BC28: 0 | BD28: 0 | BF28: 0 | BG28: 0
C29: Office Supplies | F29: 0 | G29: 0 | H29: 0 | I29: 0 | J29: 0 | K29: 0 | L29: 0 | M29: 0 | N29: 0 | O29: 0 | P29: 0 | Q29: 0 | R29: 0 | S29: 0 | T29: 0 | U29: 0 | V29: 0 | W29: 0 | X29: 0 | Y29: 0 | Z29: 0 | AA29: 0 | AB29: 0 | AC29: 0 | AD29: 0 | AE29: 0 | AF29: 0 | AG29: 0 | AH29: 0 | AI29: 0 | AJ29: 0 | AK29: 0 | AL29: 0 | AM29: 0 | AN29: 0 | AO29: 0 | AP29: 0 | AQ29: 0 | AR29: 0 | AS29: 0 | AT29: 0 | AU29: 0 | AV29: 0 | AW29: 0 | AX29: 0 | AY29: 0 | AZ29: 0 | BA29: 0 | BC29: 0 | BD29: 0 | BF29: 0 | BG29: 0
C30: Payroll Expenses | F30: 0 | G30: 0 | H30: 0 | I30: 0 | J30: 0 | K30: 0 | L30: 0 | M30: 0 | N30: 0 | O30: 0 | P30: 0 | Q30: 0 | R30: 0 | S30: 0 | T30: 0 | U30: 0 | V30: 0 | W30: 0 | X30: 0 | Y30: 0 | Z30: 0 | AA30: 0 | AB30: 0 | AC30: 0 | AD30: 0 | AE30: 0 | AF30: 0 | AG30: 0 | AH30: 0 | AI30: 0 | AJ30: 0 | AK30: 0 | AL30: 0 | AM30: 0 | AN30: 0 | AO30: 0 | AP30: 0 | AQ30: 0 | AR30: 0 | AS30: 0 | AT30: 0 | AU30: 0 | AV30: 0 | AW30: 0 | AX30: 0 | AY30: 0 | AZ30: 0 | BA30: 0 | BC30: 0 | BD30: 0 | BF30: 0 | BG30: 0
C31: Postage | F31: 0 | G31: 0 | H31: 0 | I31: 0 | J31: 0 | K31: 0 | L31: 0 | M31: 0 | N31: 0 | O31: 0 | P31: 0 | Q31: 0 | R31: 0 | S31: 0 | T31: 0 | U31: 0 | V31: 0 | W31: 0 | X31: 0 | Y31: 0 | Z31: 0 | AA31: 0 | AB31: 0 | AC31: 0 | AD31: 0 | AE31: 0 | AF31: 0 | AG31: 0 | AH31: 0 | AI31: 0 | AJ31: 0 | AK31: 0 | AL31: 0 | AM31: 0 | AN31: 0 | AO31: 0 | AP31: 0 | AQ31: 0 | AR31: 0 | AS31: 0 | AT31: 0 | AU31: 0 | AV31: 0 | AW31: 0 | AX31: 0 | AY31: 0 | AZ31: 0 | BA31: 0 | BC31: 0 | BD31: 0 | BF31: 0 | BG31: 0
C32: Rent | F32: 0 | G32: 0 | H32: 0 | I32: 0 | J32: 0 | K32: 0 | L32: 0 | M32: 0 | N32: 0 | O32: 0 | P32: 0 | Q32: 0 | R32: 0 | S32: 0 | T32: 0 | U32: 0 | V32: 0 | W32: 0 | X32: 0 | Y32: 0 | Z32: 0 | AA32: 0 | AB32: 0 | AC32: 0 | AD32: 0 | AE32: 0 | AF32: 0 | AG32: 0 | AH32: 0 | AI32: 0 | AJ32: 0 | AK32: 0 | AL32: 0 | AM32: 0 | AN32: 0 | AO32: 0 | AP32: 0 | AQ32: 0 | AR32: 0 | AS32: 0 | AT32: 0 | AU32: 0 | AV32: 0 | AW32: 0 | AX32: 0 | AY32: 0 | AZ32: 0 | BA32: 0 | BC32: 0 | BD32: 0 | BF32: 0 | BG32: 0
C33: Research and Development | F33: 0 | G33: 0 | H33: 0 | I33: 0 | J33: 0 | K33: 0 | L33: 0 | M33: 0 | N33: 0 | O33: 0 | P33: 0 | Q33: 0 | R33: 0 | S33: 0 | T33: 0 | U33: 0 | V33: 0 | W33: 0 | X33: 0 | Y33: 0 | Z33: 0 | AA33: 0 | AB33: 0 | AC33: 0 | AD33: 0 | AE33: 0 | AF33: 0 | AG33: 0 | AH33: 0 | AI33: 0 | AJ33: 0 | AK33: 0 | AL33: 0 | AM33: 0 | AN33: 0 | AO33: 0 | AP33: 0 | AQ33: 0 | AR33: 0 | AS33: 0 | AT33: 0 | AU33: 0 | AV33: 0 | AW33: 0 | AX33: 0 | AY33: 0 | AZ33: 0 | BA33: 0 | BC33: 0 | BD33: 0 | BF33: 0 | BG33: 0
C34: Salaries and Wages | F34: 0 | G34: 0 | H34: 0 | I34: 0 | J34: 0 | K34: 0 | L34: 0 | M34: 0 | N34: 0 | O34: 0 | P34: 0 | Q34: 0 | R34: 0 | S34: 0 | T34: 0 | U34: 0 | V34: 0 | W34: 0 | X34: 0 | Y34: 0 | Z34: 0 | AA34: 0 | AB34: 0 | AC34: 0 | AD34: 0 | AE34: 0 | AF34: 0 | AG34: 0 | AH34: 0 | AI34: 0 | AJ34: 0 | AK34: 0 | AL34: 0 | AM34: 0 | AN34: 0 | AO34: 0 | AP34: 0 | AQ34: 0 | AR34: 0 | AS34: 0 | AT34: 0 | AU34: 0 | AV34: 0 | AW34: 0 | AX34: 0 | AY34: 0 | AZ34: 0 | BA34: 0 | BC34: 0 | BD34: 0 | BF34: 0 | BG34: 0
C35: Taxes and Licenses | F35: 0 | G35: 0 | H35: 0 | I35: 0 | J35: 0 | K35: 0 | L35: 0 | M35: 0 | N35: 0 | O35: 0 | P35: 0 | Q35: 0 | R35: 0 | S35: 0 | T35: 0 | U35: 0 | V35: 0 | W35: 0 | X35: 0 | Y35: 0 | Z35: 0 | AA35: 0 | AB35: 0 | AC35: 0 | AD35: 0 | AE35: 0 | AF35: 0 | AG35: 0 | AH35: 0 | AI35: 0 | AJ35: 0 | AK35: 0 | AL35: 0 | AM35: 0 | AN35: 0 | AO35: 0 | AP35: 0 | AQ35: 0 | AR35: 0 | AS35: 0 | AT35: 0 | AU35: 0 | AV35: 0 | AW35: 0 | AX35: 0 | AY35: 0 | AZ35: 0 | BA35: 0 | BC35: 0 | BD35: 0 | BF35: 0 | BG35: 0
C36: Telephone | F36: 0 | G36: 0 | H36: 0 | I36: 0 | J36: 0 | K36: 0 | L36: 0 | M36: 0 | N36: 0 | O36: 0 | P36: 0 | Q36: 0 | R36: 0 | S36: 0 | T36: 0 | U36: 0 | V36: 0 | W36: 0 | X36: 0 | Y36: 0 | Z36: 0 | AA36: 0 | AB36: 0 | AC36: 0 | AD36: 0 | AE36: 0 | AF36: 0 | AG36: 0 | AH36: 0 | AI36: 0 | AJ36: 0 | AK36: 0 | AL36: 0 | AM36: 0 | AN36: 0 | AO36: 0 | AP36: 0 | AQ36: 0 | AR36: 0 | AS36: 0 | AT36: 0 | AU36: 0 | AV36: 0 | AW36: 0 | AX36: 0 | AY36: 0 | AZ36: 0 | BA36: 0 | BC36: 0 | BD36: 0 | BF36: 0 | BG36: 0
C37: Travel | F37: 0 | G37: 0 | H37: 0 | I37: 0 | J37: 0 | K37: 0 | L37: 0 | M37: 0 | N37: 0 | O37: 0 | P37: 0 | Q37: 0 | R37: 0 | S37: 0 | T37: 0 | U37: 0 | V37: 0 | W37: 0 | X37: 0 | Y37: 0 | Z37: 0 | AA37: 0 | AB37: 0 | AC37: 0 | AD37: 0 | AE37: 0 | AF37: 0 | AG37: 0 | AH37: 0 | AI37: 0 | AJ37: 0 | AK37: 0 | AL37: 0 | AM37: 0 | AN37: 0 | AO37: 0 | AP37: 0 | AQ37: 0 | AR37: 0 | AS37: 0 | AT37: 0 | AU37: 0 | AV37: 0 | AW37: 0 | AX37: 0 | AY37: 0 | AZ37: 0 | BA37: 0 | BC37: 0 | BD37: 0 | BF37: 0 | BG37: 0
C38: Utilities | F38: 0 | G38: 0 | H38: 0 | I38: 0 | J38: 0 | K38: 0 | L38: 0 | M38: 0 | N38: 0 | O38: 0 | P38: 0 | Q38: 0 | R38: 0 | S38: 0 | T38: 0 | U38: 0 | V38: 0 | W38: 0 | X38: 0 | Y38: 0 | Z38: 0 | AA38: 0 | AB38: 0 | AC38: 0 | AD38: 0 | AE38: 0 | AF38: 0 | AG38: 0 | AH38: 0 | AI38: 0 | AJ38: 0 | AK38: 0 | AL38: 0 | AM38: 0 | AN38: 0 | AO38: 0 | AP38: 0 | AQ38: 0 | AR38: 0 | AS38: 0 | AT38: 0 | AU38: 0 | AV38: 0 | AW38: 0 | AX38: 0 | AY38: 0 | AZ38: 0 | BA38: 0 | BC38: 0 | BD38: 0 | BF38: 0 | BG38: 0
C39: Web Hosting and Domains | F39: 0 | G39: 0 | H39: 0 | I39: 0 | J39: 0 | K39: 0 | L39: 0 | M39: 0 | N39: 0 | O39: 0 | P39: 0 | Q39: 0 | R39: 0 | S39: 0 | T39: 0 | U39: 0 | V39: 0 | W39: 0 | X39: 0 | Y39: 0 | Z39: 0 | AA39: 0 | AB39: 0 | AC39: 0 | AD39: 0 | AE39: 0 | AF39: 0 | AG39: 0 | AH39: 0 | AI39: 0 | AJ39: 0 | AK39: 0 | AL39: 0 | AM39: 0 | AN39: 0 | AO39: 0 | AP39: 0 | AQ39: 0 | AR39: 0 | AS39: 0 | AT39: 0 | AU39: 0 | AV39: 0 | AW39: 0 | AX39: 0 | AY39: 0 | AZ39: 0 | BA39: 0 | BC39: 0 | BD39: 0 | BF39: 0 | BG39: 0
C40: Other | F40: 0 | G40: =IF(G$7=0,0,$BC40/$BC$41*$BC$41*(G$7/$BC$7)) -> 0 | H40: 0 | I40: 0 | J40: 0 | K40: 0 | L40: 0 | M40: 0 | N40: 0 | O40: 0 | P40: 0 | Q40: 0 | R40: 0 | S40: =IF(S$7=0,0,$BD40/$BD$41*$BD$41*(S$7/$BD$7)) -> 0 | T40: 0 | U40: 0 | V40: 0 | W40: 0 | X40: 0 | Y40: 0 | Z40: 0 | AA40: 0 | AB40: 0 | AC40: 0 | AD40: 0 | AE40: =IF(AE$7=0,0,$BF40/$BF$41*$BF$41*(AE$7/$BF$7)) -> 0 | AF40: 0 | AG40: 0 | AH40: 0 | AI40: 0 | AJ40: 0 | AK40: 0 | AL40: 0 | AM40: 0 | AN40: 0 | AO40: 0 | AP40: 0 | AQ40: =IF(AQ$7=0,0,$BG40/$BG$41*$BG$41*(AQ$7/$BG$7)) -> 0 | AR40: 0 | AS40: 0 | AT40: 0 | AU40: 0 | AV40: 0 | AW40: 0 | AX40: 0 | AY40: 0 | AZ40: 0 | BA40: 0 | BC40: 0 | BD40: 0 | BF40: 0 | BG40: 0
C41: Total Operating Expenses | D41: =SUM(D24:D40) -> 0 | F41: =SUM(F24:F40) -> 0 | G41: 0 | H41: 0 | I41: 0 | J41: 0 | K41: 0 | L41: 0 | M41: 0 | N41: 0 | O41: 0 | P41: 0 | Q41: 0 | R41: 0 | S41: 0 | T41: 0 | U41: 0 | V41: 0 | W41: 0 | X41: 0 | Y41: 0 | Z41: 0 | AA41: 0 | AB41: 0 | AC41: 0 | AD41: =SUM(AD24:AD40) -> 0 | AE41: 0 | AF41: 0 | AG41: 0 | AH41: 0 | AI41: 0 | AJ41: 0 | AK41: 0 | AL41: 0 | AM41: 0 | AN41: 0 | AO41: 0 | AP41: 0 | AQ41: 0 | AR41: 0 | AS41: 0 | AT41: 0 | AU41: 0 | AV41: 0 | AW41: 0 | AX41: 0 | AY41: 0 | AZ41: =SUM(AZ24:AZ40) -> 0 | BA41: =SUM(BA24:BA40) -> 0 | BC41: =BC5*BC42 -> 0 | BD41: =BD5*BD42 -> 0 | BF41: =BF5*BF42 -> 0 | BG41: =BG5*BG42 -> 0
D42: =IF(OR(D41=0,D7=0),0,D41/D7) -> 0 | BC42: =INDEX('Social Table'!$A$53:$C$60,MATCH('P&L'!BC5,'Social Table'!$A$53:$A$60,1),3) -> 0.4 | BD42: =INDEX('Social Table'!$A$53:$C$60,MATCH('P&L'!BD5,'Social Table'!$A$53:$A$60,1),3) -> 0.4 | BF42: =INDEX('Social Table'!$A$53:$C$60,MATCH('P&L'!BF5,'Social Table'!$A$53:$A$60,1),3) -> 0.4 | BG42: =INDEX('Social Table'!$A$53:$C$60,MATCH('P&L'!BG5,'Social Table'!$A$53:$A$60,1),3) -> 0.4
C43: Other Income / Expenses
B44: 0.01 | C44: Interest Income | D44: 0 | F44: =IF('Balance Sheet'!D27<0,-'Balance Sheet'!D27*($B$44/12),0) -> 0 | G44: =IF('Balance Sheet'!E27<0,-'Balance Sheet'!E27*($B$44/12),0) -> 0 | H44: =IF('Balance Sheet'!F27<0,-'Balance Sheet'!F27*($B$44/12),0) -> 0 | I44: =IF('Balance Sheet'!G27<0,-'Balance Sheet'!G27*($B$44/12),0) -> 0 | J44: =IF('Balance Sheet'!H27<0,-'Balance Sheet'!H27*($B$44/12),0) -> 0 | K44: =IF('Balance Sheet'!I27<0,-'Balance Sheet'!I27*($B$44/12),0) -> 0 | L44: =IF('Balance Sheet'!J27<0,-'Balance Sheet'!J27*($B$44/12),0) -> 0 | M44: =IF('Balance Sheet'!K27<0,-'Balance Sheet'!K27*($B$44/12),0) -> 0 | N44: =IF('Balance Sheet'!L27<0,-'Balance Sheet'!L27*($B$44/12),0) -> 0 | O44: =IF('Balance Sheet'!M27<0,-'Balance Sheet'!M27*($B$44/12),0) -> 0 | P44: =IF('Balance Sheet'!N27<0,-'Balance Sheet'!N27*($B$44/12),0) -> 0 | Q44: =IF('Balance Sheet'!O27<0,-'Balance Sheet'!O27*($B$44/12),0) -> 0 | R44: =IF('Balance Sheet'!P27<0,-'Balance Sheet'!P27*($B$44/12),0) -> 0 | S44: =IF('Balance Sheet'!Q27<0,-'Balance Sheet'!Q27*($B$44/12),0) -> 0 | T44: =IF('Balance Sheet'!R27<0,-'Balance Sheet'!R27*($B$44/12),0) -> 0 | U44: =IF('Balance Sheet'!S27<0,-'Balance Sheet'!S27*($B$44/12),0) -> 0 | V44: =IF('Balance Sheet'!T27<0,-'Balance Sheet'!T27*($B$44/12),0) -> 0 | W44: =IF('Balance Sheet'!U27<0,-'Balance Sheet'!U27*($B$44/12),0) -> 0 | X44: =IF('Balance Sheet'!V27<0,-'Balance Sheet'!V27*($B$44/12),0) -> 0 | Y44: =IF('Balance Sheet'!W27<0,-'Balance Sheet'!W27*($B$44/12),0) -> 0 | Z44: =IF('Balance Sheet'!X27<0,-'Balance Sheet'!X27*($B$44/12),0) -> 0 | AA44: =IF('Balance Sheet'!Y27<0,-'Balance Sheet'!Y27*($B$44/12),0) -> 0 | AB44: =IF('Balance Sheet'!Z27<0,-'Balance Sheet'!Z27*($B$44/12),0) -> 0 | AC44: =IF('Balance Sheet'!AA27<0,-'Balance Sheet'!AA27*($B$44/12),0) -> 0 | AD44: =IF('Balance Sheet'!AB27<0,-'Balance Sheet'!AB27*($B$44/12),0) -> 0 | AE44: =IF('Balance Sheet'!AC27<0,-'Balance Sheet'!AC27*($B$44/12),0) -> 0 | AF44: =IF('Balance Sheet'!AD27<0,-'Balance Sheet'!AD27*($B$44/12),0) -> 0 | AG44: =IF('Balance Sheet'!AE27<0,-'Balance Sheet'!AE27*($B$44/12),0) -> 0 | AH44: =IF('Balance Sheet'!AF27<0,-'Balance Sheet'!AF27*($B$44/12),0) -> 0 | AI44: =IF('Balance Sheet'!AG27<0,-'Balance Sheet'!AG27*($B$44/12),0) -> 0 | AJ44: =IF('Balance Sheet'!AH27<0,-'Balance Sheet'!AH27*($B$44/12),0) -> 0 | AK44: =IF('Balance Sheet'!AI27<0,-'Balance Sheet'!AI27*($B$44/12),0) -> 0 | AL44: =IF('Balance Sheet'!AJ27<0,-'Balance Sheet'!AJ27*($B$44/12),0) -> 0 | AM44: =IF('Balance Sheet'!AK27<0,-'Balance Sheet'!AK27*($B$44/12),0) -> 0 | AN44: =IF('Balance Sheet'!AL27<0,-'Balance Sheet'!AL27*($B$44/12),0) -> 0 | AO44: =IF('Balance Sheet'!AM27<0,-'Balance Sheet'!AM27*($B$44/12),0) -> 0 | AP44: =IF('Balance Sheet'!AN27<0,-'Balance Sheet'!AN27*($B$44/12),0) -> 0 | AQ44: =IF('Balance Sheet'!AO27<0,-'Balance Sheet'!AO27*($B$44/12),0) -> 0 | AR44: =IF('Balance Sheet'!AP27<0,-'Balance Sheet'!AP27*($B$44/12),0) -> 0 | AS44: =IF('Balance Sheet'!AQ27<0,-'Balance Sheet'!AQ27*($B$44/12),0) -> 0 | AT44: =IF('Balance Sheet'!AR27<0,-'Balance Sheet'!AR27*($B$44/12),0) -> 0 | AU44: =IF('Balance Sheet'!AS27<0,-'Balance Sheet'!AS27*($B$44/12),0) -> 0 | AV44: =IF('Balance Sheet'!AT27<0,-'Balance Sheet'!AT27*($B$44/12),0) -> 0 | AW44: =IF('Balance Sheet'!AU27<0,-'Balance Sheet'!AU27*($B$44/12),0) -> 0 | AX44: =IF('Balance Sheet'!AV27<0,-'Balance Sheet'!AV27*($B$44/12),0) -> 0 | AY44: =IF('Balance Sheet'!AW27<0,-'Balance Sheet'!AW27*($B$44/12),0) -> 0 | AZ44: =IF('Balance Sheet'!AX27<0,-'Balance Sheet'!AX27*($B$44/12),0) -> 0 | BA44: =IF('Balance Sheet'!AY27<0,-'Balance Sheet'!AY27*($B$44/12),0) -> 0 | BC44: =SUM(F44:Q44) -> 0 | BD44: =SUM(R44:AC44) -> 0 | BF44: =SUM(AD44:AO44) -> 0 | BG44: =SUM(AP44:BA44) -> 0
C46: Interest Expense | F46: ='Balance Sheet'!D58 -> 0 | G46: ='Balance Sheet'!E58 -> 0 | H46: ='Balance Sheet'!F58 -> 0 | I46: ='Balance Sheet'!G58 -> 0 | J46: ='Balance Sheet'!H58 -> 0 | K46: ='Balance Sheet'!I58 -> 0 | L46: ='Balance Sheet'!J58 -> 0 | M46: ='Balance Sheet'!K58 -> 0 | N46: ='Balance Sheet'!L58 -> 0 | O46: ='Balance Sheet'!M58 -> 0 | P46: ='Balance Sheet'!N58 -> 0 | Q46: ='Balance Sheet'!O58 -> 0 | R46: ='Balance Sheet'!P58 -> 0 | S46: ='Balance Sheet'!Q58 -> 0 | T46: ='Balance Sheet'!R58 -> 0 | U46: ='Balance Sheet'!S58 -> 0 | V46: ='Balance Sheet'!T58 -> 0 | W46: ='Balance Sheet'!U58 -> 0 | X46: ='Balance Sheet'!V58 -> 0 | Y46: ='Balance Sheet'!W58 -> 0 | Z46: ='Balance Sheet'!X58 -> 0 | AA46: ='Balance Sheet'!Y58 -> 0 | AB46: ='Balance Sheet'!Z58 -> 0 | AC46: ='Balance Sheet'!AA58 -> 0 | AD46: ='Balance Sheet'!AB58 -> 0 | AE46: ='Balance Sheet'!AC58 -> 0 | AF46: ='Balance Sheet'!AD58 -> 0 | AG46: ='Balance Sheet'!AE58 -> 0 | AH46: ='Balance Sheet'!AF58 -> 0 | AI46: ='Balance Sheet'!AG58 -> 0 | AJ46: ='Balance Sheet'!AH58 -> 0 | AK46: ='Balance Sheet'!AI58 -> 0 | AL46: ='Balance Sheet'!AJ58 -> 0 | AM46: ='Balance Sheet'!AK58 -> 0 | AN46: ='Balance Sheet'!AL58 -> 0 | AO46: ='Balance Sheet'!AM58 -> 0 | AP46: ='Balance Sheet'!AN58 -> 0 | AQ46: ='Balance Sheet'!AO58 -> 0 | AR46: ='Balance Sheet'!AP58 -> 0 | AS46: ='Balance Sheet'!AQ58 -> 0 | AT46: ='Balance Sheet'!AR58 -> 0 | AU46: ='Balance Sheet'!AS58 -> 0 | AV46: ='Balance Sheet'!AT58 -> 0 | AW46: ='Balance Sheet'!AU58 -> 0 | AX46: ='Balance Sheet'!AV58 -> 0 | AY46: ='Balance Sheet'!AW58 -> 0 | AZ46: ='Balance Sheet'!AX58 -> 0 | BA46: ='Balance Sheet'!AY58 -> 0 | BC46: =SUM(F46:Q46) -> 0 | BD46: =SUM(R46:AC46) -> 0 | BF46: =SUM(AD46:AO46) -> 0 | BG46: =SUM(AP46:BA46) -> 0
C47: Depreciation | F47: ='Balance Sheet'!E57 -> 0 | G47: ='Balance Sheet'!F57 -> 0 | H47: ='Balance Sheet'!G57 -> 0 | I47: ='Balance Sheet'!H57 -> 0 | J47: ='Balance Sheet'!I57 -> 0 | K47: ='Balance Sheet'!J57 -> 0 | L47: ='Balance Sheet'!K57 -> 0 | M47: ='Balance Sheet'!L57 -> 0 | N47: ='Balance Sheet'!M57 -> 0 | O47: ='Balance Sheet'!N57 -> 0 | P47: ='Balance Sheet'!O57 -> 0 | Q47: ='Balance Sheet'!P57 -> 0 | R47: ='Balance Sheet'!Q57 -> 0 | S47: ='Balance Sheet'!R57 -> 0 | T47: ='Balance Sheet'!S57 -> 0 | U47: ='Balance Sheet'!T57 -> 0 | V47: ='Balance Sheet'!U57 -> 0 | W47: ='Balance Sheet'!V57 -> 0 | X47: ='Balance Sheet'!W57 -> 0 | Y47: ='Balance Sheet'!X57 -> 0 | Z47: ='Balance Sheet'!Y57 -> 0 | AA47: ='Balance Sheet'!Z57 -> 0 | AB47: ='Balance Sheet'!AA57 -> 0 | AC47: ='Balance Sheet'!AB57 -> 0 | AD47: ='Balance Sheet'!AC57 -> 0 | AE47: ='Balance Sheet'!AD57 -> 0 | AF47: ='Balance Sheet'!AE57 -> 0 | AG47: ='Balance Sheet'!AF57 -> 0 | AH47: ='Balance Sheet'!AG57 -> 0 | AI47: ='Balance Sheet'!AH57 -> 0 | AJ47: ='Balance Sheet'!AI57 -> 0 | AK47: ='Balance Sheet'!AJ57 -> 0 | AL47: ='Balance Sheet'!AK57 -> 0 | AM47: ='Balance Sheet'!AL57 -> 0 | AN47: ='Balance Sheet'!AM57 -> 0 | AO47: ='Balance Sheet'!AN57 -> 0 | AP47: ='Balance Sheet'!AO57 -> 0 | AQ47: ='Balance Sheet'!AP57 -> 0 | AR47: ='Balance Sheet'!AQ57 -> 0 | AS47: ='Balance Sheet'!AR57 -> 0 | AT47: ='Balance Sheet'!AS57 -> 0 | AU47: ='Balance Sheet'!AT57 -> 0 | AV47: ='Balance Sheet'!AU57 -> 0 | AW47: ='Balance Sheet'!AV57 -> 0 | AX47: ='Balance Sheet'!AW57 -> 0 | AY47: ='Balance Sheet'!AX57 -> 0 | AZ47: ='Balance Sheet'!AY57 -> 0 | BA47: ='Balance Sheet'!AZ57 -> 0 | BC47: =SUM(F47:Q47) -> 0 | BD47: =SUM(R47:AC47) -> 0 | BF47: =SUM(AD47:AO47) -> 0 | BG47: =SUM(AP47:BA47) -> 0
C48: Total Other Income / Expenses | D48: =SUM(D46:D47) -> 0 | F48: =SUM(F46:F47) -> 0 | G48: =SUM(G46:G47) -> 0 | H48: 0 | I48: 0 | J48: 0 | K48: 0 | L48: 0 | M48: 0 | N48: 0 | O48: 0 | P48: 0 | Q48: 0 | R48: 0 | S48: 0 | T48: 0 | U48: 0 | V48: 0 | W48: 0 | X48: 0 | Y48: 0 | Z48: 0 | AA48: 0 | AB48: 0 | AC48: 0 | AD48: =SUM(AD46:AD47) -> 0 | AE48: 0 | AF48: 0 | AG48: 0 | AH48: 0 | AI48: 0 | AJ48: 0 | AK48: 0 | AL48: 0 | AM48: 0 | AN48: 0 | AO48: 0 | AP48: 0 | AQ48: 0 | AR48: 0 | AS48: 0 | AT48: 0 | AU48: 0 | AV48: 0 | AW48: 0 | AX48: 0 | AY48: 0 | AZ48: =SUM(AZ46:AZ47) -> 0 | BA48: =SUM(BA46:BA47) -> 0 | BC48: =SUM(F48:Q48) -> 0 | BD48: =SUM(R48:AC48) -> 0 | BF48: =SUM(BF46:BF47) -> 0 | BG48: =SUM(BG46:BG47) -> 0
B50: Total EXPENSES | D50: =D48+D41 -> 0 | F50: =F41-F44+F48 -> 0 | G50: =G41-G44+G48 -> 0 | H50: 0 | I50: 0 | J50: 0 | K50: 0 | L50: 0 | M50: 0 | N50: 0 | O50: 0 | P50: 0 | Q50: 0 | R50: 0 | S50: 0 | T50: 0 | U50: 0 | V50: 0 | W50: 0 | X50: 0 | Y50: 0 | Z50: 0 | AA50: 0 | AB50: 0 | AC50: 0 | AD50: =AD41-AD44+AD48 -> 0 | AE50: 0 | AF50: 0 | AG50: 0 | AH50: 0 | AI50: 0 | AJ50: 0 | AK50: 0 | AL50: 0 | AM50: 0 | AN50: 0 | AO50: 0 | AP50: 0 | AQ50: 0 | AR50: 0 | AS50: 0 | AT50: 0 | AU50: 0 | AV50: 0 | AW50: 0 | AX50: 0 | AY50: 0 | AZ50: =AZ41-AZ44+AZ48 -> 0 | BA50: =BA41-BA44+BA48 -> 0 | BC50: =SUM(F50:Q50) -> 0 | BD50: =SUM(R50:AC50) -> 0 | BF50: =BF41-BF44+BF48 -> 0 | BG50: =BG41-BG44+BG48 -> 0
C52: Net Income Before Taxes | D52: =D20-D50 -> 0 | F52: =F20-F50 -> 0 | G52: 0 | H52: 0 | I52: 0 | J52: 0 | K52: 0 | L52: 0 | M52: 0 | N52: 0 | O52: 0 | P52: 0 | Q52: 0 | R52: 0 | S52: 0 | T52: 0 | U52: 0 | V52: 0 | W52: 0 | X52: 0 | Y52: 0 | Z52: 0 | AA52: 0 | AB52: 0 | AC52: 0 | AD52: =AD20-AD50 -> 0 | AE52: 0 | AF52: 0 | AG52: 0 | AH52: 0 | AI52: 0 | AJ52: 0 | AK52: 0 | AL52: 0 | AM52: 0 | AN52: 0 | AO52: 0 | AP52: 0 | AQ52: 0 | AR52: 0 | AS52: 0 | AT52: 0 | AU52: 0 | AV52: 0 | AW52: 0 | AX52: 0 | AY52: 0 | AZ52: =AZ20-AZ50 -> 0 | BA52: =BA20-BA50 -> 0 | BC52: =SUM(F52:Q52) -> 0 | BD52: =SUM(R52:AC52) -> 0 | BF52: =BF20-BF50 -> 0 | BG52: =BG20-BG50 -> 0
B53: 0.25 | C53: Income Tax Expense | D53: =D52*B53 -> 0 | F53: =F52*$B$53 -> 0 | G53: 0 | H53: 0 | I53: 0 | J53: 0 | K53: 0 | L53: 0 | M53: 0 | N53: 0 | O53: 0 | P53: 0 | Q53: 0 | R53: 0 | S53: 0 | T53: 0 | U53: 0 | V53: 0 | W53: 0 | X53: 0 | Y53: 0 | Z53: 0 | AA53: 0 | AB53: 0 | AC53: 0 | AD53: =AD52*$B$53 -> 0 | AE53: 0 | AF53: 0 | AG53: 0 | AH53: 0 | AI53: 0 | AJ53: 0 | AK53: 0 | AL53: 0 | AM53: 0 | AN53: 0 | AO53: 0 | AP53: 0 | AQ53: 0 | AR53: 0 | AS53: 0 | AT53: 0 | AU53: 0 | AV53: 0 | AW53: 0 | AX53: 0 | AY53: 0 | AZ53: =AZ52*$B$53 -> 0 | BA53: =BA52*$B$53 -> 0 | BC53: =SUM(F53:Q53) -> 0 | BD53: =SUM(R53:AC53) -> 0 | BF53: =BF52*$B$53 -> 0 | BG53: =BG52*$B$53 -> 0
B55: NET INCOME | D55: =D52-D53 -> 0 | F55: =F52-F53 -> 0 | G55: 0 | H55: 0 | I55: 0 | J55: 0 | K55: 0 | L55: 0 | M55: 0 | N55: 0 | O55: 0 | P55: 0 | Q55: 0 | R55: 0 | S55: 0 | T55: 0 | U55: 0 | V55: 0 | W55: 0 | X55: 0 | Y55: 0 | Z55: 0 | AA55: 0 | AB55: 0 | AC55: 0 | AD55: =AD52-AD53 -> 0 | AE55: 0 | AF55: 0 | AG55: 0 | AH55: 0 | AI55: 0 | AJ55: 0 | AK55: 0 | AL55: 0 | AM55: 0 | AN55: 0 | AO55: 0 | AP55: 0 | AQ55: 0 | AR55: 0 | AS55: 0 | AT55: 0 | AU55: 0 | AV55: 0 | AW55: 0 | AX55: 0 | AY55: 0 | AZ55: =AZ52-AZ53 -> 0 | BA55: =BA52-BA53 -> 0 | BC55: =SUM(F55:Q55) -> 0 | BD55: =SUM(R55:AC55) -> 0 | BF55: =BF52-BF53 -> 0 | BG55: =BG52-BG53 -> 0
B58: COST OF GOODS - Details | D58: =D3 -> Total | F58: =F3 -> Sep | G58: Oct | H58: Nov | I58: Dec | J58: Jan | K58: Feb | L58: Mar | M58: Apr | N58: May | O58: Jun | P58: Jul | Q58: Aug | R58: Sep | S58: Oct | T58: Nov | U58: Dec | V58: Jan | W58: Feb | X58: Mar | Y58: Apr | Z58: May | AA58: Jun | AB58: Jul | AC58: Aug | AD58: =AD3 -> Sep | AE58: Oct | AF58: Nov | AG58: Dec | AH58: Jan | AI58: Feb | AJ58: Mar | AK58: Apr | AL58: May | AM58: Jun | AN58: Jul | AO58: Aug | AP58: Sep | AQ58: Oct | AR58: Nov | AS58: Dec | AT58: Jan | AU58: Feb | AV58: Mar | AW58: Apr | AX58: May | AY58: Jun | AZ58: =AZ3 -> Jul | BA58: =BA3 -> Aug | BC58: =BC3 -> Total | BD58: =BD3 -> Total | BF58: =BF3 -> Total | BG58: =BG3 -> Total
C60: =C5 -> Product Sales
C61: Beginning Inventory | F61: 0 | G61: =F66 -> 0 | H61: =G66 -> 0 | I61: 0 | J61: 0 | K61: 0 | L61: 0 | M61: 0 | N61: 0 | O61: 0 | P61: 0 | Q61: 0 | R61: 0 | S61: 0 | T61: 0 | U61: 0 | V61: 0 | W61: 0 | X61: 0 | Y61: 0 | Z61: 0 | AA61: 0 | AB61: 0 | AC61: =AB66 -> 0 | AD61: =AC66 -> 0 | AE61: 0 | AF61: 0 | AG61: 0 | AH61: 0 | AI61: 0 | AJ61: 0 | AK61: 0 | AL61: 0 | AM61: 0 | AN61: 0 | AO61: 0 | AP61: 0 | AQ61: 0 | AR61: 0 | AS61: 0 | AT61: 0 | AU61: 0 | AV61: 0 | AW61: 0 | AX61: 0 | AY61: 0 | AZ61: =AY66 -> 0 | BA61: =AZ66 -> 0 | BC61: =SUM(F61:Q61) -> 0 | BD61: =SUM(R61:AC61) -> 0
C62: Goods Purchased or Manufactured | F62: =IF(OR($K$70="",$K$70=0),F$7*$D$70,F$7*F70) -> 0 | G62: 0 | H62: 0 | I62: 0 | J62: 0 | K62: 0 | L62: =IF(OR($K$70="",$K$70=0),L$7*$D$70,L$7*L70) -> 0 | M62: 0 | N62: 0 | O62: 0 | P62: 0 | Q62: 0 | R62: 0 | S62: 0 | T62: 0 | U62: 0 | V62: 0 | W62: 0 | X62: 0 | Y62: 0 | Z62: 0 | AA62: 0 | AB62: 0 | AC62: 0 | AD62: 0 | AE62: 0 | AF62: 0 | AG62: 0 | AH62: 0 | AI62: 0 | AJ62: 0 | AK62: 0 | AL62: 0 | AM62: 0 | AN62: 0 | AO62: 0 | AP62: 0 | AQ62: 0 | AR62: 0 | AS62: 0 | AT62: 0 | AU62: 0 | AV62: 0 | AW62: 0 | AX62: 0 | AY62: 0 | AZ62: 0 | BA62: =IF(OR($K$70="",$K$70=0),BA$7*$D$70,BA$7*BA70) -> 0 | BC62: 0 | BD62: 0 | BF62: =SUM(AD62:AO62) -> 0 | BG62: =SUM(AP62:BA62) -> 0
C63: Shipping Charges | F63: =IF(OR($K71="",$K71=0),F$7*$D71,F$7*F71) -> 0 | G63: 0 | H63: 0 | I63: 0 | J63: 0 | K63: 0 | L63: =IF(OR($K71="",$K71=0),L$7*$D71,L$7*L71) -> 0 | M63: 0 | N63: 0 | O63: 0 | P63: 0 | Q63: 0 | R63: 0 | S63: 0 | T63: 0 | U63: 0 | V63: 0 | W63: 0 | X63: 0 | Y63: 0 | Z63: 0 | AA63: 0 | AB63: 0 | AC63: 0 | AD63: 0 | AE63: 0 | AF63: 0 | AG63: 0 | AH63: 0 | AI63: 0 | AJ63: 0 | AK63: 0 | AL63: 0 | AM63: 0 | AN63: 0 | AO63: 0 | AP63: 0 | AQ63: 0 | AR63: 0 | AS63: 0 | AT63: 0 | AU63: 0 | AV63: 0 | AW63: 0 | AX63: 0 | AY63: 0 | AZ63: 0 | BA63: =IF(OR($K71="",$K71=0),BA$7*$D71,BA$7*BA71) -> 0 | BC63: 0 | BD63: 0 | BF63: =SUM(AD63:AO63) -> 0 | BG63: =SUM(AP63:BA63) -> 0
C64: Labor (wages and payroll) | BC64: 0 | BD64: 0
C65: Other | BC65: 0 | BD65: 0
C66: Less Ending Inventory | F66: 0 | G66: 0 | H66: 0 | I66: 0 | J66: 0 | K66: 0 | L66: 0 | M66: 0 | N66: 0 | O66: 0 | P66: 0 | Q66: 0 | R66: 0 | S66: 0 | T66: 0 | U66: 0 | V66: 0 | W66: 0 | X66: 0 | Y66: 0 | Z66: 0 | AA66: 0 | AB66: 0 | AC66: 0 | AD66: 0 | AE66: 0 | AF66: 0 | AG66: 0 | AH66: 0 | AI66: 0 | AJ66: 0 | AK66: 0 | AL66: 0 | AM66: 0 | AN66: 0 | AO66: 0 | AP66: 0 | AQ66: 0 | AR66: 0 | AS66: 0 | AT66: 0 | AU66: 0 | AV66: 0 | AW66: 0 | AX66: 0 | AY66: 0 | AZ66: 0 | BA66: 0 | BC66: 0 | BD66: 0
C67: Cost of Goods Sold | D67: =SUM(D61:D65)-D66 -> 0 | F67: =SUM(F61:F65)-F66 -> 0 | G67: 0 | H67: 0 | I67: 0 | J67: 0 | K67: 0 | L67: 0 | M67: 0 | N67: 0 | O67: 0 | P67: 0 | Q67: 0 | R67: =SUM(R61:R65)-R66 -> 0 | S67: 0 | T67: 0 | U67: 0 | V67: 0 | W67: 0 | X67: 0 | Y67: 0 | Z67: 0 | AA67: 0 | AB67: 0 | AC67: 0 | AD67: =SUM(AD61:AD65)-AD66 -> 0 | AE67: 0 | AF67: 0 | AG67: 0 | AH67: 0 | AI67: 0 | AJ67: 0 | AK67: 0 | AL67: 0 | AM67: 0 | AN67: 0 | AO67: 0 | AP67: 0 | AQ67: 0 | AR67: 0 | AS67: 0 | AT67: 0 | AU67: 0 | AV67: 0 | AW67: 0 | AX67: 0 | AY67: 0 | AZ67: =SUM(AZ61:AZ65)-AZ66 -> 0 | BA67: =SUM(BA61:BA65)-BA66 -> 0 | BC67: 0 | BD67: 0 | BF67: =SUM(BF61:BF65)-BF66 -> 0 | BG67: =SUM(BG61:BG65)-BG66 -> 0
C68: Gross Profit (Loss) | D68: =D5-D67 -> 0 | F68: =F5-F67 -> 0 | G68: 0 | H68: 0 | I68: 0 | J68: 0 | K68: 0 | L68: 0 | M68: 0 | N68: 0 | O68: 0 | P68: 0 | Q68: 0 | R68: 0 | S68: 0 | T68: 0 | U68: 0 | V68: 0 | W68: 0 | X68: 0 | Y68: 0 | Z68: 0 | AA68: 0 | AB68: 0 | AC68: 0 | AD68: =AD5-AD67 -> 0 | AE68: 0 | AF68: 0 | AG68: 0 | AH68: 0 | AI68: 0 | AJ68: 0 | AK68: 0 | AL68: 0 | AM68: 0 | AN68: 0 | AO68: 0 | AP68: 0 | AQ68: 0 | AR68: 0 | AS68: 0 | AT68: 0 | AU68: 0 | AV68: 0 | AW68: 0 | AX68: 0 | AY68: 0 | AZ68: =AZ5-AZ67 -> 0 | BA68: =BA5-BA67 -> 0 | BC68: 0 | BD68: 0 | BF68: =BF5-BF67 -> 0 | BG68: =BG5-BG67 -> 0
